Workbook

Sheet かんたん入力
A2: 新築の電気使用量を、条件からすぐ選ぶ
A3: 青いセルを選択・入力 → 12か月のkWhをASPへ転記。電気代は概算。公的な実測値と条件指定モデルを区別しています。
A5: 1 条件を選ぶ | D5: 2 ASPへ入力する目安 | H5: 根拠と確認事項
A6: 都道府県 | B6: 東京都 | D6: 月平均 kWh | F6: =IF(COUNT(B23:B34)=12,SUM(B23:B34)/12,"") -> 532.8 | H6: =IF(L18=0,"公的統計の平均を採用。断熱・設備・気候上書き・面積・生活感度・暖房条件は適用しません。",IF(L16=0,"8地域の等級7は設定対象外です。等級を見直してください。",IF(L13=1,IF(L17<12,"発電自家消費量12か月の入力待ちです。買電量の出力を止めています。","エネファーム：需要側から入力済み自家消費量を控除。機器補機は追加kWhへ。"),"条件指定モデル。代表地点の気候区分="&L6&"／標準面積="&TEXT(L8,"0.00")&"m²。"))) -> 条件指定モデル。代表地点の気候区分=6／標準面積=120.08m²。 | K6: 計算気候 | L6: =IF(B12="自動",VLOOKUP(B6,'地域'!$A$6:$D$52,4,FALSE),VALUE(B12)) -> 6
A7: 建て方 | B7: 戸建住宅 | K7: 統計地方 | L7: =VLOOKUP(B6,'地域'!$A$6:$D$52,3,FALSE) -> 関東甲信
A8: 世帯人数 | B8: 4 | K8: 標準面積 | L8: =IF(B7="戸建住宅",120.08,70) -> 120.08
A9: 断熱等級条件 | B9: 5 | K9: 面積比 | L9: =IF(B13="標準",1,B13/L8) -> 1
A10: 給湯・調理 | B10: エコキュート＋IH | D10: 月平均 円 | F10: =IF(COUNT(C23:C34)=12,SUM(C23:C34)/12,"") -> 16,518 | H10: ="比較用の公的相場："&VLOOKUP(L14,'相場の選択'!$A$6:$X$73,2,FALSE)&CHAR(10)&"月平均 "&TEXT(VLOOKUP(L14,'相場の選択'!$A$6:$X$73,5,FALSE),"#,##0")&" kWh／標本 "&VLOOKUP(L14,'相場の選択'!$A$6:$X$73,3,FALSE)&" 世帯" -> 比較用の公的相場：建て方別・世帯人数別（6区分） / 戸建 / 4人 月平均 520 kWh／標本 833 世帯 | K10: 生活係数 | L10: =IF(B11="少なめ",0.8,IF(B11="多め",1.2,1)) -> 1
A11: 使用量感度 | B11: 標準 | K11: 給湯キー | L11: =VLOOKUP(B10,'計算と係数'!$A$372:$E$380,2,FALSE) -> HP
A12: 気候区分上書き | B12: 自動 | K12: IH | L12: =VLOOKUP(B10,'計算と係数'!$A$372:$E$380,3,FALSE) -> 1
A13: 延床面積 m² | B13: 標準 | K13: EF | L13: =VLOOKUP(B10,'計算と係数'!$A$372:$E$380,4,FALSE) -> 0
A14: 概算単価 円/kWh | B14: 31 | D14: 年間 kWh | F14: =IF(COUNT(B23:B34)=12,SUM(B23:B34),"") -> 6,394 | K14: 相場キー | L14: =IF(B16="統計：地方×建て方","地域|"&B7&"|"&L7,IF(B16="統計：2021年以降築","築浅|"&B7,"人数|"&B7&"|"&B8)) -> 人数|戸建住宅|4
A15: 固定加算 円/月 | B15: 0 | H15: =IF(L18=0,"過年度の実績相場。既存住宅・設備・PVが混在。1〜3月は2024年、4〜12月は2023年です。",IF(B8>=5,"5・6人は4人モデルを公的な用途別比率で拡張した参考値です。",IF(L6<=4,"寒冷地：居室エアコンの想定です。全館連続暖房・床暖房・補助暖房は別途確認してください。","同じ気候区分の県は同じモデル値です。詳細な市町村区分が分かれば上書きしてください。"))) -> 同じ気候区分の県は同じモデル値です。詳細な市町村区分が分かれば上書きしてください。 | K15: 相場行 | L15: =MATCH(L14,'相場の選択'!$A$6:$A$73,0) -> 1
A16: 基準選択 | B16: 新築条件モデル | K16: 等級適用可 | L16: =IF(AND(L6=8,B9=7),0,1) -> 1
A17: 暖房条件 | B17: エアコン | D17: 円は「単価×kWh＋固定加算」。現在の請求額を保証する値ではありません。ASPではkWh入力を推奨。 | K17: EF入力数 | L17: =COUNT(G23:G34) -> 0
A18: 入力セル | B18: 青：選択／手入力 | K18: 対象モデル | L18: =IF(B16="新築条件モデル",1,0) -> 1
A20: 3 12か月を転記｜追加負荷はF列。エネファームの発電自家消費はG列。H・I列は標準に対する仮定シナリオ。
A22: 月 | B22: ASP転記 kWh | C22: 概算電気代 円 | D22: 補正前 kWh | E22: 公的相場 kWh | F22: 追加 kWh | G22: 発電自家消費 kWh | H22: 少なめ kWh | I22: 多め kWh | J22: 状態
A23: 1月 | B23: =IF(AND($L$18=1,$L$16=0),"",IF(AND($L$18=1,$L$13=1,$L$17<12),"",IF(OR(F23<0,G23<0,IF(AND($L$18=1,$L$13=1),G23,0)>D23+F23),"",ROUND(D23+F23-IF(AND($L$18=1,$L$13=1),G23,0),0)))) -> 757 | C23: =IF(B23="","",ROUND(B23*$B$14+$B$15,0)) -> 23,467 | D23: =IF($L$18=1,I51,J51) -> 757 | E23: =J51 -> 722 | F23: 0 | H23: =IF(OR(B23="",AND($L$18=1,$L$13=1)),"",ROUND(IF($L$18=1,K51,D23*0.8)+F23,0)) -> 614 | I23: =IF(OR(B23="",AND($L$18=1,$L$13=1)),"",ROUND(IF($L$18=1,L51,D23*1.2)+F23,0)) -> 901 | J23: =IF(AND($L$18=1,$L$16=0),"適用外",IF(AND($L$18=1,$L$13=1,$L$17<12),"発電自家消費を入力",IF(B23="","補正値を確認",IF($L$18=1,"モデル試算","統計相場")))) -> モデル試算
A24: 2月 | B24: =IF(AND($L$18=1,$L$16=0),"",IF(AND($L$18=1,$L$13=1,$L$17<12),"",IF(OR(F24<0,G24<0,IF(AND($L$18=1,$L$13=1),G24,0)>D24+F24),"",ROUND(D24+F24-IF(AND($L$18=1,$L$13=1),G24,0),0)))) -> 694 | C24: =IF(B24="","",ROUND(B24*$B$14+$B$15,0)) -> 21,514 | D24: =IF($L$18=1,I52,J52) -> 694 | E24: =J52 -> 694 | F24: 0 | H24: =IF(OR(B24="",AND($L$18=1,$L$13=1)),"",ROUND(IF($L$18=1,K52,D24*0.8)+F24,0)) -> 562 | I24: =IF(OR(B24="",AND($L$18=1,$L$13=1)),"",ROUND(IF($L$18=1,L52,D24*1.2)+F24,0)) -> 825 | J24: =IF(AND($L$18=1,$L$16=0),"適用外",IF(AND($L$18=1,$L$13=1,$L$17<12),"発電自家消費を入力",IF(B24="","補正値を確認",IF($L$18=1,"モデル試算","統計相場")))) -> モデル試算
A25: 3月 | B25: =IF(AND($L$18=1,$L$16=0),"",IF(AND($L$18=1,$L$13=1,$L$17<12),"",IF(OR(F25<0,G25<0,IF(AND($L$18=1,$L$13=1),G25,0)>D25+F25),"",ROUND(D25+F25-IF(AND($L$18=1,$L$13=1),G25,0),0)))) -> 671 | C25: =IF(B25="","",ROUND(B25*$B$14+$B$15,0)) -> 20,801 | D25: =IF($L$18=1,I53,J53) -> 671 | E25: =J53 -> 647 | F25: 0 | H25: =IF(OR(B25="",AND($L$18=1,$L$13=1)),"",ROUND(IF($L$18=1,K53,D25*0.8)+F25,0)) -> 544 | I25: =IF(OR(B25="",AND($L$18=1,$L$13=1)),"",ROUND(IF($L$18=1,L53,D25*1.2)+F25,0)) -> 797 | J25: =IF(AND($L$18=1,$L$16=0),"適用外",IF(AND($L$18=1,$L$13=1,$L$17<12),"発電自家消費を入力",IF(B25="","補正値を確認",IF($L$18=1,"モデル試算","統計相場")))) -> モデル試算
A26: 4月 | B26: =IF(AND($L$18=1,$L$16=0),"",IF(AND($L$18=1,$L$13=1,$L$17<12),"",IF(OR(F26<0,G26<0,IF(AND($L$18=1,$L$13=1),G26,0)>D26+F26),"",ROUND(D26+F26-IF(AND($L$18=1,$L$13=1),G26,0),0)))) -> 424 | C26: =IF(B26="","",ROUND(B26*$B$14+$B$15,0)) -> 13,144 | D26: =IF($L$18=1,I54,J54) -> 424 | E26: =J54 -> 492 | F26: 0 | H26: =IF(OR(B26="",AND($L$18=1,$L$13=1)),"",ROUND(IF($L$18=1,K54,D26*0.8)+F26,0)) -> 347 | I26: =IF(OR(B26="",AND($L$18=1,$L$13=1)),"",ROUND(IF($L$18=1,L54,D26*1.2)+F26,0)) -> 502 | J26: =IF(AND($L$18=1,$L$16=0),"適用外",IF(AND($L$18=1,$L$13=1,$L$17<12),"発電自家消費を入力",IF(B26="","補正値を確認",IF($L$18=1,"モデル試算","統計相場")))) -> モデル試算
A27: 5月 | B27: =IF(AND($L$18=1,$L$16=0),"",IF(AND($L$18=1,$L$13=1,$L$17<12),"",IF(OR(F27<0,G27<0,IF(AND($L$18=1,$L$13=1),G27,0)>D27+F27),"",ROUND(D27+F27-IF(AND($L$18=1,$L$13=1),G27,0),0)))) -> 372 | C27: =IF(B27="","",ROUND(B27*$B$14+$B$15,0)) -> 11,532 | D27: =IF($L$18=1,I55,J55) -> 372 | E27: =J55 -> 411 | F27: 0 | H27: =IF(OR(B27="",AND($L$18=1,$L$13=1)),"",ROUND(IF($L$18=1,K55,D27*0.8)+F27,0)) -> 305 | I27: =IF(OR(B27="",AND($L$18=1,$L$13=1)),"",ROUND(IF($L$18=1,L55,D27*1.2)+F27,0)) -> 438 | J27: =IF(AND($L$18=1,$L$16=0),"適用外",IF(AND($L$18=1,$L$13=1,$L$17<12),"発電自家消費を入力",IF(B27="","補正値を確認",IF($L$18=1,"モデル試算","統計相場")))) -> モデル試算
A28: 6月 | B28: =IF(AND($L$18=1,$L$16=0),"",IF(AND($L$18=1,$L$13=1,$L$17<12),"",IF(OR(F28<0,G28<0,IF(AND($L$18=1,$L$13=1),G28,0)>D28+F28),"",ROUND(D28+F28-IF(AND($L$18=1,$L$13=1),G28,0),0)))) -> 414 | C28: =IF(B28="","",ROUND(B28*$B$14+$B$15,0)) -> 12,834 | D28: =IF($L$18=1,I56,J56) -> 414 | E28: =J56 -> 361 | F28: 0 | H28: =IF(OR(B28="",AND($L$18=1,$L$13=1)),"",ROUND(IF($L$18=1,K56,D28*0.8)+F28,0)) -> 339 | I28: =IF(OR(B28="",AND($L$18=1,$L$13=1)),"",ROUND(IF($L$18=1,L56,D28*1.2)+F28,0)) -> 489 | J28: =IF(AND($L$18=1,$L$16=0),"適用外",IF(AND($L$18=1,$L$13=1,$L$17<12),"発電自家消費を入力",IF(B28="","補正値を確認",IF($L$18=1,"モデル試算","統計相場")))) -> モデル試算
A29: 7月 | B29: =IF(AND($L$18=1,$L$16=0),"",IF(AND($L$18=1,$L$13=1,$L$17<12),"",IF(OR(F29<0,G29<0,IF(AND($L$18=1,$L$13=1),G29,0)>D29+F29),"",ROUND(D29+F29-IF(AND($L$18=1,$L$13=1),G29,0),0)))) -> 566 | C29: =IF(B29="","",ROUND(B29*$B$14+$B$15,0)) -> 17,546 | D29: =IF($L$18=1,I57,J57) -> 566 | E29: =J57 -> 436 | F29: 0 | H29: =IF(OR(B29="",AND($L$18=1,$L$13=1)),"",ROUND(IF($L$18=1,K57,D29*0.8)+F29,0)) -> 461 | I29: =IF(OR(B29="",AND($L$18=1,$L$13=1)),"",ROUND(IF($L$18=1,L57,D29*1.2)+F29,0)) -> 671 | J29: =IF(AND($L$18=1,$L$16=0),"適用外",IF(AND($L$18=1,$L$13=1,$L$17<12),"発電自家消費を入力",IF(B29="","補正値を確認",IF($L$18=1,"モデル試算","統計相場")))) -> モデル試算
A30: 8月 | B30: =IF(AND($L$18=1,$L$16=0),"",IF(AND($L$18=1,$L$13=1,$L$17<12),"",IF(OR(F30<0,G30<0,IF(AND($L$18=1,$L$13=1),G30,0)>D30+F30),"",ROUND(D30+F30-IF(AND($L$18=1,$L$13=1),G30,0),0)))) -> 580 | C30: =IF(B30="","",ROUND(B30*$B$14+$B$15,0)) -> 17,980 | D30: =IF($L$18=1,I58,J58) -> 580 | E30: =J58 -> 547 | F30: 0 | H30: =IF(OR(B30="",AND($L$18=1,$L$13=1)),"",ROUND(IF($L$18=1,K58,D30*0.8)+F30,0)) -> 472 | I30: =IF(OR(B30="",AND($L$18=1,$L$13=1)),"",ROUND(IF($L$18=1,L58,D30*1.2)+F30,0)) -> 688 | J30: =IF(AND($L$18=1,$L$16=0),"適用外",IF(AND($L$18=1,$L$13=1,$L$17<12),"発電自家消費を入力",IF(B30="","補正値を確認",IF($L$18=1,"モデル試算","統計相場")))) -> モデル試算
A31: 9月 | B31: =IF(AND($L$18=1,$L$16=0),"",IF(AND($L$18=1,$L$13=1,$L$17<12),"",IF(OR(F31<0,G31<0,IF(AND($L$18=1,$L$13=1),G31,0)>D31+F31),"",ROUND(D31+F31-IF(AND($L$18=1,$L$13=1),G31,0),0)))) -> 428 | C31: =IF(B31="","",ROUND(B31*$B$14+$B$15,0)) -> 13,268 | D31: =IF($L$18=1,I59,J59) -> 428 | E31: =J59 -> 536 | F31: 0 | H31: =IF(OR(B31="",AND($L$18=1,$L$13=1)),"",ROUND(IF($L$18=1,K59,D31*0.8)+F31,0)) -> 350 | I31: =IF(OR(B31="",AND($L$18=1,$L$13=1)),"",ROUND(IF($L$18=1,L59,D31*1.2)+F31,0)) -> 506 | J31: =IF(AND($L$18=1,$L$16=0),"適用外",IF(AND($L$18=1,$L$13=1,$L$17<12),"発電自家消費を入力",IF(B31="","補正値を確認",IF($L$18=1,"モデル試算","統計相場")))) -> モデル試算
A32: 10月 | B32: =IF(AND($L$18=1,$L$16=0),"",IF(AND($L$18=1,$L$13=1,$L$17<12),"",IF(OR(F32<0,G32<0,IF(AND($L$18=1,$L$13=1),G32,0)>D32+F32),"",ROUND(D32+F32-IF(AND($L$18=1,$L$13=1),G32,0),0)))) -> 365 | C32: =IF(B32="","",ROUND(B32*$B$14+$B$15,0)) -> 11,315 | D32: =IF($L$18=1,I60,J60) -> 365 | E32: =J60 -> 428 | F32: 0 | H32: =IF(OR(B32="",AND($L$18=1,$L$13=1)),"",ROUND(IF($L$18=1,K60,D32*0.8)+F32,0)) -> 300 | I32: =IF(OR(B32="",AND($L$18=1,$L$13=1)),"",ROUND(IF($L$18=1,L60,D32*1.2)+F32,0)) -> 430 | J32: =IF(AND($L$18=1,$L$16=0),"適用外",IF(AND($L$18=1,$L$13=1,$L$17<12),"発電自家消費を入力",IF(B32="","補正値を確認",IF($L$18=1,"モデル試算","統計相場")))) -> モデル試算
A33: 11月 | B33: =IF(AND($L$18=1,$L$16=0),"",IF(AND($L$18=1,$L$13=1,$L$17<12),"",IF(OR(F33<0,G33<0,IF(AND($L$18=1,$L$13=1),G33,0)>D33+F33),"",ROUND(D33+F33-IF(AND($L$18=1,$L$13=1),G33,0),0)))) -> 462 | C33: =IF(B33="","",ROUND(B33*$B$14+$B$15,0)) -> 14,322 | D33: =IF($L$18=1,I61,J61) -> 462 | E33: =J61 -> 428 | F33: 0 | H33: =IF(OR(B33="",AND($L$18=1,$L$13=1)),"",ROUND(IF($L$18=1,K61,D33*0.8)+F33,0)) -> 377 | I33: =IF(OR(B33="",AND($L$18=1,$L$13=1)),"",ROUND(IF($L$18=1,L61,D33*1.2)+F33,0)) -> 547 | J33: =IF(AND($L$18=1,$L$16=0),"適用外",IF(AND($L$18=1,$L$13=1,$L$17<12),"発電自家消費を入力",IF(B33="","補正値を確認",IF($L$18=1,"モデル試算","統計相場")))) -> モデル試算
A34: 12月 | B34: =IF(AND($L$18=1,$L$16=0),"",IF(AND($L$18=1,$L$13=1,$L$17<12),"",IF(OR(F34<0,G34<0,IF(AND($L$18=1,$L$13=1),G34,0)>D34+F34),"",ROUND(D34+F34-IF(AND($L$18=1,$L$13=1),G34,0),0)))) -> 661 | C34: =IF(B34="","",ROUND(B34*$B$14+$B$15,0)) -> 20,491 | D34: =IF($L$18=1,I62,J62) -> 661 | E34: =J62 -> 539 | F34: 0 | H34: =IF(OR(B34="",AND($L$18=1,$L$13=1)),"",ROUND(IF($L$18=1,K62,D34*0.8)+F34,0)) -> 537 | I34: =IF(OR(B34="",AND($L$18=1,$L$13=1)),"",ROUND(IF($L$18=1,L62,D34*1.2)+F34,0)) -> 786 | J34: =IF(AND($L$18=1,$L$16=0),"適用外",IF(AND($L$18=1,$L$13=1,$L$17<12),"発電自家消費を入力",IF(B34="","補正値を確認",IF($L$18=1,"モデル試算","統計相場")))) -> モデル試算
A35: 年間合計 | B35: =IF(COUNT(B23:B34)=12,SUM(B23:B34),"") -> 6,394 | C35: =IF(COUNT(C23:C34)=12,SUM(C23:C34),"") -> 198,214 | D35: =IF(COUNT(D23:D34)=12,SUM(D23:D34),"") -> 6,394 | E35: =IF(COUNT(E23:E34)=12,SUM(E23:E34),"") -> 6,241 | F35: =IF(COUNT(F23:F34)=12,SUM(F23:F34),"") -> 0 | G35: =IF(COUNT(G23:G34)=12,SUM(G23:G34),"") ->  | H35: =IF(COUNT(H23:H34)=12,SUM(H23:H34),"") -> 5,208 | I35: =IF(COUNT(I23:I34)=12,SUM(I23:I34),"") -> 7,580
A38: 相場の支払額は2023年度の実績、C列は入力した単価による概算です。少なめ・多めは統計的な確率区間ではありません。
A40: 太陽光・蓄電池の導入前を想定しています。ASPが計算する太陽光の自家消費を、この表で先に差し引かないでください。
A42: 詳しい条件・出典・未対応の設備は「根拠と使い方」。全ケースの検索は「条件一覧」、原表の標本数・分布は「公的統計」。
A50: 月 | B50: 暖房 | C50: 冷房 | D50: 家電 | E50: 照明 | F50: 換気 | G50: 給湯 | H50: IH | I50: 採用モデル | J50: 公的相場 | K50: 少なめモデル | L50: 多めモデル
A51: 1.000 | B51: =IF($B$17="エアコン",VLOOKUP("H|"&$L$6&"|"&$B$7&"|"&$B$9,'計算と係数'!$A$6:$P$367,5,FALSE),0) -> 255.788 | C51: =VLOOKUP("C|"&$L$6&"|"&$B$7&"|"&$B$9,'計算と係数'!$A$6:$P$367,5,FALSE) -> 0.000 | D51: =VLOOKUP("A|"&$B$7&"|"&$B$8,'計算と係数'!$A$6:$P$367,5,FALSE) -> 151.830 | E51: =VLOOKUP("L|"&$B$7&"|"&$B$8,'計算と係数'!$A$6:$P$367,5,FALSE) -> 45.656 | F51: =VLOOKUP("V|"&$B$7&"|"&$B$8,'計算と係数'!$A$6:$P$367,5,FALSE) -> 39.918 | G51: =VLOOKUP("W|"&$L$6&"|"&$B$8&"|"&$L$11,'計算と係数'!$A$6:$P$367,5,FALSE) -> 233.908 | H51: =VLOOKUP("I|"&$B$8,'計算と係数'!$A$6:$P$367,5,FALSE)*$L$12 -> 30.302 | I51: =ROUND(((B51+C51+E51)*$L$9+D51+G51+H51)*$L$10+F51*$L$9,0) -> 757.000 | J51: =ROUND(VLOOKUP($L$14,'相場の選択'!$A$6:$X$73,13,FALSE),0) -> 722.000 | K51: =ROUND(((B51+C51+E51)*$L$9+D51+G51+H51)*0.8+F51*$L$9,0) -> 614.000 | L51: =ROUND(((B51+C51+E51)*$L$9+D51+G51+H51)*1.2+F51*$L$9,0) -> 901.000
A52: 2.000 | B52: =IF($B$17="エアコン",VLOOKUP("H|"&$L$6&"|"&$B$7&"|"&$B$9,'計算と係数'!$A$6:$P$367,6,FALSE),0) -> 236.897 | C52: =VLOOKUP("C|"&$L$6&"|"&$B$7&"|"&$B$9,'計算と係数'!$A$6:$P$367,6,FALSE) -> 0.000 | D52: =VLOOKUP("A|"&$B$7&"|"&$B$8,'計算と係数'!$A$6:$P$367,6,FALSE) -> 136.648 | E52: =VLOOKUP("L|"&$B$7&"|"&$B$8,'計算と係数'!$A$6:$P$367,6,FALSE) -> 40.943 | F52: =VLOOKUP("V|"&$B$7&"|"&$B$8,'計算と係数'!$A$6:$P$367,6,FALSE) -> 36.038 | G52: =VLOOKUP("W|"&$L$6&"|"&$B$8&"|"&$L$11,'計算と係数'!$A$6:$P$367,6,FALSE) -> 214.407 | H52: =VLOOKUP("I|"&$B$8,'計算と係数'!$A$6:$P$367,6,FALSE)*$L$12 -> 28.912 | I52: =ROUND(((B52+C52+E52)*$L$9+D52+G52+H52)*$L$10+F52*$L$9,0) -> 694.000 | J52: =ROUND(VLOOKUP($L$14,'相場の選択'!$A$6:$X$73,14,FALSE),0) -> 694.000 | K52: =ROUND(((B52+C52+E52)*$L$9+D52+G52+H52)*0.8+F52*$L$9,0) -> 562.000 | L52: =ROUND(((B52+C52+E52)*$L$9+D52+G52+H52)*1.2+F52*$L$9,0) -> 825.000
A53: 3.000 | B53: =IF($B$17="エアコン",VLOOKUP("H|"&$L$6&"|"&$B$7&"|"&$B$9,'計算と係数'!$A$6:$P$367,7,FALSE),0) -> 195.449 | C53: =VLOOKUP("C|"&$L$6&"|"&$B$7&"|"&$B$9,'計算と係数'!$A$6:$P$367,7,FALSE) -> 0.000 | D53: =VLOOKUP("A|"&$B$7&"|"&$B$8,'計算と係数'!$A$6:$P$367,7,FALSE) -> 151.830 | E53: =VLOOKUP("L|"&$B$7&"|"&$B$8,'計算と係数'!$A$6:$P$367,7,FALSE) -> 45.656 | F53: =VLOOKUP("V|"&$B$7&"|"&$B$8,'計算と係数'!$A$6:$P$367,7,FALSE) -> 39.918 | G53: =VLOOKUP("W|"&$L$6&"|"&$B$8&"|"&$L$11,'計算と係数'!$A$6:$P$367,7,FALSE) -> 209.638 | H53: =VLOOKUP("I|"&$B$8,'計算と係数'!$A$6:$P$367,7,FALSE)*$L$12 -> 28.078 | I53: =ROUND(((B53+C53+E53)*$L$9+D53+G53+H53)*$L$10+F53*$L$9,0) -> 671.000 | J53: =ROUND(VLOOKUP($L$14,'相場の選択'!$A$6:$X$73,15,FALSE),0) -> 647.000 | K53: =ROUND(((B53+C53+E53)*$L$9+D53+G53+H53)*0.8+F53*$L$9,0) -> 544.000 | L53: =ROUND(((B53+C53+E53)*$L$9+D53+G53+H53)*1.2+F53*$L$9,0) -> 797.000
A54: 4.000 | B54: =IF($B$17="エアコン",VLOOKUP("H|"&$L$6&"|"&$B$7&"|"&$B$9,'計算と係数'!$A$6:$P$367,8,FALSE),0) -> 35.722 | C54: =VLOOKUP("C|"&$L$6&"|"&$B$7&"|"&$B$9,'計算と係数'!$A$6:$P$367,8,FALSE) -> 0.000 | D54: =VLOOKUP("A|"&$B$7&"|"&$B$8,'計算と係数'!$A$6:$P$367,8,FALSE) -> 145.899 | E54: =VLOOKUP("L|"&$B$7&"|"&$B$8,'計算と係数'!$A$6:$P$367,8,FALSE) -> 43.578 | F54: =VLOOKUP("V|"&$B$7&"|"&$B$8,'計算と係数'!$A$6:$P$367,8,FALSE) -> 38.564 | G54: =VLOOKUP("W|"&$L$6&"|"&$B$8&"|"&$L$11,'計算と係数'!$A$6:$P$367,8,FALSE) -> 133.937 | H54: =VLOOKUP("I|"&$B$8,'計算と係数'!$A$6:$P$367,8,FALSE)*$L$12 -> 26.688 | I54: =ROUND(((B54+C54+E54)*$L$9+D54+G54+H54)*$L$10+F54*$L$9,0) -> 424.000 | J54: =ROUND(VLOOKUP($L$14,'相場の選択'!$A$6:$X$73,16,FALSE),0) -> 492.000 | K54: =ROUND(((B54+C54+E54)*$L$9+D54+G54+H54)*0.8+F54*$L$9,0) -> 347.000 | L54: =ROUND(((B54+C54+E54)*$L$9+D54+G54+H54)*1.2+F54*$L$9,0) -> 502.000
A55: 5.000 | B55: =IF($B$17="エアコン",VLOOKUP("H|"&$L$6&"|"&$B$7&"|"&$B$9,'計算と係数'!$A$6:$P$367,9,FALSE),0) -> 0.000 | C55: =VLOOKUP("C|"&$L$6&"|"&$B$7&"|"&$B$9,'計算と係数'!$A$6:$P$367,9,FALSE) -> 2.305 | D55: =VLOOKUP("A|"&$B$7&"|"&$B$8,'計算と係数'!$A$6:$P$367,9,FALSE) -> 149.539 | E55: =VLOOKUP("L|"&$B$7&"|"&$B$8,'計算と係数'!$A$6:$P$367,9,FALSE) -> 44.303 | F55: =VLOOKUP("V|"&$B$7&"|"&$B$8,'計算と係数'!$A$6:$P$367,9,FALSE) -> 39.787 | G55: =VLOOKUP("W|"&$L$6&"|"&$B$8&"|"&$L$11,'計算と係数'!$A$6:$P$367,9,FALSE) -> 111.221 | H55: =VLOOKUP("I|"&$B$8,'計算と係数'!$A$6:$P$367,9,FALSE)*$L$12 -> 24.464 | I55: =ROUND(((B55+C55+E55)*$L$9+D55+G55+H55)*$L$10+F55*$L$9,0) -> 372.000 | J55: =ROUND(VLOOKUP($L$14,'相場の選択'!$A$6:$X$73,17,FALSE),0) -> 411.000 | K55: =ROUND(((B55+C55+E55)*$L$9+D55+G55+H55)*0.8+F55*$L$9,0) -> 305.000 | L55: =ROUND(((B55+C55+E55)*$L$9+D55+G55+H55)*1.2+F55*$L$9,0) -> 438.000
A56: 6.000 | B56: =IF($B$17="エアコン",VLOOKUP("H|"&$L$6&"|"&$B$7&"|"&$B$9,'計算と係数'!$A$6:$P$367,10,FALSE),0) -> 0.000 | C56: =VLOOKUP("C|"&$L$6&"|"&$B$7&"|"&$B$9,'計算と係数'!$A$6:$P$367,10,FALSE) -> 79.408 | D56: =VLOOKUP("A|"&$B$7&"|"&$B$8,'計算と係数'!$A$6:$P$367,10,FALSE) -> 146.217 | E56: =VLOOKUP("L|"&$B$7&"|"&$B$8,'計算と係数'!$A$6:$P$367,10,FALSE) -> 43.747 | F56: =VLOOKUP("V|"&$B$7&"|"&$B$8,'計算と係数'!$A$6:$P$367,10,FALSE) -> 38.616 | G56: =VLOOKUP("W|"&$L$6&"|"&$B$8&"|"&$L$11,'計算と係数'!$A$6:$P$367,10,FALSE) -> 84.344 | H56: =VLOOKUP("I|"&$B$8,'計算と係数'!$A$6:$P$367,10,FALSE)*$L$12 -> 21.684 | I56: =ROUND(((B56+C56+E56)*$L$9+D56+G56+H56)*$L$10+F56*$L$9,0) -> 414.000 | J56: =ROUND(VLOOKUP($L$14,'相場の選択'!$A$6:$X$73,18,FALSE),0) -> 361.000 | K56: =ROUND(((B56+C56+E56)*$L$9+D56+G56+H56)*0.8+F56*$L$9,0) -> 339.000 | L56: =ROUND(((B56+C56+E56)*$L$9+D56+G56+H56)*1.2+F56*$L$9,0) -> 489.000
A57: 7.000 | B57: =IF($B$17="エアコン",VLOOKUP("H|"&$L$6&"|"&$B$7&"|"&$B$9,'計算と係数'!$A$6:$P$367,11,FALSE),0) -> 0.000 | C57: =VLOOKUP("C|"&$L$6&"|"&$B$7&"|"&$B$9,'計算と係数'!$A$6:$P$367,11,FALSE) -> 236.787 | D57: =VLOOKUP("A|"&$B$7&"|"&$B$8,'計算と係数'!$A$6:$P$367,11,FALSE) -> 153.485 | E57: =VLOOKUP("L|"&$B$7&"|"&$B$8,'計算と係数'!$A$6:$P$367,11,FALSE) -> 46.673 | F57: =VLOOKUP("V|"&$B$7&"|"&$B$8,'計算と係数'!$A$6:$P$367,11,FALSE) -> 39.945 | G57: =VLOOKUP("W|"&$L$6&"|"&$B$8&"|"&$L$11,'計算と係数'!$A$6:$P$367,11,FALSE) -> 70.368 | H57: =VLOOKUP("I|"&$B$8,'計算と係数'!$A$6:$P$367,11,FALSE)*$L$12 -> 18.904 | I57: =ROUND(((B57+C57+E57)*$L$9+D57+G57+H57)*$L$10+F57*$L$9,0) -> 566.000 | J57: =ROUND(VLOOKUP($L$14,'相場の選択'!$A$6:$X$73,19,FALSE),0) -> 436.000 | K57: =ROUND(((B57+C57+E57)*$L$9+D57+G57+H57)*0.8+F57*$L$9,0) -> 461.000 | L57: =ROUND(((B57+C57+E57)*$L$9+D57+G57+H57)*1.2+F57*$L$9,0) -> 671.000
A58: 8.000 | B58: =IF($B$17="エアコン",VLOOKUP("H|"&$L$6&"|"&$B$7&"|"&$B$9,'計算と係数'!$A$6:$P$367,12,FALSE),0) -> 0.000 | C58: =VLOOKUP("C|"&$L$6&"|"&$B$7&"|"&$B$9,'計算と係数'!$A$6:$P$367,12,FALSE) -> 264.833 | D58: =VLOOKUP("A|"&$B$7&"|"&$B$8,'計算と係数'!$A$6:$P$367,12,FALSE) -> 151.002 | E58: =VLOOKUP("L|"&$B$7&"|"&$B$8,'計算と係数'!$A$6:$P$367,12,FALSE) -> 45.148 | F58: =VLOOKUP("V|"&$B$7&"|"&$B$8,'計算と係数'!$A$6:$P$367,12,FALSE) -> 39.905 | G58: =VLOOKUP("W|"&$L$6&"|"&$B$8&"|"&$L$11,'計算と係数'!$A$6:$P$367,12,FALSE) -> 62.829 | H58: =VLOOKUP("I|"&$B$8,'計算と係数'!$A$6:$P$367,12,FALSE)*$L$12 -> 16.680 | I58: =ROUND(((B58+C58+E58)*$L$9+D58+G58+H58)*$L$10+F58*$L$9,0) -> 580.000 | J58: =ROUND(VLOOKUP($L$14,'相場の選択'!$A$6:$X$73,20,FALSE),0) -> 547.000 | K58: =ROUND(((B58+C58+E58)*$L$9+D58+G58+H58)*0.8+F58*$L$9,0) -> 472.000 | L58: =ROUND(((B58+C58+E58)*$L$9+D58+G58+H58)*1.2+F58*$L$9,0) -> 688.000
A59: 9.000 | B59: =IF($B$17="エアコン",VLOOKUP("H|"&$L$6&"|"&$B$7&"|"&$B$9,'計算と係数'!$A$6:$P$367,13,FALSE),0) -> 0.000 | C59: =VLOOKUP("C|"&$L$6&"|"&$B$7&"|"&$B$9,'計算と係数'!$A$6:$P$367,13,FALSE) -> 105.327 | D59: =VLOOKUP("A|"&$B$7&"|"&$B$8,'計算と係数'!$A$6:$P$367,13,FALSE) -> 145.899 | E59: =VLOOKUP("L|"&$B$7&"|"&$B$8,'計算と係数'!$A$6:$P$367,13,FALSE) -> 43.578 | F59: =VLOOKUP("V|"&$B$7&"|"&$B$8,'計算と係数'!$A$6:$P$367,13,FALSE) -> 38.564 | G59: =VLOOKUP("W|"&$L$6&"|"&$B$8&"|"&$L$11,'計算と係数'!$A$6:$P$367,13,FALSE) -> 77.933 | H59: =VLOOKUP("I|"&$B$8,'計算と係数'!$A$6:$P$367,13,FALSE)*$L$12 -> 16.402 | I59: =ROUND(((B59+C59+E59)*$L$9+D59+G59+H59)*$L$10+F59*$L$9,0) -> 428.000 | J59: =ROUND(VLOOKUP($L$14,'相場の選択'!$A$6:$X$73,21,FALSE),0) -> 536.000 | K59: =ROUND(((B59+C59+E59)*$L$9+D59+G59+H59)*0.8+F59*$L$9,0) -> 350.000 | L59: =ROUND(((B59+C59+E59)*$L$9+D59+G59+H59)*1.2+F59*$L$9,0) -> 506.000
A60: 10.000 | B60: =IF($B$17="エアコン",VLOOKUP("H|"&$L$6&"|"&$B$7&"|"&$B$9,'計算と係数'!$A$6:$P$367,14,FALSE),0) -> 0.000 | C60: =VLOOKUP("C|"&$L$6&"|"&$B$7&"|"&$B$9,'計算と係数'!$A$6:$P$367,14,FALSE) -> 0.000 | D60: =VLOOKUP("A|"&$B$7&"|"&$B$8,'計算と係数'!$A$6:$P$367,14,FALSE) -> 150.684 | E60: =VLOOKUP("L|"&$B$7&"|"&$B$8,'計算と係数'!$A$6:$P$367,14,FALSE) -> 44.980 | F60: =VLOOKUP("V|"&$B$7&"|"&$B$8,'計算と係数'!$A$6:$P$367,14,FALSE) -> 39.853 | G60: =VLOOKUP("W|"&$L$6&"|"&$B$8&"|"&$L$11,'計算と係数'!$A$6:$P$367,14,FALSE) -> 111.799 | H60: =VLOOKUP("I|"&$B$8,'計算と係数'!$A$6:$P$367,14,FALSE)*$L$12 -> 18.070 | I60: =ROUND(((B60+C60+E60)*$L$9+D60+G60+H60)*$L$10+F60*$L$9,0) -> 365.000 | J60: =ROUND(VLOOKUP($L$14,'相場の選択'!$A$6:$X$73,22,FALSE),0) -> 428.000 | K60: =ROUND(((B60+C60+E60)*$L$9+D60+G60+H60)*0.8+F60*$L$9,0) -> 300.000 | L60: =ROUND(((B60+C60+E60)*$L$9+D60+G60+H60)*1.2+F60*$L$9,0) -> 430.000
A61: 11.000 | B61: =IF($B$17="エアコン",VLOOKUP("H|"&$L$6&"|"&$B$7&"|"&$B$9,'計算と係数'!$A$6:$P$367,15,FALSE),0) -> 62.225 | C61: =VLOOKUP("C|"&$L$6&"|"&$B$7&"|"&$B$9,'計算と係数'!$A$6:$P$367,15,FALSE) -> 0.000 | D61: =VLOOKUP("A|"&$B$7&"|"&$B$8,'計算と係数'!$A$6:$P$367,15,FALSE) -> 147.873 | E61: =VLOOKUP("L|"&$B$7&"|"&$B$8,'計算と係数'!$A$6:$P$367,15,FALSE) -> 44.763 | F61: =VLOOKUP("V|"&$B$7&"|"&$B$8,'計算と係数'!$A$6:$P$367,15,FALSE) -> 38.643 | G61: =VLOOKUP("W|"&$L$6&"|"&$B$8&"|"&$L$11,'計算と係数'!$A$6:$P$367,15,FALSE) -> 146.416 | H61: =VLOOKUP("I|"&$B$8,'計算と係数'!$A$6:$P$367,15,FALSE)*$L$12 -> 22.240 | I61: =ROUND(((B61+C61+E61)*$L$9+D61+G61+H61)*$L$10+F61*$L$9,0) -> 462.000 | J61: =ROUND(VLOOKUP($L$14,'相場の選択'!$A$6:$X$73,23,FALSE),0) -> 428.000 | K61: =ROUND(((B61+C61+E61)*$L$9+D61+G61+H61)*0.8+F61*$L$9,0) -> 377.000 | L61: =ROUND(((B61+C61+E61)*$L$9+D61+G61+H61)*1.2+F61*$L$9,0) -> 547.000
A62: 12.000 | B62: =IF($B$17="エアコン",VLOOKUP("H|"&$L$6&"|"&$B$7&"|"&$B$9,'計算と係数'!$A$6:$P$367,16,FALSE),0) -> 199.797 | C62: =VLOOKUP("C|"&$L$6&"|"&$B$7&"|"&$B$9,'計算と係数'!$A$6:$P$367,16,FALSE) -> 0.000 | D62: =VLOOKUP("A|"&$B$7&"|"&$B$8,'計算と係数'!$A$6:$P$367,16,FALSE) -> 150.684 | E62: =VLOOKUP("L|"&$B$7&"|"&$B$8,'計算と係数'!$A$6:$P$367,16,FALSE) -> 44.980 | F62: =VLOOKUP("V|"&$B$7&"|"&$B$8,'計算と係数'!$A$6:$P$367,16,FALSE) -> 39.853 | G62: =VLOOKUP("W|"&$L$6&"|"&$B$8&"|"&$L$11,'計算と係数'!$A$6:$P$367,16,FALSE) -> 200.415 | H62: =VLOOKUP("I|"&$B$8,'計算と係数'!$A$6:$P$367,16,FALSE)*$L$12 -> 25.576 | I62: =ROUND(((B62+C62+E62)*$L$9+D62+G62+H62)*$L$10+F62*$L$9,0) -> 661.000 | J62: =ROUND(VLOOKUP($L$14,'相場の選択'!$A$6:$X$73,24,FALSE),0) -> 539.000 | K62: =ROUND(((B62+C62+E62)*$L$9+D62+G62+H62)*0.8+F62*$L$9,0) -> 537.000 | L62: =ROUND(((B62+C62+E62)*$L$9+D62+G62+H62)*1.2+F62*$L$9,0) -> 786.000

Sheet 条件一覧
A2: 条件から探す｜新築電力データセット
A3: 全20,304条件。標準面積・居室エアコン・標準生活。フィルターで絞り込む。金額は31円/kWhの参考換算。空欄は入力待ち／適用外。
A5: プロファイルID | B5: 都道府県 | C5: 初期代表地点 | D5: 気候区分 | E5: 建て方 | F5: 人数 | G5: 断熱条件 | H5: 給湯・調理 | I5: 面積 m² | J5: 状態 | K5: 年間買電 kWh | L5: 月平均買電 kWh | M5: 月平均概算 円 | N5: 発電控除前 kWh | O5: 1月 kWh | P5: 2月 kWh | Q5: 3月 kWh | R5: 4月 kWh | S5: 5月 kWh | T5: 6月 kWh | U5: 7月 kWh | V5: 8月 kWh | W5: 9月 kWh | X5: 10月 kWh | Y5: 11月 kWh | Z5: 12月 kWh | AA5: 1月 円 | AB5: 2月 円 | AC5: 3月 円 | AD5: 4月 円 | AE5: 5月 円 | AF5: 6月 円 | AG5: 7月 円 | AH5: 8月 円 | AI5: 9月 円 | AJ5: 10月 円 | AK5: 11月 円 | AL5: 12月 円
A6: P01-1-1-4-01 | B6: 北海道 | C6: 札幌市 | D6: 2 | E6: 戸建住宅 | F6: 1 | G6: 4 | H6: ガス給湯＋ガス調理 | I6: 120.08 | J6: 条件指定モデル | K6: 5,045 | L6: 420.4 | M6: 13,033 | N6: 5,045 | O6: 885 | P6: 748 | Q6: 619 | R6: 367 | S6: 251 | T6: 140 | U6: 162 | V6: 193 | W6: 147 | X6: 260 | Y6: 489 | Z6: 784 | AA6: 27,435 | AB6: 23,188 | AC6: 19,189 | AD6: 11,377 | AE6: 7,781 | AF6: 4,340 | AG6: 5,022 | AH6: 5,983 | AI6: 4,557 | AJ6: 8,060 | AK6: 15,159 | AL6: 24,304
A7: P01-1-1-4-02 | B7: 北海道 | C7: 札幌市 | D7: 2 | E7: 戸建住宅 | F7: 1 | G7: 4 | H7: ガス給湯＋IH | I7: 120.08 | J7: 条件指定モデル | K7: 5,095 | L7: 424.6 | M7: 13,162 | N7: 5,095 | O7: 890 | P7: 753 | Q7: 624 | R7: 372 | S7: 256 | T7: 144 | U7: 165 | V7: 196 | W7: 150 | X7: 263 | Y7: 493 | Z7: 789 | AA7: 27,590 | AB7: 23,343 | AC7: 19,344 | AD7: 11,532 | AE7: 7,936 | AF7: 4,464 | AG7: 5,115 | AH7: 6,076 | AI7: 4,650 | AJ7: 8,153 | AK7: 15,283 | AL7: 24,459
A8: P01-1-1-4-03 | B8: 北海道 | C8: 札幌市 | D8: 2 | E8: 戸建住宅 | F8: 1 | G8: 4 | H8: エコキュート＋IH | I8: 120.08 | J8: 条件指定モデル | K8: 6,402 | L8: 533.5 | M8: 16,539 | N8: 6,402 | O8: 1,078 | P8: 921 | Q8: 797 | R8: 479 | S8: 336 | T8: 211 | U8: 221 | V8: 245 | W8: 209 | X8: 343 | Y8: 613 | Z8: 949 | AA8: 33,418 | AB8: 28,551 | AC8: 24,707 | AD8: 14,849 | AE8: 10,416 | AF8: 6,541 | AG8: 6,851 | AH8: 7,595 | AI8: 6,479 | AJ8: 10,633 | AK8: 19,003 | AL8: 29,419
A9: P01-1-1-4-04 | B9: 北海道 | C9: 札幌市 | D9: 2 | E9: 戸建住宅 | F9: 1 | G9: 4 | H9: エコキュート＋ガス調理 | I9: 120.08 | J9: 条件指定モデル | K9: 6,352 | L9: 529.3 | M9: 16,409 | N9: 6,352 | O9: 1,073 | P9: 916 | Q9: 792 | R9: 474 | S9: 331 | T9: 207 | U9: 218 | V9: 242 | W9: 206 | X9: 340 | Y9: 609 | Z9: 944 | AA9: 33,263 | AB9: 28,396 | AC9: 24,552 | AD9: 14,694 | AE9: 10,261 | AF9: 6,417 | AG9: 6,758 | AH9: 7,502 | AI9: 6,386 | AJ9: 10,540 | AK9: 18,879 | AL9: 29,264
A10: P01-1-1-4-05 | B10: 北海道 | C10: 札幌市 | D10: 2 | E10: 戸建住宅 | F10: 1 | G10: 4 | H10: 電気温水器＋IH | I10: 120.08 | J10: 条件指定モデル | K10: 8,566 | L10: 713.8 | M10: 22,129 | N10: 8,566 | O10: 1,249 | P10: 1,075 | Q10: 978 | R10: 668 | S10: 531 | T10: 395 | U10: 408 | V10: 416 | W10: 383 | X10: 538 | Y10: 799 | Z10: 1,126 | AA10: 38,719 | AB10: 33,325 | AC10: 30,318 | AD10: 20,708 | AE10: 16,461 | AF10: 12,245 | AG10: 12,648 | AH10: 12,896 | AI10: 11,873 | AJ10: 16,678 | AK10: 24,769 | AL10: 34,906
A11: P01-1-1-4-06 | B11: 北海道 | C11: 札幌市 | D11: 2 | E11: 戸建住宅 | F11: 1 | G11: 4 | H11: ハイブリッド＋ガス調理 | I11: 120.08 | J11: 条件指定モデル | K11: 5,747 | L11: 478.9 | M11: 14,846 | N11: 5,747 | O11: 977 | P11: 829 | Q11: 702 | R11: 426 | S11: 301 | T11: 182 | U11: 195 | V11: 222 | W11: 184 | X11: 310 | Y11: 554 | Z11: 865 | AA11: 30,287 | AB11: 25,699 | AC11: 21,762 | AD11: 13,206 | AE11: 9,331 | AF11: 5,642 | AG11: 6,045 | AH11: 6,882 | AI11: 5,704 | AJ11: 9,610 | AK11: 17,174 | AL11: 26,815
A12: P01-1-1-4-07 | B12: 北海道 | C12: 札幌市 | D12: 2 | E12: 戸建住宅 | F12: 1 | G12: 4 | H12: ハイブリッド＋IH | I12: 120.08 | J12: 条件指定モデル | K12: 5,797 | L12: 483.1 | M12: 14,976 | N12: 5,797 | O12: 982 | P12: 834 | Q12: 707 | R12: 431 | S12: 306 | T12: 185 | U12: 199 | V12: 225 | W12: 187 | X12: 313 | Y12: 558 | Z12: 870 | AA12: 30,442 | AB12: 25,854 | AC12: 21,917 | AD12: 13,361 | AE12: 9,486 | AF12: 5,735 | AG12: 6,169 | AH12: 6,975 | AI12: 5,797 | AJ12: 9,703 | AK12: 17,298 | AL12: 26,970
A13: P01-1-1-4-08 | B13: 北海道 | C13: 札幌市 | D13: 2 | E13: 戸建住宅 | F13: 1 | G13: 4 | H13: エネファーム＋ガス調理 | I13: 120.08 | J13: 発電自家消費量の入力待ち | N13: 5,045
A14: P01-1-1-4-09 | B14: 北海道 | C14: 札幌市 | D14: 2 | E14: 戸建住宅 | F14: 1 | G14: 4 | H14: エネファーム＋IH | I14: 120.08 | J14: 発電自家消費量の入力待ち | N14: 5,095
A15: P01-1-1-5-01 | B15: 北海道 | C15: 札幌市 | D15: 2 | E15: 戸建住宅 | F15: 1 | G15: 5 | H15: ガス給湯＋ガス調理 | I15: 120.08 | J15: 条件指定モデル | K15: 4,750 | L15: 395.8 | M15: 12,271 | N15: 4,750 | O15: 817 | P15: 693 | Q15: 576 | R15: 341 | S15: 243 | T15: 140 | U15: 163 | V15: 197 | W15: 146 | X15: 250 | Y15: 455 | Z15: 729 | AA15: 25,327 | AB15: 21,483 | AC15: 17,856 | AD15: 10,571 | AE15: 7,533 | AF15: 4,340 | AG15: 5,053 | AH15: 6,107 | AI15: 4,526 | AJ15: 7,750 | AK15: 14,105 | AL15: 22,599
A16: P01-1-1-5-02 | B16: 北海道 | C16: 札幌市 | D16: 2 | E16: 戸建住宅 | F16: 1 | G16: 5 | H16: ガス給湯＋IH | I16: 120.08 | J16: 条件指定モデル | K16: 4,800 | L16: 400.0 | M16: 12,400 | N16: 4,800 | O16: 823 | P16: 698 | Q16: 581 | R16: 346 | S16: 247 | T16: 144 | U16: 166 | V16: 200 | W16: 149 | X16: 253 | Y16: 459 | Z16: 734 | AA16: 25,513 | AB16: 21,638 | AC16: 18,011 | AD16: 10,726 | AE16: 7,657 | AF16: 4,464 | AG16: 5,146 | AH16: 6,200 | AI16: 4,619 | AJ16: 7,843 | AK16: 14,229 | AL16: 22,754
A17: P01-1-1-5-03 | B17: 北海道 | C17: 札幌市 | D17: 2 | E17: 戸建住宅 | F17: 1 | G17: 5 | H17: エコキュート＋IH | I17: 120.08 | J17: 条件指定モデル | K17: 6,106 | L17: 508.8 | M17: 15,774 | N17: 6,106 | O17: 1,011 | P17: 866 | Q17: 754 | R17: 453 | S17: 327 | T17: 210 | U17: 223 | V17: 248 | W17: 208 | X17: 332 | Y17: 580 | Z17: 894 | AA17: 31,341 | AB17: 26,846 | AC17: 23,374 | AD17: 14,043 | AE17: 10,137 | AF17: 6,510 | AG17: 6,913 | AH17: 7,688 | AI17: 6,448 | AJ17: 10,292 | AK17: 17,980 | AL17: 27,714
A18: P01-1-1-5-04 | B18: 北海道 | C18: 札幌市 | D18: 2 | E18: 戸建住宅 | F18: 1 | G18: 5 | H18: エコキュート＋ガス調理 | I18: 120.08 | J18: 条件指定モデル | K18: 6,054 | L18: 504.5 | M18: 15,640 | N18: 6,054 | O18: 1,005 | P18: 861 | Q18: 749 | R18: 448 | S18: 322 | T18: 206 | U18: 219 | V18: 245 | W18: 205 | X18: 329 | Y18: 576 | Z18: 889 | AA18: 31,155 | AB18: 26,691 | AC18: 23,219 | AD18: 13,888 | AE18: 9,982 | AF18: 6,386 | AG18: 6,789 | AH18: 7,595 | AI18: 6,355 | AJ18: 10,199 | AK18: 17,856 | AL18: 27,559
A19: P01-1-1-5-05 | B19: 北海道 | C19: 札幌市 | D19: 2 | E19: 戸建住宅 | F19: 1 | G19: 5 | H19: 電気温水器＋IH | I19: 120.08 | J19: 条件指定モデル | K19: 8,272 | L19: 689.3 | M19: 21,369 | N19: 8,272 | O19: 1,182 | P19: 1,021 | Q19: 934 | R19: 642 | S19: 522 | T19: 395 | U19: 410 | V19: 419 | W19: 382 | X19: 528 | Y19: 766 | Z19: 1,071 | AA19: 36,642 | AB19: 31,651 | AC19: 28,954 | AD19: 19,902 | AE19: 16,182 | AF19: 12,245 | AG19: 12,710 | AH19: 12,989 | AI19: 11,842 | AJ19: 16,368 | AK19: 23,746 | AL19: 33,201
A20: P01-1-1-5-06 | B20: 北海道 | C20: 札幌市 | D20: 2 | E20: 戸建住宅 | F20: 1 | G20: 5 | H20: ハイブリッド＋ガス調理 | I20: 120.08 | J20: 条件指定モデル | K20: 5,451 | L20: 454.2 | M20: 14,082 | N20: 5,451 | O20: 909 | P20: 775 | Q20: 659 | R20: 401 | S20: 292 | T20: 181 | U20: 196 | V20: 225 | W20: 183 | X20: 299 | Y20: 520 | Z20: 811 | AA20: 28,179 | AB20: 24,025 | AC20: 20,429 | AD20: 12,431 | AE20: 9,052 | AF20: 5,611 | AG20: 6,076 | AH20: 6,975 | AI20: 5,673 | AJ20: 9,269 | AK20: 16,120 | AL20: 25,141
A21: P01-1-1-5-07 | B21: 北海道 | C21: 札幌市 | D21: 2 | E21: 戸建住宅 | F21: 1 | G21: 5 | H21: ハイブリッド＋IH | I21: 120.08 | J21: 条件指定モデル | K21: 5,501 | L21: 458.4 | M21: 14,211 | N21: 5,501 | O21: 915 | P21: 780 | Q21: 664 | R21: 405 | S21: 297 | T21: 185 | U21: 200 | V21: 228 | W21: 185 | X21: 303 | Y21: 524 | Z21: 815 | AA21: 28,365 | AB21: 24,180 | AC21: 20,584 | AD21: 12,555 | AE21: 9,207 | AF21: 5,735 | AG21: 6,200 | AH21: 7,068 | AI21: 5,735 | AJ21: 9,393 | AK21: 16,244 | AL21: 25,265
A22: P01-1-1-5-08 | B22: 北海道 | C22: 札幌市 | D22: 2 | E22: 戸建住宅 | F22: 1 | G22: 5 | H22: エネファーム＋ガス調理 | I22: 120.08 | J22: 発電自家消費量の入力待ち | N22: 4,750
A23: P01-1-1-5-09 | B23: 北海道 | C23: 札幌市 | D23: 2 | E23: 戸建住宅 | F23: 1 | G23: 5 | H23: エネファーム＋IH | I23: 120.08 | J23: 発電自家消費量の入力待ち | N23: 4,800
A24: P01-1-1-6-01 | B24: 北海道 | C24: 札幌市 | D24: 2 | E24: 戸建住宅 | F24: 1 | G24: 6 | H24: ガス給湯＋ガス調理 | I24: 120.08 | J24: 条件指定モデル | K24: 4,112 | L24: 342.7 | M24: 10,623 | N24: 4,112 | O24: 693 | P24: 589 | Q24: 486 | R24: 284 | S24: 202 | T24: 135 | U24: 166 | V24: 203 | W24: 140 | X24: 207 | Y24: 386 | Z24: 621 | AA24: 21,483 | AB24: 18,259 | AC24: 15,066 | AD24: 8,804 | AE24: 6,262 | AF24: 4,185 | AG24: 5,146 | AH24: 6,293 | AI24: 4,340 | AJ24: 6,417 | AK24: 11,966 | AL24: 19,251
A25: P01-1-1-6-02 | B25: 北海道 | C25: 札幌市 | D25: 2 | E25: 戸建住宅 | F25: 1 | G25: 6 | H25: ガス給湯＋IH | I25: 120.08 | J25: 条件指定モデル | K25: 4,161 | L25: 346.8 | M25: 10,749 | N25: 4,161 | O25: 699 | P25: 594 | Q25: 491 | R25: 288 | S25: 207 | T25: 139 | U25: 169 | V25: 206 | W25: 142 | X25: 210 | Y25: 390 | Z25: 626 | AA25: 21,669 | AB25: 18,414 | AC25: 15,221 | AD25: 8,928 | AE25: 6,417 | AF25: 4,309 | AG25: 5,239 | AH25: 6,386 | AI25: 4,402 | AJ25: 6,510 | AK25: 12,090 | AL25: 19,406
A26: P01-1-1-6-03 | B26: 北海道 | C26: 札幌市 | D26: 2 | E26: 戸建住宅 | F26: 1 | G26: 6 | H26: エコキュート＋IH | I26: 120.08 | J26: 条件指定モデル | K26: 5,468 | L26: 455.7 | M26: 14,126 | N26: 5,468 | O26: 886 | P26: 763 | Q26: 665 | R26: 395 | S26: 286 | T26: 206 | U26: 225 | V26: 254 | W26: 202 | X26: 289 | Y26: 511 | Z26: 786 | AA26: 27,466 | AB26: 23,653 | AC26: 20,615 | AD26: 12,245 | AE26: 8,866 | AF26: 6,386 | AG26: 6,975 | AH26: 7,874 | AI26: 6,262 | AJ26: 8,959 | AK26: 15,841 | AL26: 24,366
A27: P01-1-1-6-04 | B27: 北海道 | C27: 札幌市 | D27: 2 | E27: 戸建住宅 | F27: 1 | G27: 6 | H27: エコキュート＋ガス調理 | I27: 120.08 | J27: 条件指定モデル | K27: 5,419 | L27: 451.6 | M27: 13,999 | N27: 5,419 | O27: 881 | P27: 757 | Q27: 660 | R27: 391 | S27: 282 | T27: 202 | U27: 222 | V27: 251 | W27: 199 | X27: 286 | Y27: 507 | Z27: 781 | AA27: 27,311 | AB27: 23,467 | AC27: 20,460 | AD27: 12,121 | AE27: 8,742 | AF27: 6,262 | AG27: 6,882 | AH27: 7,781 | AI27: 6,169 | AJ27: 8,866 | AK27: 15,717 | AL27: 24,211
A28: P01-1-1-6-05 | B28: 北海道 | C28: 札幌市 | D28: 2 | E28: 戸建住宅 | F28: 1 | G28: 6 | H28: 電気温水器＋IH | I28: 120.08 | J28: 条件指定モデル | K28: 7,634 | L28: 636.2 | M28: 19,721 | N28: 7,634 | O28: 1,057 | P28: 917 | Q28: 845 | R28: 584 | S28: 482 | T28: 391 | U28: 412 | V28: 425 | W28: 376 | X28: 485 | Y28: 697 | Z28: 963 | AA28: 32,767 | AB28: 28,427 | AC28: 26,195 | AD28: 18,104 | AE28: 14,942 | AF28: 12,121 | AG28: 12,772 | AH28: 13,175 | AI28: 11,656 | AJ28: 15,035 | AK28: 21,607 | AL28: 29,853
A29: P01-1-1-6-06 | B29: 北海道 | C29: 札幌市 | D29: 2 | E29: 戸建住宅 | F29: 1 | G29: 6 | H29: ハイブリッド＋ガス調理 | I29: 120.08 | J29: 条件指定モデル | K29: 4,814 | L29: 401.2 | M29: 12,436 | N29: 4,814 | O29: 785 | P29: 671 | Q29: 570 | R29: 343 | S29: 252 | T29: 177 | U29: 199 | V29: 231 | W29: 176 | X29: 257 | Y29: 451 | Z29: 702 | AA29: 24,335 | AB29: 20,801 | AC29: 17,670 | AD29: 10,633 | AE29: 7,812 | AF29: 5,487 | AG29: 6,169 | AH29: 7,161 | AI29: 5,456 | AJ29: 7,967 | AK29: 13,981 | AL29: 21,762
A30: P01-1-1-6-07 | B30: 北海道 | C30: 札幌市 | D30: 2 | E30: 戸建住宅 | F30: 1 | G30: 6 | H30: ハイブリッド＋IH | I30: 120.08 | J30: 条件指定モデル | K30: 4,864 | L30: 405.3 | M30: 12,565 | N30: 4,864 | O30: 790 | P30: 676 | Q30: 575 | R30: 348 | S30: 257 | T30: 181 | U30: 202 | V30: 234 | W30: 179 | X30: 260 | Y30: 455 | Z30: 707 | AA30: 24,490 | AB30: 20,956 | AC30: 17,825 | AD30: 10,788 | AE30: 7,967 | AF30: 5,611 | AG30: 6,262 | AH30: 7,254 | AI30: 5,549 | AJ30: 8,060 | AK30: 14,105 | AL30: 21,917
A31: P01-1-1-6-08 | B31: 北海道 | C31: 札幌市 | D31: 2 | E31: 戸建住宅 | F31: 1 | G31: 6 | H31: エネファーム＋ガス調理 | I31: 120.08 | J31: 発電自家消費量の入力待ち | N31: 4,112
A32: P01-1-1-6-09 | B32: 北海道 | C32: 札幌市 | D32: 2 | E32: 戸建住宅 | F32: 1 | G32: 6 | H32: エネファーム＋IH | I32: 120.08 | J32: 発電自家消費量の入力待ち | N32: 4,161
A33: P01-1-1-7-01 | B33: 北海道 | C33: 札幌市 | D33: 2 | E33: 戸建住宅 | F33: 1 | G33: 7 | H33: ガス給湯＋ガス調理 | I33: 120.08 | J33: 条件指定モデル | K33: 3,696 | L33: 308.0 | M33: 9,548 | N33: 3,696 | O33: 615 | P33: 524 | Q33: 425 | R33: 245 | S33: 173 | T33: 133 | U33: 167 | V33: 207 | W33: 135 | X33: 179 | Y33: 342 | Z33: 551 | AA33: 19,065 | AB33: 16,244 | AC33: 13,175 | AD33: 7,595 | AE33: 5,363 | AF33: 4,123 | AG33: 5,177 | AH33: 6,417 | AI33: 4,185 | AJ33: 5,549 | AK33: 10,602 | AL33: 17,081
A34: P01-1-1-7-02 | B34: 北海道 | C34: 札幌市 | D34: 2 | E34: 戸建住宅 | F34: 1 | G34: 7 | H34: ガス給湯＋IH | I34: 120.08 | J34: 条件指定モデル | K34: 3,748 | L34: 312.3 | M34: 9,682 | N34: 3,748 | O34: 621 | P34: 529 | Q34: 430 | R34: 250 | S34: 177 | T34: 137 | U34: 171 | V34: 210 | W34: 138 | X34: 183 | Y34: 346 | Z34: 556 | AA34: 19,251 | AB34: 16,399 | AC34: 13,330 | AD34: 7,750 | AE34: 5,487 | AF34: 4,247 | AG34: 5,301 | AH34: 6,510 | AI34: 4,278 | AJ34: 5,673 | AK34: 10,726 | AL34: 17,236
A35: P01-1-1-7-03 | B35: 北海道 | C35: 札幌市 | D35: 2 | E35: 戸建住宅 | F35: 1 | G35: 7 | H35: エコキュート＋IH | I35: 120.08 | J35: 条件指定モデル | K35: 5,052 | L35: 421.0 | M35: 13,051 | N35: 5,052 | O35: 809 | P35: 697 | Q35: 603 | R35: 357 | S35: 257 | T35: 203 | U35: 227 | V35: 258 | W35: 197 | X35: 262 | Y35: 466 | Z35: 716 | AA35: 25,079 | AB35: 21,607 | AC35: 18,693 | AD35: 11,067 | AE35: 7,967 | AF35: 6,293 | AG35: 7,037 | AH35: 7,998 | AI35: 6,107 | AJ35: 8,122 | AK35: 14,446 | AL35: 22,196
A36: P01-1-1-7-04 | B36: 北海道 | C36: 札幌市 | D36: 2 | E36: 戸建住宅 | F36: 1 | G36: 7 | H36: エコキュート＋ガス調理 | I36: 120.08 | J36: 条件指定モデル | K36: 5,001 | L36: 416.8 | M36: 12,919 | N36: 5,001 | O36: 803 | P36: 692 | Q36: 598 | R36: 352 | S36: 252 | T36: 199 | U36: 224 | V36: 255 | W36: 194 | X36: 259 | Y36: 462 | Z36: 711 | AA36: 24,893 | AB36: 21,452 | AC36: 18,538 | AD36: 10,912 | AE36: 7,812 | AF36: 6,169 | AG36: 6,944 | AH36: 7,905 | AI36: 6,014 | AJ36: 8,029 | AK36: 14,322 | AL36: 22,041
A37: P01-1-1-7-05 | B37: 北海道 | C37: 札幌市 | D37: 2 | E37: 戸建住宅 | F37: 1 | G37: 7 | H37: 電気温水器＋IH | I37: 120.08 | J37: 条件指定モデル | K37: 7,219 | L37: 601.6 | M37: 18,649 | N37: 7,219 | O37: 980 | P37: 851 | Q37: 784 | R37: 545 | S37: 452 | T37: 388 | U37: 414 | V37: 429 | W37: 372 | X37: 458 | Y37: 653 | Z37: 893 | AA37: 30,380 | AB37: 26,381 | AC37: 24,304 | AD37: 16,895 | AE37: 14,012 | AF37: 12,028 | AG37: 12,834 | AH37: 13,299 | AI37: 11,532 | AJ37: 14,198 | AK37: 20,243 | AL37: 27,683
A38: P01-1-1-7-06 | B38: 北海道 | C38: 札幌市 | D38: 2 | E38: 戸建住宅 | F38: 1 | G38: 7 | H38: ハイブリッド＋ガス調理 | I38: 120.08 | J38: 条件指定モデル | K38: 4,396 | L38: 366.3 | M38: 11,356 | N38: 4,396 | O38: 707 | P38: 605 | Q38: 508 | R38: 304 | S38: 222 | T38: 174 | U38: 201 | V38: 235 | W38: 172 | X38: 229 | Y38: 407 | Z38: 632 | AA38: 21,917 | AB38: 18,755 | AC38: 15,748 | AD38: 9,424 | AE38: 6,882 | AF38: 5,394 | AG38: 6,231 | AH38: 7,285 | AI38: 5,332 | AJ38: 7,099 | AK38: 12,617 | AL38: 19,592
A39: P01-1-1-7-07 | B39: 北海道 | C39: 札幌市 | D39: 2 | E39: 戸建住宅 | F39: 1 | G39: 7 | H39: ハイブリッド＋IH | I39: 120.08 | J39: 条件指定モデル | K39: 4,448 | L39: 370.7 | M39: 11,491 | N39: 4,448 | O39: 713 | P39: 610 | Q39: 513 | R39: 309 | S39: 227 | T39: 178 | U39: 204 | V39: 238 | W39: 175 | X39: 233 | Y39: 411 | Z39: 637 | AA39: 22,103 | AB39: 18,910 | AC39: 15,903 | AD39: 9,579 | AE39: 7,037 | AF39: 5,518 | AG39: 6,324 | AH39: 7,378 | AI39: 5,425 | AJ39: 7,223 | AK39: 12,741 | AL39: 19,747
A40: P01-1-1-7-08 | B40: 北海道 | C40: 札幌市 | D40: 2 | E40: 戸建住宅 | F40: 1 | G40: 7 | H40: エネファーム＋ガス調理 | I40: 120.08 | J40: 発電自家消費量の入力待ち | N40: 3,696
A41: P01-1-1-7-09 | B41: 北海道 | C41: 札幌市 | D41: 2 | E41: 戸建住宅 | F41: 1 | G41: 7 | H41: エネファーム＋IH | I41: 120.08 | J41: 発電自家消費量の入力待ち | N41: 3,748
A42: P01-1-2-4-01 | B42: 北海道 | C42: 札幌市 | D42: 2 | E42: 戸建住宅 | F42: 2 | G42: 4 | H42: ガス給湯＋ガス調理 | I42: 120.08 | J42: 条件指定モデル | K42: 5,439 | L42: 453.2 | M42: 14,051 | N42: 5,439 | O42: 919 | P42: 778 | Q42: 653 | R42: 399 | S42: 284 | T42: 173 | U42: 195 | V42: 228 | W42: 179 | X42: 293 | Y42: 521 | Z42: 817 | AA42: 28,489 | AB42: 24,118 | AC42: 20,243 | AD42: 12,369 | AE42: 8,804 | AF42: 5,363 | AG42: 6,045 | AH42: 7,068 | AI42: 5,549 | AJ42: 9,083 | AK42: 16,151 | AL42: 25,327
A43: P01-1-2-4-02 | B43: 北海道 | C43: 札幌市 | D43: 2 | E43: 戸建住宅 | F43: 2 | G43: 4 | H43: ガス給湯＋IH | I43: 120.08 | J43: 条件指定モデル | K43: 5,611 | L43: 467.6 | M43: 14,495 | N43: 5,611 | O43: 938 | P43: 796 | Q43: 670 | R43: 415 | S43: 299 | T43: 187 | U43: 207 | V43: 238 | W43: 189 | X43: 304 | Y43: 535 | Z43: 833 | AA43: 29,078 | AB43: 24,676 | AC43: 20,770 | AD43: 12,865 | AE43: 9,269 | AF43: 5,797 | AG43: 6,417 | AH43: 7,378 | AI43: 5,859 | AJ43: 9,424 | AK43: 16,585 | AL43: 25,823
A44: P01-1-2-4-03 | B44: 北海道 | C44: 札幌市 | D44: 2 | E44: 戸建住宅 | F44: 2 | G44: 4 | H44: エコキュート＋IH | I44: 120.08 | J44: 条件指定モデル | K44: 7,349 | L44: 612.4 | M44: 18,985 | N44: 7,349 | O44: 1,184 | P44: 1,017 | Q44: 900 | R44: 559 | S44: 406 | T44: 277 | U44: 283 | V44: 304 | W44: 269 | X44: 412 | Y44: 694 | Z44: 1,044 | AA44: 36,704 | AB44: 31,527 | AC44: 27,900 | AD44: 17,329 | AE44: 12,586 | AF44: 8,587 | AG44: 8,773 | AH44: 9,424 | AI44: 8,339 | AJ44: 12,772 | AK44: 21,514 | AL44: 32,364
A45: P01-1-2-4-04 | B45: 北海道 | C45: 札幌市 | D45: 2 | E45: 戸建住宅 | F45: 2 | G45: 4 | H45: エコキュート＋ガス調理 | I45: 120.08 | J45: 条件指定モデル | K45: 7,175 | L45: 597.9 | M45: 18,535 | N45: 7,175 | O45: 1,165 | P45: 999 | Q45: 882 | R45: 542 | S45: 391 | T45: 263 | U45: 272 | V45: 293 | W45: 259 | X45: 401 | Y45: 680 | Z45: 1,028 | AA45: 36,115 | AB45: 30,969 | AC45: 27,342 | AD45: 16,802 | AE45: 12,121 | AF45: 8,153 | AG45: 8,432 | AH45: 9,083 | AI45: 8,029 | AJ45: 12,431 | AK45: 21,080 | AL45: 31,868
A46: P01-1-2-4-05 | B46: 北海道 | C46: 札幌市 | D46: 2 | E46: 戸建住宅 | F46: 2 | G46: 4 | H46: 電気温水器＋IH | I46: 120.08 | J46: 条件指定モデル | K46: 10,365 | L46: 863.8 | M46: 26,776 | N46: 10,365 | O46: 1,434 | P46: 1,242 | Q46: 1,162 | R46: 821 | S46: 674 | T46: 528 | U46: 536 | V46: 533 | W46: 504 | X46: 679 | Y46: 954 | Z46: 1,298 | AA46: 44,454 | AB46: 38,502 | AC46: 36,022 | AD46: 25,451 | AE46: 20,894 | AF46: 16,368 | AG46: 16,616 | AH46: 16,523 | AI46: 15,624 | AJ46: 21,049 | AK46: 29,574 | AL46: 40,238
A47: P01-1-2-4-06 | B47: 北海道 | C47: 札幌市 | D47: 2 | E47: 戸建住宅 | F47: 2 | G47: 4 | H47: ハイブリッド＋ガス調理 | I47: 120.08 | J47: 条件指定モデル | K47: 6,261 | L47: 521.8 | M47: 16,174 | N47: 6,261 | O47: 1,025 | P47: 872 | Q47: 750 | R47: 468 | S47: 343 | T47: 223 | U47: 236 | V47: 262 | W47: 223 | X47: 352 | Y47: 596 | Z47: 911 | AA47: 31,775 | AB47: 27,032 | AC47: 23,250 | AD47: 14,508 | AE47: 10,633 | AF47: 6,913 | AG47: 7,316 | AH47: 8,122 | AI47: 6,913 | AJ47: 10,912 | AK47: 18,476 | AL47: 28,241
A48: P01-1-2-4-07 | B48: 北海道 | C48: 札幌市 | D48: 2 | E48: 戸建住宅 | F48: 2 | G48: 4 | H48: ハイブリッド＋IH | I48: 120.08 | J48: 条件指定モデル | K48: 6,433 | L48: 536.1 | M48: 16,619 | N48: 6,433 | O48: 1,043 | P48: 890 | Q48: 767 | R48: 485 | S48: 358 | T48: 236 | U48: 248 | V48: 273 | W48: 233 | X48: 363 | Y48: 610 | Z48: 927 | AA48: 32,333 | AB48: 27,590 | AC48: 23,777 | AD48: 15,035 | AE48: 11,098 | AF48: 7,316 | AG48: 7,688 | AH48: 8,463 | AI48: 7,223 | AJ48: 11,253 | AK48: 18,910 | AL48: 28,737
A49: P01-1-2-4-08 | B49: 北海道 | C49: 札幌市 | D49: 2 | E49: 戸建住宅 | F49: 2 | G49: 4 | H49: エネファーム＋ガス調理 | I49: 120.08 | J49: 発電自家消費量の入力待ち | N49: 5,439
A50: P01-1-2-4-09 | B50: 北海道 | C50: 札幌市 | D50: 2 | E50: 戸建住宅 | F50: 2 | G50: 4 | H50: エネファーム＋IH | I50: 120.08 | J50: 発電自家消費量の入力待ち | N50: 5,611
A51: P01-1-2-5-01 | B51: 北海道 | C51: 札幌市 | D51: 2 | E51: 戸建住宅 | F51: 2 | G51: 5 | H51: ガス給湯＋ガス調理 | I51: 120.08 | J51: 条件指定モデル | K51: 5,144 | L51: 428.7 | M51: 13,289 | N51: 5,144 | O51: 851 | P51: 724 | Q51: 610 | R51: 373 | S51: 275 | T51: 173 | U51: 196 | V51: 231 | W51: 178 | X51: 283 | Y51: 488 | Z51: 762 | AA51: 26,381 | AB51: 22,444 | AC51: 18,910 | AD51: 11,563 | AE51: 8,525 | AF51: 5,363 | AG51: 6,076 | AH51: 7,161 | AI51: 5,518 | AJ51: 8,773 | AK51: 15,128 | AL51: 23,622
A52: P01-1-2-5-02 | B52: 北海道 | C52: 札幌市 | D52: 2 | E52: 戸建住宅 | F52: 2 | G52: 5 | H52: ガス給湯＋IH | I52: 120.08 | J52: 条件指定モデル | K52: 5,315 | L52: 442.9 | M52: 13,730 | N52: 5,315 | O52: 870 | P52: 742 | Q52: 627 | R52: 390 | S52: 290 | T52: 186 | U52: 208 | V52: 241 | W52: 188 | X52: 294 | Y52: 501 | Z52: 778 | AA52: 26,970 | AB52: 23,002 | AC52: 19,437 | AD52: 12,090 | AE52: 8,990 | AF52: 5,766 | AG52: 6,448 | AH52: 7,471 | AI52: 5,828 | AJ52: 9,114 | AK52: 15,531 | AL52: 24,118
A53: P01-1-2-5-03 | B53: 北海道 | C53: 札幌市 | D53: 2 | E53: 戸建住宅 | F53: 2 | G53: 5 | H53: エコキュート＋IH | I53: 120.08 | J53: 条件指定モデル | K53: 7,052 | L53: 587.7 | M53: 18,218 | N53: 7,052 | O53: 1,116 | P53: 963 | Q53: 856 | R53: 533 | S53: 398 | T53: 276 | U53: 285 | V53: 307 | W53: 268 | X53: 401 | Y53: 660 | Z53: 989 | AA53: 34,596 | AB53: 29,853 | AC53: 26,536 | AD53: 16,523 | AE53: 12,338 | AF53: 8,556 | AG53: 8,835 | AH53: 9,517 | AI53: 8,308 | AJ53: 12,431 | AK53: 20,460 | AL53: 30,659
A54: P01-1-2-5-04 | B54: 北海道 | C54: 札幌市 | D54: 2 | E54: 戸建住宅 | F54: 2 | G54: 5 | H54: エコキュート＋ガス調理 | I54: 120.08 | J54: 条件指定モデル | K54: 6,880 | L54: 573.3 | M54: 17,773 | N54: 6,880 | O54: 1,098 | P54: 945 | Q54: 839 | R54: 517 | S54: 382 | T54: 263 | U54: 273 | V54: 297 | W54: 257 | X54: 390 | Y54: 646 | Z54: 973 | AA54: 34,038 | AB54: 29,295 | AC54: 26,009 | AD54: 16,027 | AE54: 11,842 | AF54: 8,153 | AG54: 8,463 | AH54: 9,207 | AI54: 7,967 | AJ54: 12,090 | AK54: 20,026 | AL54: 30,163
A55: P01-1-2-5-05 | B55: 北海道 | C55: 札幌市 | D55: 2 | E55: 戸建住宅 | F55: 2 | G55: 5 | H55: 電気温水器＋IH | I55: 120.08 | J55: 条件指定モデル | K55: 10,070 | L55: 839.2 | M55: 26,014 | N55: 10,070 | O55: 1,367 | P55: 1,188 | Q55: 1,119 | R55: 795 | S55: 665 | T55: 528 | U55: 537 | V55: 536 | W55: 503 | X55: 669 | Y55: 920 | Z55: 1,243 | AA55: 42,377 | AB55: 36,828 | AC55: 34,689 | AD55: 24,645 | AE55: 20,615 | AF55: 16,368 | AG55: 16,647 | AH55: 16,616 | AI55: 15,593 | AJ55: 20,739 | AK55: 28,520 | AL55: 38,533
A56: P01-1-2-5-06 | B56: 北海道 | C56: 札幌市 | D56: 2 | E56: 戸建住宅 | F56: 2 | G56: 5 | H56: ハイブリッド＋ガス調理 | I56: 120.08 | J56: 条件指定モデル | K56: 5,965 | L56: 497.1 | M56: 15,410 | N56: 5,965 | O56: 957 | P56: 818 | Q56: 706 | R56: 443 | S56: 334 | T56: 222 | U56: 237 | V56: 265 | W56: 222 | X56: 342 | Y56: 563 | Z56: 856 | AA56: 29,667 | AB56: 25,358 | AC56: 21,886 | AD56: 13,733 | AE56: 10,354 | AF56: 6,882 | AG56: 7,347 | AH56: 8,215 | AI56: 6,882 | AJ56: 10,602 | AK56: 17,453 | AL56: 26,536
A57: P01-1-2-5-07 | B57: 北海道 | C57: 札幌市 | D57: 2 | E57: 戸建住宅 | F57: 2 | G57: 5 | H57: ハイブリッド＋IH | I57: 120.08 | J57: 条件指定モデル | K57: 6,139 | L57: 511.6 | M57: 15,859 | N57: 6,139 | O57: 976 | P57: 836 | Q57: 724 | R57: 459 | S57: 349 | T57: 236 | U57: 249 | V57: 276 | W57: 232 | X57: 353 | Y57: 577 | Z57: 872 | AA57: 30,256 | AB57: 25,916 | AC57: 22,444 | AD57: 14,229 | AE57: 10,819 | AF57: 7,316 | AG57: 7,719 | AH57: 8,556 | AI57: 7,192 | AJ57: 10,943 | AK57: 17,887 | AL57: 27,032
A58: P01-1-2-5-08 | B58: 北海道 | C58: 札幌市 | D58: 2 | E58: 戸建住宅 | F58: 2 | G58: 5 | H58: エネファーム＋ガス調理 | I58: 120.08 | J58: 発電自家消費量の入力待ち | N58: 5,144
A59: P01-1-2-5-09 | B59: 北海道 | C59: 札幌市 | D59: 2 | E59: 戸建住宅 | F59: 2 | G59: 5 | H59: エネファーム＋IH | I59: 120.08 | J59: 発電自家消費量の入力待ち | N59: 5,315
A60: P01-1-2-6-01 | B60: 北海道 | C60: 札幌市 | D60: 2 | E60: 戸建住宅 | F60: 2 | G60: 6 | H60: ガス給湯＋ガス調理 | I60: 120.08 | J60: 条件指定モデル | K60: 4,505 | L60: 375.4 | M60: 11,638 | N60: 4,505 | O60: 727 | P60: 620 | Q60: 520 | R60: 315 | S60: 235 | T60: 168 | U60: 199 | V60: 237 | W60: 171 | X60: 240 | Y60: 419 | Z60: 654 | AA60: 22,537 | AB60: 19,220 | AC60: 16,120 | AD60: 9,765 | AE60: 7,285 | AF60: 5,208 | AG60: 6,169 | AH60: 7,347 | AI60: 5,301 | AJ60: 7,440 | AK60: 12,989 | AL60: 20,274
A61: P01-1-2-6-02 | B61: 北海道 | C61: 札幌市 | D61: 2 | E61: 戸建住宅 | F61: 2 | G61: 6 | H61: ガス給湯＋IH | I61: 120.08 | J61: 条件指定モデル | K61: 4,679 | L61: 389.9 | M61: 12,087 | N61: 4,679 | O61: 746 | P61: 638 | Q61: 538 | R61: 332 | S61: 250 | T61: 182 | U61: 210 | V61: 247 | W61: 182 | X61: 251 | Y61: 433 | Z61: 670 | AA61: 23,126 | AB61: 19,778 | AC61: 16,678 | AD61: 10,292 | AE61: 7,750 | AF61: 5,642 | AG61: 6,510 | AH61: 7,657 | AI61: 5,642 | AJ61: 7,781 | AK61: 13,423 | AL61: 20,770
A62: P01-1-2-6-03 | B62: 北海道 | C62: 札幌市 | D62: 2 | E62: 戸建住宅 | F62: 2 | G62: 6 | H62: エコキュート＋IH | I62: 120.08 | J62: 条件指定モデル | K62: 6,413 | L62: 534.4 | M62: 16,567 | N62: 6,413 | O62: 992 | P62: 859 | Q62: 767 | R62: 475 | S62: 357 | T62: 272 | U62: 287 | V62: 313 | W62: 261 | X62: 358 | Y62: 591 | Z62: 881 | AA62: 30,752 | AB62: 26,629 | AC62: 23,777 | AD62: 14,725 | AE62: 11,067 | AF62: 8,432 | AG62: 8,897 | AH62: 9,703 | AI62: 8,091 | AJ62: 11,098 | AK62: 18,321 | AL62: 27,311
A63: P01-1-2-6-04 | B63: 北海道 | C63: 札幌市 | D63: 2 | E63: 戸建住宅 | F63: 2 | G63: 6 | H63: エコキュート＋ガス調理 | I63: 120.08 | J63: 条件指定モデル | K63: 6,242 | L63: 520.2 | M63: 16,125 | N63: 6,242 | O63: 973 | P63: 841 | Q63: 750 | R63: 459 | S63: 342 | T63: 258 | U63: 275 | V63: 303 | W63: 251 | X63: 347 | Y63: 578 | Z63: 865 | AA63: 30,163 | AB63: 26,071 | AC63: 23,250 | AD63: 14,229 | AE63: 10,602 | AF63: 7,998 | AG63: 8,525 | AH63: 9,393 | AI63: 7,781 | AJ63: 10,757 | AK63: 17,918 | AL63: 26,815
A64: P01-1-2-6-05 | B64: 北海道 | C64: 札幌市 | D64: 2 | E64: 戸建住宅 | F64: 2 | G64: 6 | H64: 電気温水器＋IH | I64: 120.08 | J64: 条件指定モデル | K64: 9,431 | L64: 785.9 | M64: 24,363 | N64: 9,431 | O64: 1,242 | P64: 1,084 | Q64: 1,029 | R64: 738 | S64: 625 | T64: 524 | U64: 539 | V64: 542 | W64: 496 | X64: 626 | Y64: 851 | Z64: 1,135 | AA64: 38,502 | AB64: 33,604 | AC64: 31,899 | AD64: 22,878 | AE64: 19,375 | AF64: 16,244 | AG64: 16,709 | AH64: 16,802 | AI64: 15,376 | AJ64: 19,406 | AK64: 26,381 | AL64: 35,185
A65: P01-1-2-6-06 | B65: 北海道 | C65: 札幌市 | D65: 2 | E65: 戸建住宅 | F65: 2 | G65: 6 | H65: ハイブリッド＋ガス調理 | I65: 120.08 | J65: 条件指定モデル | K65: 5,328 | L65: 444.0 | M65: 13,764 | N65: 5,328 | O65: 833 | P65: 714 | Q65: 617 | R65: 385 | S65: 294 | T65: 218 | U65: 240 | V65: 271 | W65: 215 | X65: 299 | Y65: 494 | Z65: 748 | AA65: 25,823 | AB65: 22,134 | AC65: 19,127 | AD65: 11,935 | AE65: 9,114 | AF65: 6,758 | AG65: 7,440 | AH65: 8,401 | AI65: 6,665 | AJ65: 9,269 | AK65: 15,314 | AL65: 23,188
A66: P01-1-2-6-07 | B66: 北海道 | C66: 札幌市 | D66: 2 | E66: 戸建住宅 | F66: 2 | G66: 6 | H66: ハイブリッド＋IH | I66: 120.08 | J66: 条件指定モデル | K66: 5,501 | L66: 458.4 | M66: 14,211 | N66: 5,501 | O66: 852 | P66: 732 | Q66: 635 | R66: 401 | S66: 309 | T66: 231 | U66: 251 | V66: 282 | W66: 226 | X66: 310 | Y66: 508 | Z66: 764 | AA66: 26,412 | AB66: 22,692 | AC66: 19,685 | AD66: 12,431 | AE66: 9,579 | AF66: 7,161 | AG66: 7,781 | AH66: 8,742 | AI66: 7,006 | AJ66: 9,610 | AK66: 15,748 | AL66: 23,684
A67: P01-1-2-6-08 | B67: 北海道 | C67: 札幌市 | D67: 2 | E67: 戸建住宅 | F67: 2 | G67: 6 | H67: エネファーム＋ガス調理 | I67: 120.08 | J67: 発電自家消費量の入力待ち | N67: 4,505
A68: P01-1-2-6-09 | B68: 北海道 | C68: 札幌市 | D68: 2 | E68: 戸建住宅 | F68: 2 | G68: 6 | H68: エネファーム＋IH | I68: 120.08 | J68: 発電自家消費量の入力待ち | N68: 4,679
A69: P01-1-2-7-01 | B69: 北海道 | C69: 札幌市 | D69: 2 | E69: 戸建住宅 | F69: 2 | G69: 7 | H69: ガス給湯＋ガス調理 | I69: 120.08 | J69: 条件指定モデル | K69: 4,090 | L69: 340.8 | M69: 10,566 | N69: 4,090 | O69: 649 | P69: 554 | Q69: 459 | R69: 277 | S69: 205 | T69: 166 | U69: 200 | V69: 241 | W69: 167 | X69: 213 | Y69: 375 | Z69: 584 | AA69: 20,119 | AB69: 17,174 | AC69: 14,229 | AD69: 8,587 | AE69: 6,355 | AF69: 5,146 | AG69: 6,200 | AH69: 7,471 | AI69: 5,177 | AJ69: 6,603 | AK69: 11,625 | AL69: 18,104
A70: P01-1-2-7-02 | B70: 北海道 | C70: 札幌市 | D70: 2 | E70: 戸建住宅 | F70: 2 | G70: 7 | H70: ガス給湯＋IH | I70: 120.08 | J70: 条件指定モデル | K70: 4,260 | L70: 355.0 | M70: 11,005 | N70: 4,260 | O70: 668 | P70: 572 | Q70: 476 | R70: 293 | S70: 220 | T70: 179 | U70: 212 | V70: 251 | W70: 177 | X70: 224 | Y70: 388 | Z70: 600 | AA70: 20,708 | AB70: 17,732 | AC70: 14,756 | AD70: 9,083 | AE70: 6,820 | AF70: 5,549 | AG70: 6,572 | AH70: 7,781 | AI70: 5,487 | AJ70: 6,944 | AK70: 12,028 | AL70: 18,600
A71: P01-1-2-7-03 | B71: 北海道 | C71: 札幌市 | D71: 2 | E71: 戸建住宅 | F71: 2 | G71: 7 | H71: エコキュート＋IH | I71: 120.08 | J71: 条件指定モデル | K71: 6,000 | L71: 500.0 | M71: 15,500 | N71: 6,000 | O71: 914 | P71: 793 | Q71: 706 | R71: 437 | S71: 328 | T71: 270 | U71: 289 | V71: 317 | W71: 257 | X71: 331 | Y71: 547 | Z71: 811 | AA71: 28,334 | AB71: 24,583 | AC71: 21,886 | AD71: 13,547 | AE71: 10,168 | AF71: 8,370 | AG71: 8,959 | AH71: 9,827 | AI71: 7,967 | AJ71: 10,261 | AK71: 16,957 | AL71: 25,141
A72: P01-1-2-7-04 | B72: 北海道 | C72: 札幌市 | D72: 2 | E72: 戸建住宅 | F72: 2 | G72: 7 | H72: エコキュート＋ガス調理 | I72: 120.08 | J72: 条件指定モデル | K72: 5,827 | L72: 485.6 | M72: 15,053 | N72: 5,827 | O72: 896 | P72: 775 | Q72: 688 | R72: 420 | S72: 313 | T72: 256 | U72: 277 | V72: 307 | W72: 247 | X72: 320 | Y72: 533 | Z72: 795 | AA72: 27,776 | AB72: 24,025 | AC72: 21,328 | AD72: 13,020 | AE72: 9,703 | AF72: 7,936 | AG72: 8,587 | AH72: 9,517 | AI72: 7,657 | AJ72: 9,920 | AK72: 16,523 | AL72: 24,645
A73: P01-1-2-7-05 | B73: 北海道 | C73: 札幌市 | D73: 2 | E73: 戸建住宅 | F73: 2 | G73: 7 | H73: 電気温水器＋IH | I73: 120.08 | J73: 条件指定モデル | K73: 9,016 | L73: 751.3 | M73: 23,291 | N73: 9,016 | O73: 1,165 | P73: 1,018 | Q73: 968 | R73: 699 | S73: 595 | T73: 521 | U73: 541 | V73: 547 | W73: 492 | X73: 598 | Y73: 807 | Z73: 1,065 | AA73: 36,115 | AB73: 31,558 | AC73: 30,008 | AD73: 21,669 | AE73: 18,445 | AF73: 16,151 | AG73: 16,771 | AH73: 16,957 | AI73: 15,252 | AJ73: 18,538 | AK73: 25,017 | AL73: 33,015
A74: P01-1-2-7-06 | B74: 北海道 | C74: 札幌市 | D74: 2 | E74: 戸建住宅 | F74: 2 | G74: 7 | H74: ハイブリッド＋ガス調理 | I74: 120.08 | J74: 条件指定モデル | K74: 4,911 | L74: 409.2 | M74: 12,687 | N74: 4,911 | O74: 755 | P74: 648 | Q74: 556 | R74: 346 | S74: 264 | T74: 215 | U74: 241 | V74: 276 | W74: 211 | X74: 271 | Y74: 450 | Z74: 678 | AA74: 23,405 | AB74: 20,088 | AC74: 17,236 | AD74: 10,726 | AE74: 8,184 | AF74: 6,665 | AG74: 7,471 | AH74: 8,556 | AI74: 6,541 | AJ74: 8,401 | AK74: 13,950 | AL74: 21,018
A75: P01-1-2-7-07 | B75: 北海道 | C75: 札幌市 | D75: 2 | E75: 戸建住宅 | F75: 2 | G75: 7 | H75: ハイブリッド＋IH | I75: 120.08 | J75: 条件指定モデル | K75: 5,085 | L75: 423.8 | M75: 13,136 | N75: 5,085 | O75: 774 | P75: 666 | Q75: 573 | R75: 363 | S75: 279 | T75: 229 | U75: 253 | V75: 286 | W75: 221 | X75: 283 | Y75: 464 | Z75: 694 | AA75: 23,994 | AB75: 20,646 | AC75: 17,763 | AD75: 11,253 | AE75: 8,649 | AF75: 7,099 | AG75: 7,843 | AH75: 8,866 | AI75: 6,851 | AJ75: 8,773 | AK75: 14,384 | AL75: 21,514
A76: P01-1-2-7-08 | B76: 北海道 | C76: 札幌市 | D76: 2 | E76: 戸建住宅 | F76: 2 | G76: 7 | H76: エネファーム＋ガス調理 | I76: 120.08 | J76: 発電自家消費量の入力待ち | N76: 4,090
A77: P01-1-2-7-09 | B77: 北海道 | C77: 札幌市 | D77: 2 | E77: 戸建住宅 | F77: 2 | G77: 7 | H77: エネファーム＋IH | I77: 120.08 | J77: 発電自家消費量の入力待ち | N77: 4,260
A78: P01-1-3-4-01 | B78: 北海道 | C78: 札幌市 | D78: 2 | E78: 戸建住宅 | F78: 3 | G78: 4 | H78: ガス給湯＋ガス調理 | I78: 120.08 | J78: 条件指定モデル | K78: 6,038 | L78: 503.2 | M78: 15,598 | N78: 6,038 | O78: 970 | P78: 824 | Q78: 704 | R78: 448 | S78: 334 | T78: 222 | U78: 247 | V78: 278 | W78: 228 | X78: 344 | Y78: 571 | Z78: 868 | AA78: 30,070 | AB78: 25,544 | AC78: 21,824 | AD78: 13,888 | AE78: 10,354 | AF78: 6,882 | AG78: 7,657 | AH78: 8,618 | AI78: 7,068 | AJ78: 10,664 | AK78: 17,701 | AL78: 26,908
A79: P01-1-3-4-02 | B79: 北海道 | C79: 札幌市 | D79: 2 | E79: 戸建住宅 | F79: 3 | G79: 4 | H79: ガス給湯＋IH | I79: 120.08 | J79: 条件指定モデル | K79: 6,266 | L79: 522.2 | M79: 16,187 | N79: 6,266 | O79: 995 | P79: 848 | Q79: 727 | R79: 470 | S79: 354 | T79: 240 | U79: 262 | V79: 292 | W79: 241 | X79: 359 | Y79: 589 | Z79: 889 | AA79: 30,845 | AB79: 26,288 | AC79: 22,537 | AD79: 14,570 | AE79: 10,974 | AF79: 7,440 | AG79: 8,122 | AH79: 9,052 | AI79: 7,471 | AJ79: 11,129 | AK79: 18,259 | AL79: 27,559
A80: P01-1-3-4-03 | B80: 北海道 | C80: 札幌市 | D80: 2 | E80: 戸建住宅 | F80: 3 | G80: 4 | H80: エコキュート＋IH | I80: 120.08 | J80: 条件指定モデル | K80: 8,576 | L80: 714.7 | M80: 22,155 | N80: 8,576 | O80: 1,317 | P80: 1,139 | Q80: 1,028 | R80: 662 | S80: 500 | T80: 362 | U80: 365 | V80: 381 | W80: 349 | X80: 503 | Y80: 800 | Z80: 1,170 | AA80: 40,827 | AB80: 35,309 | AC80: 31,868 | AD80: 20,522 | AE80: 15,500 | AF80: 11,222 | AG80: 11,315 | AH80: 11,811 | AI80: 10,819 | AJ80: 15,593 | AK80: 24,800 | AL80: 36,270
A81: P01-1-3-4-04 | B81: 北海道 | C81: 札幌市 | D81: 2 | E81: 戸建住宅 | F81: 3 | G81: 4 | H81: エコキュート＋ガス調理 | I81: 120.08 | J81: 条件指定モデル | K81: 8,351 | L81: 695.9 | M81: 21,573 | N81: 8,351 | O81: 1,292 | P81: 1,116 | Q81: 1,005 | R81: 641 | S81: 480 | T81: 345 | U81: 350 | V81: 368 | W81: 335 | X81: 488 | Y81: 782 | Z81: 1,149 | AA81: 40,052 | AB81: 34,596 | AC81: 31,155 | AD81: 19,871 | AE81: 14,880 | AF81: 10,695 | AG81: 10,850 | AH81: 11,408 | AI81: 10,385 | AJ81: 15,128 | AK81: 24,242 | AL81: 35,619
A82: P01-1-3-4-05 | B82: 北海道 | C82: 札幌市 | D82: 2 | E82: 戸建住宅 | F82: 3 | G82: 4 | H82: 電気温水器＋IH | I82: 120.08 | J82: 条件指定モデル | K82: 12,718 | L82: 1,059.8 | M82: 32,855 | N82: 12,718 | O82: 1,674 | P82: 1,458 | Q82: 1,393 | R82: 1,023 | S82: 865 | T82: 704 | U82: 700 | V82: 688 | W82: 664 | X82: 866 | Y82: 1,159 | Z82: 1,524 | AA82: 51,894 | AB82: 45,198 | AC82: 43,183 | AD82: 31,713 | AE82: 26,815 | AF82: 21,824 | AG82: 21,700 | AH82: 21,328 | AI82: 20,584 | AJ82: 26,846 | AK82: 35,929 | AL82: 47,244
A83: P01-1-3-4-06 | B83: 北海道 | C83: 札幌市 | D83: 2 | E83: 戸建住宅 | F83: 3 | G83: 4 | H83: ハイブリッド＋ガス調理 | I83: 120.08 | J83: 条件指定モデル | K83: 7,027 | L83: 585.6 | M83: 18,153 | N83: 7,027 | O83: 1,095 | P83: 935 | Q83: 819 | R83: 532 | S83: 406 | T83: 283 | U83: 298 | V83: 322 | W83: 282 | X83: 415 | Y83: 661 | Z83: 979 | AA83: 33,945 | AB83: 28,985 | AC83: 25,389 | AD83: 16,492 | AE83: 12,586 | AF83: 8,773 | AG83: 9,238 | AH83: 9,982 | AI83: 8,742 | AJ83: 12,865 | AK83: 20,491 | AL83: 30,349
A84: P01-1-3-4-07 | B84: 北海道 | C84: 札幌市 | D84: 2 | E84: 戸建住宅 | F84: 3 | G84: 4 | H84: ハイブリッド＋IH | I84: 120.08 | J84: 条件指定モデル | K84: 7,254 | L84: 604.5 | M84: 18,740 | N84: 7,254 | O84: 1,120 | P84: 959 | Q84: 842 | R84: 553 | S84: 426 | T84: 301 | U84: 313 | V84: 336 | W84: 295 | X84: 430 | Y84: 679 | Z84: 1,000 | AA84: 34,720 | AB84: 29,729 | AC84: 26,102 | AD84: 17,143 | AE84: 13,206 | AF84: 9,331 | AG84: 9,703 | AH84: 10,416 | AI84: 9,145 | AJ84: 13,330 | AK84: 21,049 | AL84: 31,000
A85: P01-1-3-4-08 | B85: 北海道 | C85: 札幌市 | D85: 2 | E85: 戸建住宅 | F85: 3 | G85: 4 | H85: エネファーム＋ガス調理 | I85: 120.08 | J85: 発電自家消費量の入力待ち | N85: 6,038
A86: P01-1-3-4-09 | B86: 北海道 | C86: 札幌市 | D86: 2 | E86: 戸建住宅 | F86: 3 | G86: 4 | H86: エネファーム＋IH | I86: 120.08 | J86: 発電自家消費量の入力待ち | N86: 6,266
A87: P01-1-3-5-01 | B87: 北海道 | C87: 札幌市 | D87: 2 | E87: 戸建住宅 | F87: 3 | G87: 5 | H87: ガス給湯＋ガス調理 | I87: 120.08 | J87: 条件指定モデル | K87: 5,742 | L87: 478.5 | M87: 14,834 | N87: 5,742 | O87: 903 | P87: 770 | Q87: 661 | R87: 422 | S87: 325 | T87: 222 | U87: 248 | V87: 281 | W87: 226 | X87: 333 | Y87: 538 | Z87: 813 | AA87: 27,993 | AB87: 23,870 | AC87: 20,491 | AD87: 13,082 | AE87: 10,075 | AF87: 6,882 | AG87: 7,688 | AH87: 8,711 | AI87: 7,006 | AJ87: 10,323 | AK87: 16,678 | AL87: 25,203
A88: P01-1-3-5-02 | B88: 北海道 | C88: 札幌市 | D88: 2 | E88: 戸建住宅 | F88: 3 | G88: 5 | H88: ガス給湯＋IH | I88: 120.08 | J88: 条件指定モデル | K88: 5,969 | L88: 497.4 | M88: 15,420 | N88: 5,969 | O88: 927 | P88: 793 | Q88: 684 | R88: 444 | S88: 345 | T88: 239 | U88: 264 | V88: 295 | W88: 240 | X88: 348 | Y88: 556 | Z88: 834 | AA88: 28,737 | AB88: 24,583 | AC88: 21,204 | AD88: 13,764 | AE88: 10,695 | AF88: 7,409 | AG88: 8,184 | AH88: 9,145 | AI88: 7,440 | AJ88: 10,788 | AK88: 17,236 | AL88: 25,854
A89: P01-1-3-5-03 | B89: 北海道 | C89: 札幌市 | D89: 2 | E89: 戸建住宅 | F89: 3 | G89: 5 | H89: エコキュート＋IH | I89: 120.08 | J89: 条件指定モデル | K89: 8,282 | L89: 690.2 | M89: 21,395 | N89: 8,282 | O89: 1,249 | P89: 1,085 | Q89: 985 | R89: 637 | S89: 491 | T89: 362 | U89: 367 | V89: 384 | W89: 348 | X89: 492 | Y89: 767 | Z89: 1,115 | AA89: 38,719 | AB89: 33,635 | AC89: 30,535 | AD89: 19,747 | AE89: 15,221 | AF89: 11,222 | AG89: 11,377 | AH89: 11,904 | AI89: 10,788 | AJ89: 15,252 | AK89: 23,777 | AL89: 34,565
A90: P01-1-3-5-04 | B90: 北海道 | C90: 札幌市 | D90: 2 | E90: 戸建住宅 | F90: 3 | G90: 5 | H90: エコキュート＋ガス調理 | I90: 120.08 | J90: 条件指定モデル | K90: 8,054 | L90: 671.2 | M90: 20,806 | N90: 8,054 | O90: 1,224 | P90: 1,061 | Q90: 962 | R90: 615 | S90: 471 | T90: 344 | U90: 351 | V90: 371 | W90: 334 | X90: 478 | Y90: 749 | Z90: 1,094 | AA90: 37,944 | AB90: 32,891 | AC90: 29,822 | AD90: 19,065 | AE90: 14,601 | AF90: 10,664 | AG90: 10,881 | AH90: 11,501 | AI90: 10,354 | AJ90: 14,818 | AK90: 23,219 | AL90: 33,914
A91: P01-1-3-5-05 | B91: 北海道 | C91: 札幌市 | D91: 2 | E91: 戸建住宅 | F91: 3 | G91: 5 | H91: 電気温水器＋IH | I91: 120.08 | J91: 条件指定モデル | K91: 12,422 | L91: 1,035.2 | M91: 32,090 | N91: 12,422 | O91: 1,606 | P91: 1,404 | Q91: 1,350 | R91: 997 | S91: 856 | T91: 704 | U91: 701 | V91: 691 | W91: 663 | X91: 856 | Y91: 1,125 | Z91: 1,469 | AA91: 49,786 | AB91: 43,524 | AC91: 41,850 | AD91: 30,907 | AE91: 26,536 | AF91: 21,824 | AG91: 21,731 | AH91: 21,421 | AI91: 20,553 | AJ91: 26,536 | AK91: 34,875 | AL91: 45,539
A92: P01-1-3-5-06 | B92: 北海道 | C92: 札幌市 | D92: 2 | E92: 戸建住宅 | F92: 3 | G92: 5 | H92: ハイブリッド＋ガス調理 | I92: 120.08 | J92: 条件指定モデル | K92: 6,734 | L92: 561.2 | M92: 17,396 | N92: 6,734 | O92: 1,028 | P92: 881 | Q92: 776 | R92: 506 | S92: 397 | T92: 283 | U92: 299 | V92: 325 | W92: 281 | X92: 405 | Y92: 628 | Z92: 925 | AA92: 31,868 | AB92: 27,311 | AC92: 24,056 | AD92: 15,686 | AE92: 12,307 | AF92: 8,773 | AG92: 9,269 | AH92: 10,075 | AI92: 8,711 | AJ92: 12,555 | AK92: 19,468 | AL92: 28,675
A93: P01-1-3-5-07 | B93: 北海道 | C93: 札幌市 | D93: 2 | E93: 戸建住宅 | F93: 3 | G93: 5 | H93: ハイブリッド＋IH | I93: 120.08 | J93: 条件指定モデル | K93: 6,959 | L93: 579.9 | M93: 17,977 | N93: 6,959 | O93: 1,052 | P93: 905 | Q93: 798 | R93: 528 | S93: 417 | T93: 300 | U93: 315 | V93: 339 | W93: 294 | X93: 419 | Y93: 646 | Z93: 946 | AA93: 32,612 | AB93: 28,055 | AC93: 24,738 | AD93: 16,368 | AE93: 12,927 | AF93: 9,300 | AG93: 9,765 | AH93: 10,509 | AI93: 9,114 | AJ93: 12,989 | AK93: 20,026 | AL93: 29,326
A94: P01-1-3-5-08 | B94: 北海道 | C94: 札幌市 | D94: 2 | E94: 戸建住宅 | F94: 3 | G94: 5 | H94: エネファーム＋ガス調理 | I94: 120.08 | J94: 発電自家消費量の入力待ち | N94: 5,742
A95: P01-1-3-5-09 | B95: 北海道 | C95: 札幌市 | D95: 2 | E95: 戸建住宅 | F95: 3 | G95: 5 | H95: エネファーム＋IH | I95: 120.08 | J95: 発電自家消費量の入力待ち | N95: 5,969
A96: P01-1-3-6-01 | B96: 北海道 | C96: 札幌市 | D96: 2 | E96: 戸建住宅 | F96: 3 | G96: 6 | H96: ガス給湯＋ガス調理 | I96: 120.08 | J96: 条件指定モデル | K96: 5,105 | L96: 425.4 | M96: 13,188 | N96: 5,105 | O96: 778 | P96: 666 | Q96: 572 | R96: 365 | S96: 285 | T96: 217 | U96: 251 | V96: 287 | W96: 220 | X96: 290 | Y96: 469 | Z96: 705 | AA96: 24,118 | AB96: 20,646 | AC96: 17,732 | AD96: 11,315 | AE96: 8,835 | AF96: 6,727 | AG96: 7,781 | AH96: 8,897 | AI96: 6,820 | AJ96: 8,990 | AK96: 14,539 | AL96: 21,855
A97: P01-1-3-6-02 | B97: 北海道 | C97: 札幌市 | D97: 2 | E97: 戸建住宅 | F97: 3 | G97: 6 | H97: ガス給湯＋IH | I97: 120.08 | J97: 条件指定モデル | K97: 5,331 | L97: 444.2 | M97: 13,772 | N97: 5,331 | O97: 803 | P97: 689 | Q97: 594 | R97: 386 | S97: 305 | T97: 235 | U97: 266 | V97: 301 | W97: 234 | X97: 305 | Y97: 487 | Z97: 726 | AA97: 24,893 | AB97: 21,359 | AC97: 18,414 | AD97: 11,966 | AE97: 9,455 | AF97: 7,285 | AG97: 8,246 | AH97: 9,331 | AI97: 7,254 | AJ97: 9,455 | AK97: 15,097 | AL97: 22,506
A98: P01-1-3-6-03 | B98: 北海道 | C98: 札幌市 | D98: 2 | E98: 戸建住宅 | F98: 3 | G98: 6 | H98: エコキュート＋IH | I98: 120.08 | J98: 条件指定モデル | K98: 7,645 | L98: 637.1 | M98: 19,750 | N98: 7,645 | O98: 1,125 | P98: 981 | Q98: 896 | R98: 579 | S98: 451 | T98: 357 | U98: 369 | V98: 391 | W98: 341 | X98: 450 | Y98: 698 | Z98: 1,007 | AA98: 34,875 | AB98: 30,411 | AC98: 27,776 | AD98: 17,949 | AE98: 13,981 | AF98: 11,067 | AG98: 11,439 | AH98: 12,121 | AI98: 10,571 | AJ98: 13,950 | AK98: 21,638 | AL98: 31,217
A99: P01-1-3-6-04 | B99: 北海道 | C99: 札幌市 | D99: 2 | E99: 戸建住宅 | F99: 3 | G99: 6 | H99: エコキュート＋ガス調理 | I99: 120.08 | J99: 条件指定モデル | K99: 7,418 | L99: 618.2 | M99: 19,163 | N99: 7,418 | O99: 1,100 | P99: 957 | Q99: 873 | R99: 557 | S99: 431 | T99: 340 | U99: 354 | V99: 377 | W99: 328 | X99: 435 | Y99: 680 | Z99: 986 | AA99: 34,100 | AB99: 29,667 | AC99: 27,063 | AD99: 17,267 | AE99: 13,361 | AF99: 10,540 | AG99: 10,974 | AH99: 11,687 | AI99: 10,168 | AJ99: 13,485 | AK99: 21,080 | AL99: 30,566
A100: P01-1-3-6-05 | B100: 北海道 | C100: 札幌市 | D100: 2 | E100: 戸建住宅 | F100: 3 | G100: 6 | H100: 電気温水器＋IH | I100: 120.08 | J100: 条件指定モデル | K100: 11,785 | L100: 982.1 | M100: 30,445 | N100: 11,785 | O100: 1,482 | P100: 1,300 | Q100: 1,260 | R100: 940 | S100: 816 | T100: 699 | U100: 704 | V100: 697 | W100: 657 | X100: 813 | Y100: 1,056 | Z100: 1,361 | AA100: 45,942 | AB100: 40,300 | AC100: 39,060 | AD100: 29,140 | AE100: 25,296 | AF100: 21,669 | AG100: 21,824 | AH100: 21,607 | AI100: 20,367 | AJ100: 25,203 | AK100: 32,736 | AL100: 42,191
A101: P01-1-3-6-06 | B101: 北海道 | C101: 札幌市 | D101: 2 | E101: 戸建住宅 | F101: 3 | G101: 6 | H101: ハイブリッド＋ガス調理 | I101: 120.08 | J101: 条件指定モデル | K101: 6,094 | L101: 507.8 | M101: 15,743 | N101: 6,094 | O101: 903 | P101: 777 | Q101: 686 | R101: 448 | S101: 357 | T101: 278 | U101: 302 | V101: 331 | W101: 275 | X101: 362 | Y101: 559 | Z101: 816 | AA101: 27,993 | AB101: 24,087 | AC101: 21,266 | AD101: 13,888 | AE101: 11,067 | AF101: 8,618 | AG101: 9,362 | AH101: 10,261 | AI101: 8,525 | AJ101: 11,222 | AK101: 17,329 | AL101: 25,296
A102: P01-1-3-6-07 | B102: 北海道 | C102: 札幌市 | D102: 2 | E102: 戸建住宅 | F102: 3 | G102: 6 | H102: ハイブリッド＋IH | I102: 120.08 | J102: 条件指定モデル | K102: 6,321 | L102: 526.8 | M102: 16,329 | N102: 6,321 | O102: 928 | P102: 801 | Q102: 709 | R102: 470 | S102: 377 | T102: 296 | U102: 317 | V102: 345 | W102: 288 | X102: 376 | Y102: 577 | Z102: 837 | AA102: 28,768 | AB102: 24,831 | AC102: 21,979 | AD102: 14,570 | AE102: 11,687 | AF102: 9,176 | AG102: 9,827 | AH102: 10,695 | AI102: 8,928 | AJ102: 11,656 | AK102: 17,887 | AL102: 25,947
A103: P01-1-3-6-08 | B103: 北海道 | C103: 札幌市 | D103: 2 | E103: 戸建住宅 | F103: 3 | G103: 6 | H103: エネファーム＋ガス調理 | I103: 120.08 | J103: 発電自家消費量の入力待ち | N103: 5,105
A104: P01-1-3-6-09 | B104: 北海道 | C104: 札幌市 | D104: 2 | E104: 戸建住宅 | F104: 3 | G104: 6 | H104: エネファーム＋IH | I104: 120.08 | J104: 発電自家消費量の入力待ち | N104: 5,331
A105: P01-1-3-7-01 | B105: 北海道 | C105: 札幌市 | D105: 2 | E105: 戸建住宅 | F105: 3 | G105: 7 | H105: ガス給湯＋ガス調理 | I105: 120.08 | J105: 条件指定モデル | K105: 4,690 | L105: 390.8 | M105: 12,116 | N105: 4,690 | O105: 701 | P105: 600 | Q105: 510 | R105: 326 | S105: 255 | T105: 215 | U105: 252 | V105: 292 | W105: 216 | X105: 263 | Y105: 425 | Z105: 635 | AA105: 21,731 | AB105: 18,600 | AC105: 15,810 | AD105: 10,106 | AE105: 7,905 | AF105: 6,665 | AG105: 7,812 | AH105: 9,052 | AI105: 6,696 | AJ105: 8,153 | AK105: 13,175 | AL105: 19,685
A106: P01-1-3-7-02 | B106: 北海道 | C106: 札幌市 | D106: 2 | E106: 戸建住宅 | F106: 3 | G106: 7 | H106: ガス給湯＋IH | I106: 120.08 | J106: 条件指定モデル | K106: 4,918 | L106: 409.8 | M106: 12,705 | N106: 4,918 | O106: 725 | P106: 624 | Q106: 533 | R106: 348 | S106: 275 | T106: 233 | U106: 268 | V106: 305 | W106: 230 | X106: 278 | Y106: 443 | Z106: 656 | AA106: 22,475 | AB106: 19,344 | AC106: 16,523 | AD106: 10,788 | AE106: 8,525 | AF106: 7,223 | AG106: 8,308 | AH106: 9,455 | AI106: 7,130 | AJ106: 8,618 | AK106: 13,733 | AL106: 20,336
A107: P01-1-3-7-03 | B107: 北海道 | C107: 札幌市 | D107: 2 | E107: 戸建住宅 | F107: 3 | G107: 7 | H107: エコキュート＋IH | I107: 120.08 | J107: 条件指定モデル | K107: 7,229 | L107: 602.4 | M107: 18,675 | N107: 7,229 | O107: 1,047 | P107: 916 | Q107: 834 | R107: 540 | S107: 421 | T107: 355 | U107: 371 | V107: 395 | W107: 337 | X107: 422 | Y107: 654 | Z107: 937 | AA107: 32,457 | AB107: 28,396 | AC107: 25,854 | AD107: 16,740 | AE107: 13,051 | AF107: 11,005 | AG107: 11,501 | AH107: 12,245 | AI107: 10,447 | AJ107: 13,082 | AK107: 20,274 | AL107: 29,047
A108: P01-1-3-7-04 | B108: 北海道 | C108: 札幌市 | D108: 2 | E108: 戸建住宅 | F108: 3 | G108: 7 | H108: エコキュート＋ガス調理 | I108: 120.08 | J108: 条件指定モデル | K108: 7,002 | L108: 583.5 | M108: 18,089 | N108: 7,002 | O108: 1,022 | P108: 892 | Q108: 811 | R108: 519 | S108: 401 | T108: 337 | U108: 355 | V108: 381 | W108: 324 | X108: 408 | Y108: 636 | Z108: 916 | AA108: 31,682 | AB108: 27,652 | AC108: 25,141 | AD108: 16,089 | AE108: 12,431 | AF108: 10,447 | AG108: 11,005 | AH108: 11,811 | AI108: 10,044 | AJ108: 12,648 | AK108: 19,716 | AL108: 28,396
A109: P01-1-3-7-05 | B109: 北海道 | C109: 札幌市 | D109: 2 | E109: 戸建住宅 | F109: 3 | G109: 7 | H109: 電気温水器＋IH | I109: 120.08 | J109: 条件指定モデル | K109: 11,370 | L109: 947.5 | M109: 29,373 | N109: 11,370 | O109: 1,404 | P109: 1,234 | Q109: 1,199 | R109: 901 | S109: 787 | T109: 697 | U109: 705 | V109: 701 | W109: 653 | X109: 786 | Y109: 1,012 | Z109: 1,291 | AA109: 43,524 | AB109: 38,254 | AC109: 37,169 | AD109: 27,931 | AE109: 24,397 | AF109: 21,607 | AG109: 21,855 | AH109: 21,731 | AI109: 20,243 | AJ109: 24,366 | AK109: 31,372 | AL109: 40,021
A110: P01-1-3-7-06 | B110: 北海道 | C110: 札幌市 | D110: 2 | E110: 戸建住宅 | F110: 3 | G110: 7 | H110: ハイブリッド＋ガス調理 | I110: 120.08 | J110: 条件指定モデル | K110: 5,680 | L110: 473.3 | M110: 14,673 | N110: 5,680 | O110: 826 | P110: 712 | Q110: 625 | R110: 409 | S110: 327 | T110: 276 | U110: 304 | V110: 336 | W110: 270 | X110: 335 | Y110: 514 | Z110: 746 | AA110: 25,606 | AB110: 22,072 | AC110: 19,375 | AD110: 12,679 | AE110: 10,137 | AF110: 8,556 | AG110: 9,424 | AH110: 10,416 | AI110: 8,370 | AJ110: 10,385 | AK110: 15,934 | AL110: 23,126
A111: P01-1-3-7-07 | B111: 北海道 | C111: 札幌市 | D111: 2 | E111: 戸建住宅 | F111: 3 | G111: 7 | H111: ハイブリッド＋IH | I111: 120.08 | J111: 条件指定モデル | K111: 5,906 | L111: 492.2 | M111: 15,257 | N111: 5,906 | O111: 850 | P111: 735 | Q111: 648 | R111: 431 | S111: 347 | T111: 294 | U111: 319 | V111: 349 | W111: 284 | X111: 349 | Y111: 533 | Z111: 767 | AA111: 26,350 | AB111: 22,785 | AC111: 20,088 | AD111: 13,361 | AE111: 10,757 | AF111: 9,114 | AG111: 9,889 | AH111: 10,819 | AI111: 8,804 | AJ111: 10,819 | AK111: 16,523 | AL111: 23,777
A112: P01-1-3-7-08 | B112: 北海道 | C112: 札幌市 | D112: 2 | E112: 戸建住宅 | F112: 3 | G112: 7 | H112: エネファーム＋ガス調理 | I112: 120.08 | J112: 発電自家消費量の入力待ち | N112: 4,690
A113: P01-1-3-7-09 | B113: 北海道 | C113: 札幌市 | D113: 2 | E113: 戸建住宅 | F113: 3 | G113: 7 | H113: エネファーム＋IH | I113: 120.08 | J113: 発電自家消費量の入力待ち | N113: 4,918
A114: P01-1-4-4-01 | B114: 北海道 | C114: 札幌市 | D114: 2 | E114: 戸建住宅 | F114: 4 | G114: 4 | H114: ガス給湯＋ガス調理 | I114: 120.08 | J114: 条件指定モデル | K114: 6,264 | L114: 522.0 | M114: 16,182 | N114: 6,264 | O114: 989 | P114: 841 | Q114: 723 | R114: 467 | S114: 353 | T114: 240 | U114: 267 | V114: 297 | W114: 246 | X114: 363 | Y114: 591 | Z114: 887 | AA114: 30,659 | AB114: 26,071 | AC114: 22,413 | AD114: 14,477 | AE114: 10,943 | AF114: 7,440 | AG114: 8,277 | AH114: 9,207 | AI114: 7,626 | AJ114: 11,253 | AK114: 18,321 | AL114: 27,497
A115: P01-1-4-4-02 | B115: 北海道 | C115: 札幌市 | D115: 2 | E115: 戸建住宅 | F115: 4 | G115: 4 | H115: ガス給湯＋IH | I115: 120.08 | J115: 条件指定モデル | K115: 6,544 | L115: 545.3 | M115: 16,905 | N115: 6,544 | O115: 1,020 | P115: 870 | Q115: 751 | R115: 493 | S115: 378 | T115: 262 | U115: 286 | V115: 314 | W115: 263 | X115: 381 | Y115: 613 | Z115: 913 | AA115: 31,620 | AB115: 26,970 | AC115: 23,281 | AD115: 15,283 | AE115: 11,718 | AF115: 8,122 | AG115: 8,866 | AH115: 9,734 | AI115: 8,153 | AJ115: 11,811 | AK115: 19,003 | AL115: 28,303
A116: P01-1-4-4-03 | B116: 北海道 | C116: 札幌市 | D116: 2 | E116: 戸建住宅 | F116: 4 | G116: 4 | H116: エコキュート＋IH | I116: 120.08 | J116: 条件指定モデル | K116: 9,061 | L116: 755.1 | M116: 23,408 | N116: 9,061 | O116: 1,369 | P116: 1,187 | Q116: 1,078 | R116: 704 | S116: 537 | T116: 396 | U116: 398 | V116: 412 | W116: 380 | X116: 539 | Y116: 842 | Z116: 1,219 | AA116: 42,439 | AB116: 36,797 | AC116: 33,418 | AD116: 21,824 | AE116: 16,647 | AF116: 12,276 | AG116: 12,338 | AH116: 12,772 | AI116: 11,780 | AJ116: 16,709 | AK116: 26,102 | AL116: 37,789
A117: P01-1-4-4-04 | B117: 北海道 | C117: 札幌市 | D117: 2 | E117: 戸建住宅 | F117: 4 | G117: 4 | H117: エコキュート＋ガス調理 | I117: 120.08 | J117: 条件指定モデル | K117: 8,783 | L117: 731.9 | M117: 22,689 | N117: 8,783 | O117: 1,339 | P117: 1,158 | Q117: 1,050 | R117: 677 | S117: 513 | T117: 374 | U117: 379 | V117: 395 | W117: 364 | X117: 521 | Y117: 820 | Z117: 1,193 | AA117: 41,509 | AB117: 35,898 | AC117: 32,550 | AD117: 20,987 | AE117: 15,903 | AF117: 11,594 | AG117: 11,749 | AH117: 12,245 | AI117: 11,284 | AJ117: 16,151 | AK117: 25,420 | AL117: 36,983
A118: P01-1-4-4-05 | B118: 北海道 | C118: 札幌市 | D118: 2 | E118: 戸建住宅 | F118: 4 | G118: 4 | H118: 電気温水器＋IH | I118: 120.08 | J118: 条件指定モデル | K118: 13,604 | L118: 1,133.7 | M118: 35,144 | N118: 13,604 | O118: 1,764 | P118: 1,539 | Q118: 1,481 | R118: 1,100 | S118: 937 | T118: 770 | U118: 762 | V118: 745 | W118: 725 | X118: 936 | Y118: 1,236 | Z118: 1,609 | AA118: 54,684 | AB118: 47,709 | AC118: 45,911 | AD118: 34,100 | AE118: 29,047 | AF118: 23,870 | AG118: 23,622 | AH118: 23,095 | AI118: 22,475 | AJ118: 29,016 | AK118: 38,316 | AL118: 49,879
A119: P01-1-4-4-06 | B119: 北海道 | C119: 札幌市 | D119: 2 | E119: 戸建住宅 | F119: 4 | G119: 4 | H119: ハイブリッド＋ガス調理 | I119: 120.08 | J119: 条件指定モデル | K119: 7,313 | L119: 609.4 | M119: 18,892 | N119: 7,313 | O119: 1,121 | P119: 959 | Q119: 845 | R119: 555 | S119: 429 | T119: 305 | U119: 322 | V119: 344 | W119: 304 | X119: 439 | Y119: 685 | Z119: 1,005 | AA119: 34,751 | AB119: 29,729 | AC119: 26,195 | AD119: 17,205 | AE119: 13,299 | AF119: 9,455 | AG119: 9,982 | AH119: 10,664 | AI119: 9,424 | AJ119: 13,609 | AK119: 21,235 | AL119: 31,155
A120: P01-1-4-4-07 | B120: 北海道 | C120: 札幌市 | D120: 2 | E120: 戸建住宅 | F120: 4 | G120: 4 | H120: ハイブリッド＋IH | I120: 120.08 | J120: 条件指定モデル | K120: 7,592 | L120: 632.7 | M120: 19,613 | N120: 7,592 | O120: 1,151 | P120: 988 | Q120: 873 | R120: 582 | S120: 454 | T120: 327 | U120: 341 | V120: 361 | W120: 320 | X120: 457 | Y120: 708 | Z120: 1,030 | AA120: 35,681 | AB120: 30,628 | AC120: 27,063 | AD120: 18,042 | AE120: 14,074 | AF120: 10,137 | AG120: 10,571 | AH120: 11,191 | AI120: 9,920 | AJ120: 14,167 | AK120: 21,948 | AL120: 31,930
A121: P01-1-4-4-08 | B121: 北海道 | C121: 札幌市 | D121: 2 | E121: 戸建住宅 | F121: 4 | G121: 4 | H121: エネファーム＋ガス調理 | I121: 120.08 | J121: 発電自家消費量の入力待ち | N121: 6,264
A122: P01-1-4-4-09 | B122: 北海道 | C122: 札幌市 | D122: 2 | E122: 戸建住宅 | F122: 4 | G122: 4 | H122: エネファーム＋IH | I122: 120.08 | J122: 発電自家消費量の入力待ち | N122: 6,544
A123: P01-1-4-5-01 | B123: 北海道 | C123: 札幌市 | D123: 2 | E123: 戸建住宅 | F123: 4 | G123: 5 | H123: ガス給湯＋ガス調理 | I123: 120.08 | J123: 条件指定モデル | K123: 5,969 | L123: 497.4 | M123: 15,420 | N123: 5,969 | O123: 922 | P123: 787 | Q123: 680 | R123: 441 | S123: 344 | T123: 240 | U123: 268 | V123: 300 | W123: 245 | X123: 353 | Y123: 557 | Z123: 832 | AA123: 28,582 | AB123: 24,397 | AC123: 21,080 | AD123: 13,671 | AE123: 10,664 | AF123: 7,440 | AG123: 8,308 | AH123: 9,300 | AI123: 7,595 | AJ123: 10,943 | AK123: 17,267 | AL123: 25,792
A124: P01-1-4-5-02 | B124: 北海道 | C124: 札幌市 | D124: 2 | E124: 戸建住宅 | F124: 4 | G124: 5 | H124: ガス給湯＋IH | I124: 120.08 | J124: 条件指定モデル | K124: 6,249 | L124: 520.8 | M124: 16,143 | N124: 6,249 | O124: 952 | P124: 816 | Q124: 708 | R124: 468 | S124: 369 | T124: 262 | U124: 287 | V124: 317 | W124: 262 | X124: 371 | Y124: 579 | Z124: 858 | AA124: 29,512 | AB124: 25,296 | AC124: 21,948 | AD124: 14,508 | AE124: 11,439 | AF124: 8,122 | AG124: 8,897 | AH124: 9,827 | AI124: 8,122 | AJ124: 11,501 | AK124: 17,949 | AL124: 26,598
A125: P01-1-4-5-03 | B125: 北海道 | C125: 札幌市 | D125: 2 | E125: 戸建住宅 | F125: 4 | G125: 5 | H125: エコキュート＋IH | I125: 120.08 | J125: 条件指定モデル | K125: 8,766 | L125: 730.5 | M125: 22,646 | N125: 8,766 | O125: 1,302 | P125: 1,133 | Q125: 1,035 | R125: 678 | S125: 528 | T125: 395 | U125: 400 | V125: 415 | W125: 379 | X125: 528 | Y125: 809 | Z125: 1,164 | AA125: 40,362 | AB125: 35,123 | AC125: 32,085 | AD125: 21,018 | AE125: 16,368 | AF125: 12,245 | AG125: 12,400 | AH125: 12,865 | AI125: 11,749 | AJ125: 16,368 | AK125: 25,079 | AL125: 36,084
A126: P01-1-4-5-04 | B126: 北海道 | C126: 札幌市 | D126: 2 | E126: 戸建住宅 | F126: 4 | G126: 5 | H126: エコキュート＋ガス調理 | I126: 120.08 | J126: 条件指定モデル | K126: 8,488 | L126: 707.3 | M126: 21,927 | N126: 8,488 | O126: 1,271 | P126: 1,104 | Q126: 1,007 | R126: 651 | S126: 504 | T126: 374 | U126: 381 | V126: 398 | W126: 363 | X126: 510 | Y126: 787 | Z126: 1,138 | AA126: 39,401 | AB126: 34,224 | AC126: 31,217 | AD126: 20,181 | AE126: 15,624 | AF126: 11,594 | AG126: 11,811 | AH126: 12,338 | AI126: 11,253 | AJ126: 15,810 | AK126: 24,397 | AL126: 35,278
A127: P01-1-4-5-05 | B127: 北海道 | C127: 札幌市 | D127: 2 | E127: 戸建住宅 | F127: 4 | G127: 5 | H127: 電気温水器＋IH | I127: 120.08 | J127: 条件指定モデル | K127: 13,308 | L127: 1,109.0 | M127: 34,379 | N127: 13,308 | O127: 1,696 | P127: 1,485 | Q127: 1,438 | R127: 1,074 | S127: 928 | T127: 769 | U127: 764 | V127: 748 | W127: 723 | X127: 926 | Y127: 1,203 | Z127: 1,554 | AA127: 52,576 | AB127: 46,035 | AC127: 44,578 | AD127: 33,294 | AE127: 28,768 | AF127: 23,839 | AG127: 23,684 | AH127: 23,188 | AI127: 22,413 | AJ127: 28,706 | AK127: 37,293 | AL127: 48,174
A128: P01-1-4-5-06 | B128: 北海道 | C128: 札幌市 | D128: 2 | E128: 戸建住宅 | F128: 4 | G128: 5 | H128: ハイブリッド＋ガス調理 | I128: 120.08 | J128: 条件指定モデル | K128: 7,017 | L128: 584.8 | M128: 18,127 | N128: 7,017 | O128: 1,054 | P128: 904 | Q128: 801 | R128: 530 | S128: 420 | T128: 305 | U128: 323 | V128: 347 | W128: 303 | X128: 428 | Y128: 652 | Z128: 950 | AA128: 32,674 | AB128: 28,024 | AC128: 24,831 | AD128: 16,430 | AE128: 13,020 | AF128: 9,455 | AG128: 10,013 | AH128: 10,757 | AI128: 9,393 | AJ128: 13,268 | AK128: 20,212 | AL128: 29,450
A129: P01-1-4-5-07 | B129: 北海道 | C129: 札幌市 | D129: 2 | E129: 戸建住宅 | F129: 4 | G129: 5 | H129: ハイブリッド＋IH | I129: 120.08 | J129: 条件指定モデル | K129: 7,295 | L129: 607.9 | M129: 18,845 | N129: 7,295 | O129: 1,084 | P129: 933 | Q129: 829 | R129: 556 | S129: 445 | T129: 327 | U129: 342 | V129: 364 | W129: 319 | X129: 446 | Y129: 674 | Z129: 976 | AA129: 33,604 | AB129: 28,923 | AC129: 25,699 | AD129: 17,236 | AE129: 13,795 | AF129: 10,137 | AG129: 10,602 | AH129: 11,284 | AI129: 9,889 | AJ129: 13,826 | AK129: 20,894 | AL129: 30,256
A130: P01-1-4-5-08 | B130: 北海道 | C130: 札幌市 | D130: 2 | E130: 戸建住宅 | F130: 4 | G130: 5 | H130: エネファーム＋ガス調理 | I130: 120.08 | J130: 発電自家消費量の入力待ち | N130: 5,969
A131: P01-1-4-5-09 | B131: 北海道 | C131: 札幌市 | D131: 2 | E131: 戸建住宅 | F131: 4 | G131: 5 | H131: エネファーム＋IH | I131: 120.08 | J131: 発電自家消費量の入力待ち | N131: 6,249
A132: P01-1-4-6-01 | B132: 北海道 | C132: 札幌市 | D132: 2 | E132: 戸建住宅 | F132: 4 | G132: 6 | H132: ガス給湯＋ガス調理 | I132: 120.08 | J132: 条件指定モデル | K132: 5,333 | L132: 444.4 | M132: 13,777 | N132: 5,333 | O132: 798 | P132: 683 | Q132: 591 | R132: 383 | S132: 304 | T132: 236 | U132: 271 | V132: 306 | W132: 239 | X132: 310 | Y132: 488 | Z132: 724 | AA132: 24,738 | AB132: 21,173 | AC132: 18,321 | AD132: 11,873 | AE132: 9,424 | AF132: 7,316 | AG132: 8,401 | AH132: 9,486 | AI132: 7,409 | AJ132: 9,610 | AK132: 15,128 | AL132: 22,444
A133: P01-1-4-6-02 | B133: 北海道 | C133: 札幌市 | D133: 2 | E133: 戸建住宅 | F133: 4 | G133: 6 | H133: ガス給湯＋IH | I133: 120.08 | J133: 条件指定モデル | K133: 5,610 | L133: 467.5 | M133: 14,493 | N133: 5,610 | O133: 828 | P133: 712 | Q133: 619 | R133: 410 | S133: 328 | T133: 257 | U133: 290 | V133: 323 | W133: 255 | X133: 328 | Y133: 510 | Z133: 750 | AA133: 25,668 | AB133: 22,072 | AC133: 19,189 | AD133: 12,710 | AE133: 10,168 | AF133: 7,967 | AG133: 8,990 | AH133: 10,013 | AI133: 7,905 | AJ133: 10,168 | AK133: 15,810 | AL133: 23,250
A134: P01-1-4-6-03 | B134: 北海道 | C134: 札幌市 | D134: 2 | E134: 戸建住宅 | F134: 4 | G134: 6 | H134: エコキュート＋IH | I134: 120.08 | J134: 条件指定モデル | K134: 8,128 | L134: 677.3 | M134: 20,997 | N134: 8,128 | O134: 1,177 | P134: 1,029 | Q134: 946 | R134: 620 | S134: 488 | T134: 391 | U134: 402 | V134: 421 | W134: 373 | X134: 485 | Y134: 740 | Z134: 1,056 | AA134: 36,487 | AB134: 31,899 | AC134: 29,326 | AD134: 19,220 | AE134: 15,128 | AF134: 12,121 | AG134: 12,462 | AH134: 13,051 | AI134: 11,563 | AJ134: 15,035 | AK134: 22,940 | AL134: 32,736
A135: P01-1-4-6-04 | B135: 北海道 | C135: 札幌市 | D135: 2 | E135: 戸建住宅 | F135: 4 | G135: 6 | H135: エコキュート＋ガス調理 | I135: 120.08 | J135: 条件指定モデル | K135: 7,850 | L135: 654.2 | M135: 20,279 | N135: 7,850 | O135: 1,147 | P135: 1,000 | Q135: 918 | R135: 593 | S135: 464 | T135: 369 | U135: 383 | V135: 404 | W135: 357 | X135: 467 | Y135: 718 | Z135: 1,030 | AA135: 35,557 | AB135: 31,000 | AC135: 28,458 | AD135: 18,383 | AE135: 14,384 | AF135: 11,439 | AG135: 11,873 | AH135: 12,524 | AI135: 11,067 | AJ135: 14,477 | AK135: 22,258 | AL135: 31,930
A136: P01-1-4-6-05 | B136: 北海道 | C136: 札幌市 | D136: 2 | E136: 戸建住宅 | F136: 4 | G136: 6 | H136: 電気温水器＋IH | I136: 120.08 | J136: 条件指定モデル | K136: 12,670 | L136: 1,055.8 | M136: 32,731 | N136: 12,670 | O136: 1,572 | P136: 1,381 | Q136: 1,348 | R136: 1,016 | S136: 888 | T136: 765 | U136: 766 | V136: 754 | W136: 717 | X136: 883 | Y136: 1,134 | Z136: 1,446 | AA136: 48,732 | AB136: 42,811 | AC136: 41,788 | AD136: 31,496 | AE136: 27,528 | AF136: 23,715 | AG136: 23,746 | AH136: 23,374 | AI136: 22,227 | AJ136: 27,373 | AK136: 35,154 | AL136: 44,826
A137: P01-1-4-6-06 | B137: 北海道 | C137: 札幌市 | D137: 2 | E137: 戸建住宅 | F137: 4 | G137: 6 | H137: ハイブリッド＋ガス調理 | I137: 120.08 | J137: 条件指定モデル | K137: 6,381 | L137: 531.8 | M137: 16,484 | N137: 6,381 | O137: 929 | P137: 800 | Q137: 712 | R137: 472 | S137: 380 | T137: 301 | U137: 326 | V137: 354 | W137: 297 | X137: 385 | Y137: 583 | Z137: 842 | AA137: 28,799 | AB137: 24,800 | AC137: 22,072 | AD137: 14,632 | AE137: 11,780 | AF137: 9,331 | AG137: 10,106 | AH137: 10,974 | AI137: 9,207 | AJ137: 11,935 | AK137: 18,073 | AL137: 26,102
A138: P01-1-4-6-07 | B138: 北海道 | C138: 札幌市 | D138: 2 | E138: 戸建住宅 | F138: 4 | G138: 6 | H138: ハイブリッド＋IH | I138: 120.08 | J138: 条件指定モデル | K138: 6,657 | L138: 554.8 | M138: 17,197 | N138: 6,657 | O138: 960 | P138: 829 | Q138: 740 | R138: 498 | S138: 405 | T138: 322 | U138: 345 | V138: 370 | W138: 313 | X138: 403 | Y138: 605 | Z138: 867 | AA138: 29,760 | AB138: 25,699 | AC138: 22,940 | AD138: 15,438 | AE138: 12,555 | AF138: 9,982 | AG138: 10,695 | AH138: 11,470 | AI138: 9,703 | AJ138: 12,493 | AK138: 18,755 | AL138: 26,877
A139: P01-1-4-6-08 | B139: 北海道 | C139: 札幌市 | D139: 2 | E139: 戸建住宅 | F139: 4 | G139: 6 | H139: エネファーム＋ガス調理 | I139: 120.08 | J139: 発電自家消費量の入力待ち | N139: 5,333
A140: P01-1-4-6-09 | B140: 北海道 | C140: 札幌市 | D140: 2 | E140: 戸建住宅 | F140: 4 | G140: 6 | H140: エネファーム＋IH | I140: 120.08 | J140: 発電自家消費量の入力待ち | N140: 5,610
A141: P01-1-4-7-01 | B141: 北海道 | C141: 札幌市 | D141: 2 | E141: 戸建住宅 | F141: 4 | G141: 7 | H141: ガス給湯＋ガス調理 | I141: 120.08 | J141: 条件指定モデル | K141: 4,917 | L141: 409.8 | M141: 12,702 | N141: 4,917 | O141: 720 | P141: 618 | Q141: 529 | R141: 345 | S141: 274 | T141: 233 | U141: 273 | V141: 310 | W141: 235 | X141: 282 | Y141: 444 | Z141: 654 | AA141: 22,320 | AB141: 19,158 | AC141: 16,399 | AD141: 10,695 | AE141: 8,494 | AF141: 7,223 | AG141: 8,463 | AH141: 9,610 | AI141: 7,285 | AJ141: 8,742 | AK141: 13,764 | AL141: 20,274
A142: P01-1-4-7-02 | B142: 北海道 | C142: 札幌市 | D142: 2 | E142: 戸建住宅 | F142: 4 | G142: 7 | H142: ガス給湯＋IH | I142: 120.08 | J142: 条件指定モデル | K142: 5,194 | L142: 432.8 | M142: 13,418 | N142: 5,194 | O142: 750 | P142: 646 | Q142: 557 | R142: 371 | S142: 299 | T142: 255 | U142: 292 | V142: 327 | W142: 251 | X142: 300 | Y142: 466 | Z142: 680 | AA142: 23,250 | AB142: 20,026 | AC142: 17,267 | AD142: 11,501 | AE142: 9,269 | AF142: 7,905 | AG142: 9,052 | AH142: 10,137 | AI142: 7,781 | AJ142: 9,300 | AK142: 14,446 | AL142: 21,080
A143: P01-1-4-7-03 | B143: 北海道 | C143: 札幌市 | D143: 2 | E143: 戸建住宅 | F143: 4 | G143: 7 | H143: エコキュート＋IH | I143: 120.08 | J143: 条件指定モデル | K143: 7,714 | L143: 642.8 | M143: 19,928 | N143: 7,714 | O143: 1,100 | P143: 963 | Q143: 884 | R143: 582 | S143: 458 | T143: 389 | U143: 404 | V143: 425 | W143: 369 | X143: 458 | Y143: 696 | Z143: 986 | AA143: 34,100 | AB143: 29,853 | AC143: 27,404 | AD143: 18,042 | AE143: 14,198 | AF143: 12,059 | AG143: 12,524 | AH143: 13,175 | AI143: 11,439 | AJ143: 14,198 | AK143: 21,576 | AL143: 30,566
A144: P01-1-4-7-04 | B144: 北海道 | C144: 札幌市 | D144: 2 | E144: 戸建住宅 | F144: 4 | G144: 7 | H144: エコキュート＋ガス調理 | I144: 120.08 | J144: 条件指定モデル | K144: 7,435 | L144: 619.6 | M144: 19,207 | N144: 7,435 | O144: 1,069 | P144: 935 | Q144: 856 | R144: 555 | S144: 434 | T144: 367 | U144: 385 | V144: 408 | W144: 352 | X144: 440 | Y144: 674 | Z144: 960 | AA144: 33,139 | AB144: 28,985 | AC144: 26,536 | AD144: 17,205 | AE144: 13,454 | AF144: 11,377 | AG144: 11,935 | AH144: 12,648 | AI144: 10,912 | AJ144: 13,640 | AK144: 20,894 | AL144: 29,760
A145: P01-1-4-7-05 | B145: 北海道 | C145: 札幌市 | D145: 2 | E145: 戸建住宅 | F145: 4 | G145: 7 | H145: 電気温水器＋IH | I145: 120.08 | J145: 条件指定モデル | K145: 12,257 | L145: 1,021.4 | M145: 31,664 | N145: 12,257 | O145: 1,494 | P145: 1,316 | Q145: 1,287 | R145: 978 | S145: 858 | T145: 763 | U145: 768 | V145: 759 | W145: 713 | X145: 856 | Y145: 1,089 | Z145: 1,376 | AA145: 46,314 | AB145: 40,796 | AC145: 39,897 | AD145: 30,318 | AE145: 26,598 | AF145: 23,653 | AG145: 23,808 | AH145: 23,529 | AI145: 22,103 | AJ145: 26,536 | AK145: 33,759 | AL145: 42,656
A146: P01-1-4-7-06 | B146: 北海道 | C146: 札幌市 | D146: 2 | E146: 戸建住宅 | F146: 4 | G146: 7 | H146: ハイブリッド＋ガス調理 | I146: 120.08 | J146: 条件指定モデル | K146: 5,967 | L146: 497.2 | M146: 15,415 | N146: 5,967 | O146: 852 | P146: 735 | Q146: 651 | R146: 433 | S146: 351 | T146: 298 | U146: 327 | V146: 358 | W146: 293 | X146: 358 | Y146: 539 | Z146: 772 | AA146: 26,412 | AB146: 22,785 | AC146: 20,181 | AD146: 13,423 | AE146: 10,881 | AF146: 9,238 | AG146: 10,137 | AH146: 11,098 | AI146: 9,083 | AJ146: 11,098 | AK146: 16,709 | AL146: 23,932
A147: P01-1-4-7-07 | B147: 北海道 | C147: 札幌市 | D147: 2 | E147: 戸建住宅 | F147: 4 | G147: 7 | H147: ハイブリッド＋IH | I147: 120.08 | J147: 条件指定モデル | K147: 6,243 | L147: 520.2 | M147: 16,128 | N147: 6,243 | O147: 882 | P147: 764 | Q147: 679 | R147: 460 | S147: 375 | T147: 320 | U147: 346 | V147: 374 | W147: 309 | X147: 376 | Y147: 561 | Z147: 797 | AA147: 27,342 | AB147: 23,684 | AC147: 21,049 | AD147: 14,260 | AE147: 11,625 | AF147: 9,920 | AG147: 10,726 | AH147: 11,594 | AI147: 9,579 | AJ147: 11,656 | AK147: 17,391 | AL147: 24,707
A148: P01-1-4-7-08 | B148: 北海道 | C148: 札幌市 | D148: 2 | E148: 戸建住宅 | F148: 4 | G148: 7 | H148: エネファーム＋ガス調理 | I148: 120.08 | J148: 発電自家消費量の入力待ち | N148: 4,917
A149: P01-1-4-7-09 | B149: 北海道 | C149: 札幌市 | D149: 2 | E149: 戸建住宅 | F149: 4 | G149: 7 | H149: エネファーム＋IH | I149: 120.08 | J149: 発電自家消費量の入力待ち | N149: 5,194
A150: P01-1-5-4-01 | B150: 北海道 | C150: 札幌市 | D150: 2 | E150: 戸建住宅 | F150: 5 | G150: 4 | H150: ガス給湯＋ガス調理 | I150: 120.08 | J150: 5・6人参考拡張 | K150: 6,524 | L150: 543.7 | M150: 16,854 | N150: 6,524 | O150: 1,012 | P150: 861 | Q150: 745 | R150: 488 | S150: 375 | T150: 262 | U150: 289 | V150: 319 | W150: 267 | X150: 385 | Y150: 612 | Z150: 909 | AA150: 31,372 | AB150: 26,691 | AC150: 23,095 | AD150: 15,128 | AE150: 11,625 | AF150: 8,122 | AG150: 8,959 | AH150: 9,889 | AI150: 8,277 | AJ150: 11,935 | AK150: 18,972 | AL150: 28,179
A151: P01-1-5-4-02 | B151: 北海道 | C151: 札幌市 | D151: 2 | E151: 戸建住宅 | F151: 5 | G151: 4 | H151: ガス給湯＋IH | I151: 120.08 | J151: 5・6人参考拡張 | K151: 6,866 | L151: 572.2 | M151: 17,737 | N151: 6,866 | O151: 1,049 | P151: 897 | Q151: 780 | R151: 521 | S151: 405 | T151: 288 | U151: 313 | V151: 339 | W151: 288 | X151: 407 | Y151: 639 | Z151: 940 | AA151: 32,519 | AB151: 27,807 | AC151: 24,180 | AD151: 16,151 | AE151: 12,555 | AF151: 8,928 | AG151: 9,703 | AH151: 10,509 | AI151: 8,928 | AJ151: 12,617 | AK151: 19,809 | AL151: 29,140
A152: P01-1-5-4-03 | B152: 北海道 | C152: 札幌市 | D152: 2 | E152: 戸建住宅 | F152: 5 | G152: 4 | H152: エコキュート＋IH | I152: 120.08 | J152: 5・6人参考拡張 | K152: 9,918 | L152: 826.5 | M152: 25,622 | N152: 9,918 | O152: 1,472 | P152: 1,281 | Q152: 1,176 | R152: 776 | S152: 598 | T152: 450 | U152: 449 | V152: 458 | W152: 430 | X152: 598 | Y152: 918 | Z152: 1,312 | AA152: 45,632 | AB152: 39,711 | AC152: 36,456 | AD152: 24,056 | AE152: 18,538 | AF152: 13,950 | AG152: 13,919 | AH152: 14,198 | AI152: 13,330 | AJ152: 18,538 | AK152: 28,458 | AL152: 40,672
A153: P01-1-5-4-04 | B153: 北海道 | C153: 札幌市 | D153: 2 | E153: 戸建住宅 | F153: 5 | G153: 4 | H153: エコキュート＋ガス調理 | I153: 120.08 | J153: 5・6人参考拡張 | K153: 9,579 | L153: 798.2 | M153: 24,746 | N153: 9,579 | O153: 1,435 | P153: 1,246 | Q153: 1,142 | R153: 743 | S153: 568 | T153: 424 | U153: 426 | V153: 438 | W153: 410 | X153: 576 | Y153: 891 | Z153: 1,280 | AA153: 44,485 | AB153: 38,626 | AC153: 35,402 | AD153: 23,033 | AE153: 17,608 | AF153: 13,144 | AG153: 13,206 | AH153: 13,578 | AI153: 12,710 | AJ153: 17,856 | AK153: 27,621 | AL153: 39,680
A154: P01-1-5-4-05 | B154: 北海道 | C154: 札幌市 | D154: 2 | E154: 戸建住宅 | F154: 5 | G154: 4 | H154: 電気温水器＋IH | I154: 120.08 | J154: 5・6人参考拡張 | K154: 15,428 | L154: 1,285.7 | M154: 39,856 | N154: 15,428 | O154: 1,951 | P154: 1,708 | Q154: 1,665 | R154: 1,256 | S154: 1,083 | T154: 904 | U154: 890 | V154: 863 | W154: 848 | X154: 1,080 | Y154: 1,395 | Z154: 1,785 | AA154: 60,481 | AB154: 52,948 | AC154: 51,615 | AD154: 38,936 | AE154: 33,573 | AF154: 28,024 | AG154: 27,590 | AH154: 26,753 | AI154: 26,288 | AJ154: 33,480 | AK154: 43,245 | AL154: 55,335
A155: P01-1-5-4-06 | B155: 北海道 | C155: 札幌市 | D155: 2 | E155: 戸建住宅 | F155: 5 | G155: 4 | H155: ハイブリッド＋ガス調理 | I155: 120.08 | J155: 5・6人参考拡張 | K155: 7,795 | L155: 649.6 | M155: 20,137 | N155: 7,795 | O155: 1,171 | P155: 1,004 | Q155: 893 | R155: 595 | S155: 467 | T155: 340 | U155: 356 | V155: 376 | W155: 337 | X155: 477 | Y155: 727 | Z155: 1,052 | AA155: 36,301 | AB155: 31,124 | AC155: 27,683 | AD155: 18,445 | AE155: 14,477 | AF155: 10,540 | AG155: 11,036 | AH155: 11,656 | AI155: 10,447 | AJ155: 14,787 | AK155: 22,537 | AL155: 32,612
A156: P01-1-5-4-07 | B156: 北海道 | C156: 札幌市 | D156: 2 | E156: 戸建住宅 | F156: 5 | G156: 4 | H156: ハイブリッド＋IH | I156: 120.08 | J156: 5・6人参考拡張 | K156: 8,136 | L156: 678.0 | M156: 21,018 | N156: 8,136 | O156: 1,208 | P156: 1,039 | Q156: 927 | R156: 628 | S156: 497 | T156: 367 | U156: 379 | V156: 397 | W156: 358 | X156: 499 | Y156: 754 | Z156: 1,083 | AA156: 37,448 | AB156: 32,209 | AC156: 28,737 | AD156: 19,468 | AE156: 15,407 | AF156: 11,377 | AG156: 11,749 | AH156: 12,307 | AI156: 11,098 | AJ156: 15,469 | AK156: 23,374 | AL156: 33,573
A157: P01-1-5-4-08 | B157: 北海道 | C157: 札幌市 | D157: 2 | E157: 戸建住宅 | F157: 5 | G157: 4 | H157: エネファーム＋ガス調理 | I157: 120.08 | J157: 発電自家消費量の入力待ち | N157: 6,524
A158: P01-1-5-4-09 | B158: 北海道 | C158: 札幌市 | D158: 2 | E158: 戸建住宅 | F158: 5 | G158: 4 | H158: エネファーム＋IH | I158: 120.08 | J158: 発電自家消費量の入力待ち | N158: 6,866
A159: P01-1-5-5-01 | B159: 北海道 | C159: 札幌市 | D159: 2 | E159: 戸建住宅 | F159: 5 | G159: 5 | H159: ガス給湯＋ガス調理 | I159: 120.08 | J159: 5・6人参考拡張 | K159: 6,228 | L159: 519.0 | M159: 16,089 | N159: 6,228 | O159: 944 | P159: 807 | Q159: 702 | R159: 462 | S159: 366 | T159: 261 | U159: 291 | V159: 322 | W159: 266 | X159: 374 | Y159: 579 | Z159: 854 | AA159: 29,264 | AB159: 25,017 | AC159: 21,762 | AD159: 14,322 | AE159: 11,346 | AF159: 8,091 | AG159: 9,021 | AH159: 9,982 | AI159: 8,246 | AJ159: 11,594 | AK159: 17,949 | AL159: 26,474
A160: P01-1-5-5-02 | B160: 北海道 | C160: 札幌市 | D160: 2 | E160: 戸建住宅 | F160: 5 | G160: 5 | H160: ガス給湯＋IH | I160: 120.08 | J160: 5・6人参考拡張 | K160: 6,569 | L160: 547.4 | M160: 16,970 | N160: 6,569 | O160: 981 | P160: 842 | Q160: 737 | R160: 495 | S160: 396 | T160: 288 | U160: 314 | V160: 342 | W160: 286 | X160: 396 | Y160: 606 | Z160: 886 | AA160: 30,411 | AB160: 26,102 | AC160: 22,847 | AD160: 15,345 | AE160: 12,276 | AF160: 8,928 | AG160: 9,734 | AH160: 10,602 | AI160: 8,866 | AJ160: 12,276 | AK160: 18,786 | AL160: 27,466
A161: P01-1-5-5-03 | B161: 北海道 | C161: 札幌市 | D161: 2 | E161: 戸建住宅 | F161: 5 | G161: 5 | H161: エコキュート＋IH | I161: 120.08 | J161: 5・6人参考拡張 | K161: 9,623 | L161: 801.9 | M161: 24,859 | N161: 9,623 | O161: 1,405 | P161: 1,227 | Q161: 1,133 | R161: 750 | S161: 589 | T161: 450 | U161: 450 | V161: 461 | W161: 429 | X161: 588 | Y161: 884 | Z161: 1,257 | AA161: 43,555 | AB161: 38,037 | AC161: 35,123 | AD161: 23,250 | AE161: 18,259 | AF161: 13,950 | AG161: 13,950 | AH161: 14,291 | AI161: 13,299 | AJ161: 18,228 | AK161: 27,404 | AL161: 38,967
A162: P01-1-5-5-04 | B162: 北海道 | C162: 札幌市 | D162: 2 | E162: 戸建住宅 | F162: 5 | G162: 5 | H162: エコキュート＋ガス調理 | I162: 120.08 | J162: 5・6人参考拡張 | K162: 9,281 | L162: 773.4 | M162: 23,976 | N162: 9,281 | O162: 1,368 | P162: 1,191 | Q162: 1,098 | R162: 717 | S162: 559 | T162: 423 | U162: 427 | V162: 441 | W162: 409 | X162: 565 | Y162: 857 | Z162: 1,226 | AA162: 42,408 | AB162: 36,921 | AC162: 34,038 | AD162: 22,227 | AE162: 17,329 | AF162: 13,113 | AG162: 13,237 | AH162: 13,671 | AI162: 12,679 | AJ162: 17,515 | AK162: 26,567 | AL162: 38,006
A163: P01-1-5-5-05 | B163: 北海道 | C163: 札幌市 | D163: 2 | E163: 戸建住宅 | F163: 5 | G163: 5 | H163: 電気温水器＋IH | I163: 120.08 | J163: 5・6人参考拡張 | K163: 15,132 | L163: 1,261.0 | M163: 39,091 | N163: 15,132 | O163: 1,883 | P163: 1,654 | Q163: 1,621 | R163: 1,230 | S163: 1,074 | T163: 903 | U163: 892 | V163: 866 | W163: 847 | X163: 1,070 | Y163: 1,362 | Z163: 1,730 | AA163: 58,373 | AB163: 51,274 | AC163: 50,251 | AD163: 38,130 | AE163: 33,294 | AF163: 27,993 | AG163: 27,652 | AH163: 26,846 | AI163: 26,257 | AJ163: 33,170 | AK163: 42,222 | AL163: 53,630
A164: P01-1-5-5-06 | B164: 北海道 | C164: 札幌市 | D164: 2 | E164: 戸建住宅 | F164: 5 | G164: 5 | H164: ハイブリッド＋ガス調理 | I164: 120.08 | J164: 5・6人参考拡張 | K164: 7,499 | L164: 624.9 | M164: 19,372 | N164: 7,499 | O164: 1,104 | P164: 949 | Q164: 849 | R164: 570 | S164: 458 | T164: 340 | U164: 357 | V164: 379 | W164: 336 | X164: 466 | Y164: 694 | Z164: 997 | AA164: 34,224 | AB164: 29,419 | AC164: 26,319 | AD164: 17,670 | AE164: 14,198 | AF164: 10,540 | AG164: 11,067 | AH164: 11,749 | AI164: 10,416 | AJ164: 14,446 | AK164: 21,514 | AL164: 30,907
A165: P01-1-5-5-07 | B165: 北海道 | C165: 札幌市 | D165: 2 | E165: 戸建住宅 | F165: 5 | G165: 5 | H165: ハイブリッド＋IH | I165: 120.08 | J165: 5・6人参考拡張 | K165: 7,839 | L165: 653.2 | M165: 20,251 | N165: 7,839 | O165: 1,141 | P165: 985 | Q165: 884 | R165: 602 | S165: 488 | T165: 366 | U165: 380 | V165: 400 | W165: 356 | X165: 488 | Y165: 721 | Z165: 1,028 | AA165: 35,371 | AB165: 30,535 | AC165: 27,404 | AD165: 18,662 | AE165: 15,128 | AF165: 11,346 | AG165: 11,780 | AH165: 12,400 | AI165: 11,036 | AJ165: 15,128 | AK165: 22,351 | AL165: 31,868
A166: P01-1-5-5-08 | B166: 北海道 | C166: 札幌市 | D166: 2 | E166: 戸建住宅 | F166: 5 | G166: 5 | H166: エネファーム＋ガス調理 | I166: 120.08 | J166: 発電自家消費量の入力待ち | N166: 6,228
A167: P01-1-5-5-09 | B167: 北海道 | C167: 札幌市 | D167: 2 | E167: 戸建住宅 | F167: 5 | G167: 5 | H167: エネファーム＋IH | I167: 120.08 | J167: 発電自家消費量の入力待ち | N167: 6,569
A168: P01-1-5-6-01 | B168: 北海道 | C168: 札幌市 | D168: 2 | E168: 戸建住宅 | F168: 5 | G168: 6 | H168: ガス給湯＋ガス調理 | I168: 120.08 | J168: 5・6人参考拡張 | K168: 5,591 | L168: 465.9 | M168: 14,443 | N168: 5,591 | O168: 820 | P168: 703 | Q168: 613 | R168: 404 | S168: 326 | T168: 257 | U168: 293 | V168: 328 | W168: 260 | X168: 331 | Y168: 510 | Z168: 746 | AA168: 25,420 | AB168: 21,793 | AC168: 19,003 | AD168: 12,524 | AE168: 10,106 | AF168: 7,967 | AG168: 9,083 | AH168: 10,168 | AI168: 8,060 | AJ168: 10,261 | AK168: 15,810 | AL168: 23,126
A169: P01-1-5-6-02 | B169: 北海道 | C169: 札幌市 | D169: 2 | E169: 戸建住宅 | F169: 5 | G169: 6 | H169: ガス給湯＋IH | I169: 120.08 | J169: 5・6人参考拡張 | K169: 5,931 | L169: 494.2 | M169: 15,322 | N169: 5,931 | O169: 857 | P169: 739 | Q169: 647 | R169: 437 | S169: 356 | T169: 283 | U169: 316 | V169: 348 | W169: 280 | X169: 354 | Y169: 537 | Z169: 777 | AA169: 26,567 | AB169: 22,909 | AC169: 20,057 | AD169: 13,547 | AE169: 11,036 | AF169: 8,773 | AG169: 9,796 | AH169: 10,788 | AI169: 8,680 | AJ169: 10,974 | AK169: 16,647 | AL169: 24,087
A170: P01-1-5-6-03 | B170: 北海道 | C170: 札幌市 | D170: 2 | E170: 戸建住宅 | F170: 5 | G170: 6 | H170: エコキュート＋IH | I170: 120.08 | J170: 5・6人参考拡張 | K170: 8,987 | L170: 748.9 | M170: 23,216 | N170: 8,987 | O170: 1,281 | P170: 1,123 | Q170: 1,044 | R170: 692 | S170: 549 | T170: 446 | U170: 453 | V170: 467 | W170: 423 | X170: 545 | Y170: 815 | Z170: 1,149 | AA170: 39,711 | AB170: 34,813 | AC170: 32,364 | AD170: 21,452 | AE170: 17,019 | AF170: 13,826 | AG170: 14,043 | AH170: 14,477 | AI170: 13,113 | AJ170: 16,895 | AK170: 25,265 | AL170: 35,619
A171: P01-1-5-6-04 | B171: 北海道 | C171: 札幌市 | D171: 2 | E171: 戸建住宅 | F171: 5 | G171: 6 | H171: エコキュート＋ガス調理 | I171: 120.08 | J171: 5・6人参考拡張 | K171: 8,644 | L171: 720.3 | M171: 22,330 | N171: 8,644 | O171: 1,243 | P171: 1,087 | Q171: 1,009 | R171: 659 | S171: 519 | T171: 419 | U171: 430 | V171: 447 | W171: 403 | X171: 523 | Y171: 788 | Z171: 1,117 | AA171: 38,533 | AB171: 33,697 | AC171: 31,279 | AD171: 20,429 | AE171: 16,089 | AF171: 12,989 | AG171: 13,330 | AH171: 13,857 | AI171: 12,493 | AJ171: 16,213 | AK171: 24,428 | AL171: 34,627
A172: P01-1-5-6-05 | B172: 北海道 | C172: 札幌市 | D172: 2 | E172: 戸建住宅 | F172: 5 | G172: 6 | H172: 電気温水器＋IH | I172: 120.08 | J172: 5・6人参考拡張 | K172: 14,494 | L172: 1,207.8 | M172: 37,443 | N172: 14,494 | O172: 1,759 | P172: 1,550 | Q172: 1,532 | R172: 1,172 | S172: 1,034 | T172: 899 | U172: 894 | V172: 872 | W172: 840 | X172: 1,027 | Y172: 1,293 | Z172: 1,622 | AA172: 54,529 | AB172: 48,050 | AC172: 47,492 | AD172: 36,332 | AE172: 32,054 | AF172: 27,869 | AG172: 27,714 | AH172: 27,032 | AI172: 26,040 | AJ172: 31,837 | AK172: 40,083 | AL172: 50,282
A173: P01-1-5-6-06 | B173: 北海道 | C173: 札幌市 | D173: 2 | E173: 戸建住宅 | F173: 5 | G173: 6 | H173: ハイブリッド＋ガス調理 | I173: 120.08 | J173: 5・6人参考拡張 | K173: 6,862 | L173: 571.8 | M173: 17,727 | N173: 6,862 | O173: 979 | P173: 845 | Q173: 760 | R173: 512 | S173: 418 | T173: 336 | U173: 360 | V173: 385 | W173: 330 | X173: 423 | Y173: 625 | Z173: 889 | AA173: 30,349 | AB173: 26,195 | AC173: 23,560 | AD173: 15,872 | AE173: 12,958 | AF173: 10,416 | AG173: 11,160 | AH173: 11,935 | AI173: 10,230 | AJ173: 13,113 | AK173: 19,375 | AL173: 27,559
A174: P01-1-5-6-07 | B174: 北海道 | C174: 札幌市 | D174: 2 | E174: 戸建住宅 | F174: 5 | G174: 6 | H174: ハイブリッド＋IH | I174: 120.08 | J174: 5・6人参考拡張 | K174: 7,204 | L174: 600.3 | M174: 18,610 | N174: 7,204 | O174: 1,017 | P174: 881 | Q174: 795 | R174: 545 | S174: 448 | T174: 362 | U174: 383 | V174: 406 | W174: 350 | X174: 445 | Y174: 652 | Z174: 920 | AA174: 31,527 | AB174: 27,311 | AC174: 24,645 | AD174: 16,895 | AE174: 13,888 | AF174: 11,222 | AG174: 11,873 | AH174: 12,586 | AI174: 10,850 | AJ174: 13,795 | AK174: 20,212 | AL174: 28,520
A175: P01-1-5-6-08 | B175: 北海道 | C175: 札幌市 | D175: 2 | E175: 戸建住宅 | F175: 5 | G175: 6 | H175: エネファーム＋ガス調理 | I175: 120.08 | J175: 発電自家消費量の入力待ち | N175: 5,591
A176: P01-1-5-6-09 | B176: 北海道 | C176: 札幌市 | D176: 2 | E176: 戸建住宅 | F176: 5 | G176: 6 | H176: エネファーム＋IH | I176: 120.08 | J176: 発電自家消費量の入力待ち | N176: 5,931
A177: P01-1-5-7-01 | B177: 北海道 | C177: 札幌市 | D177: 2 | E177: 戸建住宅 | F177: 5 | G177: 7 | H177: ガス給湯＋ガス調理 | I177: 120.08 | J177: 5・6人参考拡張 | K177: 5,176 | L177: 431.3 | M177: 13,371 | N177: 5,176 | O177: 742 | P177: 637 | Q177: 552 | R177: 366 | S177: 296 | T177: 255 | U177: 295 | V177: 332 | W177: 256 | X177: 304 | Y177: 465 | Z177: 676 | AA177: 23,002 | AB177: 19,747 | AC177: 17,112 | AD177: 11,346 | AE177: 9,176 | AF177: 7,905 | AG177: 9,145 | AH177: 10,292 | AI177: 7,936 | AJ177: 9,424 | AK177: 14,415 | AL177: 20,956
A178: P01-1-5-7-02 | B178: 北海道 | C178: 札幌市 | D178: 2 | E178: 戸建住宅 | F178: 5 | G178: 7 | H178: ガス給湯＋IH | I178: 120.08 | J178: 5・6人参考拡張 | K178: 5,516 | L178: 459.7 | M178: 14,250 | N178: 5,516 | O178: 779 | P178: 673 | Q178: 586 | R178: 398 | S178: 326 | T178: 281 | U178: 318 | V178: 353 | W178: 276 | X178: 326 | Y178: 493 | Z178: 707 | AA178: 24,149 | AB178: 20,863 | AC178: 18,166 | AD178: 12,338 | AE178: 10,106 | AF178: 8,711 | AG178: 9,858 | AH178: 10,943 | AI178: 8,556 | AJ178: 10,106 | AK178: 15,283 | AL178: 21,917
A179: P01-1-5-7-03 | B179: 北海道 | C179: 札幌市 | D179: 2 | E179: 戸建住宅 | F179: 5 | G179: 7 | H179: エコキュート＋IH | I179: 120.08 | J179: 5・6人参考拡張 | K179: 8,570 | L179: 714.2 | M179: 22,139 | N179: 8,570 | O179: 1,203 | P179: 1,057 | Q179: 982 | R179: 653 | S179: 520 | T179: 443 | U179: 454 | V179: 471 | W179: 419 | X179: 518 | Y179: 771 | Z179: 1,079 | AA179: 37,293 | AB179: 32,767 | AC179: 30,442 | AD179: 20,243 | AE179: 16,120 | AF179: 13,733 | AG179: 14,074 | AH179: 14,601 | AI179: 12,989 | AJ179: 16,058 | AK179: 23,901 | AL179: 33,449
A180: P01-1-5-7-04 | B180: 北海道 | C180: 札幌市 | D180: 2 | E180: 戸建住宅 | F180: 5 | G180: 7 | H180: エコキュート＋ガス調理 | I180: 120.08 | J180: 5・6人参考拡張 | K180: 8,231 | L180: 685.9 | M180: 21,263 | N180: 8,231 | O180: 1,166 | P180: 1,022 | Q180: 948 | R180: 621 | S180: 490 | T180: 417 | U180: 431 | V180: 451 | W180: 399 | X180: 495 | Y180: 744 | Z180: 1,047 | AA180: 36,146 | AB180: 31,682 | AC180: 29,388 | AD180: 19,251 | AE180: 15,190 | AF180: 12,927 | AG180: 13,361 | AH180: 13,981 | AI180: 12,369 | AJ180: 15,345 | AK180: 23,064 | AL180: 32,457
A181: P01-1-5-7-05 | B181: 北海道 | C181: 札幌市 | D181: 2 | E181: 戸建住宅 | F181: 5 | G181: 7 | H181: 電気温水器＋IH | I181: 120.08 | J181: 5・6人参考拡張 | K181: 14,082 | L181: 1,173.5 | M181: 36,379 | N181: 14,082 | O181: 1,681 | P181: 1,485 | Q181: 1,471 | R181: 1,134 | S181: 1,005 | T181: 897 | U181: 896 | V181: 876 | W181: 836 | X181: 1,000 | Y181: 1,249 | Z181: 1,552 | AA181: 52,111 | AB181: 46,035 | AC181: 45,601 | AD181: 35,154 | AE181: 31,155 | AF181: 27,807 | AG181: 27,776 | AH181: 27,156 | AI181: 25,916 | AJ181: 31,000 | AK181: 38,719 | AL181: 48,112
A182: P01-1-5-7-06 | B182: 北海道 | C182: 札幌市 | D182: 2 | E182: 戸建住宅 | F182: 5 | G182: 7 | H182: ハイブリッド＋ガス調理 | I182: 120.08 | J182: 5・6人参考拡張 | K182: 6,448 | L182: 537.3 | M182: 16,657 | N182: 6,448 | O182: 902 | P182: 780 | Q182: 699 | R182: 473 | S182: 388 | T182: 333 | U182: 361 | V182: 390 | W182: 326 | X182: 396 | Y182: 581 | Z182: 819 | AA182: 27,962 | AB182: 24,180 | AC182: 21,669 | AD182: 14,663 | AE182: 12,028 | AF182: 10,323 | AG182: 11,191 | AH182: 12,090 | AI182: 10,106 | AJ182: 12,276 | AK182: 18,011 | AL182: 25,389
A183: P01-1-5-7-07 | B183: 北海道 | C183: 札幌市 | D183: 2 | E183: 戸建住宅 | F183: 5 | G183: 7 | H183: ハイブリッド＋IH | I183: 120.08 | J183: 5・6人参考拡張 | K183: 6,788 | L183: 565.7 | M183: 17,536 | N183: 6,788 | O183: 939 | P183: 815 | Q183: 733 | R183: 506 | S183: 418 | T183: 360 | U183: 385 | V183: 410 | W183: 346 | X183: 418 | Y183: 608 | Z183: 850 | AA183: 29,109 | AB183: 25,265 | AC183: 22,723 | AD183: 15,686 | AE183: 12,958 | AF183: 11,160 | AG183: 11,935 | AH183: 12,710 | AI183: 10,726 | AJ183: 12,958 | AK183: 18,848 | AL183: 26,350
A184: P01-1-5-7-08 | B184: 北海道 | C184: 札幌市 | D184: 2 | E184: 戸建住宅 | F184: 5 | G184: 7 | H184: エネファーム＋ガス調理 | I184: 120.08 | J184: 発電自家消費量の入力待ち | N184: 5,176
A185: P01-1-5-7-09 | B185: 北海道 | C185: 札幌市 | D185: 2 | E185: 戸建住宅 | F185: 5 | G185: 7 | H185: エネファーム＋IH | I185: 120.08 | J185: 発電自家消費量の入力待ち | N185: 5,516
A186: P01-1-6-4-01 | B186: 北海道 | C186: 札幌市 | D186: 2 | E186: 戸建住宅 | F186: 6 | G186: 4 | H186: ガス給湯＋ガス調理 | I186: 120.08 | J186: 5・6人参考拡張 | K186: 7,211 | L186: 600.9 | M186: 18,628 | N186: 7,211 | O186: 1,070 | P186: 914 | Q186: 804 | R186: 544 | S186: 432 | T186: 318 | U186: 349 | V186: 377 | W186: 324 | X186: 443 | Y186: 669 | Z186: 967 | AA186: 33,170 | AB186: 28,334 | AC186: 24,924 | AD186: 16,864 | AE186: 13,392 | AF186: 9,858 | AG186: 10,819 | AH186: 11,687 | AI186: 10,044 | AJ186: 13,733 | AK186: 20,739 | AL186: 29,977
A187: P01-1-6-4-02 | B187: 北海道 | C187: 札幌市 | D187: 2 | E187: 戸建住宅 | F187: 6 | G187: 4 | H187: ガス給湯＋IH | I187: 120.08 | J187: 5・6人参考拡張 | K187: 7,550 | L187: 629.2 | M187: 19,504 | N187: 7,550 | O187: 1,107 | P187: 949 | Q187: 838 | R187: 577 | S187: 462 | T187: 345 | U187: 372 | V187: 397 | W187: 344 | X187: 465 | Y187: 696 | Z187: 998 | AA187: 34,317 | AB187: 29,419 | AC187: 25,978 | AD187: 17,887 | AE187: 14,322 | AF187: 10,695 | AG187: 11,532 | AH187: 12,307 | AI187: 10,664 | AJ187: 14,415 | AK187: 21,576 | AL187: 30,938
A188: P01-1-6-4-03 | B188: 北海道 | C188: 札幌市 | D188: 2 | E188: 戸建住宅 | F188: 6 | G188: 4 | H188: エコキュート＋IH | I188: 120.08 | J188: 5・6人参考拡張 | K188: 10,666 | L188: 888.8 | M188: 27,554 | N188: 10,666 | O188: 1,539 | P188: 1,341 | Q188: 1,243 | R188: 837 | S188: 660 | T188: 510 | U188: 511 | V188: 518 | W188: 489 | X188: 660 | Y188: 981 | Z188: 1,377 | AA188: 47,709 | AB188: 41,571 | AC188: 38,533 | AD188: 25,947 | AE188: 20,460 | AF188: 15,810 | AG188: 15,841 | AH188: 16,058 | AI188: 15,159 | AJ188: 20,460 | AK188: 30,411 | AL188: 42,687
A189: P01-1-6-4-04 | B189: 北海道 | C189: 札幌市 | D189: 2 | E189: 戸建住宅 | F189: 6 | G189: 4 | H189: エコキュート＋ガス調理 | I189: 120.08 | J189: 5・6人参考拡張 | K189: 10,325 | L189: 860.4 | M189: 26,673 | N189: 10,325 | O189: 1,502 | P189: 1,306 | Q189: 1,208 | R189: 804 | S189: 630 | T189: 483 | U189: 488 | V189: 498 | W189: 469 | X189: 638 | Y189: 953 | Z189: 1,346 | AA189: 46,562 | AB189: 40,486 | AC189: 37,448 | AD189: 24,924 | AE189: 19,530 | AF189: 14,973 | AG189: 15,128 | AH189: 15,438 | AI189: 14,539 | AJ189: 19,778 | AK189: 29,543 | AL189: 41,726
A190: P01-1-6-4-05 | B190: 北海道 | C190: 札幌市 | D190: 2 | E190: 戸建住宅 | F190: 6 | G190: 4 | H190: 電気温水器＋IH | I190: 120.08 | J190: 5・6人参考拡張 | K190: 16,284 | L190: 1,357.0 | M190: 42,067 | N190: 16,284 | O190: 2,027 | P190: 1,777 | Q190: 1,741 | R190: 1,327 | S190: 1,154 | T190: 972 | U190: 961 | V190: 931 | W190: 915 | X190: 1,152 | Y190: 1,467 | Z190: 1,860 | AA190: 62,837 | AB190: 55,087 | AC190: 53,971 | AD190: 41,137 | AE190: 35,774 | AF190: 30,132 | AG190: 29,791 | AH190: 28,861 | AI190: 28,365 | AJ190: 35,712 | AK190: 45,477 | AL190: 57,660
A191: P01-1-6-4-06 | B191: 北海道 | C191: 札幌市 | D191: 2 | E191: 戸建住宅 | F191: 6 | G191: 4 | H191: ハイブリッド＋ガス調理 | I191: 120.08 | J191: 5・6人参考拡張 | K191: 8,507 | L191: 708.9 | M191: 21,976 | N191: 8,507 | O191: 1,233 | P191: 1,059 | Q191: 954 | R191: 654 | S191: 526 | T191: 398 | U191: 416 | V191: 436 | W191: 395 | X191: 536 | Y191: 787 | Z191: 1,113 | AA191: 38,223 | AB191: 32,829 | AC191: 29,574 | AD191: 20,274 | AE191: 16,306 | AF191: 12,338 | AG191: 12,896 | AH191: 13,516 | AI191: 12,245 | AJ191: 16,616 | AK191: 24,397 | AL191: 34,503
A192: P01-1-6-4-07 | B192: 北海道 | C192: 札幌市 | D192: 2 | E192: 戸建住宅 | F192: 6 | G192: 4 | H192: ハイブリッド＋IH | I192: 120.08 | J192: 5・6人参考拡張 | K192: 8,847 | L192: 737.2 | M192: 22,855 | N192: 8,847 | O192: 1,270 | P192: 1,094 | Q192: 988 | R192: 686 | S192: 556 | T192: 425 | U192: 440 | V192: 456 | W192: 415 | X192: 559 | Y192: 814 | Z192: 1,144 | AA192: 39,370 | AB192: 33,914 | AC192: 30,628 | AD192: 21,266 | AE192: 17,236 | AF192: 13,175 | AG192: 13,640 | AH192: 14,136 | AI192: 12,865 | AJ192: 17,329 | AK192: 25,234 | AL192: 35,464
A193: P01-1-6-4-08 | B193: 北海道 | C193: 札幌市 | D193: 2 | E193: 戸建住宅 | F193: 6 | G193: 4 | H193: エネファーム＋ガス調理 | I193: 120.08 | J193: 発電自家消費量の入力待ち | N193: 7,211
A194: P01-1-6-4-09 | B194: 北海道 | C194: 札幌市 | D194: 2 | E194: 戸建住宅 | F194: 6 | G194: 4 | H194: エネファーム＋IH | I194: 120.08 | J194: 発電自家消費量の入力待ち | N194: 7,550
A195: P01-1-6-5-01 | B195: 北海道 | C195: 札幌市 | D195: 2 | E195: 戸建住宅 | F195: 6 | G195: 5 | H195: ガス給湯＋ガス調理 | I195: 120.08 | J195: 5・6人参考拡張 | K195: 6,913 | L195: 576.1 | M195: 17,859 | N195: 6,913 | O195: 1,003 | P195: 859 | Q195: 761 | R195: 518 | S195: 423 | T195: 317 | U195: 350 | V195: 380 | W195: 322 | X195: 432 | Y195: 636 | Z195: 912 | AA195: 31,093 | AB195: 26,629 | AC195: 23,591 | AD195: 16,058 | AE195: 13,113 | AF195: 9,827 | AG195: 10,850 | AH195: 11,780 | AI195: 9,982 | AJ195: 13,392 | AK195: 19,716 | AL195: 28,272
A196: P01-1-6-5-02 | B196: 北海道 | C196: 札幌市 | D196: 2 | E196: 戸建住宅 | F196: 6 | G196: 5 | H196: ガス給湯＋IH | I196: 120.08 | J196: 5・6人参考拡張 | K196: 7,253 | L196: 604.4 | M196: 18,737 | N196: 7,253 | O196: 1,040 | P196: 895 | Q196: 795 | R196: 551 | S196: 453 | T196: 344 | U196: 373 | V196: 400 | W196: 342 | X196: 454 | Y196: 663 | Z196: 943 | AA196: 32,240 | AB196: 27,745 | AC196: 24,645 | AD196: 17,081 | AE196: 14,043 | AF196: 10,664 | AG196: 11,563 | AH196: 12,400 | AI196: 10,602 | AJ196: 14,074 | AK196: 20,553 | AL196: 29,233
A197: P01-1-6-5-03 | B197: 北海道 | C197: 札幌市 | D197: 2 | E197: 戸建住宅 | F197: 6 | G197: 5 | H197: エコキュート＋IH | I197: 120.08 | J197: 5・6人参考拡張 | K197: 10,369 | L197: 864.1 | M197: 26,787 | N197: 10,369 | O197: 1,472 | P197: 1,287 | Q197: 1,199 | R197: 811 | S197: 651 | T197: 509 | U197: 512 | V197: 522 | W197: 488 | X197: 649 | Y197: 947 | Z197: 1,322 | AA197: 45,632 | AB197: 39,897 | AC197: 37,169 | AD197: 25,141 | AE197: 20,181 | AF197: 15,779 | AG197: 15,872 | AH197: 16,182 | AI197: 15,128 | AJ197: 20,119 | AK197: 29,357 | AL197: 40,982
A198: P01-1-6-5-04 | B198: 北海道 | C198: 札幌市 | D198: 2 | E198: 戸建住宅 | F198: 6 | G198: 5 | H198: エコキュート＋ガス調理 | I198: 120.08 | J198: 5・6人参考拡張 | K198: 10,030 | L198: 835.8 | M198: 25,911 | N198: 10,030 | O198: 1,435 | P198: 1,252 | Q198: 1,165 | R198: 778 | S198: 621 | T198: 483 | U198: 489 | V198: 501 | W198: 468 | X198: 627 | Y198: 920 | Z198: 1,291 | AA198: 44,485 | AB198: 38,812 | AC198: 36,115 | AD198: 24,118 | AE198: 19,251 | AF198: 14,973 | AG198: 15,159 | AH198: 15,531 | AI198: 14,508 | AJ198: 19,437 | AK198: 28,520 | AL198: 40,021
A199: P01-1-6-5-05 | B199: 北海道 | C199: 札幌市 | D199: 2 | E199: 戸建住宅 | F199: 6 | G199: 5 | H199: 電気温水器＋IH | I199: 120.08 | J199: 5・6人参考拡張 | K199: 15,989 | L199: 1,332.4 | M199: 41,305 | N199: 15,989 | O199: 1,960 | P199: 1,723 | Q199: 1,698 | R199: 1,301 | S199: 1,145 | T199: 972 | U199: 962 | V199: 934 | W199: 914 | X199: 1,141 | Y199: 1,434 | Z199: 1,805 | AA199: 60,760 | AB199: 53,413 | AC199: 52,638 | AD199: 40,331 | AE199: 35,495 | AF199: 30,132 | AG199: 29,822 | AH199: 28,954 | AI199: 28,334 | AJ199: 35,371 | AK199: 44,454 | AL199: 55,955
A200: P01-1-6-5-06 | B200: 北海道 | C200: 札幌市 | D200: 2 | E200: 戸建住宅 | F200: 6 | G200: 5 | H200: ハイブリッド＋ガス調理 | I200: 120.08 | J200: 5・6人参考拡張 | K200: 8,213 | L200: 684.4 | M200: 21,217 | N200: 8,213 | O200: 1,165 | P200: 1,005 | Q200: 911 | R200: 628 | S200: 518 | T200: 398 | U200: 418 | V200: 439 | W200: 394 | X200: 526 | Y200: 753 | Z200: 1,058 | AA200: 36,115 | AB200: 31,155 | AC200: 28,241 | AD200: 19,468 | AE200: 16,058 | AF200: 12,338 | AG200: 12,958 | AH200: 13,609 | AI200: 12,214 | AJ200: 16,306 | AK200: 23,343 | AL200: 32,798
A201: P01-1-6-5-07 | B201: 北海道 | C201: 札幌市 | D201: 2 | E201: 戸建住宅 | F201: 6 | G201: 5 | H201: ハイブリッド＋IH | I201: 120.08 | J201: 5・6人参考拡張 | K201: 8,552 | L201: 712.7 | M201: 22,093 | N201: 8,552 | O201: 1,203 | P201: 1,040 | Q201: 945 | R201: 661 | S201: 548 | T201: 424 | U201: 441 | V201: 459 | W201: 414 | X201: 548 | Y201: 780 | Z201: 1,089 | AA201: 37,293 | AB201: 32,240 | AC201: 29,295 | AD201: 20,491 | AE201: 16,988 | AF201: 13,144 | AG201: 13,671 | AH201: 14,229 | AI201: 12,834 | AJ201: 16,988 | AK201: 24,180 | AL201: 33,759
A202: P01-1-6-5-08 | B202: 北海道 | C202: 札幌市 | D202: 2 | E202: 戸建住宅 | F202: 6 | G202: 5 | H202: エネファーム＋ガス調理 | I202: 120.08 | J202: 発電自家消費量の入力待ち | N202: 6,913
... 2048 more rows

Sheet 相場の選択
A2: 相場で選ぶ｜公的統計に実在する条件
A3: 平均・標本数・中央値の階級を併記。新築条件との掛け合わせ補正はしません。かんたん入力の「基準選択」から3種類の相場を呼び出せます。
A5: 選択キー | B5: 公表集計の条件 | C5: 標本数 | D5: 年平均 kWh | E5: 月平均 kWh | F5: 実績年 円 | G5: 実績月平均 円 | H5: 中央値の階級 | I5: 最多階級 | J5: 統計ID | K5: 利用区分 | L5: 対象期間 | M5: 1月 kWh | N5: 2月 kWh | O5: 3月 kWh | P5: 4月 kWh | Q5: 5月 kWh | R5: 6月 kWh | S5: 7月 kWh | T5: 8月 kWh | U5: 9月 kWh | V5: 10月 kWh | W5: 11月 kWh | X5: 12月 kWh
A6: 人数|戸建住宅|1 | B6: 建て方別・世帯人数別（6区分） / 戸建 / 1人 | C6: 862 | D6: 3,177.8 | E6: 264.8 | F6: 90,600.0 | G6: 7,550.0 | H6: 1389〜2778 kWh/年未満 | I6: 1389〜2778 kWh/年未満 | J6: S0257 | K6: 公的統計・既存住宅混在 | L6: 2023/4〜2024/3 | M6: 352.8 | N6: 333.3 | O6: 313.9 | P6: 255.6 | Q6: 222.2 | R6: 197.2 | S6: 225.0 | T6: 280.6 | U6: 277.8 | V6: 230.6 | W6: 222.2 | X6: 263.9
A7: 人数|戸建住宅|2 | B7: 建て方別・世帯人数別（6区分） / 戸建 / 2人 | C7: 2391 | D7: 4,433.3 | E7: 369.4 | F7: 124,700.0 | G7: 10,391.7 | H7: 2778〜4167 kWh/年未満 | I7: 2778〜4167 kWh/年未満 | J7: S0258 | K7: 公的統計・既存住宅混在 | L7: 2023/4〜2024/3 | M7: 511.1 | N7: 486.1 | O7: 458.3 | P7: 358.3 | Q7: 305.6 | R7: 263.9 | S7: 300.0 | T7: 383.3 | U7: 380.6 | V7: 311.1 | W7: 300.0 | X7: 375.0
A8: 人数|戸建住宅|3 | B8: 建て方別・世帯人数別（6区分） / 戸建 / 3人 | C8: 1335 | D8: 5,644.4 | E8: 470.4 | F8: 157,400.0 | G8: 13,116.7 | H8: 4167〜5556 kWh/年未満 | I8: 4167〜5556 kWh/年未満 | J8: S0259 | K8: 公的統計・既存住宅混在 | L8: 2023/4〜2024/3 | M8: 661.1 | N8: 622.2 | O8: 583.3 | P8: 447.2 | Q8: 375.0 | R8: 330.6 | S8: 391.7 | T8: 500.0 | U8: 483.3 | V8: 386.1 | W8: 377.8 | X8: 483.3
A9: 人数|戸建住宅|4 | B9: 建て方別・世帯人数別（6区分） / 戸建 / 4人 | C9: 833 | D9: 6,241.7 | E9: 520.1 | F9: 173,300.0 | G9: 14,441.7 | H9: 5556〜6944 kWh/年未満 | I9: 4167〜5556 kWh/年未満 | J9: S0260 | K9: 公的統計・既存住宅混在 | L9: 2023/4〜2024/3 | M9: 722.2 | N9: 694.4 | O9: 647.2 | P9: 491.7 | Q9: 411.1 | R9: 361.1 | S9: 436.1 | T9: 547.2 | U9: 536.1 | V9: 427.8 | W9: 427.8 | X9: 538.9
A10: 人数|戸建住宅|5 | B10: 建て方別・世帯人数別（6区分） / 戸建 / 5人 | C10: 341 | D10: 6,886.1 | E10: 573.8 | F10: 192,000.0 | G10: 16,000.0 | H10: 5556〜6944 kWh/年未満 | I10: 4167〜5556 kWh/年未満 | J10: S0261 | K10: 公的統計・既存住宅混在 | L10: 2023/4〜2024/3 | M10: 786.1 | N10: 766.7 | O10: 711.1 | P10: 541.7 | Q10: 455.6 | R10: 411.1 | S10: 480.6 | T10: 602.8 | U10: 597.2 | V10: 475.0 | W10: 472.2 | X10: 591.7
A11: 人数|戸建住宅|6 | B11: 建て方別・世帯人数別（6区分） / 戸建 / 6人以上 | C11: 157 | D11: 9,230.6 | E11: 769.2 | F11: 254,100.0 | G11: 21,175.0 | H11: 6944〜8333 kWh/年未満 | I11: 5556〜6944 kWh/年未満 | J11: S0262 | K11: 公的統計・既存住宅混在 | L11: 2023/4〜2024/3 | M11: 1,086.1 | N11: 1,019.4 | O11: 941.7 | P11: 744.4 | Q11: 613.9 | R11: 538.9 | S11: 627.8 | T11: 802.8 | U11: 783.3 | V11: 636.1 | W11: 625.0 | X11: 811.1
A12: 人数|共同住宅|1 | B12: 建て方別・世帯人数別（6区分） / 集合 / 1人 | C12: 974 | D12: 2,077.8 | E12: 173.1 | F12: 60,000.0 | G12: 5,000.0 | H12: 1389〜2778 kWh/年未満 | I12: 1389〜2778 kWh/年未満 | J12: S0264 | K12: 公的統計・既存住宅混在 | L12: 2023/4〜2024/3 | M12: 205.6 | N12: 205.6 | O12: 191.7 | P12: 152.8 | Q12: 138.9 | R12: 133.3 | S12: 161.1 | T12: 208.3 | U12: 211.1 | V12: 166.7 | W12: 141.7 | X12: 158.3
A13: 人数|共同住宅|2 | B13: 建て方別・世帯人数別（6区分） / 集合 / 2人 | C13: 1352 | D13: 3,136.1 | E13: 261.3 | F13: 89,300.0 | G13: 7,441.7 | H13: 2778〜4167 kWh/年未満 | I13: 1389〜2778 kWh/年未満 | J13: S0265 | K13: 公的統計・既存住宅混在 | L13: 2023/4〜2024/3 | M13: 311.1 | N13: 311.1 | O13: 300.0 | P13: 236.1 | Q13: 211.1 | R13: 197.2 | S13: 236.1 | T13: 308.3 | U13: 316.7 | V13: 252.8 | W13: 216.7 | X13: 238.9
A14: 人数|共同住宅|3 | B14: 建て方別・世帯人数別（6区分） / 集合 / 3人 | C14: 604 | D14: 3,988.9 | E14: 332.4 | F14: 114,900.0 | G14: 9,575.0 | H14: 2778〜4167 kWh/年未満 | I14: 2778〜4167 kWh/年未満 | J14: S0266 | K14: 公的統計・既存住宅混在 | L14: 2023/4〜2024/3 | M14: 386.1 | N14: 391.7 | O14: 377.8 | P14: 294.4 | Q14: 261.1 | R14: 252.8 | S14: 313.9 | T14: 408.3 | U14: 411.1 | V14: 325.0 | W14: 266.7 | X14: 302.8
A15: 人数|共同住宅|4 | B15: 建て方別・世帯人数別（6区分） / 集合 / 4人 | C15: 319 | D15: 4,258.3 | E15: 354.9 | F15: 122,600.0 | G15: 10,216.7 | H15: 2778〜4167 kWh/年未満 | I15: 2778〜4167 kWh/年未満 | J15: S0267 | K15: 公的統計・既存住宅混在 | L15: 2023/4〜2024/3 | M15: 405.6 | N15: 402.8 | O15: 391.7 | P15: 322.2 | Q15: 286.1 | R15: 275.0 | S15: 338.9 | T15: 425.0 | U15: 441.7 | V15: 344.4 | W15: 300.0 | X15: 325.0
A16: 人数|共同住宅|5 | B16: 建て方別・世帯人数別（6区分） / 集合 / 5人 | C16: 107 | D16: 4,816.7 | E16: 401.4 | F16: 143,400.0 | G16: 11,950.0 | H16: 4167〜5556 kWh/年未満 | I16: 4167〜5556 kWh/年未満 | J16: S0268 | K16: 公的統計・既存住宅混在 | L16: 2023/4〜2024/3 | M16: 458.3 | N16: 466.7 | O16: 450.0 | P16: 369.4 | Q16: 311.1 | R16: 311.1 | S16: 391.7 | T16: 491.7 | U16: 488.9 | V16: 405.6 | W16: 330.6 | X16: 344.4
A17: 人数|共同住宅|6 | B17: 建て方別・世帯人数別（6区分） / 集合 / 6人以上 | C17: 16 | D17: 4,802.8 | E17: 400.2 | F17: 132,800.0 | G17: 11,066.7 | H17: 4167〜5556 kWh/年未満 | I17: 2778〜4167 kWh/年未満 | J17: S0269 | K17: 標本30未満・参考限定 | L17: 2023/4〜2024/3 | M17: 441.7 | N17: 408.3 | O17: 386.1 | P17: 308.3 | Q17: 308.3 | R17: 316.7 | S17: 502.8 | T17: 594.4 | U17: 502.8 | V17: 344.4 | W17: 319.4 | X17: 369.4
A18: 地域|戸建住宅|北海道 | B18: 地方別・建て方別 / 北海道 / 戸建 | C18: 524 | D18: 4,730.6 | E18: 394.2 | F18: 147,400.0 | G18: 12,283.3 | H18: 2778〜4167 kWh/年未満 | I18: 2778〜4167 kWh/年未満 | J18: S0028 | K18: 公的統計・既存住宅混在 | L18: 2023/4〜2024/3 | M18: 625.0 | N18: 513.9 | O18: 494.4 | P18: 430.6 | Q18: 369.4 | R18: 277.8 | S18: 288.9 | T18: 327.8 | U18: 319.4 | V18: 291.7 | W18: 347.2 | X18: 444.4
A19: 地域|共同住宅|北海道 | B19: 地方別・建て方別 / 北海道 / 集合 | C19: 335 | D19: 2,644.4 | E19: 220.4 | F19: 85,000.0 | G19: 7,083.3 | H19: 1389〜2778 kWh/年未満 | I19: 1389〜2778 kWh/年未満 | J19: S0029 | K19: 公的統計・既存住宅混在 | L19: 2023/4〜2024/3 | M19: 302.8 | N19: 250.0 | O19: 252.8 | P19: 236.1 | Q19: 219.4 | R19: 172.2 | S19: 183.3 | T19: 202.8 | U19: 202.8 | V19: 186.1 | W19: 205.6 | X19: 233.3
A20: 地域|戸建住宅|東北 | B20: 地方別・建て方別 / 東北 / 戸建 | C20: 655 | D20: 5,319.4 | E20: 443.3 | F20: 154,400.0 | G20: 12,866.7 | H20: 4167〜5556 kWh/年未満 | I20: 2778〜4167 kWh/年未満 | J20: S0031 | K20: 公的統計・既存住宅混在 | L20: 2023/4〜2024/3 | M20: 691.7 | N20: 608.3 | O20: 605.6 | P20: 455.6 | Q20: 366.7 | R20: 280.6 | S20: 316.7 | T20: 402.8 | U20: 397.2 | V20: 308.3 | W20: 366.7 | X20: 522.2
A21: 地域|共同住宅|東北 | B21: 地方別・建て方別 / 東北 / 集合 | C21: 238 | D21: 2,566.7 | E21: 213.9 | F21: 77,100.0 | G21: 6,425.0 | H21: 1389〜2778 kWh/年未満 | I21: 1389〜2778 kWh/年未満 | J21: S0032 | K21: 公的統計・既存住宅混在 | L21: 2023/4〜2024/3 | M21: 283.3 | N21: 258.3 | O21: 261.1 | P21: 211.1 | Q21: 183.3 | R21: 150.0 | S21: 177.8 | T21: 233.3 | U21: 227.8 | V21: 172.2 | W21: 183.3 | X21: 222.2
A22: 地域|戸建住宅|関東甲信 | B22: 地方別・建て方別 / 関東甲信 / 戸建 | C22: 865 | D22: 4,625.0 | E22: 385.4 | F22: 138,800.0 | G22: 11,566.7 | H22: 2778〜4167 kWh/年未満 | I22: 2778〜4167 kWh/年未満 | J22: S0034 | K22: 公的統計・既存住宅混在 | L22: 2023/4〜2024/3 | M22: 486.1 | N22: 516.7 | O22: 480.6 | P22: 363.9 | Q22: 302.8 | R22: 283.3 | S22: 325.0 | T22: 408.3 | U22: 422.2 | V22: 347.2 | W22: 313.9 | X22: 369.4
A23: 地域|共同住宅|関東甲信 | B23: 地方別・建て方別 / 関東甲信 / 集合 | C23: 701 | D23: 2,708.3 | E23: 225.7 | F23: 83,700.0 | G23: 6,975.0 | H23: 1389〜2778 kWh/年未満 | I23: 1389〜2778 kWh/年未満 | J23: S0035 | K23: 公的統計・既存住宅混在 | L23: 2023/4〜2024/3 | M23: 247.2 | N23: 269.4 | O23: 255.6 | P23: 197.2 | Q23: 175.0 | R23: 175.0 | S23: 213.9 | T23: 272.2 | U23: 288.9 | V23: 233.3 | W23: 188.9 | X23: 197.2
A24: 地域|戸建住宅|北陸 | B24: 地方別・建て方別 / 北陸 / 戸建 | C24: 606 | D24: 6,130.6 | E24: 510.9 | F24: 170,700.0 | G24: 14,225.0 | H24: 4167〜5556 kWh/年未満 | I24: 4167〜5556 kWh/年未満 | J24: S0037 | K24: 公的統計・既存住宅混在 | L24: 2023/4〜2024/3 | M24: 766.7 | N24: 694.4 | O24: 677.8 | P24: 500.0 | Q24: 422.2 | R24: 336.1 | S24: 377.8 | T24: 522.2 | U24: 491.7 | V24: 366.7 | W24: 411.1 | X24: 561.1
A25: 地域|共同住宅|北陸 | B25: 地方別・建て方別 / 北陸 / 集合 | C25: 200 | D25: 2,958.3 | E25: 246.5 | F25: 85,700.0 | G25: 7,141.7 | H25: 1389〜2778 kWh/年未満 | I25: 1389〜2778 kWh/年未満 | J25: S0038 | K25: 公的統計・既存住宅混在 | L25: 2023/4〜2024/3 | M25: 327.8 | N25: 305.6 | O25: 302.8 | P25: 236.1 | Q25: 208.3 | R25: 180.6 | S25: 208.3 | T25: 277.8 | U25: 263.9 | V25: 194.4 | W25: 200.0 | X25: 255.6
A26: 地域|戸建住宅|東海 | B26: 地方別・建て方別 / 東海 / 戸建 | C26: 661 | D26: 4,836.1 | E26: 403.0 | F26: 134,500.0 | G26: 11,208.3 | H26: 4167〜5556 kWh/年未満 | I26: 2778〜4167 kWh/年未満 | J26: S0040 | K26: 公的統計・既存住宅混在 | L26: 2023/4〜2024/3 | M26: 544.4 | N26: 519.4 | O26: 469.4 | P26: 375.0 | Q26: 322.2 | R26: 294.4 | S26: 355.6 | T26: 444.4 | U26: 438.9 | V26: 347.2 | W26: 330.6 | X26: 394.4
A27: 地域|共同住宅|東海 | B27: 地方別・建て方別 / 東海 / 集合 | C27: 273 | D27: 2,597.2 | E27: 216.4 | F27: 76,100.0 | G27: 6,341.7 | H27: 1389〜2778 kWh/年未満 | I27: 1389〜2778 kWh/年未満 | J27: S0041 | K27: 公的統計・既存住宅混在 | L27: 2023/4〜2024/3 | M27: 252.8 | N27: 247.2 | O27: 230.6 | P27: 197.2 | Q27: 169.4 | R27: 166.7 | S27: 211.1 | T27: 269.4 | U27: 275.0 | V27: 208.3 | W27: 175.0 | X27: 191.7
A28: 地域|戸建住宅|近畿 | B28: 地方別・建て方別 / 近畿 / 戸建 | C28: 599 | D28: 4,708.3 | E28: 392.4 | F28: 120,700.0 | G28: 10,058.3 | H28: 2778〜4167 kWh/年未満 | I28: 2778〜4167 kWh/年未満 | J28: S0043 | K28: 公的統計・既存住宅混在 | L28: 2023/4〜2024/3 | M28: 536.1 | N28: 513.9 | O28: 477.8 | P28: 386.1 | Q28: 322.2 | R28: 269.4 | S28: 327.8 | T28: 416.7 | U28: 419.4 | V28: 336.1 | W28: 316.7 | X28: 386.1
A29: 地域|共同住宅|近畿 | B29: 地方別・建て方別 / 近畿 / 集合 | C29: 428 | D29: 2,847.2 | E29: 237.3 | F29: 70,000.0 | G29: 5,833.3 | H29: 1389〜2778 kWh/年未満 | I29: 1389〜2778 kWh/年未満 | J29: S0044 | K29: 公的統計・既存住宅混在 | L29: 2023/4〜2024/3 | M29: 288.9 | N29: 286.1 | O29: 272.2 | P29: 216.7 | Q29: 191.7 | R29: 172.2 | S29: 213.9 | T29: 277.8 | U29: 294.4 | V29: 227.8 | W29: 194.4 | X29: 213.9
A30: 地域|戸建住宅|中国 | B30: 地方別・建て方別 / 中国 / 戸建 | C30: 601 | D30: 5,430.6 | E30: 452.5 | F30: 155,500.0 | G30: 12,958.3 | H30: 4167〜5556 kWh/年未満 | I30: 4167〜5556 kWh/年未満 | J30: S0046 | K30: 公的統計・既存住宅混在 | L30: 2023/4〜2024/3 | M30: 675.0 | N30: 613.9 | O30: 563.9 | P30: 419.4 | Q30: 366.7 | R30: 316.7 | S30: 366.7 | T30: 461.1 | U30: 436.1 | V30: 347.2 | W30: 372.2 | X30: 491.7
A31: 地域|共同住宅|中国 | B31: 地方別・建て方別 / 中国 / 集合 | C31: 289 | D31: 2,766.7 | E31: 230.6 | F31: 78,300.0 | G31: 6,525.0 | H31: 1389〜2778 kWh/年未満 | I31: 1389〜2778 kWh/年未満 | J31: S0047 | K31: 公的統計・既存住宅混在 | L31: 2023/4〜2024/3 | M31: 302.8 | N31: 288.9 | O31: 263.9 | P31: 211.1 | Q31: 177.8 | R31: 166.7 | S31: 211.1 | T31: 277.8 | U31: 269.4 | V31: 197.2 | W31: 177.8 | X31: 225.0
A32: 地域|戸建住宅|四国 | B32: 地方別・建て方別 / 四国 / 戸建 | C32: 561 | D32: 5,366.7 | E32: 447.2 | F32: 140,200.0 | G32: 11,683.3 | H32: 4167〜5556 kWh/年未満 | I32: 2778〜4167 kWh/年未満 | J32: S0049 | K32: 公的統計・既存住宅混在 | L32: 2023/4〜2024/3 | M32: 655.6 | N32: 577.8 | O32: 575.0 | P32: 413.9 | Q32: 380.6 | R32: 311.1 | S32: 358.3 | T32: 472.2 | U32: 436.1 | V32: 366.7 | W32: 350.0 | X32: 469.4
A33: 地域|共同住宅|四国 | B33: 地方別・建て方別 / 四国 / 集合 | C33: 230 | D33: 2,816.7 | E33: 234.7 | F33: 75,000.0 | G33: 6,250.0 | H33: 1389〜2778 kWh/年未満 | I33: 1389〜2778 kWh/年未満 | J33: S0050 | K33: 公的統計・既存住宅混在 | L33: 2023/4〜2024/3 | M33: 308.3 | N33: 283.3 | O33: 283.3 | P33: 213.9 | Q33: 197.2 | R33: 169.4 | S33: 205.6 | T33: 277.8 | U33: 258.3 | V33: 213.9 | W33: 180.6 | X33: 225.0
A34: 地域|戸建住宅|九州 | B34: 地方別・建て方別 / 九州 / 戸建 | C34: 559 | D34: 5,050.0 | E34: 420.8 | F34: 121,600.0 | G34: 10,133.3 | H34: 4167〜5556 kWh/年未満 | I34: 2778〜4167 kWh/年未満 | J34: S0052 | K34: 公的統計・既存住宅混在 | L34: 2023/4〜2024/3 | M34: 608.3 | N34: 516.7 | O34: 475.0 | P34: 386.1 | Q34: 336.1 | R34: 316.7 | S34: 363.9 | T34: 488.9 | U34: 430.6 | V34: 344.4 | W34: 338.9 | X34: 447.2
A35: 地域|共同住宅|九州 | B35: 地方別・建て方別 / 九州 / 集合 | C35: 341 | D35: 2,705.6 | E35: 225.5 | F35: 67,700.0 | G35: 5,641.7 | H35: 1389〜2778 kWh/年未満 | I35: 1389〜2778 kWh/年未満 | J35: S0053 | K35: 公的統計・既存住宅混在 | L35: 2023/4〜2024/3 | M35: 288.9 | N35: 250.0 | O35: 233.3 | P35: 188.9 | Q35: 172.2 | R35: 177.8 | S35: 225.0 | T35: 305.6 | U35: 266.7 | V35: 202.8 | W35: 175.0 | X35: 219.4
A36: 地域|戸建住宅|沖縄 | B36: 地方別・建て方別 / 沖縄 / 戸建 | C36: 288 | D36: 4,691.7 | E36: 391.0 | F36: 134,700.0 | G36: 11,225.0 | H36: 2778〜4167 kWh/年未満 | I36: 2778〜4167 kWh/年未満 | J36: S0055 | K36: 公的統計・既存住宅混在 | L36: 2023/4〜2024/3 | M36: 397.2 | N36: 325.0 | O36: 322.2 | P36: 338.9 | Q36: 305.6 | R36: 369.4 | S36: 488.9 | T36: 530.6 | U36: 491.7 | V36: 472.2 | W36: 336.1 | X36: 316.7
A37: 地域|共同住宅|沖縄 | B37: 地方別・建て方別 / 沖縄 / 集合 | C37: 337 | D37: 2,808.3 | E37: 234.0 | F37: 84,600.0 | G37: 7,050.0 | H37: 1389〜2778 kWh/年未満 | I37: 1389〜2778 kWh/年未満 | J37: S0056 | K37: 公的統計・既存住宅混在 | L37: 2023/4〜2024/3 | M37: 219.4 | N37: 183.3 | O37: 186.1 | P37: 194.4 | Q37: 183.3 | R37: 230.6 | S37: 305.6 | T37: 333.3 | U37: 300.0 | V37: 286.1 | W37: 200.0 | X37: 183.3
A38: 築浅|戸建住宅 | B38: 建て方別・建築時期別 / 戸建 / 2021年以降 | C38: 127 | D38: 4,311.1 | E38: 359.3 | F38: 126,300.0 | G38: 10,525.0 | H38: 2778〜4167 kWh/年未満 | I38: 2778〜4167 kWh/年未満 | J38: S0568 | K38: 公的統計・既存住宅混在 | L38: 2023/4〜2024/3 | M38: 527.8 | N38: 497.2 | O38: 461.1 | P38: 316.7 | Q38: 269.4 | R38: 241.7 | S38: 300.0 | T38: 366.7 | U38: 361.1 | V38: 286.1 | W38: 291.7 | X38: 394.4
A39: 築浅|共同住宅 | B39: 建て方別・建築時期別 / 集合 / 2021年以降 | C39: 49 | D39: 2,325.0 | E39: 193.8 | F39: 68,300.0 | G39: 5,691.7 | H39: 1389〜2778 kWh/年未満 | I39: 1389〜2778 kWh/年未満 | J39: S0579 | K39: 公的統計・既存住宅混在 | L39: 2023/4〜2024/3 | M39: 208.3 | N39: 216.7 | O39: 205.6 | P39: 172.2 | Q39: 155.6 | R39: 155.6 | S39: 186.1 | T39: 230.6 | U39: 244.4 | V39: 205.6 | W39: 163.9 | X39: 177.8
A40: 参照|S0011 | B40: 全国 | C40: 9291 | D40: 3,911.1 | E40: 325.9 | F40: 110,500.0 | G40: 9,208.3 | H40: 2778〜4167 kWh/年未満 | I40: 1389〜2778 kWh/年未満 | J40: S0011 | K40: 公的統計・既存住宅混在 | L40: 2023/4〜2024/3 | M40: 430.6 | N40: 413.9 | O40: 391.7 | P40: 305.6 | Q40: 263.9 | R40: 236.1 | S40: 280.6 | T40: 358.3 | U40: 355.6 | V40: 286.1 | W40: 266.7 | X40: 322.2
A41: 参照|S0013 | B41: 地方別 / 北海道 | C41: 859 | D41: 3,747.2 | E41: 312.3 | F41: 118,000.0 | G41: 9,833.3 | H41: 1389〜2778 kWh/年未満 | I41: 1389〜2778 kWh/年未満 | J41: S0013 | K41: 公的統計・既存住宅混在 | L41: 2023/4〜2024/3 | M41: 472.2 | N41: 388.9 | O41: 380.6 | P41: 338.9 | Q41: 300.0 | R41: 227.8 | S41: 238.9 | T41: 266.7 | U41: 263.9 | V41: 241.7 | W41: 280.6 | X41: 344.4
A42: 参照|S0014 | B42: 地方別 / 東北 | C42: 893 | D42: 4,477.8 | E42: 373.1 | F42: 130,700.0 | G42: 10,891.7 | H42: 2778〜4167 kWh/年未満 | I42: 2778〜4167 kWh/年未満 | J42: S0014 | K42: 公的統計・既存住宅混在 | L42: 2023/4〜2024/3 | M42: 566.7 | N42: 500.0 | O42: 500.0 | P42: 380.6 | Q42: 311.1 | R42: 238.9 | S42: 275.0 | T42: 350.0 | U42: 344.4 | V42: 266.7 | W42: 311.1 | X42: 430.6
A43: 参照|S0015 | B43: 地方別 / 関東甲信 | C43: 1566 | D43: 3,600.0 | E43: 300.0 | F43: 109,300.0 | G43: 9,108.3 | H43: 2778〜4167 kWh/年未満 | I43: 1389〜2778 kWh/年未満 | J43: S0015 | K43: 公的統計・既存住宅混在 | L43: 2023/4〜2024/3 | M43: 358.3 | N43: 383.3 | O43: 361.1 | P43: 275.0 | Q43: 233.3 | R43: 225.0 | S43: 263.9 | T43: 336.1 | U43: 350.0 | V43: 286.1 | W43: 247.2 | X43: 277.8
A44: 参照|S0016 | B44: 地方別 / 北陸 | C44: 806 | D44: 5,300.0 | E44: 441.7 | F44: 148,400.0 | G44: 12,366.7 | H44: 4167〜5556 kWh/年未満 | I44: 2778〜4167 kWh/年未満 | J44: S0016 | K44: 公的統計・既存住宅混在 | L44: 2023/4〜2024/3 | M44: 650.0 | N44: 594.4 | O44: 580.6 | P44: 430.6 | Q44: 366.7 | R44: 297.2 | S44: 333.3 | T44: 458.3 | U44: 433.3 | V44: 322.2 | W44: 355.6 | X44: 480.6
A45: 参照|S0017 | B45: 地方別 / 東海 | C45: 934 | D45: 3,955.6 | E45: 329.6 | F45: 111,500.0 | G45: 9,291.7 | H45: 2778〜4167 kWh/年未満 | I45: 1389〜2778 kWh/年未満 | J45: S0017 | K45: 公的統計・既存住宅混在 | L45: 2023/4〜2024/3 | M45: 427.8 | N45: 413.9 | O45: 375.0 | P45: 305.6 | Q45: 261.1 | R45: 244.4 | S45: 300.0 | T45: 375.0 | U45: 375.0 | V45: 291.7 | W45: 269.4 | X45: 313.9
A46: 参照|S0018 | B46: 地方別 / 近畿 | C46: 1027 | D46: 3,769.4 | E46: 314.1 | F46: 95,100.0 | G46: 7,925.0 | H46: 2778〜4167 kWh/年未満 | I46: 1389〜2778 kWh/年未満 | J46: S0018 | K46: 公的統計・既存住宅混在 | L46: 2023/4〜2024/3 | M46: 411.1 | N46: 400.0 | O46: 372.2 | P46: 300.0 | Q46: 258.3 | R46: 219.4 | S46: 269.4 | T46: 347.2 | U46: 355.6 | V46: 280.6 | W46: 255.6 | X46: 300.0
A47: 参照|S0019 | B47: 地方別 / 中国 | C47: 890 | D47: 4,450.0 | E47: 370.8 | F47: 127,100.0 | G47: 10,591.7 | H47: 2778〜4167 kWh/年未満 | I47: 1389〜2778 kWh/年未満 | J47: S0019 | K47: 公的統計・既存住宅混在 | L47: 2023/4〜2024/3 | M47: 536.1 | N47: 494.4 | O47: 452.8 | P47: 341.7 | Q47: 297.2 | R47: 261.1 | S47: 308.3 | T47: 394.4 | U47: 375.0 | V47: 291.7 | W47: 300.0 | X47: 391.7
A48: 参照|S0020 | B48: 地方別 / 四国 | C48: 791 | D48: 4,572.2 | E48: 381.0 | F48: 119,900.0 | G48: 9,991.7 | H48: 2778〜4167 kWh/年未満 | I48: 1389〜2778 kWh/年未満 | J48: S0020 | K48: 公的統計・既存住宅混在 | L48: 2023/4〜2024/3 | M48: 547.2 | N48: 486.1 | O48: 483.3 | P48: 352.8 | Q48: 325.0 | R48: 269.4 | S48: 311.1 | T48: 411.1 | U48: 380.6 | V48: 316.7 | W48: 297.2 | X48: 391.7
A49: 参照|S0021 | B49: 地方別 / 九州 | C49: 900 | D49: 4,041.7 | E49: 336.8 | F49: 98,400.0 | G49: 8,200.0 | H49: 2778〜4167 kWh/年未満 | I49: 1389〜2778 kWh/年未満 | J49: S0021 | K49: 公的統計・既存住宅混在 | L49: 2023/4〜2024/3 | M49: 469.4 | N49: 402.8 | O49: 372.2 | P49: 300.0 | Q49: 266.7 | R49: 255.6 | S49: 305.6 | T49: 411.1 | U49: 358.3 | V49: 283.3 | W49: 269.4 | X49: 347.2
A50: 参照|S0022 | B50: 地方別 / 沖縄 | C50: 625 | D50: 3,577.8 | E50: 298.1 | F50: 105,100.0 | G50: 8,758.3 | H50: 2778〜4167 kWh/年未満 | I50: 1389〜2778 kWh/年未満 | J50: S0022 | K50: 公的統計・既存住宅混在 | L50: 2023/4〜2024/3 | M50: 291.7 | N50: 241.7 | O50: 241.7 | P50: 252.8 | Q50: 233.3 | R50: 288.9 | S50: 380.6 | T50: 413.9 | U50: 377.8 | V50: 361.1 | W50: 255.6 | X50: 236.1
A51: 参照|S0024 | B51: 建て方別 / 戸建 | C51: 5919 | D51: 4,927.8 | E51: 410.6 | F51: 138,000.0 | G51: 11,500.0 | H51: 4167〜5556 kWh/年未満 | I51: 2778〜4167 kWh/年未満 | J51: S0024 | K51: 公的統計・既存住宅混在 | L51: 2023/4〜2024/3 | M51: 569.4 | N51: 538.9 | O51: 505.6 | P51: 394.4 | Q51: 333.3 | R51: 291.7 | S51: 338.9 | T51: 430.6 | U51: 425.0 | V51: 341.7 | W51: 336.1 | X51: 419.4
A52: 参照|S0025 | B52: 建て方別 / 集合 | C52: 3372 | D52: 2,725.0 | E52: 227.1 | F52: 78,400.0 | G52: 6,533.3 | H52: 1389〜2778 kWh/年未満 | I52: 1389〜2778 kWh/年未満 | J52: S0025 | K52: 公的統計・既存住宅混在 | L52: 2023/4〜2024/3 | M52: 269.4 | N52: 266.7 | O52: 255.6 | P52: 202.8 | Q52: 180.6 | R52: 172.2 | S52: 211.1 | T52: 272.2 | U52: 277.8 | V52: 219.4 | W52: 186.1 | X52: 208.3
A53: 参照|S1047 | B53: コージェネレーションシステムの使用有無別 / 使用している | C53: 97 | D53: 2,563.9 | E53: 213.7 | F53: 73,500.0 | G53: 6,125.0 | H53: 1389〜2778 kWh/年未満 | I53: 0〜1389 kWh/年未満 | J53: S1047 | K53: 公的統計・既存住宅混在 | L53: 2023/4〜2024/3 | M53: 258.3 | N53: 283.3 | O53: 258.3 | P53: 200.0 | Q53: 147.2 | R53: 136.1 | S53: 186.1 | T53: 275.0 | U53: 288.9 | V53: 208.3 | W53: 152.8 | X53: 172.2
A54: 参照|S1048 | B54: コージェネレーションシステムの使用有無別 / 使用していない | C54: 9162 | D54: 3,927.8 | E54: 327.3 | F54: 111,000.0 | G54: 9,250.0 | H54: 2778〜4167 kWh/年未満 | I54: 1389〜2778 kWh/年未満 | J54: S1048 | K54: 公的統計・既存住宅混在 | L54: 2023/4〜2024/3 | M54: 433.3 | N54: 416.7 | O54: 391.7 | P54: 308.3 | Q54: 263.9 | R54: 238.9 | S54: 280.6 | T54: 358.3 | U54: 358.3 | V54: 286.1 | W54: 269.4 | X54: 325.0
A55: 参照|S1052 | B55: 建て方別・コージェネレーションシステムの使用有無別 / 戸建 / 使用している | C55: 93 | D55: 2,638.9 | E55: 219.9 | F55: 75,900.0 | G55: 6,325.0 | H55: 1389〜2778 kWh/年未満 | I55: 1389〜2778 kWh/年未満 | J55: S1052 | K55: 公的統計・既存住宅混在 | L55: 2023/4〜2024/3 | M55: 266.7 | N55: 291.7 | O55: 269.4 | P55: 208.3 | Q55: 150.0 | R55: 136.1 | S55: 188.9 | T55: 283.3 | U55: 297.2 | V55: 213.9 | W55: 155.6 | X55: 177.8
A56: 参照|S1086 | B56: 家庭で使用しているエネルギー種別 / 電気のみを使用 | C56: 1318 | D56: 6,952.8 | E56: 579.4 | F56: 180,000.0 | G56: 15,000.0 | H56: 5556〜6944 kWh/年未満 | I56: 4167〜5556 kWh/年未満 | J56: S1086 | K56: 公的統計・既存住宅混在 | L56: 2023/4〜2024/3 | M56: 919.4 | N56: 847.2 | O56: 777.8 | P56: 575.0 | Q56: 469.4 | R56: 388.9 | S56: 430.6 | T56: 513.9 | U56: 491.7 | V56: 411.1 | W56: 466.7 | X56: 658.3
A57: 参照|S1087 | B57: 家庭で使用しているエネルギー種別 / 電気と都市ガスを使用 | C57: 2533 | D57: 3,233.3 | E57: 269.4 | F57: 94,700.0 | G57: 7,891.7 | H57: 2778〜4167 kWh/年未満 | I57: 1389〜2778 kWh/年未満 | J57: S1087 | K57: 公的統計・既存住宅混在 | L57: 2023/4〜2024/3 | M57: 316.7 | N57: 330.6 | O57: 316.7 | P57: 244.4 | Q57: 208.3 | R57: 197.2 | S57: 241.7 | T57: 316.7 | U57: 333.3 | V57: 266.7 | W57: 216.7 | X57: 238.9
A58: 参照|S1088 | B58: 家庭で使用しているエネルギー種別 / 電気とLPガスを使用 | C58: 1390 | D58: 3,083.3 | E58: 256.9 | F58: 88,100.0 | G58: 7,341.7 | H58: 1389〜2778 kWh/年未満 | I58: 1389〜2778 kWh/年未満 | J58: S1088 | K58: 公的統計・既存住宅混在 | L58: 2023/4〜2024/3 | M58: 341.7 | N58: 322.2 | O58: 297.2 | P58: 225.0 | Q58: 197.2 | R58: 188.9 | S58: 236.1 | T58: 305.6 | U58: 288.9 | V58: 227.8 | W58: 202.8 | X58: 250.0
A59: 参照|S1089 | B59: 家庭で使用しているエネルギー種別 / 電気と灯油を使用 | C59: 1041 | D59: 5,925.0 | E59: 493.8 | F59: 159,000.0 | G59: 13,250.0 | H59: 4167〜5556 kWh/年未満 | I59: 4167〜5556 kWh/年未満 | J59: S1089 | K59: 公的統計・既存住宅混在 | L59: 2023/4〜2024/3 | M59: 708.3 | N59: 644.4 | O59: 605.6 | P59: 502.8 | Q59: 425.0 | R59: 361.1 | S59: 397.2 | T59: 480.6 | U59: 458.3 | V59: 386.1 | W59: 422.2 | X59: 533.3
A60: 参照|S1090 | B60: 家庭で使用しているエネルギー種別 / 電気と都市ガスと灯油を使用 | C60: 1156 | D60: 3,361.1 | E60: 280.1 | F60: 98,800.0 | G60: 8,233.3 | H60: 2778〜4167 kWh/年未満 | I60: 1389〜2778 kWh/年未満 | J60: S1090 | K60: 公的統計・既存住宅混在 | L60: 2023/4〜2024/3 | M60: 327.8 | N60: 322.2 | O60: 311.1 | P60: 263.9 | Q60: 233.3 | R60: 213.9 | S60: 250.0 | T60: 333.3 | U60: 347.2 | V60: 269.4 | W60: 233.3 | X60: 258.3
A61: 参照|S1091 | B61: 家庭で使用しているエネルギー種別 / 電気とLPガスと灯油を使用 | C61: 1853 | D61: 3,633.3 | E61: 302.8 | F61: 106,100.0 | G61: 8,841.7 | H61: 2778〜4167 kWh/年未満 | I61: 1389〜2778 kWh/年未満 | J61: S1091 | K61: 公的統計・既存住宅混在 | L61: 2023/4〜2024/3 | M61: 394.4 | N61: 358.3 | O61: 341.7 | P61: 280.6 | Q61: 250.0 | R61: 225.0 | S61: 275.0 | T61: 352.8 | U61: 333.3 | V61: 261.1 | W61: 255.6 | X61: 302.8
A62: 参照|S1094 | B62: 建て方別・家庭で使用しているエネルギー種別 / 戸建 / 電気のみを使用 | C62: 1154 | D62: 7,363.9 | E62: 613.7 | F62: 190,200.0 | G62: 15,850.0 | H62: 5556〜6944 kWh/年未満 | I62: 4167〜5556 kWh/年未満 | J62: S1094 | K62: 公的統計・既存住宅混在 | L62: 2023/4〜2024/3 | M62: 988.9 | N62: 911.1 | O62: 833.3 | P62: 605.6 | Q62: 488.9 | R62: 405.6 | S62: 450.0 | T62: 541.7 | U62: 516.7 | V62: 430.6 | W62: 491.7 | X62: 700.0
A63: 参照|S1095 | B63: 建て方別・家庭で使用しているエネルギー種別 / 戸建 / 電気と都市ガスを使用 | C63: 1081 | D63: 4,111.1 | E63: 342.6 | F63: 121,700.0 | G63: 10,141.7 | H63: 2778〜4167 kWh/年未満 | I63: 2778〜4167 kWh/年未満 | J63: S1095 | K63: 公的統計・既存住宅混在 | L63: 2023/4〜2024/3 | M63: 416.7 | N63: 441.7 | O63: 419.4 | P63: 319.4 | Q63: 263.9 | R63: 241.7 | S63: 291.7 | T63: 388.9 | U63: 411.1 | V63: 330.6 | W63: 272.2 | X63: 311.1
A64: 参照|S1096 | B64: 建て方別・家庭で使用しているエネルギー種別 / 戸建 / 電気とLPガスを使用 | C64: 513 | D64: 4,469.4 | E64: 372.5 | F64: 126,000.0 | G64: 10,500.0 | H64: 2778〜4167 kWh/年未満 | I64: 2778〜4167 kWh/年未満 | J64: S1096 | K64: 公的統計・既存住宅混在 | L64: 2023/4〜2024/3 | M64: 511.1 | N64: 480.6 | O64: 444.4 | P64: 341.7 | Q64: 294.4 | R64: 272.2 | S64: 327.8 | T64: 416.7 | U64: 400.0 | V64: 313.9 | W64: 294.4 | X64: 372.2
A65: 参照|S1097 | B65: 建て方別・家庭で使用しているエネルギー種別 / 戸建 / 電気と灯油を使用 | C65: 969 | D65: 6,044.4 | E65: 503.7 | F65: 162,200.0 | G65: 13,516.7 | H65: 5556〜6944 kWh/年未満 | I65: 4167〜5556 kWh/年未満 | J65: S1097 | K65: 公的統計・既存住宅混在 | L65: 2023/4〜2024/3 | M65: 725.0 | N65: 661.1 | O65: 619.4 | P65: 511.1 | Q65: 433.3 | R65: 369.4 | S65: 402.8 | T65: 491.7 | U65: 466.7 | V65: 394.4 | W65: 427.8 | X65: 541.7
A66: 参照|S1098 | B66: 建て方別・家庭で使用しているエネルギー種別 / 戸建 / 電気と都市ガスと灯油を使用 | C66: 813 | D66: 3,819.4 | E66: 318.3 | F66: 113,500.0 | G66: 9,458.3 | H66: 2778〜4167 kWh/年未満 | I66: 2778〜4167 kWh/年未満 | J66: S1098 | K66: 公的統計・既存住宅混在 | L66: 2023/4〜2024/3 | M66: 380.6 | N66: 372.2 | O66: 358.3 | P66: 300.0 | Q66: 263.9 | R66: 238.9 | S66: 283.3 | T66: 375.0 | U66: 386.1 | V66: 297.2 | W66: 263.9 | X66: 297.2
A67: 参照|S1099 | B67: 建て方別・家庭で使用しているエネルギー種別 / 戸建 / 電気とLPガスと灯油を使用 | C67: 1389 | D67: 4,175.0 | E67: 347.9 | F67: 121,600.0 | G67: 10,133.3 | H67: 2778〜4167 kWh/年未満 | I67: 2778〜4167 kWh/年未満 | J67: S1099 | K67: 公的統計・既存住宅混在 | L67: 2023/4〜2024/3 | M67: 463.9 | N67: 422.2 | O67: 400.0 | P67: 322.2 | Q67: 288.9 | R67: 255.6 | S67: 311.1 | T67: 400.0 | U67: 375.0 | V67: 294.4 | W67: 288.9 | X67: 352.8
A68: 参照|S1101 | B68: 建て方別・家庭で使用しているエネルギー種別 / 集合 / 電気のみを使用 | C68: 164 | D68: 4,927.8 | E68: 410.6 | F68: 129,400.0 | G68: 10,783.3 | H68: 4167〜5556 kWh/年未満 | I68: 2778〜4167 kWh/年未満 | J68: S1101 | K68: 公的統計・既存住宅混在 | L68: 2023/4〜2024/3 | M68: 580.6 | N68: 538.9 | O68: 502.8 | P68: 430.6 | Q68: 372.2 | R68: 311.1 | S68: 336.1 | T68: 375.0 | U68: 366.7 | V68: 319.4 | W68: 350.0 | X68: 444.4
A69: 参照|S1102 | B69: 建て方別・家庭で使用しているエネルギー種別 / 集合 / 電気と都市ガスを使用 | C69: 1452 | D69: 2,755.6 | E69: 229.6 | F69: 80,000.0 | G69: 6,666.7 | H69: 1389〜2778 kWh/年未満 | I69: 1389〜2778 kWh/年未満 | J69: S1102 | K69: 公的統計・既存住宅混在 | L69: 2023/4〜2024/3 | M69: 261.1 | N69: 269.4 | O69: 261.1 | P69: 202.8 | Q69: 180.6 | R69: 175.0 | S69: 213.9 | T69: 277.8 | U69: 291.7 | V69: 233.3 | W69: 188.9 | X69: 202.8
A70: 参照|S1103 | B70: 建て方別・家庭で使用しているエネルギー種別 / 集合 / 電気とLPガスを使用 | C70: 877 | D70: 2,400.0 | E70: 200.0 | F70: 69,400.0 | G70: 5,783.3 | H70: 1389〜2778 kWh/年未満 | I70: 1389〜2778 kWh/年未満 | J70: S1103 | K70: 公的統計・既存住宅混在 | L70: 2023/4〜2024/3 | M70: 255.6 | N70: 244.4 | O70: 225.0 | P70: 166.7 | Q70: 150.0 | R70: 150.0 | S70: 191.7 | T70: 252.8 | U70: 236.1 | V70: 183.3 | W70: 155.6 | X70: 188.9
A71: 参照|S1104 | B71: 建て方別・家庭で使用しているエネルギー種別 / 集合 / 電気と灯油を使用 | C71: 72 | D71: 4,233.3 | E71: 352.8 | F71: 113,400.0 | G71: 9,450.0 | H71: 2778〜4167 kWh/年未満 | I71: 2778〜4167 kWh/年未満 | J71: S1104 | K71: 公的統計・既存住宅混在 | L71: 2023/4〜2024/3 | M71: 458.3 | N71: 405.6 | O71: 405.6 | P71: 380.6 | Q71: 330.6 | R71: 277.8 | S71: 313.9 | T71: 347.2 | U71: 333.3 | V71: 286.1 | W71: 313.9 | X71: 380.6
A72: 参照|S1105 | B72: 建て方別・家庭で使用しているエネルギー種別 / 集合 / 電気と都市ガスと灯油を使用 | C72: 343 | D72: 2,555.6 | E72: 213.0 | F72: 73,200.0 | G72: 6,100.0 | H72: 1389〜2778 kWh/年未満 | I72: 1389〜2778 kWh/年未満 | J72: S1105 | K72: 公的統計・既存住宅混在 | L72: 2023/4〜2024/3 | M72: 230.6 | N72: 230.6 | O72: 225.0 | P72: 197.2 | Q72: 180.6 | R72: 169.4 | S72: 197.2 | T72: 258.3 | U72: 277.8 | V72: 216.7 | W72: 183.3 | X72: 191.7
A73: 参照|S1106 | B73: 建て方別・家庭で使用しているエネルギー種別 / 集合 / 電気とLPガスと灯油を使用 | C73: 464 | D73: 2,291.7 | E73: 191.0 | F73: 67,500.0 | G73: 5,625.0 | H73: 1389〜2778 kWh/年未満 | I73: 1389〜2778 kWh/年未満 | J73: S1106 | K73: 公的統計・既存住宅混在 | L73: 2023/4〜2024/3 | M73: 219.4 | N73: 205.6 | O73: 194.4 | P73: 175.0 | Q73: 161.1 | R73: 147.2 | S73: 188.9 | T73: 238.9 | U73: 233.3 | V73: 177.8 | W73: 166.7 | X73: 180.6

Sheet 根拠と使い方
A2: 根拠・使い方・適用範囲
A4: 使い方 | B4: 操作 | C4: 判断のポイント
A5: 1 条件を選ぶ | B5: かんたん入力：都道府県・建て方・人数・断熱・設備 | C5: 図面や機器が未確定なら仮定を記録して標準から開始。
A6: 2 根拠を比較 | B6: 相場の選択で標本数・既存住宅の平均と照合 | C6: 相場は新築の推計値と同義ではない。平均と中央値も区別。
A7: 3 ASPへ転記 | B7: かんたん入力 B23:B34の12か月kWhを手入力 | C7: この表はASP専用一括取込CSVではない。詳細入力の対応月へ転記。
A8: 4 条件を保存 | B8: 利用時はGoogle Sheetsのコピーを作成 | C8: 家庭ごとの仮定と試算日を案件側に残す。電気代の算定はASPの選択プランで確認。
A11: 項目 | B11: 採用条件 | C11: 説明・限界
A12: 対象 | B12: 新築前の概算入力を短時間で作る | C12: 実測値、設計書の消費電力量、施工会社の試算が入手できたら優先して差し替える。
A13: モデルの位置づけ | B13: 公開計算法を組み合わせた条件指定モデル | C13: 公的機関がこのデータセットや都道府県別の値を公表したわけではない。精度検証前の計画用目安。
A14: 時間軸 | B14: 標準365日・1月→12月 | C14: うるう日の追加なし。エンジンの標準年を集計。令和5年度実績とは気象・生活条件が異なる。
A15: 地域 | B15: 47都道府県→代表地点→8気候区分 | C15: 同じ区分・同じ条件の県は同じモデル値になる。県別実測値や県独自の気象シミュレーションを装わない。
A16: 住戸 | B16: 戸建120.08m²／共同住宅70m² | C16: 居室・外皮面積はpyhees第11章第7節の標準住戸。外皮307.51／238.22m²。窓方位・住戸位置・日射遮蔽は個別未入力。
A17: 人数 | B17: 1〜4人の公開計算＋5・6人拡張 | C17: 家電・照明は5人14.97/13.53、6人18.97/13.53。給湯は5人18.52/15.27、6人18.89/15.27。人数比ではなく環境省用途別平均比。6人以上の統計からの拡張なので参考限定。
A18: 断熱 | B18: 等級4・5・6・7のUA閾値 | C18: 暖房と冷房だけに外皮が作用。家電や給湯まで一律に削減しない。日射条件固定では断熱強化で冷房消費が増えることもある。8地域の等級7は出力停止。
A19: 日射 | B19: 公開仕様基準のetaH/etaCを固定 | C19: 8地域の戸建は等級4/5のetaC=6.7、等級6=5.1。共同住宅は公開仕様値etaC=2.5・UA=1.60を仮定。等級の全適合を証明するモデルではない。
A20: 冷暖房 | B20: 居室エアコン・公開標準能力／効率 | C20: 全館24時間空調、床暖房、蓄熱暖房、寒冷地専用設計は別途。寒冷地を中心に未処理暖房負荷があり、同一快適性での精密比較には使わない。
A21: 照明・換気 | B21: 全室LED・0.5回/h・SFP0.3 | C21: 熱交換換気なし。比消費電力0.3 W/(m³/h)はモデル指定条件。機器の市場平均ではない。
A22: 給湯 | B22: 追焚あり・高断熱浴槽・節湯シャワーA | C22: HP e_rtd=3.3（機器指定パラメータ。実使用COPを3.3固定するという意味ではない）。ハイブリッドは公開計算の仕様区分2。型番別差は反映しない。
A23: ガス種 | B23: 都市ガス／LPの電気補機を共通化 | C23: ガス・灯油の燃料代は含めない。エコジョーズのガス削減量を電気代削減に読み替えない。
A24: エネファーム | B24: 需要側概算−入力した発電自家消費量 | C24: 発電量全量ではなく宅内自家消費分を入力。12か月未入力なら買電出力を止める。補機差は追加kWhへ。太陽光との同時運用制御は個別確認。
A25: 面積補正 | B25: 暖冷房・照明・換気だけを面積比例 | C25: 家電・給湯・IHには適用しない。幾何形状を再計算する省エネ計算法ではない。標準面積の0.5〜1.5倍外は別途精査。
A26: 生活感度 | B26: 少なめ0.8／標準1.0／多め1.2 | C26: 家電・照明・暖冷房・給湯・IHを変え、換気は固定。確率分布、95%区間、市場の下限上限ではない。
A27: 料金 | B27: 31円/kWh・固定加算0円 | C27: 概算電気代=丸めた買電kWh×単価＋固定加算。変更単価に基本料金相当分が含まれる場合は固定加算0円にする。時間帯・段階・燃調・賦課金・支援策の個別計算はASPの契約プランで。
A28: 太陽光・蓄電池 | B28: 基準は導入前、PV自家消費を控除しない | C28: ASPが行う太陽光・蓄電池計算との二重控除を避ける。既設PV後の買電実績から総需要への復元は別作業。
A29: 追加負荷 | B29: 月別追加kWh | C29: EV充電、衣類乾燥、在宅機器など既定モデルにない追加分のみ。EVを別画面で試算する場合は重複加算しない。
A30: 統計相場 | B30: 建て方×人数／地方×建て方／築浅 | C30: 元表にある交差集計だけを選択。断熱・設備・面積による補正を行わない。設備混在・PV混在。2021年以降建築は2025年基準適合住宅だけを意味しない。
A31: 統計丸め | B31: GJ×1000÷3.6、月値は整数kWh | C31: 原表の年平均と12か月合計は丸め差がある。入力画面は12か月の整数出力を年合計とする。原表平均と平均支払額も別列で保存。
A32: 代表値 | B32: 平均＋中央値が属する階級＋最多階級 | C32: 階級をまたぐ正確な中央値は公開値から確定できない。分布階級幅は5GJ（約1,389kWh/年）。
A33: 未対応の詳細 | B33: 全館空調、床暖房、熱交換、太陽熱、機種制御 | C33: 追加電力や実測・設計値で別途確認。石油給湯、寒冷地温水暖房、井戸・融雪・業務用途は標準カタログの対象外。
A34: 更新 | B34: 根拠確認日2026-09-25／v1.0.0 | C34: 統計・ASP仕様・計算法の改定時に更新。過去版を保持し、出典ファイルのSHA256とエンジンcommitで再現する。
A38: 根拠ID | B38: 公表主体 | C38: 資料 | D38: URL | E38: このデータセットでの用途
A39: R01 | B39: 建築研究所／公開計算 | C39: pyhees 3.10.0・commit固定 | D39: https://github.com/BRI-EES-House/pyhees/tree/d5224c4a01def00a8421bcd2fcc0d4b4a5b88644 | E39: 暖冷房・家電・照明・換気・給湯の二次電力を1時間値から月集計。研究用。認証値・実測平均ではない。
A40: R02 | B40: 国土交通省 | C40: 断熱等性能等級・地域別UA等 | D40: https://www.mlit.go.jp/policy/shingikai/content/001622615.pdf | E40: 等級別UA閾値を入力。日射取得、機器効率、運転条件を固定した比較。等級だけで実際の消費量は決まらない。
A41: R03 | B41: 環境省 | C41: 家庭部門CO2排出実態統計 令和5年度 | D41: https://www.env.go.jp/earth/ondanka/ghg/kateiCO2tokei.html | E41: 公表統計の母集団は既存住宅を含む一般世帯。最新公表の確報を2026-09-25に確認。
A42: R04 | B42: 環境省 | C42: 用途別エネルギー消費量の推計方法 | D42: https://www.env.go.jp/content/000261326.pdf | E42: IH年間消費量と調理月配分の出典。用途推計の仮定であり個別住宅実測ではない。
A43: R05 | B43: e-Stat／環境省 | C43: 第6-1-1表・月別エネルギー消費量 | D43: https://www.e-stat.go.jp/stat-search/file-download?statInfId=000040277725&fileKind=4 | E43: 2023年4月〜2024年3月。電気の二次GJを1000/3.6でkWh換算。原表行番号を保持。
A44: R06 | B44: e-Stat／環境省 | C44: 第6-2-1表・年間エネルギー消費量 | D44: https://www.e-stat.go.jp/stat-search/file-download?statInfId=000040277732&fileKind=4 | E44: 平均、標本数、分布階級。中央値・最多階級は階級まで示し、精密な中央値を捏造しない。
A45: R07 | B45: e-Stat／環境省 | C45: 第6-5-1表・年間エネルギー支払金額 | D45: https://www.e-stat.go.jp/stat-search/file-download?statInfId=000040277753&fileKind=4 | E45: 過年度支払額の統計。現在の契約料金ではない。万円を円に換算。
A46: R08 | B46: 気象庁 | C46: 過去の気象データ検索・平年値1991〜2020 | D46: https://www.data.jma.go.jp/stats/etrn/index.php | E46: 47代表地点の月平均気温。県全域・人口加重平均ではない。計算自体はpyheesの8気候データで、気象庁値は診断用の参考情報。
A47: R09 | B47: 国土交通省 | C47: 地域区分新旧表・改正後 | D47: https://www.mlit.go.jp/common/001500182.pdf | E47: 代表地点の中心市街地を初期値に採用。市町村・旧市町村の差は入力画面で1〜8地域へ変更。
A48: R10 | B48: 全国家庭電気製品公正取引協議会 | C48: 電力料金の目安単価31円/kWh（税込） | D48: https://www.eftc.or.jp/qa/ | E48: 電気代の簡易換算。2022年7月改定。2026年の請求予測や電力会社別の料金表ではない。
A49: R11 | B49: エネがえる公式マニュアル | C49: 新規診断・電力消費量入力 | D49: https://www-v4.enegaeru.com/aspweb42/manual/newsimulation.html | E49: 月平均または複数月のkWh／円の入力手順。
A50: R12 | B50: エネがえる公式マニュアル | C50: 詳細・電力消費量 | D50: https://www-v4.enegaeru.com/aspweb42/manual/detail/ep.html | E50: 12か月の手入力設定に用いる。
A51: R13 | B51: エネがえる公式FAQ | C51: 電気料金からの消費電力量の逆算 | D51: https://faq.enegaeru.com/ja/articles/5000295 | E51: 選択料金プラン等による逆算。31円換算額から同じkWhに戻る保証はない。
A52: R14 | B52: エネがえる公式FAQ | C52: エネファーム・エコワン等の対応範囲 | D52: https://faq.enegaeru.com/ja/articles/3838023 | E52: 需要データの外部作成は、ASPで各給湯・発電機器を直接評価できることを意味しない。
A53: R15 | B53: 環境省 | C53: 用途別詳細統計 第7-1-1表 | D53: https://www.e-stat.go.jp/stat-search/file-download?statInfId=000040277760&fileKind=4 | E53: 5・6人拡張の比率と用途別の整合確認。5・6人の個別動作を再現したものではない。
A54: R16 | B54: 建築研究所 | C54: 住宅に関する省エネルギー基準に準拠したプログラム等 | D54: https://www.kenken.go.jp/becc/house.html | E54: 公開計算法・pyheesへの公式案内。
A58: 検証項目 | B58: 結果 | C58: 備考
A59: 都道府県 | B59: 47 | C59: すべての都道府県を収録
A60: 全条件数 | B60: 20304 | C60: 47×2建て方×6人数×4断熱条件×9設備
A61: そのまま転記可能な条件 | B61: 15708 | C61: エネファーム補正待ち・8地域等級7を除外
A62: 公的統計行 | B62: 965 | C62: 秘匿値は空欄＋記号
A63: 月次集計 | B63: PASS | C63: すべて12か月・非負・有限
A64: 年計・料金 | B64: PASS | C64: 年計=整数月値合計、概算円=月kWh×31
A65: エンジン | B65: pyhees 3.10.0 | C65: d5224c4a01def00a8421bcd2fcc0d4b4a5b88644
A66: 版・確認日 | B66: 1.0.0 / 2026-09-25 | C66: 個別世帯での外部検証は未実施。精度保証ではない。

Sheet 公的統計
A2: 環境省｜公表統計を原表行まで確認
A3: 令和5年度・既存住宅混在。二次電力GJをkWh換算。原表の年値と月合計には丸め差があります。非公表は空欄を保持。
A5: 統計ID | B5: 属性群 | C5: 属性1 | D5: 属性2 | E5: 標本数 | F5: 原表年 GJ | G5: 換算年 kWh | H5: 月平均 kWh | I5: 実績年 円 | J5: 実績月平均 円 | K5: 中央値の属する階級 | L5: 最多階級 | M5: 利用区分 | N5: 秘匿記号 | O5: 根拠ID | P5: 原表Excel行 | Q5: 1月換算 kWh | R5: 2月換算 kWh | S5: 3月換算 kWh | T5: 4月換算 kWh | U5: 5月換算 kWh | V5: 6月換算 kWh | W5: 7月換算 kWh | X5: 8月換算 kWh | Y5: 9月換算 kWh | Z5: 10月換算 kWh | AA5: 11月換算 kWh | AB5: 12月換算 kWh
A6: S0011 | B6: 全国 | E6: 9291 | F6: 14.1 | G6: 3,911.1 | H6: 325.9 | I6: 110,500 | J6: 9,208 | K6: 2778〜4167 kWh/年未満 | L6: 1389〜2778 kWh/年未満 | M6: 公的統計・既存住宅混在 | O6: R05/R06/R07 | P6: 11 | Q6: 430.6 | R6: 413.9 | S6: 391.7 | T6: 305.6 | U6: 263.9 | V6: 236.1 | W6: 280.6 | X6: 358.3 | Y6: 355.6 | Z6: 286.1 | AA6: 266.7 | AB6: 322.2
A7: S0013 | B7: 地方別 | C7: 北海道 | E7: 859 | F7: 13.5 | G7: 3,747.2 | H7: 312.3 | I7: 118,000 | J7: 9,833 | K7: 1389〜2778 kWh/年未満 | L7: 1389〜2778 kWh/年未満 | M7: 公的統計・既存住宅混在 | O7: R05/R06/R07 | P7: 13 | Q7: 472.2 | R7: 388.9 | S7: 380.6 | T7: 338.9 | U7: 300.0 | V7: 227.8 | W7: 238.9 | X7: 266.7 | Y7: 263.9 | Z7: 241.7 | AA7: 280.6 | AB7: 344.4
A8: S0014 | B8: 地方別 | C8: 東北 | E8: 893 | F8: 16.1 | G8: 4,477.8 | H8: 373.1 | I8: 130,700 | J8: 10,892 | K8: 2778〜4167 kWh/年未満 | L8: 2778〜4167 kWh/年未満 | M8: 公的統計・既存住宅混在 | O8: R05/R06/R07 | P8: 14 | Q8: 566.7 | R8: 500.0 | S8: 500.0 | T8: 380.6 | U8: 311.1 | V8: 238.9 | W8: 275.0 | X8: 350.0 | Y8: 344.4 | Z8: 266.7 | AA8: 311.1 | AB8: 430.6
A9: S0015 | B9: 地方別 | C9: 関東甲信 | E9: 1566 | F9: 13.0 | G9: 3,600.0 | H9: 300.0 | I9: 109,300 | J9: 9,108 | K9: 2778〜4167 kWh/年未満 | L9: 1389〜2778 kWh/年未満 | M9: 公的統計・既存住宅混在 | O9: R05/R06/R07 | P9: 15 | Q9: 358.3 | R9: 383.3 | S9: 361.1 | T9: 275.0 | U9: 233.3 | V9: 225.0 | W9: 263.9 | X9: 336.1 | Y9: 350.0 | Z9: 286.1 | AA9: 247.2 | AB9: 277.8
A10: S0016 | B10: 地方別 | C10: 北陸 | E10: 806 | F10: 19.1 | G10: 5,300.0 | H10: 441.7 | I10: 148,400 | J10: 12,367 | K10: 4167〜5556 kWh/年未満 | L10: 2778〜4167 kWh/年未満 | M10: 公的統計・既存住宅混在 | O10: R05/R06/R07 | P10: 16 | Q10: 650.0 | R10: 594.4 | S10: 580.6 | T10: 430.6 | U10: 366.7 | V10: 297.2 | W10: 333.3 | X10: 458.3 | Y10: 433.3 | Z10: 322.2 | AA10: 355.6 | AB10: 480.6
A11: S0017 | B11: 地方別 | C11: 東海 | E11: 934 | F11: 14.2 | G11: 3,955.6 | H11: 329.6 | I11: 111,500 | J11: 9,292 | K11: 2778〜4167 kWh/年未満 | L11: 1389〜2778 kWh/年未満 | M11: 公的統計・既存住宅混在 | O11: R05/R06/R07 | P11: 17 | Q11: 427.8 | R11: 413.9 | S11: 375.0 | T11: 305.6 | U11: 261.1 | V11: 244.4 | W11: 300.0 | X11: 375.0 | Y11: 375.0 | Z11: 291.7 | AA11: 269.4 | AB11: 313.9
A12: S0018 | B12: 地方別 | C12: 近畿 | E12: 1027 | F12: 13.6 | G12: 3,769.4 | H12: 314.1 | I12: 95,100 | J12: 7,925 | K12: 2778〜4167 kWh/年未満 | L12: 1389〜2778 kWh/年未満 | M12: 公的統計・既存住宅混在 | O12: R05/R06/R07 | P12: 18 | Q12: 411.1 | R12: 400.0 | S12: 372.2 | T12: 300.0 | U12: 258.3 | V12: 219.4 | W12: 269.4 | X12: 347.2 | Y12: 355.6 | Z12: 280.6 | AA12: 255.6 | AB12: 300.0
A13: S0019 | B13: 地方別 | C13: 中国 | E13: 890 | F13: 16.0 | G13: 4,450.0 | H13: 370.8 | I13: 127,100 | J13: 10,592 | K13: 2778〜4167 kWh/年未満 | L13: 1389〜2778 kWh/年未満 | M13: 公的統計・既存住宅混在 | O13: R05/R06/R07 | P13: 19 | Q13: 536.1 | R13: 494.4 | S13: 452.8 | T13: 341.7 | U13: 297.2 | V13: 261.1 | W13: 308.3 | X13: 394.4 | Y13: 375.0 | Z13: 291.7 | AA13: 300.0 | AB13: 391.7
A14: S0020 | B14: 地方別 | C14: 四国 | E14: 791 | F14: 16.5 | G14: 4,572.2 | H14: 381.0 | I14: 119,900 | J14: 9,992 | K14: 2778〜4167 kWh/年未満 | L14: 1389〜2778 kWh/年未満 | M14: 公的統計・既存住宅混在 | O14: R05/R06/R07 | P14: 20 | Q14: 547.2 | R14: 486.1 | S14: 483.3 | T14: 352.8 | U14: 325.0 | V14: 269.4 | W14: 311.1 | X14: 411.1 | Y14: 380.6 | Z14: 316.7 | AA14: 297.2 | AB14: 391.7
A15: S0021 | B15: 地方別 | C15: 九州 | E15: 900 | F15: 14.6 | G15: 4,041.7 | H15: 336.8 | I15: 98,400 | J15: 8,200 | K15: 2778〜4167 kWh/年未満 | L15: 1389〜2778 kWh/年未満 | M15: 公的統計・既存住宅混在 | O15: R05/R06/R07 | P15: 21 | Q15: 469.4 | R15: 402.8 | S15: 372.2 | T15: 300.0 | U15: 266.7 | V15: 255.6 | W15: 305.6 | X15: 411.1 | Y15: 358.3 | Z15: 283.3 | AA15: 269.4 | AB15: 347.2
A16: S0022 | B16: 地方別 | C16: 沖縄 | E16: 625 | F16: 12.9 | G16: 3,577.8 | H16: 298.1 | I16: 105,100 | J16: 8,758 | K16: 2778〜4167 kWh/年未満 | L16: 1389〜2778 kWh/年未満 | M16: 公的統計・既存住宅混在 | O16: R05/R06/R07 | P16: 22 | Q16: 291.7 | R16: 241.7 | S16: 241.7 | T16: 252.8 | U16: 233.3 | V16: 288.9 | W16: 380.6 | X16: 413.9 | Y16: 377.8 | Z16: 361.1 | AA16: 255.6 | AB16: 236.1
A17: S0024 | B17: 建て方別 | C17: 戸建 | E17: 5919 | F17: 17.7 | G17: 4,927.8 | H17: 410.6 | I17: 138,000 | J17: 11,500 | K17: 4167〜5556 kWh/年未満 | L17: 2778〜4167 kWh/年未満 | M17: 公的統計・既存住宅混在 | O17: R05/R06/R07 | P17: 24 | Q17: 569.4 | R17: 538.9 | S17: 505.6 | T17: 394.4 | U17: 333.3 | V17: 291.7 | W17: 338.9 | X17: 430.6 | Y17: 425.0 | Z17: 341.7 | AA17: 336.1 | AB17: 419.4
A18: S0025 | B18: 建て方別 | C18: 集合 | E18: 3372 | F18: 9.8 | G18: 2,725.0 | H18: 227.1 | I18: 78,400 | J18: 6,533 | K18: 1389〜2778 kWh/年未満 | L18: 1389〜2778 kWh/年未満 | M18: 公的統計・既存住宅混在 | O18: R05/R06/R07 | P18: 25 | Q18: 269.4 | R18: 266.7 | S18: 255.6 | T18: 202.8 | U18: 180.6 | V18: 172.2 | W18: 211.1 | X18: 272.2 | Y18: 277.8 | Z18: 219.4 | AA18: 186.1 | AB18: 208.3
A19: S0028 | B19: 地方別・建て方別 | C19: 北海道 | D19: 戸建 | E19: 524 | F19: 17.0 | G19: 4,730.6 | H19: 394.2 | I19: 147,400 | J19: 12,283 | K19: 2778〜4167 kWh/年未満 | L19: 2778〜4167 kWh/年未満 | M19: 公的統計・既存住宅混在 | O19: R05/R06/R07 | P19: 28 | Q19: 625.0 | R19: 513.9 | S19: 494.4 | T19: 430.6 | U19: 369.4 | V19: 277.8 | W19: 288.9 | X19: 327.8 | Y19: 319.4 | Z19: 291.7 | AA19: 347.2 | AB19: 444.4
A20: S0029 | B20: 地方別・建て方別 | C20: 北海道 | D20: 集合 | E20: 335 | F20: 9.5 | G20: 2,644.4 | H20: 220.4 | I20: 85,000 | J20: 7,083 | K20: 1389〜2778 kWh/年未満 | L20: 1389〜2778 kWh/年未満 | M20: 公的統計・既存住宅混在 | O20: R05/R06/R07 | P20: 29 | Q20: 302.8 | R20: 250.0 | S20: 252.8 | T20: 236.1 | U20: 219.4 | V20: 172.2 | W20: 183.3 | X20: 202.8 | Y20: 202.8 | Z20: 186.1 | AA20: 205.6 | AB20: 233.3
A21: S0031 | B21: 地方別・建て方別 | C21: 東北 | D21: 戸建 | E21: 655 | F21: 19.2 | G21: 5,319.4 | H21: 443.3 | I21: 154,400 | J21: 12,867 | K21: 4167〜5556 kWh/年未満 | L21: 2778〜4167 kWh/年未満 | M21: 公的統計・既存住宅混在 | O21: R05/R06/R07 | P21: 31 | Q21: 691.7 | R21: 608.3 | S21: 605.6 | T21: 455.6 | U21: 366.7 | V21: 280.6 | W21: 316.7 | X21: 402.8 | Y21: 397.2 | Z21: 308.3 | AA21: 366.7 | AB21: 522.2
A22: S0032 | B22: 地方別・建て方別 | C22: 東北 | D22: 集合 | E22: 238 | F22: 9.2 | G22: 2,566.7 | H22: 213.9 | I22: 77,100 | J22: 6,425 | K22: 1389〜2778 kWh/年未満 | L22: 1389〜2778 kWh/年未満 | M22: 公的統計・既存住宅混在 | O22: R05/R06/R07 | P22: 32 | Q22: 283.3 | R22: 258.3 | S22: 261.1 | T22: 211.1 | U22: 183.3 | V22: 150.0 | W22: 177.8 | X22: 233.3 | Y22: 227.8 | Z22: 172.2 | AA22: 183.3 | AB22: 222.2
A23: S0034 | B23: 地方別・建て方別 | C23: 関東甲信 | D23: 戸建 | E23: 865 | F23: 16.7 | G23: 4,625.0 | H23: 385.4 | I23: 138,800 | J23: 11,567 | K23: 2778〜4167 kWh/年未満 | L23: 2778〜4167 kWh/年未満 | M23: 公的統計・既存住宅混在 | O23: R05/R06/R07 | P23: 34 | Q23: 486.1 | R23: 516.7 | S23: 480.6 | T23: 363.9 | U23: 302.8 | V23: 283.3 | W23: 325.0 | X23: 408.3 | Y23: 422.2 | Z23: 347.2 | AA23: 313.9 | AB23: 369.4
A24: S0035 | B24: 地方別・建て方別 | C24: 関東甲信 | D24: 集合 | E24: 701 | F24: 9.8 | G24: 2,708.3 | H24: 225.7 | I24: 83,700 | J24: 6,975 | K24: 1389〜2778 kWh/年未満 | L24: 1389〜2778 kWh/年未満 | M24: 公的統計・既存住宅混在 | O24: R05/R06/R07 | P24: 35 | Q24: 247.2 | R24: 269.4 | S24: 255.6 | T24: 197.2 | U24: 175.0 | V24: 175.0 | W24: 213.9 | X24: 272.2 | Y24: 288.9 | Z24: 233.3 | AA24: 188.9 | AB24: 197.2
A25: S0037 | B25: 地方別・建て方別 | C25: 北陸 | D25: 戸建 | E25: 606 | F25: 22.1 | G25: 6,130.6 | H25: 510.9 | I25: 170,700 | J25: 14,225 | K25: 4167〜5556 kWh/年未満 | L25: 4167〜5556 kWh/年未満 | M25: 公的統計・既存住宅混在 | O25: R05/R06/R07 | P25: 37 | Q25: 766.7 | R25: 694.4 | S25: 677.8 | T25: 500.0 | U25: 422.2 | V25: 336.1 | W25: 377.8 | X25: 522.2 | Y25: 491.7 | Z25: 366.7 | AA25: 411.1 | AB25: 561.1
A26: S0038 | B26: 地方別・建て方別 | C26: 北陸 | D26: 集合 | E26: 200 | F26: 10.7 | G26: 2,958.3 | H26: 246.5 | I26: 85,700 | J26: 7,142 | K26: 1389〜2778 kWh/年未満 | L26: 1389〜2778 kWh/年未満 | M26: 公的統計・既存住宅混在 | O26: R05/R06/R07 | P26: 38 | Q26: 327.8 | R26: 305.6 | S26: 302.8 | T26: 236.1 | U26: 208.3 | V26: 180.6 | W26: 208.3 | X26: 277.8 | Y26: 263.9 | Z26: 194.4 | AA26: 200.0 | AB26: 255.6
A27: S0040 | B27: 地方別・建て方別 | C27: 東海 | D27: 戸建 | E27: 661 | F27: 17.4 | G27: 4,836.1 | H27: 403.0 | I27: 134,500 | J27: 11,208 | K27: 4167〜5556 kWh/年未満 | L27: 2778〜4167 kWh/年未満 | M27: 公的統計・既存住宅混在 | O27: R05/R06/R07 | P27: 40 | Q27: 544.4 | R27: 519.4 | S27: 469.4 | T27: 375.0 | U27: 322.2 | V27: 294.4 | W27: 355.6 | X27: 444.4 | Y27: 438.9 | Z27: 347.2 | AA27: 330.6 | AB27: 394.4
A28: S0041 | B28: 地方別・建て方別 | C28: 東海 | D28: 集合 | E28: 273 | F28: 9.4 | G28: 2,597.2 | H28: 216.4 | I28: 76,100 | J28: 6,342 | K28: 1389〜2778 kWh/年未満 | L28: 1389〜2778 kWh/年未満 | M28: 公的統計・既存住宅混在 | O28: R05/R06/R07 | P28: 41 | Q28: 252.8 | R28: 247.2 | S28: 230.6 | T28: 197.2 | U28: 169.4 | V28: 166.7 | W28: 211.1 | X28: 269.4 | Y28: 275.0 | Z28: 208.3 | AA28: 175.0 | AB28: 191.7
A29: S0043 | B29: 地方別・建て方別 | C29: 近畿 | D29: 戸建 | E29: 599 | F29: 17.0 | G29: 4,708.3 | H29: 392.4 | I29: 120,700 | J29: 10,058 | K29: 2778〜4167 kWh/年未満 | L29: 2778〜4167 kWh/年未満 | M29: 公的統計・既存住宅混在 | O29: R05/R06/R07 | P29: 43 | Q29: 536.1 | R29: 513.9 | S29: 477.8 | T29: 386.1 | U29: 322.2 | V29: 269.4 | W29: 327.8 | X29: 416.7 | Y29: 419.4 | Z29: 336.1 | AA29: 316.7 | AB29: 386.1
A30: S0044 | B30: 地方別・建て方別 | C30: 近畿 | D30: 集合 | E30: 428 | F30: 10.3 | G30: 2,847.2 | H30: 237.3 | I30: 70,000 | J30: 5,833 | K30: 1389〜2778 kWh/年未満 | L30: 1389〜2778 kWh/年未満 | M30: 公的統計・既存住宅混在 | O30: R05/R06/R07 | P30: 44 | Q30: 288.9 | R30: 286.1 | S30: 272.2 | T30: 216.7 | U30: 191.7 | V30: 172.2 | W30: 213.9 | X30: 277.8 | Y30: 294.4 | Z30: 227.8 | AA30: 194.4 | AB30: 213.9
A31: S0046 | B31: 地方別・建て方別 | C31: 中国 | D31: 戸建 | E31: 601 | F31: 19.6 | G31: 5,430.6 | H31: 452.5 | I31: 155,500 | J31: 12,958 | K31: 4167〜5556 kWh/年未満 | L31: 4167〜5556 kWh/年未満 | M31: 公的統計・既存住宅混在 | O31: R05/R06/R07 | P31: 46 | Q31: 675.0 | R31: 613.9 | S31: 563.9 | T31: 419.4 | U31: 366.7 | V31: 316.7 | W31: 366.7 | X31: 461.1 | Y31: 436.1 | Z31: 347.2 | AA31: 372.2 | AB31: 491.7
A32: S0047 | B32: 地方別・建て方別 | C32: 中国 | D32: 集合 | E32: 289 | F32: 10.0 | G32: 2,766.7 | H32: 230.6 | I32: 78,300 | J32: 6,525 | K32: 1389〜2778 kWh/年未満 | L32: 1389〜2778 kWh/年未満 | M32: 公的統計・既存住宅混在 | O32: R05/R06/R07 | P32: 47 | Q32: 302.8 | R32: 288.9 | S32: 263.9 | T32: 211.1 | U32: 177.8 | V32: 166.7 | W32: 211.1 | X32: 277.8 | Y32: 269.4 | Z32: 197.2 | AA32: 177.8 | AB32: 225.0
A33: S0049 | B33: 地方別・建て方別 | C33: 四国 | D33: 戸建 | E33: 561 | F33: 19.3 | G33: 5,366.7 | H33: 447.2 | I33: 140,200 | J33: 11,683 | K33: 4167〜5556 kWh/年未満 | L33: 2778〜4167 kWh/年未満 | M33: 公的統計・既存住宅混在 | O33: R05/R06/R07 | P33: 49 | Q33: 655.6 | R33: 577.8 | S33: 575.0 | T33: 413.9 | U33: 380.6 | V33: 311.1 | W33: 358.3 | X33: 472.2 | Y33: 436.1 | Z33: 366.7 | AA33: 350.0 | AB33: 469.4
A34: S0050 | B34: 地方別・建て方別 | C34: 四国 | D34: 集合 | E34: 230 | F34: 10.1 | G34: 2,816.7 | H34: 234.7 | I34: 75,000 | J34: 6,250 | K34: 1389〜2778 kWh/年未満 | L34: 1389〜2778 kWh/年未満 | M34: 公的統計・既存住宅混在 | O34: R05/R06/R07 | P34: 50 | Q34: 308.3 | R34: 283.3 | S34: 283.3 | T34: 213.9 | U34: 197.2 | V34: 169.4 | W34: 205.6 | X34: 277.8 | Y34: 258.3 | Z34: 213.9 | AA34: 180.6 | AB34: 225.0
A35: S0052 | B35: 地方別・建て方別 | C35: 九州 | D35: 戸建 | E35: 559 | F35: 18.2 | G35: 5,050.0 | H35: 420.8 | I35: 121,600 | J35: 10,133 | K35: 4167〜5556 kWh/年未満 | L35: 2778〜4167 kWh/年未満 | M35: 公的統計・既存住宅混在 | O35: R05/R06/R07 | P35: 52 | Q35: 608.3 | R35: 516.7 | S35: 475.0 | T35: 386.1 | U35: 336.1 | V35: 316.7 | W35: 363.9 | X35: 488.9 | Y35: 430.6 | Z35: 344.4 | AA35: 338.9 | AB35: 447.2
A36: S0053 | B36: 地方別・建て方別 | C36: 九州 | D36: 集合 | E36: 341 | F36: 9.7 | G36: 2,705.6 | H36: 225.5 | I36: 67,700 | J36: 5,642 | K36: 1389〜2778 kWh/年未満 | L36: 1389〜2778 kWh/年未満 | M36: 公的統計・既存住宅混在 | O36: R05/R06/R07 | P36: 53 | Q36: 288.9 | R36: 250.0 | S36: 233.3 | T36: 188.9 | U36: 172.2 | V36: 177.8 | W36: 225.0 | X36: 305.6 | Y36: 266.7 | Z36: 202.8 | AA36: 175.0 | AB36: 219.4
A37: S0055 | B37: 地方別・建て方別 | C37: 沖縄 | D37: 戸建 | E37: 288 | F37: 16.9 | G37: 4,691.7 | H37: 391.0 | I37: 134,700 | J37: 11,225 | K37: 2778〜4167 kWh/年未満 | L37: 2778〜4167 kWh/年未満 | M37: 公的統計・既存住宅混在 | O37: R05/R06/R07 | P37: 55 | Q37: 397.2 | R37: 325.0 | S37: 322.2 | T37: 338.9 | U37: 305.6 | V37: 369.4 | W37: 488.9 | X37: 530.6 | Y37: 491.7 | Z37: 472.2 | AA37: 336.1 | AB37: 316.7
A38: S0056 | B38: 地方別・建て方別 | C38: 沖縄 | D38: 集合 | E38: 337 | F38: 10.1 | G38: 2,808.3 | H38: 234.0 | I38: 84,600 | J38: 7,050 | K38: 1389〜2778 kWh/年未満 | L38: 1389〜2778 kWh/年未満 | M38: 公的統計・既存住宅混在 | O38: R05/R06/R07 | P38: 56 | Q38: 219.4 | R38: 183.3 | S38: 186.1 | T38: 194.4 | U38: 183.3 | V38: 230.6 | W38: 305.6 | X38: 333.3 | Y38: 300.0 | Z38: 286.1 | AA38: 200.0 | AB38: 183.3
A39: S0058 | B39: 都市階級別 | C39: 都市階級1 | E39: 3663 | F39: 13.2 | G39: 3,666.7 | H39: 305.6 | I39: 104,700 | J39: 8,725 | K39: 2778〜4167 kWh/年未満 | L39: 1389〜2778 kWh/年未満 | M39: 公的統計・既存住宅混在 | O39: R05/R06/R07 | P39: 58 | Q39: 388.9 | R39: 380.6 | S39: 361.1 | T39: 286.1 | U39: 247.2 | V39: 225.0 | W39: 266.7 | X39: 344.4 | Y39: 350.0 | Z39: 277.8 | AA39: 247.2 | AB39: 291.7
A40: S0059 | B40: 都市階級別 | C40: 都市階級2 | E40: 3839 | F40: 14.3 | G40: 3,983.3 | H40: 331.9 | I40: 113,000 | J40: 9,417 | K40: 2778〜4167 kWh/年未満 | L40: 1389〜2778 kWh/年未満 | M40: 公的統計・既存住宅混在 | O40: R05/R06/R07 | P40: 59 | Q40: 441.7 | R40: 427.8 | S40: 400.0 | T40: 311.1 | U40: 263.9 | V40: 238.9 | W40: 286.1 | X40: 361.1 | Y40: 358.3 | Z40: 288.9 | AA40: 272.2 | AB40: 330.6
A41: S0060 | B41: 都市階級別 | C41: 都市階級3 | E41: 1789 | F41: 15.9 | G41: 4,416.7 | H41: 368.1 | I41: 120,400 | J41: 10,033 | K41: 2778〜4167 kWh/年未満 | L41: 1389〜2778 kWh/年未満 | M41: 公的統計・既存住宅混在 | O41: R05/R06/R07 | P41: 60 | Q41: 519.4 | R41: 472.2 | S41: 447.2 | T41: 352.8 | U41: 305.6 | V41: 266.7 | W41: 311.1 | X41: 383.3 | Y41: 363.9 | Z41: 297.2 | AA41: 305.6 | AB41: 388.9
A42: S0063 | B42: 地方別・都市階級別 | C42: 北海道 | D42: 都市階級1 | E42: 333 | F42: 12.3 | G42: 3,427.8 | H42: 285.6 | I42: 110,600 | J42: 9,217 | K42: 1389〜2778 kWh/年未満 | L42: 1389〜2778 kWh/年未満 | M42: 公的統計・既存住宅混在 | O42: R05/R06/R07 | P42: 63 | Q42: 430.6 | R42: 358.3 | S42: 341.7 | T42: 302.8 | U42: 266.7 | V42: 211.1 | W42: 219.4 | X42: 250.0 | Y42: 247.2 | Z42: 219.4 | AA42: 255.6 | AB42: 319.4
A43: S0064 | B43: 地方別・都市階級別 | C43: 北海道 | D43: 都市階級2 | E43: 322 | F43: 14.2 | G43: 3,938.9 | H43: 328.2 | I43: 122,400 | J43: 10,200 | K43: 2778〜4167 kWh/年未満 | L43: 1389〜2778 kWh/年未満 | M43: 公的統計・既存住宅混在 | O43: R05/R06/R07 | P43: 64 | Q43: 508.3 | R43: 419.4 | S43: 411.1 | T43: 366.7 | U43: 316.7 | V43: 230.6 | W43: 241.7 | X43: 275.0 | Y43: 261.1 | Z43: 250.0 | AA43: 294.4 | AB43: 369.4
A44: S0065 | B44: 地方別・都市階級別 | C44: 北海道 | D44: 都市階級3 | E44: 204 | F44: 14.4 | G44: 3,986.1 | H44: 332.2 | I44: 123,500 | J44: 10,292 | K44: 2778〜4167 kWh/年未満 | L44: 1389〜2778 kWh/年未満 | M44: 公的統計・既存住宅混在 | O44: R05/R06/R07 | P44: 65 | Q44: 488.9 | R44: 397.2 | S44: 397.2 | T44: 361.1 | U44: 327.8 | V44: 255.6 | W44: 263.9 | X44: 286.1 | Y44: 291.7 | Z44: 266.7 | AA44: 297.2 | AB44: 352.8
A45: S0067 | B45: 地方別・都市階級別 | C45: 東北 | D45: 都市階級1 | E45: 282 | F45: 14.7 | G45: 4,080.6 | H45: 340.0 | I45: 120,400 | J45: 10,033 | K45: 2778〜4167 kWh/年未満 | L45: 1389〜2778 kWh/年未満 | M45: 公的統計・既存住宅混在 | O45: R05/R06/R07 | P45: 67 | Q45: 502.8 | R45: 447.2 | S45: 444.4 | T45: 347.2 | U45: 288.9 | V45: 219.4 | W45: 252.8 | X45: 336.1 | Y45: 327.8 | Z45: 252.8 | AA45: 283.3 | AB45: 377.8
A46: S0068 | B46: 地方別・都市階級別 | C46: 東北 | D46: 都市階級2 | E46: 369 | F46: 16.2 | G46: 4,500.0 | H46: 375.0 | I46: 132,100 | J46: 11,008 | K46: 2778〜4167 kWh/年未満 | L46: 2778〜4167 kWh/年未満 | M46: 公的統計・既存住宅混在 | O46: R05/R06/R07 | P46: 68 | Q46: 572.2 | R46: 511.1 | S46: 505.6 | T46: 377.8 | U46: 302.8 | V46: 241.7 | W46: 275.0 | X46: 347.2 | Y46: 347.2 | Z46: 266.7 | AA46: 313.9 | AB46: 438.9
A47: S0069 | B47: 地方別・都市階級別 | C47: 東北 | D47: 都市階級3 | E47: 242 | F47: 17.9 | G47: 4,963.9 | H47: 413.7 | I47: 142,400 | J47: 11,867 | K47: 2778〜4167 kWh/年未満 | L47: 2778〜4167 kWh/年未満 | M47: 公的統計・既存住宅混在 | O47: R05/R06/R07 | P47: 69 | Q47: 638.9 | R47: 558.3 | S47: 566.7 | T47: 427.8 | U47: 347.2 | V47: 266.7 | W47: 300.0 | X47: 375.0 | Y47: 361.1 | Z47: 288.9 | AA47: 344.4 | AB47: 488.9
A48: S0071 | B48: 地方別・都市階級別 | C48: 関東甲信 | D48: 都市階級1 | E48: 721 | F48: 12.5 | G48: 3,463.9 | H48: 288.7 | I48: 105,700 | J48: 8,808 | K48: 2778〜4167 kWh/年未満 | L48: 1389〜2778 kWh/年未満 | M48: 公的統計・既存住宅混在 | O48: R05/R06/R07 | P48: 71 | Q48: 330.6 | R48: 361.1 | S48: 344.4 | T48: 266.7 | U48: 230.6 | V48: 216.7 | W48: 255.6 | X48: 327.8 | Y48: 350.0 | Z48: 286.1 | AA48: 238.9 | AB48: 258.3
A49: S0072 | B49: 地方別・都市階級別 | C49: 関東甲信 | D49: 都市階級2 | E49: 721 | F49: 13.2 | G49: 3,663.9 | H49: 305.3 | I49: 111,600 | J49: 9,300 | K49: 2778〜4167 kWh/年未満 | L49: 1389〜2778 kWh/年未満 | M49: 公的統計・既存住宅混在 | O49: R05/R06/R07 | P49: 72 | Q49: 372.2 | R49: 394.4 | S49: 366.7 | T49: 275.0 | U49: 233.3 | V49: 227.8 | W49: 269.4 | X49: 344.4 | Y49: 355.6 | Z49: 288.9 | AA49: 250.0 | AB49: 286.1
A50: S0073 | B50: 地方別・都市階級別 | C50: 関東甲信 | D50: 都市階級3 | E50: 124 | F50: 14.7 | G50: 4,075.0 | H50: 339.6 | I50: 118,600 | J50: 9,883 | K50: 2778〜4167 kWh/年未満 | L50: 1389〜2778 kWh/年未満 | M50: 公的統計・既存住宅混在 | O50: R05/R06/R07 | P50: 73 | Q50: 463.9 | R50: 472.2 | S50: 425.0 | T50: 316.7 | U50: 272.2 | V50: 252.8 | W50: 283.3 | X50: 341.7 | Y50: 341.7 | Z50: 277.8 | AA50: 277.8 | AB50: 350.0
A51: S0075 | B51: 地方別・都市階級別 | C51: 北陸 | D51: 都市階級1 | E51: 332 | F51: 17.6 | G51: 4,875.0 | H51: 406.3 | I51: 140,300 | J51: 11,692 | K51: 4167〜5556 kWh/年未満 | L51: 2778〜4167 kWh/年未満 | M51: 公的統計・既存住宅混在 | O51: R05/R06/R07 | P51: 75 | Q51: 597.2 | R51: 547.2 | S51: 533.3 | T51: 388.9 | U51: 325.0 | V51: 263.9 | W51: 305.6 | X51: 444.4 | Y51: 419.4 | Z51: 294.4 | AA51: 322.2 | AB51: 433.3
A52: S0076 | B52: 地方別・都市階級別 | C52: 北陸 | D52: 都市階級2 | E52: 281 | F52: 18.4 | G52: 5,116.7 | H52: 426.4 | I52: 142,800 | J52: 11,900 | K52: 4167〜5556 kWh/年未満 | L52: 1389〜2778 kWh/年未満 | M52: 公的統計・既存住宅混在 | O52: R05/R06/R07 | P52: 76 | Q52: 644.4 | R52: 577.8 | S52: 566.7 | T52: 411.1 | U52: 355.6 | V52: 283.3 | W52: 319.4 | X52: 433.3 | Y52: 408.3 | Z52: 305.6 | AA52: 341.7 | AB52: 469.4
A53: S0077 | B53: 地方別・都市階級別 | C53: 北陸 | D53: 都市階級3 | E53: 193 | F53: 22.6 | G53: 6,269.4 | H53: 522.5 | I53: 170,200 | J53: 14,183 | K53: 4167〜5556 kWh/年未満 | L53: 4167〜5556 kWh/年未満 | M53: 公的統計・既存住宅混在 | O53: R05/R06/R07 | P53: 77 | Q53: 747.2 | R53: 688.9 | S53: 675.0 | T53: 527.8 | U53: 447.2 | V53: 369.4 | W53: 402.8 | X53: 519.4 | Y53: 494.4 | Z53: 386.1 | AA53: 436.1 | AB53: 577.8
A54: S0079 | B54: 地方別・都市階級別 | C54: 東海 | D54: 都市階級1 | E54: 303 | F54: 13.2 | G54: 3,661.1 | H54: 305.1 | I54: 105,600 | J54: 8,800 | K54: 2778〜4167 kWh/年未満 | L54: 1389〜2778 kWh/年未満 | M54: 公的統計・既存住宅混在 | O54: R05/R06/R07 | P54: 79 | Q54: 383.3 | R54: 372.2 | S54: 344.4 | T54: 280.6 | U54: 236.1 | V54: 225.0 | W54: 280.6 | X54: 366.7 | Y54: 372.2 | Z54: 280.6 | AA54: 238.9 | AB54: 280.6
A55: S0080 | B55: 地方別・都市階級別 | C55: 東海 | D55: 都市階級2 | E55: 511 | F55: 14.8 | G55: 4,111.1 | H55: 342.6 | I55: 114,700 | J55: 9,558 | K55: 2778〜4167 kWh/年未満 | L55: 2778〜4167 kWh/年未満 | M55: 公的統計・既存住宅混在 | O55: R05/R06/R07 | P55: 80 | Q55: 455.6 | R55: 438.9 | S55: 394.4 | T55: 319.4 | U55: 275.0 | V55: 252.8 | W55: 305.6 | X55: 377.8 | Y55: 375.0 | Z55: 297.2 | AA55: 283.3 | AB55: 333.3
A56: S0081 | B56: 地方別・都市階級別 | C56: 東海 | D56: 都市階級3 | E56: 120 | F56: 14.7 | G56: 4,094.4 | H56: 341.2 | I56: 114,000 | J56: 9,500 | K56: 2778〜4167 kWh/年未満 | L56: 1389〜2778 kWh/年未満 | M56: 公的統計・既存住宅混在 | O56: R05/R06/R07 | P56: 81 | Q56: 444.4 | R56: 416.7 | S56: 372.2 | T56: 311.1 | U56: 272.2 | V56: 263.9 | W56: 325.0 | X56: 383.3 | Y56: 383.3 | Z56: 305.6 | AA56: 283.3 | AB56: 330.6
A57: S0083 | B57: 地方別・都市階級別 | C57: 近畿 | D57: 都市階級1 | E57: 431 | F57: 12.5 | G57: 3,458.3 | H57: 288.2 | I57: 86,500 | J57: 7,208 | K57: 2778〜4167 kWh/年未満 | L57: 1389〜2778 kWh/年未満 | M57: 公的統計・既存住宅混在 | O57: R05/R06/R07 | P57: 83 | Q57: 358.3 | R57: 358.3 | S57: 338.9 | T57: 272.2 | U57: 236.1 | V57: 205.6 | W57: 250.0 | X57: 327.8 | Y57: 347.2 | Z57: 269.4 | AA57: 230.6 | AB57: 263.9
A58: S0084 | B58: 地方別・都市階級別 | C58: 近畿 | D58: 都市階級2 | E58: 518 | F58: 14.2 | G58: 3,950.0 | H58: 329.2 | I58: 100,600 | J58: 8,383 | K58: 2778〜4167 kWh/年未満 | L58: 2778〜4167 kWh/年未満 | M58: 公的統計・既存住宅混在 | O58: R05/R06/R07 | P58: 84 | Q58: 444.4 | R58: 425.0 | S58: 397.2 | T58: 316.7 | U58: 269.4 | V58: 225.0 | W58: 275.0 | X58: 358.3 | Y58: 363.9 | Z58: 288.9 | AA58: 263.9 | AB58: 319.4
A59: S0085 | B59: 地方別・都市階級別 | C59: 近畿 | D59: 都市階級3 | E59: 78 | F59: 15.4 | G59: 4,280.6 | H59: 356.7 | I59: 106,100 | J59: 8,842 | K59: 2778〜4167 kWh/年未満 | L59: 2778〜4167 kWh/年未満 | M59: 公的統計・既存住宅混在 | O59: R05/R06/R07 | P59: 85 | Q59: 480.6 | R59: 458.3 | S59: 416.7 | T59: 341.7 | U59: 294.4 | V59: 247.2 | W59: 327.8 | X59: 383.3 | Y59: 361.1 | Z59: 286.1 | AA59: 316.7 | AB59: 366.7
A60: S0087 | B60: 地方別・都市階級別 | C60: 中国 | D60: 都市階級1 | E60: 330 | F60: 15.5 | G60: 4,313.9 | H60: 359.5 | I60: 123,700 | J60: 10,308 | K60: 2778〜4167 kWh/年未満 | L60: 2778〜4167 kWh/年未満 | M60: 公的統計・既存住宅混在 | O60: R05/R06/R07 | P60: 87 | Q60: 505.6 | R60: 477.8 | S60: 433.3 | T60: 330.6 | U60: 286.1 | V60: 255.6 | W60: 300.0 | X60: 394.4 | Y60: 388.9 | Z60: 291.7 | AA60: 283.3 | AB60: 369.4
A61: S0088 | B61: 地方別・都市階級別 | C61: 中国 | D61: 都市階級2 | E61: 379 | F61: 16.3 | G61: 4,516.7 | H61: 376.4 | I61: 128,500 | J61: 10,708 | K61: 2778〜4167 kWh/年未満 | L61: 1389〜2778 kWh/年未満 | M61: 公的統計・既存住宅混在 | O61: R05/R06/R07 | P61: 88 | Q61: 552.8 | R61: 500.0 | S61: 461.1 | T61: 347.2 | U61: 300.0 | V61: 263.9 | W61: 316.7 | X61: 397.2 | Y61: 369.4 | Z61: 294.4 | AA61: 311.1 | AB61: 405.6
A62: S0089 | B62: 地方別・都市階級別 | C62: 中国 | D62: 都市階級3 | E62: 181 | F62: 16.4 | G62: 4,550.0 | H62: 379.2 | I62: 130,300 | J62: 10,858 | K62: 2778〜4167 kWh/年未満 | L62: 1389〜2778 kWh/年未満 | M62: 公的統計・既存住宅混在 | O62: R05/R06/R07 | P62: 89 | Q62: 563.9 | R62: 513.9 | S62: 472.2 | T62: 358.3 | U62: 311.1 | V62: 266.7 | W62: 308.3 | X62: 386.1 | Y62: 361.1 | Z62: 288.9 | AA62: 308.3 | AB62: 411.1
A63: S0091 | B63: 地方別・都市階級別 | C63: 四国 | D63: 都市階級1 | E63: 362 | F63: 15.6 | G63: 4,325.0 | H63: 360.4 | I63: 114,800 | J63: 9,567 | K63: 2778〜4167 kWh/年未満 | L63: 1389〜2778 kWh/年未満 | M63: 公的統計・既存住宅混在 | O63: R05/R06/R07 | P63: 91 | Q63: 508.3 | R63: 452.8 | S63: 447.2 | T63: 327.8 | U63: 305.6 | V63: 252.8 | W63: 297.2 | X63: 402.8 | Y63: 377.8 | Z63: 311.1 | AA63: 277.8 | AB63: 366.7
A64: S0092 | B64: 地方別・都市階級別 | C64: 四国 | D64: 都市階級2 | E64: 171 | F64: 17.8 | G64: 4,947.2 | H64: 412.3 | I64: 129,800 | J64: 10,817 | K64: 2778〜4167 kWh/年未満 | L64: 2778〜4167 kWh/年未満 | M64: 公的統計・既存住宅混在 | O64: R05/R06/R07 | P64: 92 | Q64: 600.0 | R64: 538.9 | S64: 536.1 | T64: 391.7 | U64: 358.3 | V64: 283.3 | W64: 325.0 | X64: 433.3 | Y64: 405.6 | Z64: 330.6 | AA64: 322.2 | AB64: 419.4
A65: S0093 | B65: 地方別・都市階級別 | C65: 四国 | D65: 都市階級3 | E65: 258 | F65: 16.6 | G65: 4,622.2 | H65: 385.2 | I65: 119,300 | J65: 9,942 | K65: 2778〜4167 kWh/年未満 | L65: 1389〜2778 kWh/年未満 | M65: 公的統計・既存住宅混在 | O65: R05/R06/R07 | P65: 93 | Q65: 561.1 | R65: 488.9 | S65: 494.4 | T65: 352.8 | U65: 325.0 | V65: 275.0 | W65: 319.4 | X65: 405.6 | Y65: 369.4 | Z65: 319.4 | AA65: 305.6 | AB65: 405.6
A66: S0095 | B66: 地方別・都市階級別 | C66: 九州 | D66: 都市階級1 | E66: 409 | F66: 13.9 | G66: 3,863.9 | H66: 322.0 | I66: 95,600 | J66: 7,967 | K66: 2778〜4167 kWh/年未満 | L66: 1389〜2778 kWh/年未満 | M66: 公的統計・既存住宅混在 | O66: R05/R06/R07 | P66: 95 | Q66: 447.2 | R66: 380.6 | S66: 352.8 | T66: 283.3 | U66: 252.8 | V66: 244.4 | W66: 294.4 | X66: 397.2 | Y66: 355.6 | Z66: 277.8 | AA66: 250.0 | AB66: 327.8
A67: S0096 | B67: 地方別・都市階級別 | C67: 九州 | D67: 都市階級2 | E67: 270 | F67: 15.0 | G67: 4,177.8 | H67: 348.1 | I67: 101,700 | J67: 8,475 | K67: 2778〜4167 kWh/年未満 | L67: 1389〜2778 kWh/年未満 | M67: 公的統計・既存住宅混在 | O67: R05/R06/R07 | P67: 96 | Q67: 491.7 | R67: 416.7 | S67: 383.3 | T67: 308.3 | U67: 275.0 | V67: 266.7 | W67: 313.9 | X67: 422.2 | Y67: 358.3 | Z67: 288.9 | AA67: 283.3 | AB67: 366.7
A68: S0097 | B68: 地方別・都市階級別 | C68: 九州 | D68: 都市階級3 | E68: 221 | F68: 15.1 | G68: 4,202.8 | H68: 350.2 | I68: 99,600 | J68: 8,300 | K68: 2778〜4167 kWh/年未満 | L68: 1389〜2778 kWh/年未満 | M68: 公的統計・既存住宅混在 | O68: R05/R06/R07 | P68: 97 | Q68: 488.9 | R68: 422.2 | S68: 391.7 | T68: 322.2 | U68: 277.8 | V68: 263.9 | W68: 316.7 | X68: 416.7 | Y68: 366.7 | Z68: 288.9 | AA68: 283.3 | AB68: 363.9
A69: S0099 | B69: 地方別・都市階級別 | C69: 沖縄 | D69: 都市階級1 | E69: 160 | F69: 13.3 | G69: 3,683.3 | H69: 306.9 | I69: 109,800 | J69: 9,150 | K69: 2778〜4167 kWh/年未満 | L69: 1389〜2778 kWh/年未満 | M69: 公的統計・既存住宅混在 | O69: R05/R06/R07 | P69: 99 | Q69: 294.4 | R69: 244.4 | S69: 247.2 | T69: 261.1 | U69: 244.4 | V69: 302.8 | W69: 397.2 | X69: 427.8 | Y69: 386.1 | Z69: 363.9 | AA69: 266.7 | AB69: 244.4
A70: S0100 | B70: 地方別・都市階級別 | C70: 沖縄 | D70: 都市階級2 | E70: 297 | F70: 12.4 | G70: 3,441.7 | H70: 286.8 | I70: 102,100 | J70: 8,508 | K70: 2778〜4167 kWh/年未満 | L70: 1389〜2778 kWh/年未満 | M70: 公的統計・既存住宅混在 | O70: R05/R06/R07 | P70: 100 | Q70: 275.0 | R70: 227.8 | S70: 230.6 | T70: 238.9 | U70: 219.4 | V70: 275.0 | W70: 375.0 | X70: 402.8 | Y70: 369.4 | Z70: 355.6 | AA70: 247.2 | AB70: 225.0
A71: S0101 | B71: 地方別・都市階級別 | C71: 沖縄 | D71: 都市階級3 | E71: 168 | F71: 13.4 | G71: 3,725.0 | H71: 310.4 | I71: 106,200 | J71: 8,850 | K71: 2778〜4167 kWh/年未満 | L71: 1389〜2778 kWh/年未満 | M71: 公的統計・既存住宅混在 | O71: R05/R06/R07 | P71: 101 | Q71: 313.9 | R71: 261.1 | S71: 255.6 | T71: 272.2 | U71: 250.0 | V71: 300.0 | W71: 375.0 | X71: 419.4 | Y71: 388.9 | Z71: 372.2 | AA71: 266.7 | AB71: 250.0
A72: S0103 | B72: 省エネ基準地域区分別 | C72: 1地域 | E72: 27 | F72: 17.2 | G72: 4,772.2 | H72: 397.7 | I72: 141,800 | J72: 11,817 | K72: 1389〜2778 kWh/年未満 | L72: 1389〜2778 kWh/年未満 | M72: 標本30未満・参考限定 | O72: R05/R06/R07 | P72: 103 | Q72: 647.2 | R72: 525.0 | S72: 502.8 | T72: 472.2 | U72: 408.3 | V72: 291.7 | W72: 280.6 | X72: 297.2 | Y72: 300.0 | Z72: 280.6 | AA72: 330.6 | AB72: 430.6
A73: S0104 | B73: 省エネ基準地域区分別 | C73: 2地域 | E73: 779 | F73: 13.1 | G73: 3,644.4 | H73: 303.7 | I73: 114,800 | J73: 9,567 | K73: 1389〜2778 kWh/年未満 | L73: 1389〜2778 kWh/年未満 | M73: 公的統計・既存住宅混在 | O73: R05/R06/R07 | P73: 104 | Q73: 458.3 | R73: 375.0 | S73: 366.7 | T73: 327.8 | U73: 288.9 | V73: 225.0 | W73: 236.1 | X73: 263.9 | Y73: 261.1 | Z73: 238.9 | AA73: 275.0 | AB73: 333.3
A74: S0105 | B74: 省エネ基準地域区分別 | C74: 3地域 | E74: 336 | F74: 17.5 | G74: 4,850.0 | H74: 404.2 | I74: 140,300 | J74: 11,692 | K74: 2778〜4167 kWh/年未満 | L74: 2778〜4167 kWh/年未満 | M74: 公的統計・既存住宅混在 | O74: R05/R06/R07 | P74: 105 | Q74: 630.6 | R74: 550.0 | S74: 555.6 | T74: 413.9 | U74: 341.7 | V74: 255.6 | W74: 283.3 | X74: 347.2 | Y74: 341.7 | Z74: 288.9 | AA74: 350.0 | AB74: 488.9
A75: S0106 | B75: 省エネ基準地域区分別 | C75: 4地域 | E75: 423 | F75: 15.6 | G75: 4,338.9 | H75: 361.6 | I75: 124,700 | J75: 10,392 | K75: 2778〜4167 kWh/年未満 | L75: 1389〜2778 kWh/年未満 | M75: 公的統計・既存住宅混在 | O75: R05/R06/R07 | P75: 106 | Q75: 561.1 | R75: 505.6 | S75: 486.1 | T75: 366.7 | U75: 291.7 | V75: 236.1 | W75: 263.9 | X75: 333.3 | Y75: 327.8 | Z75: 252.8 | AA75: 300.0 | AB75: 413.9
A76: S0107 | B76: 省エネ基準地域区分別 | C76: 5地域 | E76: 1299 | F76: 16.5 | G76: 4,586.1 | H76: 382.2 | I76: 128,700 | J76: 10,725 | K76: 2778〜4167 kWh/年未満 | L76: 1389〜2778 kWh/年未満 | M76: 公的統計・既存住宅混在 | O76: R05/R06/R07 | P76: 107 | Q76: 550.0 | R76: 513.9 | S76: 486.1 | T76: 372.2 | U76: 313.9 | V76: 263.9 | W76: 305.6 | X76: 388.9 | Y76: 377.8 | Z76: 297.2 | AA76: 313.9 | AB76: 405.6
A77: S0108 | B77: 省エネ基準地域区分別 | C77: 6地域 | E77: 4803 | F77: 13.6 | G77: 3,766.7 | H77: 313.9 | I77: 106,600 | J77: 8,883 | K77: 2778〜4167 kWh/年未満 | L77: 1389〜2778 kWh/年未満 | M77: 公的統計・既存住宅混在 | O77: R05/R06/R07 | P77: 108 | Q77: 394.4 | R77: 397.2 | S77: 372.2 | T77: 288.9 | U77: 250.0 | V77: 230.6 | W77: 277.8 | X77: 355.6 | Y77: 361.1 | Z77: 286.1 | AA77: 255.6 | AB77: 297.2
A78: S0109 | B78: 省エネ基準地域区分別 | C78: 7地域 | E78: 996 | F78: 13.9 | G78: 3,850.0 | H78: 320.8 | I78: 101,400 | J78: 8,450 | K78: 2778〜4167 kWh/年未満 | L78: 1389〜2778 kWh/年未満 | M78: 公的統計・既存住宅混在 | O78: R05/R06/R07 | P78: 109 | Q78: 430.6 | R78: 383.3 | S78: 358.3 | T78: 283.3 | U78: 255.6 | V78: 241.7 | W78: 291.7 | X78: 383.3 | Y78: 355.6 | Z78: 286.1 | AA78: 258.3 | AB78: 319.4
A79: S0110 | B79: 省エネ基準地域区分別 | C79: 8地域 | E79: 628 | F79: 12.7 | G79: 3,513.9 | H79: 292.8 | I79: 102,600 | J79: 8,550 | K79: 2778〜4167 kWh/年未満 | L79: 1389〜2778 kWh/年未満 | M79: 公的統計・既存住宅混在 | O79: R05/R06/R07 | P79: 110 | Q79: 286.1 | R79: 236.1 | S79: 236.1 | T79: 247.2 | U79: 230.6 | V79: 283.3 | W79: 375.0 | X79: 405.6 | Y79: 372.2 | Z79: 355.6 | AA79: 252.8 | AB79: 233.3
A80: S0111 | B80: 省エネ基準地域区分別 | C80: 不明 | E80: 0 | K80: 非公表 | L80: 非公表 | M80: 非公表・推定不可 | N80: - | O80: R05/R06/R07 | P80: 111
A81: S0114 | B81: 都市階級別・建て方別 | C81: 都市階級1 | D81: 戸建 | E81: 1967 | F81: 17.5 | G81: 4,866.7 | H81: 405.6 | I81: 138,200 | J81: 11,517 | K81: 4167〜5556 kWh/年未満 | L81: 2778〜4167 kWh/年未満 | M81: 公的統計・既存住宅混在 | O81: R05/R06/R07 | P81: 114 | Q81: 547.2 | R81: 527.8 | S81: 500.0 | T81: 386.1 | U81: 327.8 | V81: 286.1 | W81: 336.1 | X81: 436.1 | Y81: 438.9 | Z81: 350.0 | AA81: 327.8 | AB81: 402.8
A82: S0115 | B82: 都市階級別・建て方別 | C82: 都市階級1 | D82: 集合 | E82: 1696 | F82: 10.0 | G82: 2,775.0 | H82: 231.3 | I82: 79,800 | J82: 6,650 | K82: 1389〜2778 kWh/年未満 | L82: 1389〜2778 kWh/年未満 | M82: 公的統計・既存住宅混在 | O82: R05/R06/R07 | P82: 115 | Q82: 269.4 | R82: 272.2 | S82: 261.1 | T82: 208.3 | U82: 186.1 | V82: 177.8 | W82: 213.9 | X82: 277.8 | Y82: 286.1 | Z82: 227.8 | AA82: 188.9 | AB82: 208.3
A83: S0117 | B83: 都市階級別・建て方別 | C83: 都市階級2 | D83: 戸建 | E83: 2613 | F83: 17.5 | G83: 4,872.2 | H83: 406.0 | I83: 136,800 | J83: 11,400 | K83: 4167〜5556 kWh/年未満 | L83: 2778〜4167 kWh/年未満 | M83: 公的統計・既存住宅混在 | O83: R05/R06/R07 | P83: 117 | Q83: 563.9 | R83: 538.9 | S83: 502.8 | T83: 388.9 | U83: 325.0 | V83: 286.1 | W83: 336.1 | X83: 425.0 | Y83: 416.7 | Z83: 338.9 | AA83: 330.6 | AB83: 416.7
A84: S0118 | B84: 都市階級別・建て方別 | C84: 都市階級2 | D84: 集合 | E84: 1226 | F84: 9.7 | G84: 2,697.2 | H84: 224.8 | I84: 78,400 | J84: 6,533 | K84: 1389〜2778 kWh/年未満 | L84: 1389〜2778 kWh/年未満 | M84: 公的統計・既存住宅混在 | O84: R05/R06/R07 | P84: 118 | Q84: 266.7 | R84: 269.4 | S84: 252.8 | T84: 197.2 | U84: 177.8 | V84: 169.4 | W84: 211.1 | X84: 272.2 | Y84: 275.0 | Z84: 216.7 | AA84: 186.1 | AB84: 205.6
A85: S0120 | B85: 都市階級別・建て方別 | C85: 都市階級3 | D85: 戸建 | E85: 1339 | F85: 18.6 | G85: 5,177.8 | H85: 431.5 | I85: 140,700 | J85: 11,725 | K85: 4167〜5556 kWh/年未満 | L85: 2778〜4167 kWh/年未満 | M85: 公的統計・既存住宅混在 | O85: R05/R06/R07 | P85: 120 | Q85: 622.2 | R85: 566.7 | S85: 533.3 | T85: 419.4 | U85: 361.1 | V85: 311.1 | W85: 355.6 | X85: 436.1 | Y85: 413.9 | Z85: 338.9 | AA85: 358.3 | AB85: 461.1
A86: S0121 | B86: 都市階級別・建て方別 | C86: 都市階級3 | D86: 集合 | E86: 450 | F86: 9.2 | G86: 2,555.6 | H86: 213.0 | I86: 70,700 | J86: 5,892 | K86: 1389〜2778 kWh/年未満 | L86: 1389〜2778 kWh/年未満 | M86: 公的統計・既存住宅混在 | O86: R05/R06/R07 | P86: 121 | Q86: 266.7 | R86: 244.4 | S86: 238.9 | T86: 191.7 | U86: 172.2 | V86: 163.9 | W86: 205.6 | X86: 252.8 | Y86: 241.7 | Z86: 191.7 | AA86: 177.8 | AB86: 211.1
A87: S0124 | B87: 都市階級別・世帯類型別（5区分） | C87: 都市階級1 | D87: 単身 | E87: 731 | F87: 8.4 | G87: 2,322.2 | H87: 193.5 | I87: 66,900 | J87: 5,575 | K87: 1389〜2778 kWh/年未満 | L87: 1389〜2778 kWh/年未満 | M87: 公的統計・既存住宅混在 | O87: R05/R06/R07 | P87: 124 | Q87: 233.3 | R87: 233.3 | S87: 222.2 | T87: 180.6 | U87: 158.3 | V87: 147.2 | W87: 175.0 | X87: 222.2 | Y87: 230.6 | Z87: 183.3 | AA87: 158.3 | AB87: 177.8
A88: S0125 | B88: 都市階級別・世帯類型別（5区分） | C88: 都市階級1 | D88: 夫婦 | E88: 1175 | F88: 13.7 | G88: 3,816.7 | H88: 318.1 | I88: 109,000 | J88: 9,083 | K88: 2778〜4167 kWh/年未満 | L88: 2778〜4167 kWh/年未満 | M88: 公的統計・既存住宅混在 | O88: R05/R06/R07 | P88: 125 | Q88: 413.9 | R88: 400.0 | S88: 383.3 | T88: 302.8 | U88: 261.1 | V88: 230.6 | W88: 266.7 | X88: 352.8 | Y88: 355.6 | Z88: 288.9 | AA88: 258.3 | AB88: 305.6
A89: S0126 | B89: 都市階級別・世帯類型別（5区分） | C89: 都市階級1 | D89: 夫婦と子 | E89: 1111 | F89: 18.3 | G89: 5,094.4 | H89: 424.5 | I89: 144,400 | J89: 12,033 | K89: 4167〜5556 kWh/年未満 | L89: 2778〜4167 kWh/年未満 | M89: 公的統計・既存住宅混在 | O89: R05/R06/R07 | P89: 126 | Q89: 544.4 | R89: 533.3 | S89: 508.3 | T89: 388.9 | U89: 333.3 | V89: 308.3 | W89: 375.0 | X89: 483.3 | Y89: 486.1 | Z89: 383.3 | AA89: 344.4 | AB89: 408.3
A90: S0127 | B90: 都市階級別・世帯類型別（5区分） | C90: 都市階級1 | D90: 三世代 | E90: 172 | F90: 25.7 | G90: 7,136.1 | H90: 594.7 | I90: 205,900 | J90: 17,158 | K90: 5556〜6944 kWh/年未満 | L90: 4167〜5556 kWh/年未満 | M90: 公的統計・既存住宅混在 | O90: R05/R06/R07 | P90: 127 | Q90: 780.6 | R90: 766.7 | S90: 719.4 | T90: 577.8 | U90: 480.6 | V90: 422.2 | W90: 488.9 | X90: 636.1 | Y90: 658.3 | Z90: 522.2 | AA90: 497.2 | AB90: 588.9
A91: S0128 | B91: 都市階級別・世帯類型別（5区分） | C91: 都市階級1 | D91: その他 | E91: 473 | F91: 15.1 | G91: 4,186.1 | H91: 348.8 | I91: 118,500 | J91: 9,875 | K91: 2778〜4167 kWh/年未満 | L91: 2778〜4167 kWh/年未満 | M91: 公的統計・既存住宅混在 | O91: R05/R06/R07 | P91: 128 | Q91: 452.8 | R91: 444.4 | S91: 416.7 | T91: 322.2 | U91: 277.8 | V91: 250.0 | W91: 300.0 | X91: 397.2 | Y91: 400.0 | Z91: 313.9 | AA91: 277.8 | AB91: 333.3
A92: S0129 | B92: 都市階級別・世帯類型別（5区分） | C92: 都市階級1 | D92: 不明 | E92: 1 | K92: 非公表 | L92: 非公表 | M92: 非公表・推定不可 | N92: x | O92: R05/R06/R07 | P92: 129
A93: S0131 | B93: 都市階級別・世帯類型別（5区分） | C93: 都市階級2 | D93: 単身 | E93: 740 | F93: 8.8 | G93: 2,450.0 | H93: 204.2 | I93: 71,200 | J93: 5,933 | K93: 1389〜2778 kWh/年未満 | L93: 1389〜2778 kWh/年未満 | M93: 公的統計・既存住宅混在 | O93: R05/R06/R07 | P93: 131 | Q93: 261.1 | R93: 250.0 | S93: 230.6 | T93: 183.3 | U93: 163.9 | V93: 152.8 | W93: 183.3 | X93: 233.3 | Y93: 233.3 | Z93: 188.9 | AA93: 172.2 | AB93: 194.4
A94: S0132 | B94: 都市階級別・世帯類型別（5区分） | C94: 都市階級2 | D94: 夫婦 | E94: 1296 | F94: 14.5 | G94: 4,038.9 | H94: 336.6 | I94: 114,400 | J94: 9,533 | K94: 2778〜4167 kWh/年未満 | L94: 2778〜4167 kWh/年未満 | M94: 公的統計・既存住宅混在 | O94: R05/R06/R07 | P94: 132 | Q94: 452.8 | R94: 438.9 | S94: 411.1 | T94: 322.2 | U94: 275.0 | V94: 241.7 | W94: 280.6 | X94: 358.3 | Y94: 358.3 | Z94: 291.7 | AA94: 275.0 | AB94: 336.1
A95: S0133 | B95: 都市階級別・世帯類型別（5区分） | C95: 都市階級2 | D95: 夫婦と子 | E95: 1125 | F95: 19.4 | G95: 5,377.8 | H95: 448.1 | I95: 150,200 | J95: 12,517 | K95: 4167〜5556 kWh/年未満 | L95: 2778〜4167 kWh/年未満 | M95: 公的統計・既存住宅混在 | O95: R05/R06/R07 | P95: 133 | Q95: 605.6 | R95: 591.7 | S95: 552.8 | T95: 422.2 | U95: 350.0 | V95: 319.4 | W95: 383.3 | X95: 483.3 | Y95: 475.0 | Z95: 380.6 | AA95: 363.9 | AB95: 452.8
A96: S0134 | B96: 都市階級別・世帯類型別（5区分） | C96: 都市階級2 | D96: 三世代 | E96: 204 | F96: 26.3 | G96: 7,297.2 | H96: 608.1 | I96: 205,600 | J96: 17,133 | K96: 5556〜6944 kWh/年未満 | L96: 5556〜6944 kWh/年未満 | M96: 公的統計・既存住宅混在 | O96: R05/R06/R07 | P96: 134 | Q96: 830.6 | R96: 800.0 | S96: 738.9 | T96: 575.0 | U96: 486.1 | V96: 436.1 | W96: 508.3 | X96: 652.8 | Y96: 636.1 | Z96: 511.1 | AA96: 500.0 | AB96: 622.2
A97: S0135 | B97: 都市階級別・世帯類型別（5区分） | C97: 都市階級2 | D97: その他 | E97: 473 | F97: 16.0 | G97: 4,444.4 | H97: 370.4 | I97: 126,300 | J97: 10,525 | K97: 2778〜4167 kWh/年未満 | L97: 2778〜4167 kWh/年未満 | M97: 公的統計・既存住宅混在 | O97: R05/R06/R07 | P97: 135 | Q97: 491.7 | R97: 469.4 | S97: 444.4 | T97: 350.0 | U97: 297.2 | V97: 261.1 | W97: 313.9 | X97: 405.6 | Y97: 402.8 | Z97: 325.0 | AA97: 305.6 | AB97: 375.0
A98: S0136 | B98: 都市階級別・世帯類型別（5区分） | C98: 都市階級2 | D98: 不明 | E98: 1 | K98: 非公表 | L98: 非公表 | M98: 非公表・推定不可 | N98: x | O98: R05/R06/R07 | P98: 136
A99: S0138 | B99: 都市階級別・世帯類型別（5区分） | C99: 都市階級3 | D99: 単身 | E99: 365 | F99: 9.2 | G99: 2,555.6 | H99: 213.0 | I99: 70,700 | J99: 5,892 | K99: 1389〜2778 kWh/年未満 | L99: 1389〜2778 kWh/年未満 | M99: 公的統計・既存住宅混在 | O99: R05/R06/R07 | P99: 138 | Q99: 283.3 | R99: 258.3 | S99: 247.2 | T99: 200.0 | U99: 177.8 | V99: 163.9 | W99: 191.7 | X99: 236.1 | Y99: 222.2 | Z99: 177.8 | AA99: 180.6 | AB99: 213.9
A100: S0139 | B100: 都市階級別・世帯類型別（5区分） | C100: 都市階級3 | D100: 夫婦 | E100: 565 | F100: 16.1 | G100: 4,458.3 | H100: 371.5 | I100: 120,500 | J100: 10,042 | K100: 2778〜4167 kWh/年未満 | L100: 2778〜4167 kWh/年未満 | M100: 公的統計・既存住宅混在 | O100: R05/R06/R07 | P100: 139 | Q100: 522.2 | R100: 475.0 | S100: 452.8 | T100: 363.9 | U100: 313.9 | V100: 272.2 | W100: 305.6 | X100: 380.6 | Y100: 375.0 | Z100: 302.8 | AA100: 308.3 | AB100: 388.9
A101: S0140 | B101: 都市階級別・世帯類型別（5区分） | C101: 都市階級3 | D101: 夫婦と子 | E101: 478 | F101: 21.4 | G101: 5,936.1 | H101: 494.7 | I101: 159,200 | J101: 13,267 | K101: 4167〜5556 kWh/年未満 | L101: 4167〜5556 kWh/年未満 | M101: 公的統計・既存住宅混在 | O101: R05/R06/R07 | P101: 140 | Q101: 716.7 | R101: 647.2 | S101: 608.3 | T101: 477.8 | U101: 408.3 | V101: 352.8 | W101: 419.4 | X101: 508.3 | Y101: 469.4 | Z101: 388.9 | AA101: 405.6 | AB101: 533.3
A102: S0141 | B102: 都市階級別・世帯類型別（5区分） | C102: 都市階級3 | D102: 三世代 | E102: 112 | F102: 32.3 | G102: 8,966.7 | H102: 747.2 | I102: 243,200 | J102: 20,267 | K102: 6944〜8333 kWh/年未満 | L102: 5556〜6944 kWh/年未満 | M102: 公的統計・既存住宅混在 | O102: R05/R06/R07 | P102: 141 | Q102: 1,105.6 | R102: 994.4 | S102: 938.9 | T102: 716.7 | U102: 608.3 | V102: 527.8 | W102: 613.9 | X102: 758.3 | Y102: 697.2 | Z102: 561.1 | AA102: 613.9 | AB102: 825.0
A103: S0142 | B103: 都市階級別・世帯類型別（5区分） | C103: 都市階級3 | D103: その他 | E103: 266 | F103: 18.3 | G103: 5,083.3 | H103: 423.6 | I103: 143,100 | J103: 11,925 | K103: 4167〜5556 kWh/年未満 | L103: 2778〜4167 kWh/年未満 | M103: 公的統計・既存住宅混在 | O103: R05/R06/R07 | P103: 142 | Q103: 597.2 | R103: 558.3 | S103: 519.4 | T103: 397.2 | U103: 341.7 | V103: 302.8 | W103: 350.0 | X103: 444.4 | Y103: 427.8 | Z103: 344.4 | AA103: 352.8 | AB103: 447.2
A104: S0143 | B104: 都市階級別・世帯類型別（5区分） | C104: 都市階級3 | D104: 不明 | E104: 3 | K104: 非公表 | L104: 非公表 | M104: 非公表・推定不可 | N104: x | O104: R05/R06/R07 | P104: 143
A105: S0145 | B105: 世帯人数別（4区分） | C105: 1人 | E105: 1836 | F105: 8.7 | G105: 2,405.6 | H105: 200.5 | I105: 69,200 | J105: 5,767 | K105: 1389〜2778 kWh/年未満 | L105: 1389〜2778 kWh/年未満 | M105: 公的統計・既存住宅混在 | O105: R05/R06/R07 | P105: 145 | Q105: 250.0 | R105: 244.4 | S105: 227.8 | T105: 183.3 | U105: 163.9 | V105: 152.8 | W105: 180.6 | X105: 227.8 | Y105: 230.6 | Z105: 186.1 | AA105: 166.7 | AB105: 191.7
A106: S0146 | B106: 世帯人数別（4区分） | C106: 2人 | E106: 3743 | F106: 14.3 | G106: 3,958.3 | H106: 329.9 | I106: 111,800 | J106: 9,317 | K106: 2778〜4167 kWh/年未満 | L106: 2778〜4167 kWh/年未満 | M106: 公的統計・既存住宅混在 | O106: R05/R06/R07 | P106: 146 | Q106: 438.9 | R106: 422.2 | S106: 400.0 | T106: 313.9 | U106: 269.4 | V106: 238.9 | W106: 277.8 | X106: 355.6 | Y106: 358.3 | Z106: 288.9 | AA106: 269.4 | AB106: 325.0
A107: S0147 | B107: 世帯人数別（4区分） | C107: 3人 | E107: 1939 | F107: 18.5 | G107: 5,130.6 | H107: 427.5 | I107: 144,200 | J107: 12,017 | K107: 4167〜5556 kWh/年未満 | L107: 2778〜4167 kWh/年未満 | M107: 公的統計・既存住宅混在 | O107: R05/R06/R07 | P107: 147 | Q107: 575.0 | R107: 552.8 | S107: 519.4 | T107: 400.0 | U107: 338.9 | V107: 305.6 | W107: 366.7 | X107: 469.4 | Y107: 461.1 | Z107: 366.7 | AA107: 344.4 | AB107: 427.8
A108: S0148 | B108: 世帯人数別（4区分） | C108: 4人以上 | E108: 1773 | F108: 22.3 | G108: 6,200.0 | H108: 516.7 | I108: 173,300 | J108: 14,442 | K108: 4167〜5556 kWh/年未満 | L108: 4167〜5556 kWh/年未満 | M108: 公的統計・既存住宅混在 | O108: R05/R06/R07 | P108: 148 | Q108: 697.2 | R108: 672.2 | S108: 627.8 | T108: 486.1 | U108: 408.3 | V108: 369.4 | W108: 441.7 | X108: 558.3 | Y108: 550.0 | Z108: 438.9 | AA108: 425.0 | AB108: 525.0
A109: S0151 | B109: 地方別・世帯人数別（4区分） | C109: 北海道 | D109: 1人 | E109: 170 | F109: 7.9 | G109: 2,202.8 | H109: 183.6 | I109: 74,000 | J109: 6,167 | K109: 1389〜2778 kWh/年未満 | L109: 1389〜2778 kWh/年未満 | M109: 公的統計・既存住宅混在 | O109: R05/R06/R07 | P109: 151 | Q109: 247.2 | R109: 205.6 | S109: 208.3 | T109: 194.4 | U109: 183.3 | V109: 144.4 | W109: 155.6 | X109: 172.2 | Y109: 172.2 | Z109: 155.6 | AA109: 169.4 | AB109: 191.7
A110: S0152 | B110: 地方別・世帯人数別（4区分） | C110: 北海道 | D110: 2人 | E110: 411 | F110: 14.7 | G110: 4,080.6 | H110: 340.0 | I110: 126,400 | J110: 10,533 | K110: 2778〜4167 kWh/年未満 | L110: 1389〜2778 kWh/年未満 | M110: 公的統計・既存住宅混在 | O110: R05/R06/R07 | P110: 152 | Q110: 536.1 | R110: 436.1 | S110: 427.8 | T110: 363.9 | U110: 319.4 | V110: 238.9 | W110: 247.2 | X110: 280.6 | Y110: 277.8 | Z110: 255.6 | AA110: 302.8 | AB110: 391.7
A111: S0153 | B111: 地方別・世帯人数別（4区分） | C111: 北海道 | D111: 3人 | E111: 157 | F111: 17.3 | G111: 4,811.1 | H111: 400.9 | I111: 154,300 | J111: 12,858 | K111: 2778〜4167 kWh/年未満 | L111: 2778〜4167 kWh/年未満 | M111: 公的統計・既存住宅混在 | O111: R05/R06/R07 | P111: 153 | Q111: 583.3 | R111: 494.4 | S111: 472.2 | T111: 441.7 | U111: 397.2 | V111: 308.3 | W111: 319.4 | X111: 358.3 | Y111: 352.8 | Z111: 319.4 | AA111: 350.0 | AB111: 416.7
A112: S0154 | B112: 地方別・世帯人数別（4区分） | C112: 北海道 | D112: 4人以上 | E112: 121 | F112: 25.3 | G112: 7,036.1 | H112: 586.3 | I112: 207,600 | J112: 17,300 | K112: 4167〜5556 kWh/年未満 | L112: 2778〜4167 kWh/年未満 | M112: 公的統計・既存住宅混在 | O112: R05/R06/R07 | P112: 154 | Q112: 950.0 | R112: 791.7 | S112: 744.4 | T112: 661.1 | U112: 538.9 | V112: 405.6 | W112: 422.2 | X112: 463.9 | Y112: 444.4 | Z112: 419.4 | AA112: 516.7 | AB112: 675.0
A113: S0156 | B113: 地方別・世帯人数別（4区分） | C113: 東北 | D113: 1人 | E113: 185 | F113: 9.5 | G113: 2,647.2 | H113: 220.6 | I113: 79,500 | J113: 6,625 | K113: 1389〜2778 kWh/年未満 | L113: 1389〜2778 kWh/年未満 | M113: 公的統計・既存住宅混在 | O113: R05/R06/R07 | P113: 156 | Q113: 311.1 | R113: 280.6 | S113: 283.3 | T113: 219.4 | U113: 183.3 | V113: 150.0 | W113: 177.8 | X113: 227.8 | Y113: 219.4 | Z113: 169.4 | AA113: 186.1 | AB113: 236.1
A114: S0157 | B114: 地方別・世帯人数別（4区分） | C114: 東北 | D114: 2人 | E114: 363 | F114: 15.4 | G114: 4,286.1 | H114: 357.2 | I114: 126,500 | J114: 10,542 | K114: 2778〜4167 kWh/年未満 | L114: 2778〜4167 kWh/年未満 | M114: 公的統計・既存住宅混在 | O114: R05/R06/R07 | P114: 157 | Q114: 533.3 | R114: 475.0 | S114: 472.2 | T114: 369.4 | U114: 302.8 | V114: 236.1 | W114: 261.1 | X114: 338.9 | Y114: 336.1 | Z114: 261.1 | AA114: 300.0 | AB114: 402.8
A115: S0158 | B115: 地方別・世帯人数別（4区分） | C115: 東北 | D115: 3人 | E115: 184 | F115: 21.6 | G115: 6,002.8 | H115: 500.2 | I115: 173,600 | J115: 14,467 | K115: 4167〜5556 kWh/年未満 | L115: 2778〜4167 kWh/年未満 | M115: 公的統計・既存住宅混在 | O115: R05/R06/R07 | P115: 158 | Q115: 788.9 | R115: 686.1 | S115: 686.1 | T115: 513.9 | U115: 419.4 | V115: 313.9 | W115: 355.6 | X115: 450.0 | Y115: 441.7 | Z115: 347.2 | AA115: 411.1 | AB115: 588.9
A116: S0159 | B116: 地方別・世帯人数別（4区分） | C116: 東北 | D116: 4人以上 | E116: 161 | F116: 25.2 | G116: 7,005.6 | H116: 583.8 | I116: 199,000 | J116: 16,583 | K116: 5556〜6944 kWh/年未満 | L116: 5556〜6944 kWh/年未満 | M116: 公的統計・既存住宅混在 | O116: R05/R06/R07 | P116: 159 | Q116: 922.2 | R116: 811.1 | S116: 805.6 | T116: 597.2 | U116: 461.1 | V116: 355.6 | W116: 408.3 | X116: 530.6 | Y116: 516.7 | Z116: 394.4 | AA116: 486.1 | AB116: 716.7
A117: S0161 | B117: 地方別・世帯人数別（4区分） | C117: 関東甲信 | D117: 1人 | E117: 302 | F117: 8.4 | G117: 2,341.7 | H117: 195.1 | I117: 72,200 | J117: 6,017 | K117: 1389〜2778 kWh/年未満 | L117: 1389〜2778 kWh/年未満 | M117: 公的統計・既存住宅混在 | O117: R05/R06/R07 | P117: 161 | Q117: 222.2 | R117: 238.9 | S117: 222.2 | T117: 175.0 | U117: 152.8 | V117: 152.8 | W117: 180.6 | X117: 227.8 | Y117: 238.9 | Z117: 194.4 | AA117: 161.1 | AB117: 175.0
A118: S0162 | B118: 地方別・世帯人数別（4区分） | C118: 関東甲信 | D118: 2人 | E118: 616 | F118: 13.0 | G118: 3,611.1 | H118: 300.9 | I118: 109,600 | J118: 9,133 | K118: 2778〜4167 kWh/年未満 | L118: 2778〜4167 kWh/年未満 | M118: 公的統計・既存住宅混在 | O118: R05/R06/R07 | P118: 162 | Q118: 361.1 | R118: 388.9 | S118: 372.2 | T118: 280.6 | U118: 238.9 | V118: 222.2 | W118: 255.6 | X118: 327.8 | Y118: 350.0 | Z118: 288.9 | AA118: 247.2 | AB118: 277.8
A119: S0163 | B119: 地方別・世帯人数別（4区分） | C119: 関東甲信 | D119: 3人 | E119: 324 | F119: 16.9 | G119: 4,694.4 | H119: 391.2 | I119: 142,100 | J119: 11,842 | K119: 4167〜5556 kWh/年未満 | L119: 4167〜5556 kWh/年未満 | M119: 公的統計・既存住宅混在 | O119: R05/R06/R07 | P119: 163 | Q119: 480.6 | R119: 508.3 | S119: 475.0 | T119: 355.6 | U119: 297.2 | V119: 288.9 | W119: 341.7 | X119: 438.9 | Y119: 455.6 | Z119: 363.9 | AA119: 316.7 | AB119: 369.4
A120: S0164 | B120: 地方別・世帯人数別（4区分） | C120: 関東甲信 | D120: 4人以上 | E120: 324 | F120: 20.6 | G120: 5,725.0 | H120: 477.1 | I120: 171,200 | J120: 14,267 | K120: 4167〜5556 kWh/年未満 | L120: 2778〜4167 kWh/年未満 | M120: 公的統計・既存住宅混在 | O120: R05/R06/R07 | P120: 164 | Q120: 583.3 | R120: 625.0 | S120: 577.8 | T120: 438.9 | U120: 372.2 | V120: 352.8 | W120: 419.4 | X120: 525.0 | Y120: 541.7 | Z120: 433.3 | AA120: 394.4 | AB120: 458.3
A121: S0166 | B121: 地方別・世帯人数別（4区分） | C121: 北陸 | D121: 1人 | E121: 163 | F121: 10.6 | G121: 2,938.9 | H121: 244.9 | I121: 85,100 | J121: 7,092 | K121: 1389〜2778 kWh/年未満 | L121: 1389〜2778 kWh/年未満 | M121: 公的統計・既存住宅混在 | O121: R05/R06/R07 | P121: 166 | Q121: 341.7 | R121: 313.9 | S121: 311.1 | T121: 241.7 | U121: 208.3 | V121: 172.2 | W121: 194.4 | X121: 261.1 | Y121: 252.8 | Z121: 183.3 | AA121: 197.2 | AB121: 258.3
A122: S0167 | B122: 地方別・世帯人数別（4区分） | C122: 北陸 | D122: 2人 | E122: 289 | F122: 18.3 | G122: 5,083.3 | H122: 423.6 | I122: 143,200 | J122: 11,933 | K122: 4167〜5556 kWh/年未満 | L122: 2778〜4167 kWh/年未満 | M122: 公的統計・既存住宅混在 | O122: R05/R06/R07 | P122: 167 | Q122: 630.6 | R122: 575.0 | S122: 558.3 | T122: 413.9 | U122: 352.8 | V122: 280.6 | W122: 308.3 | X122: 438.9 | Y122: 422.2 | Z122: 305.6 | AA122: 333.3 | AB122: 463.9
A123: S0168 | B123: 地方別・世帯人数別（4区分） | C123: 北陸 | D123: 3人 | E123: 180 | F123: 24.9 | G123: 6,902.8 | H123: 575.2 | I123: 187,400 | J123: 15,617 | K123: 5556〜6944 kWh/年未満 | L123: 2778〜4167 kWh/年未満 | M123: 公的統計・既存住宅混在 | O123: R05/R06/R07 | P123: 168 | Q123: 850.0 | R123: 775.0 | S123: 758.3 | T123: 555.6 | U123: 480.6 | V123: 383.3 | W123: 441.7 | X123: 600.0 | Y123: 552.8 | Z123: 419.4 | AA123: 463.9 | AB123: 625.0
A124: S0169 | B124: 地方別・世帯人数別（4区分） | C124: 北陸 | D124: 4人以上 | E124: 174 | F124: 27.6 | G124: 7,652.8 | H124: 637.7 | I124: 214,800 | J124: 17,900 | K124: 6944〜8333 kWh/年未満 | L124: 6944〜8333 kWh/年未満 | M124: 公的統計・既存住宅混在 | O124: R05/R06/R07 | P124: 169 | Q124: 958.3 | R124: 869.4 | S124: 850.0 | T124: 619.4 | U124: 516.7 | V124: 419.4 | W124: 477.8 | X124: 647.2 | Y124: 602.8 | Z124: 458.3 | AA124: 525.0 | AB124: 705.6
A125: S0171 | B125: 地方別・世帯人数別（4区分） | C125: 東海 | D125: 1人 | E125: 180 | F125: 8.0 | G125: 2,219.4 | H125: 185.0 | I125: 65,400 | J125: 5,450 | K125: 1389〜2778 kWh/年未満 | L125: 1389〜2778 kWh/年未満 | M125: 公的統計・既存住宅混在 | O125: R05/R06/R07 | P125: 171 | Q125: 227.8 | R125: 216.7 | S125: 197.2 | T125: 172.2 | U125: 152.8 | V125: 144.4 | W125: 177.8 | X125: 219.4 | Y125: 219.4 | Z125: 169.4 | AA125: 155.6 | AB125: 172.2
A126: S0172 | B126: 地方別・世帯人数別（4区分） | C126: 東海 | D126: 2人 | E126: 355 | F126: 14.1 | G126: 3,922.2 | H126: 326.9 | I126: 110,500 | J126: 9,208 | K126: 2778〜4167 kWh/年未満 | L126: 2778〜4167 kWh/年未満 | M126: 公的統計・既存住宅混在 | O126: R05/R06/R07 | P126: 172 | Q126: 430.6 | R126: 416.7 | S126: 375.0 | T126: 297.2 | U126: 255.6 | V126: 238.9 | W126: 291.7 | X126: 369.4 | Y126: 372.2 | Z126: 291.7 | AA126: 266.7 | AB126: 313.9
A127: S0173 | B127: 地方別・世帯人数別（4区分） | C127: 東海 | D127: 3人 | E127: 188 | F127: 17.2 | G127: 4,766.7 | H127: 397.2 | I127: 133,900 | J127: 11,158 | K127: 4167〜5556 kWh/年未満 | L127: 2778〜4167 kWh/年未満 | M127: 公的統計・既存住宅混在 | O127: R05/R06/R07 | P127: 173 | Q127: 513.9 | R127: 500.0 | S127: 452.8 | T127: 372.2 | U127: 311.1 | V127: 294.4 | W127: 372.2 | X127: 461.1 | Y127: 452.8 | Z127: 352.8 | AA127: 311.1 | AB127: 372.2
A128: S0174 | B128: 地方別・世帯人数別（4区分） | C128: 東海 | D128: 4人以上 | E128: 211 | F128: 22.6 | G128: 6,283.3 | H128: 523.6 | I128: 172,700 | J128: 14,392 | K128: 4167〜5556 kWh/年未満 | L128: 4167〜5556 kWh/年未満 | M128: 公的統計・既存住宅混在 | O128: R05/R06/R07 | P128: 174 | Q128: 697.2 | R128: 669.4 | S128: 613.9 | T128: 491.7 | U128: 413.9 | V128: 383.3 | W128: 461.1 | X128: 577.8 | Y128: 572.2 | Z128: 458.3 | AA128: 427.8 | AB128: 513.9
A129: S0176 | B129: 地方別・世帯人数別（4区分） | C129: 近畿 | D129: 1人 | E129: 193 | F129: 8.5 | G129: 2,372.2 | H129: 197.7 | I129: 58,400 | J129: 4,867 | K129: 1389〜2778 kWh/年未満 | L129: 1389〜2778 kWh/年未満 | M129: 公的統計・既存住宅混在 | O129: R05/R06/R07 | P129: 176 | Q129: 252.8 | R129: 241.7 | S129: 227.8 | T129: 188.9 | U129: 163.9 | V129: 141.7 | W129: 169.4 | X129: 219.4 | Y129: 230.6 | Z129: 186.1 | AA129: 163.9 | AB129: 186.1
A130: S0177 | B130: 地方別・世帯人数別（4区分） | C130: 近畿 | D130: 2人 | E130: 445 | F130: 14.0 | G130: 3,891.7 | H130: 324.3 | I130: 99,400 | J130: 8,283 | K130: 2778〜4167 kWh/年未満 | L130: 2778〜4167 kWh/年未満 | M130: 公的統計・既存住宅混在 | O130: R05/R06/R07 | P130: 177 | Q130: 422.2 | R130: 413.9 | S130: 386.1 | T130: 313.9 | U130: 272.2 | V130: 230.6 | W130: 275.0 | X130: 355.6 | Y130: 369.4 | Z130: 291.7 | AA130: 261.1 | AB130: 302.8
A131: S0178 | B131: 地方別・世帯人数別（4区分） | C131: 近畿 | D131: 3人 | E131: 223 | F131: 18.4 | G131: 5,111.1 | H131: 425.9 | I131: 131,700 | J131: 10,975 | K131: 4167〜5556 kWh/年未満 | L131: 2778〜4167 kWh/年未満 | M131: 公的統計・既存住宅混在 | O131: R05/R06/R07 | P131: 178 | Q131: 563.9 | R131: 547.2 | S131: 513.9 | T131: 402.8 | U131: 341.7 | V131: 294.4 | W131: 372.2 | X131: 477.8 | Y131: 477.8 | Z131: 369.4 | AA131: 338.9 | AB131: 413.9
A132: S0179 | B132: 地方別・世帯人数別（4区分） | C132: 近畿 | D132: 4人以上 | E132: 166 | F132: 21.1 | G132: 5,858.3 | H132: 488.2 | I132: 145,500 | J132: 12,125 | K132: 4167〜5556 kWh/年未満 | L132: 4167〜5556 kWh/年未満 | M132: 公的統計・既存住宅混在 | O132: R05/R06/R07 | P132: 179 | Q132: 658.3 | R132: 633.3 | S132: 588.9 | T132: 466.7 | U132: 388.9 | V132: 325.0 | W132: 419.4 | X132: 536.1 | Y132: 541.7 | Z132: 422.2 | AA132: 400.0 | AB132: 477.8
A133: S0181 | B133: 地方別・世帯人数別（4区分） | C133: 中国 | D133: 1人 | E133: 166 | F133: 10.0 | G133: 2,769.4 | H133: 230.8 | I133: 77,900 | J133: 6,492 | K133: 1389〜2778 kWh/年未満 | L133: 1389〜2778 kWh/年未満 | M133: 公的統計・既存住宅混在 | O133: R05/R06/R07 | P133: 181 | Q133: 330.6 | R133: 302.8 | S133: 269.4 | T133: 211.1 | U133: 180.6 | V133: 163.9 | W133: 197.2 | X133: 258.3 | Y133: 247.2 | Z133: 188.9 | AA133: 183.3 | AB133: 236.1
A134: S0182 | B134: 地方別・世帯人数別（4区分） | C134: 中国 | D134: 2人 | E134: 359 | F134: 16.3 | G134: 4,530.6 | H134: 377.5 | I134: 129,900 | J134: 10,825 | K134: 2778〜4167 kWh/年未満 | L134: 2778〜4167 kWh/年未満 | M134: 公的統計・既存住宅混在 | O134: R05/R06/R07 | P134: 182 | Q134: 541.7 | R134: 494.4 | S134: 458.3 | T134: 358.3 | U134: 308.3 | V134: 269.4 | W134: 311.1 | X134: 400.0 | Y134: 377.8 | Z134: 297.2 | AA134: 308.3 | AB134: 402.8
A135: S0183 | B135: 地方別・世帯人数別（4区分） | C135: 中国 | D135: 3人 | E135: 209 | F135: 19.9 | G135: 5,538.9 | H135: 461.6 | I135: 159,100 | J135: 13,258 | K135: 4167〜5556 kWh/年未満 | L135: 2778〜4167 kWh/年未満 | M135: 公的統計・既存住宅混在 | O135: R05/R06/R07 | P135: 183 | Q135: 680.6 | R135: 630.6 | S135: 583.3 | T135: 425.0 | U135: 366.7 | V135: 319.4 | W135: 375.0 | X135: 480.6 | Y135: 461.1 | Z135: 358.3 | AA135: 372.2 | AB135: 486.1
A136: S0184 | B136: 地方別・世帯人数別（4区分） | C136: 中国 | D136: 4人以上 | E136: 156 | F136: 25.1 | G136: 6,963.9 | H136: 580.3 | I136: 199,200 | J136: 16,600 | K136: 5556〜6944 kWh/年未満 | L136: 4167〜5556 kWh/年未満 | M136: 公的統計・既存住宅混在 | O136: R05/R06/R07 | P136: 184 | Q136: 847.2 | R136: 786.1 | S136: 725.0 | T136: 525.0 | U136: 455.6 | V136: 405.6 | W136: 488.9 | X136: 600.0 | Y136: 572.2 | Z136: 447.2 | AA136: 477.8 | AB136: 633.3
A137: S0186 | B137: 地方別・世帯人数別（4区分） | C137: 四国 | D137: 1人 | E137: 159 | F137: 9.6 | G137: 2,661.1 | H137: 221.8 | I137: 70,700 | J137: 5,892 | K137: 1389〜2778 kWh/年未満 | L137: 1389〜2778 kWh/年未満 | M137: 公的統計・既存住宅混在 | O137: R05/R06/R07 | P137: 186 | Q137: 308.3 | R137: 272.2 | S137: 272.2 | T137: 205.6 | U137: 188.9 | V137: 161.1 | W137: 180.6 | X137: 244.4 | Y137: 233.3 | Z137: 191.7 | AA137: 175.0 | AB137: 219.4
A138: S0187 | B138: 地方別・世帯人数別（4区分） | C138: 四国 | D138: 2人 | E138: 321 | F138: 16.3 | G138: 4,538.9 | H138: 378.2 | I138: 120,100 | J138: 10,008 | K138: 2778〜4167 kWh/年未満 | L138: 2778〜4167 kWh/年未満 | M138: 公的統計・既存住宅混在 | O138: R05/R06/R07 | P138: 187 | Q138: 541.7 | R138: 480.6 | S138: 480.6 | T138: 352.8 | U138: 325.0 | V138: 269.4 | W138: 311.1 | X138: 405.6 | Y138: 375.0 | Z138: 316.7 | AA138: 297.2 | AB138: 386.1
A139: S0188 | B139: 地方別・世帯人数別（4区分） | C139: 四国 | D139: 3人 | E139: 171 | F139: 22.1 | G139: 6,125.0 | H139: 510.4 | I139: 159,200 | J139: 13,267 | K139: 5556〜6944 kWh/年未満 | L139: 4167〜5556 kWh/年未満 | M139: 公的統計・既存住宅混在 | O139: R05/R06/R07 | P139: 188 | Q139: 741.7 | R139: 650.0 | S139: 655.6 | T139: 463.9 | U139: 427.8 | V139: 355.6 | W139: 416.7 | X139: 550.0 | Y139: 505.6 | Z139: 422.2 | AA139: 402.8 | AB139: 536.1
A140: S0189 | B140: 地方別・世帯人数別（4区分） | C140: 四国 | D140: 4人以上 | E140: 140 | F140: 26.9 | G140: 7,483.3 | H140: 623.6 | I140: 193,400 | J140: 16,117 | K140: 5556〜6944 kWh/年未満 | L140: 4167〜5556 kWh/年未満 | M140: 公的統計・既存住宅混在 | O140: R05/R06/R07 | P140: 189 | Q140: 916.7 | R140: 822.2 | S140: 808.3 | T140: 575.0 | U140: 522.2 | V140: 425.0 | W140: 508.3 | X140: 658.3 | Y140: 611.1 | Z140: 505.6 | AA140: 472.2 | AB140: 658.3
A141: S0191 | B141: 地方別・世帯人数別（4区分） | C141: 九州 | D141: 1人 | E141: 170 | F141: 9.0 | G141: 2,494.4 | H141: 207.9 | I141: 61,500 | J141: 5,125 | K141: 1389〜2778 kWh/年未満 | L141: 1389〜2778 kWh/年未満 | M141: 公的統計・既存住宅混在 | O141: R05/R06/R07 | P141: 191 | Q141: 280.6 | R141: 236.1 | S141: 222.2 | T141: 177.8 | U141: 161.1 | V141: 161.1 | W141: 194.4 | X141: 263.9 | Y141: 233.3 | Z141: 180.6 | AA141: 169.4 | AB141: 213.9
A142: S0192 | B142: 地方別・世帯人数別（4区分） | C142: 九州 | D142: 2人 | E142: 394 | F142: 15.1 | G142: 4,194.4 | H142: 349.5 | I142: 102,300 | J142: 8,525 | K142: 2778〜4167 kWh/年未満 | L142: 2778〜4167 kWh/年未満 | M142: 公的統計・既存住宅混在 | O142: R05/R06/R07 | P142: 192 | Q142: 488.9 | R142: 416.7 | S142: 391.7 | T142: 327.8 | U142: 283.3 | V142: 269.4 | W142: 305.6 | X142: 413.9 | Y142: 366.7 | Z142: 291.7 | AA142: 280.6 | AB142: 358.3
A143: S0193 | B143: 地方別・世帯人数別（4区分） | C143: 九州 | D143: 3人 | E143: 182 | F143: 19.4 | G143: 5,397.2 | H143: 449.8 | I143: 129,200 | J143: 10,767 | K143: 4167〜5556 kWh/年未満 | L143: 2778〜4167 kWh/年未満 | M143: 公的統計・既存住宅混在 | O143: R05/R06/R07 | P143: 193 | Q143: 650.0 | R143: 555.6 | S143: 508.3 | T143: 394.4 | U143: 347.2 | V143: 330.6 | W143: 405.6 | X143: 547.2 | Y143: 466.7 | Z143: 366.7 | AA143: 347.2 | AB143: 475.0
A144: S0194 | B144: 地方別・世帯人数別（4区分） | C144: 九州 | D144: 4人以上 | E144: 154 | F144: 22.8 | G144: 6,333.3 | H144: 527.8 | I144: 154,400 | J144: 12,867 | K144: 4167〜5556 kWh/年未満 | L144: 4167〜5556 kWh/年未満 | M144: 公的統計・既存住宅混在 | O144: R05/R06/R07 | P144: 194 | Q144: 741.7 | R144: 633.3 | S144: 580.6 | T144: 466.7 | U144: 408.3 | V144: 402.8 | W144: 483.3 | X144: 638.9 | Y144: 561.1 | Z144: 447.2 | AA144: 422.2 | AB144: 547.2
A145: S0196 | B145: 地方別・世帯人数別（4区分） | C145: 沖縄 | D145: 1人 | E145: 148 | F145: 7.6 | G145: 2,108.3 | H145: 175.7 | I145: 61,900 | J145: 5,158 | K145: 1389〜2778 kWh/年未満 | L145: 1389〜2778 kWh/年未満 | M145: 公的統計・既存住宅混在 | O145: R05/R06/R07 | P145: 196 | Q145: 169.4 | R145: 141.7 | S145: 138.9 | T145: 150.0 | U145: 138.9 | V145: 172.2 | W145: 227.8 | X145: 244.4 | Y145: 222.2 | Z145: 211.1 | AA145: 150.0 | AB145: 138.9
A146: S0197 | B146: 地方別・世帯人数別（4区分） | C146: 沖縄 | D146: 2人 | E146: 190 | F146: 13.3 | G146: 3,680.6 | H146: 306.7 | I146: 108,000 | J146: 9,000 | K146: 2778〜4167 kWh/年未満 | L146: 2778〜4167 kWh/年未満 | M146: 公的統計・既存住宅混在 | O146: R05/R06/R07 | P146: 197 | Q146: 308.3 | R146: 250.0 | S146: 255.6 | T146: 263.9 | U146: 238.9 | V146: 291.7 | W146: 391.7 | X146: 419.4 | Y146: 388.9 | Z146: 372.2 | AA146: 261.1 | AB146: 244.4
A147: S0198 | B147: 地方別・世帯人数別（4区分） | C147: 沖縄 | D147: 3人 | E147: 121 | F147: 16.7 | G147: 4,641.7 | H147: 386.8 | I147: 132,000 | J147: 11,000 | K147: 2778〜4167 kWh/年未満 | L147: 2778〜4167 kWh/年未満 | M147: 公的統計・既存住宅混在 | O147: R05/R06/R07 | P147: 198 | Q147: 391.7 | R147: 319.4 | S147: 322.2 | T147: 344.4 | U147: 311.1 | V147: 380.6 | W147: 486.1 | X147: 522.2 | Y147: 469.4 | Z147: 455.6 | AA147: 325.0 | AB147: 313.9
A148: S0199 | B148: 地方別・世帯人数別（4区分） | C148: 沖縄 | D148: 4人以上 | E148: 166 | F148: 18.8 | G148: 5,225.0 | H148: 435.4 | I148: 157,000 | J148: 13,083 | K148: 4167〜5556 kWh/年未満 | L148: 2778〜4167 kWh/年未満 | M148: 公的統計・既存住宅混在 | O148: R05/R06/R07 | P148: 199 | Q148: 408.3 | R148: 347.2 | S148: 341.7 | T148: 358.3 | U148: 336.1 | V148: 416.7 | W148: 555.6 | X148: 616.7 | Y148: 572.2 | Z148: 544.4 | AA148: 386.1 | AB148: 344.4
A149: S0201 | B149: 世帯類型別（8区分） | C149: 単身・高齢 | E149: 827 | F149: 9.5 | G149: 2,647.2 | H149: 220.6 | I149: 76,500 | J149: 6,375 | K149: 1389〜2778 kWh/年未満 | L149: 1389〜2778 kWh/年未満 | M149: 公的統計・既存住宅混在 | O149: R05/R06/R07 | P149: 201 | Q149: 283.3 | R149: 277.8 | S149: 261.1 | T149: 208.3 | U149: 183.3 | V149: 163.9 | W149: 191.7 | X149: 241.7 | Y149: 244.4 | Z149: 200.0 | AA149: 183.3 | AB149: 213.9
A150: S0202 | B150: 世帯類型別（8区分） | C150: 単身・若中年 | E150: 1007 | F150: 8.0 | G150: 2,233.3 | H150: 186.1 | I150: 63,900 | J150: 5,325 | K150: 1389〜2778 kWh/年未満 | L150: 1389〜2778 kWh/年未満 | M150: 公的統計・既存住宅混在 | O150: R05/R06/R07 | P150: 202 | Q150: 227.8 | R150: 219.4 | S150: 205.6 | T150: 169.4 | U150: 150.0 | V150: 144.4 | W150: 175.0 | X150: 219.4 | Y150: 222.2 | Z150: 177.8 | AA150: 155.6 | AB150: 175.0
A151: S0203 | B151: 世帯類型別（8区分） | C151: 夫婦・高齢 | E151: 1856 | F151: 14.9 | G151: 4,136.1 | H151: 344.7 | I151: 116,500 | J151: 9,708 | K151: 2778〜4167 kWh/年未満 | L151: 2778〜4167 kWh/年未満 | M151: 公的統計・既存住宅混在 | O151: R05/R06/R07 | P151: 203 | Q151: 463.9 | R151: 444.4 | S151: 419.4 | T151: 336.1 | U151: 288.9 | V151: 250.0 | W151: 283.3 | X151: 363.9 | Y151: 366.7 | Z151: 297.2 | AA151: 280.6 | AB151: 341.7
A152: S0204 | B152: 世帯類型別（8区分） | C152: 夫婦・若中年 | E152: 1178 | F152: 13.7 | G152: 3,797.2 | H152: 316.4 | I152: 107,400 | J152: 8,950 | K152: 2778〜4167 kWh/年未満 | L152: 2778〜4167 kWh/年未満 | M152: 公的統計・既存住宅混在 | O152: R05/R06/R07 | P152: 204 | Q152: 419.4 | R152: 400.0 | S152: 383.3 | T152: 291.7 | U152: 252.8 | V152: 227.8 | W152: 272.2 | X152: 352.8 | Y152: 350.0 | Z152: 277.8 | AA152: 258.3 | AB152: 313.9
A153: S0205 | B153: 世帯類型別（8区分） | C153: 夫婦と子・高齢 | E153: 693 | F153: 20.0 | G153: 5,566.7 | H153: 463.9 | I153: 157,600 | J153: 13,133 | K153: 4167〜5556 kWh/年未満 | L153: 4167〜5556 kWh/年未満 | M153: 公的統計・既存住宅混在 | O153: R05/R06/R07 | P153: 205 | Q153: 611.1 | R153: 594.4 | S153: 566.7 | T153: 438.9 | U153: 372.2 | V153: 333.3 | W153: 391.7 | X153: 508.3 | Y153: 505.6 | Z153: 411.1 | AA153: 375.0 | AB153: 452.8
A154: S0206 | B154: 世帯類型別（8区分） | C154: 夫婦と子・若中年 | E154: 2019 | F154: 18.9 | G154: 5,241.7 | H154: 436.8 | I154: 145,700 | J154: 12,142 | K154: 4167〜5556 kWh/年未満 | L154: 2778〜4167 kWh/年未満 | M154: 公的統計・既存住宅混在 | O154: R05/R06/R07 | P154: 206 | Q154: 586.1 | R154: 566.7 | S154: 530.6 | T154: 405.6 | U154: 341.7 | V154: 313.9 | W154: 383.3 | X154: 477.8 | Y154: 469.4 | Z154: 372.2 | AA154: 355.6 | AB154: 438.9
A155: S0207 | B155: 世帯類型別（8区分） | C155: 三世代 | E155: 488 | F155: 27.2 | G155: 7,547.2 | H155: 628.9 | I155: 212,700 | J155: 17,725 | K155: 5556〜6944 kWh/年未満 | L155: 4167〜5556 kWh/年未満 | M155: 公的統計・既存住宅混在 | O155: R05/R06/R07 | P155: 207 | Q155: 863.9 | R155: 825.0 | S155: 769.4 | T155: 602.8 | U155: 505.6 | V155: 447.2 | W155: 519.4 | X155: 666.7 | Y155: 655.6 | Z155: 525.0 | AA155: 519.4 | AB155: 647.2
A156: S0208 | B156: 世帯類型別（8区分） | C156: その他 | E156: 1212 | F156: 16.0 | G156: 4,450.0 | H156: 370.8 | I156: 126,100 | J156: 10,508 | K156: 2778〜4167 kWh/年未満 | L156: 2778〜4167 kWh/年未満 | M156: 公的統計・既存住宅混在 | O156: R05/R06/R07 | P156: 208 | Q156: 494.4 | R156: 475.0 | S156: 447.2 | T156: 347.2 | U156: 297.2 | V156: 263.9 | W156: 313.9 | X156: 408.3 | Y156: 405.6 | Z156: 325.0 | AA156: 302.8 | AB156: 372.2
A157: S0209 | B157: 世帯類型別（8区分） | C157: 不明 | E157: 11 | F157: 16.0 | G157: 4,438.9 | H157: 369.9 | I157: 131,200 | J157: 10,933 | K157: 4167〜5556 kWh/年未満 | L157: 5556〜6944 kWh/年未満 | M157: 標本30未満・参考限定 | O157: R05/R06/R07 | P157: 209 | Q157: 497.2 | R157: 508.3 | S157: 502.8 | T157: 405.6 | U157: 291.7 | V157: 236.1 | W157: 277.8 | X157: 369.4 | Y157: 375.0 | Z157: 302.8 | AA157: 322.2 | AB157: 352.8
A158: S0211 | B158: 世帯類型別（5区分） | C158: 単身 | E158: 1836 | F158: 8.7 | G158: 2,405.6 | H158: 200.5 | I158: 69,200 | J158: 5,767 | K158: 1389〜2778 kWh/年未満 | L158: 1389〜2778 kWh/年未満 | M158: 公的統計・既存住宅混在 | O158: R05/R06/R07 | P158: 211 | Q158: 250.0 | R158: 244.4 | S158: 227.8 | T158: 183.3 | U158: 163.9 | V158: 152.8 | W158: 180.6 | X158: 227.8 | Y158: 230.6 | Z158: 186.1 | AA158: 166.7 | AB158: 191.7
A159: S0212 | B159: 世帯類型別（5区分） | C159: 夫婦 | E159: 3036 | F159: 14.5 | G159: 4,013.9 | H159: 334.5 | I159: 113,200 | J159: 9,433 | K159: 2778〜4167 kWh/年未満 | L159: 2778〜4167 kWh/年未満 | M159: 公的統計・既存住宅混在 | O159: R05/R06/R07 | P159: 212 | Q159: 447.2 | R159: 427.8 | S159: 408.3 | T159: 319.4 | U159: 275.0 | V159: 241.7 | W159: 280.6 | X159: 358.3 | Y159: 361.1 | Z159: 291.7 | AA159: 272.2 | AB159: 330.6
A160: S0213 | B160: 世帯類型別（5区分） | C160: 夫婦と子 | E160: 2714 | F160: 19.2 | G160: 5,327.8 | H160: 444.0 | I160: 148,900 | J160: 12,408 | K160: 4167〜5556 kWh/年未満 | L160: 2778〜4167 kWh/年未満 | M160: 公的統計・既存住宅混在 | O160: R05/R06/R07 | P160: 213 | Q160: 594.4 | R160: 575.0 | S160: 538.9 | T160: 413.9 | U160: 350.0 | V160: 319.4 | W160: 383.3 | X160: 486.1 | Y160: 480.6 | Z160: 383.3 | AA160: 361.1 | AB160: 444.4
A161: S0214 | B161: 世帯類型別（5区分） | C161: 三世代 | E161: 488 | F161: 27.2 | G161: 7,547.2 | H161: 628.9 | I161: 212,700 | J161: 17,725 | K161: 5556〜6944 kWh/年未満 | L161: 4167〜5556 kWh/年未満 | M161: 公的統計・既存住宅混在 | O161: R05/R06/R07 | P161: 214 | Q161: 863.9 | R161: 825.0 | S161: 769.4 | T161: 602.8 | U161: 505.6 | V161: 447.2 | W161: 519.4 | X161: 666.7 | Y161: 655.6 | Z161: 525.0 | AA161: 519.4 | AB161: 647.2
A162: S0215 | B162: 世帯類型別（5区分） | C162: その他 | E162: 1212 | F162: 16.0 | G162: 4,450.0 | H162: 370.8 | I162: 126,100 | J162: 10,508 | K162: 2778〜4167 kWh/年未満 | L162: 2778〜4167 kWh/年未満 | M162: 公的統計・既存住宅混在 | O162: R05/R06/R07 | P162: 215 | Q162: 494.4 | R162: 475.0 | S162: 447.2 | T162: 347.2 | U162: 297.2 | V162: 263.9 | W162: 313.9 | X162: 408.3 | Y162: 405.6 | Z162: 325.0 | AA162: 302.8 | AB162: 372.2
A163: S0216 | B163: 世帯類型別（5区分） | C163: 不明 | E163: 5 | K163: 2778〜4167 kWh/年未満 | L163: 2778〜4167 kWh/年未満 | M163: 非公表・推定不可 | N163: Q | O163: R05/R06/R07 | P163: 216
A164: S0218 | B164: 世帯類型別（2区分） | C164: 単身 | E164: 1836 | F164: 8.7 | G164: 2,405.6 | H164: 200.5 | I164: 69,200 | J164: 5,767 | K164: 1389〜2778 kWh/年未満 | L164: 1389〜2778 kWh/年未満 | M164: 公的統計・既存住宅混在 | O164: R05/R06/R07 | P164: 218 | Q164: 250.0 | R164: 244.4 | S164: 227.8 | T164: 183.3 | U164: 163.9 | V164: 152.8 | W164: 180.6 | X164: 227.8 | Y164: 230.6 | Z164: 186.1 | AA164: 166.7 | AB164: 191.7
A165: S0219 | B165: 世帯類型別（2区分） | C165: 2人以上 | E165: 7455 | F165: 17.3 | G165: 4,808.3 | H165: 400.7 | I165: 135,100 | J165: 11,258 | K165: 2778〜4167 kWh/年未満 | L165: 2778〜4167 kWh/年未満 | M165: 公的統計・既存住宅混在 | O165: R05/R06/R07 | P165: 219 | Q165: 536.1 | R165: 516.7 | S165: 486.1 | T165: 377.8 | U165: 322.2 | V165: 288.9 | W165: 338.9 | X165: 436.1 | Y165: 430.6 | Z165: 344.4 | AA165: 327.8 | AB165: 400.0
A166: S0222 | B166: 建て方別・世帯類型別（8区分） | C166: 戸建 | D166: 単身・高齢 | E166: 521 | F166: 11.4 | G166: 3,161.1 | H166: 263.4 | I166: 90,900 | J166: 7,575 | K166: 2778〜4167 kWh/年未満 | L166: 1389〜2778 kWh/年未満 | M166: 公的統計・既存住宅混在 | O166: R05/R06/R07 | P166: 222 | Q166: 355.6 | R166: 336.1 | S166: 322.2 | T166: 255.6 | U166: 222.2 | V166: 194.4 | W166: 219.4 | X166: 275.0 | Y166: 272.2 | Z166: 225.0 | AA166: 222.2 | AB166: 261.1
A167: S0223 | B167: 建て方別・世帯類型別（8区分） | C167: 戸建 | D167: 単身・若中年 | E167: 339 | F167: 11.5 | G167: 3,197.2 | H167: 266.4 | I167: 90,000 | J167: 7,500 | K167: 1389〜2778 kWh/年未満 | L167: 1389〜2778 kWh/年未満 | M167: 公的統計・既存住宅混在 | O167: R05/R06/R07 | P167: 223 | Q167: 352.8 | R167: 325.0 | S167: 305.6 | T167: 255.6 | U167: 222.2 | V167: 200.0 | W167: 230.6 | X167: 288.9 | Y167: 288.9 | Z167: 238.9 | AA167: 222.2 | AB167: 263.9
A168: S0224 | B168: 建て方別・世帯類型別（8区分） | C168: 戸建 | D168: 夫婦・高齢 | E168: 1410 | F168: 16.0 | G168: 4,455.6 | H168: 371.3 | I168: 125,200 | J168: 10,433 | K168: 2778〜4167 kWh/年未満 | L168: 2778〜4167 kWh/年未満 | M168: 公的統計・既存住宅混在 | O168: R05/R06/R07 | P168: 224 | Q168: 511.1 | R168: 486.1 | S168: 458.3 | T168: 366.7 | U168: 311.1 | V168: 266.7 | W168: 300.0 | X168: 383.3 | Y168: 383.3 | Z168: 311.1 | AA168: 300.0 | AB168: 375.0
A169: S0225 | B169: 建て方別・世帯類型別（8区分） | C169: 戸建 | D169: 夫婦・若中年 | E169: 582 | F169: 16.0 | G169: 4,447.2 | H169: 370.6 | I169: 124,400 | J169: 10,367 | K169: 2778〜4167 kWh/年未満 | L169: 2778〜4167 kWh/年未満 | M169: 公的統計・既存住宅混在 | O169: R05/R06/R07 | P169: 225 | Q169: 530.6 | R169: 494.4 | S169: 466.7 | T169: 350.0 | U169: 297.2 | V169: 258.3 | W169: 300.0 | X169: 386.1 | Y169: 375.0 | Z169: 300.0 | AA169: 300.0 | AB169: 388.9
A170: S0226 | B170: 建て方別・世帯類型別（8区分） | C170: 戸建 | D170: 夫婦と子・高齢 | E170: 565 | F170: 21.2 | G170: 5,897.2 | H170: 491.4 | I170: 166,200 | J170: 13,850 | K170: 4167〜5556 kWh/年未満 | L170: 4167〜5556 kWh/年未満 | M170: 公的統計・既存住宅混在 | O170: R05/R06/R07 | P170: 226 | Q170: 669.4 | R170: 641.7 | S170: 605.6 | T170: 469.4 | U170: 394.4 | V170: 350.0 | W170: 408.3 | X170: 530.6 | Y170: 519.4 | Z170: 419.4 | AA170: 397.2 | AB170: 491.7
A171: S0227 | B171: 建て方別・世帯類型別（8区分） | C171: 戸建 | D171: 夫婦と子・若中年 | E171: 1265 | F171: 21.0 | G171: 5,827.8 | H171: 485.6 | I171: 159,400 | J171: 13,283 | K171: 4167〜5556 kWh/年未満 | L171: 4167〜5556 kWh/年未満 | M171: 公的統計・既存住宅混在 | O171: R05/R06/R07 | P171: 227 | Q171: 686.1 | R171: 655.6 | S171: 608.3 | T171: 458.3 | U171: 380.6 | V171: 338.9 | W171: 408.3 | X171: 508.3 | Y171: 494.4 | Z171: 394.4 | AA171: 394.4 | AB171: 505.6
A172: S0228 | B172: 建て方別・世帯類型別（8区分） | C172: 戸建 | D172: 三世代 | E172: 450 | F172: 28.1 | G172: 7,816.7 | H172: 651.4 | I172: 219,600 | J172: 18,300 | K172: 5556〜6944 kWh/年未満 | L172: 4167〜5556 kWh/年未満 | M172: 公的統計・既存住宅混在 | O172: R05/R06/R07 | P172: 228 | Q172: 902.8 | R172: 858.3 | S172: 800.0 | T172: 625.0 | U172: 525.0 | V172: 461.1 | W172: 533.3 | X172: 683.3 | Y172: 675.0 | Z172: 536.1 | AA172: 538.9 | AB172: 677.8
A173: S0229 | B173: 建て方別・世帯類型別（8区分） | C173: 戸建 | D173: その他 | E173: 779 | F173: 18.5 | G173: 5,144.4 | H173: 428.7 | I173: 146,000 | J173: 12,167 | K173: 4167〜5556 kWh/年未満 | L173: 2778〜4167 kWh/年未満 | M173: 公的統計・既存住宅混在 | O173: R05/R06/R07 | P173: 229 | Q173: 594.4 | R173: 563.9 | S173: 530.6 | T173: 408.3 | U173: 347.2 | V173: 300.0 | W173: 352.8 | X173: 455.6 | Y173: 447.2 | Z173: 358.3 | AA173: 350.0 | AB173: 441.7
A174: S0230 | B174: 建て方別・世帯類型別（8区分） | C174: 戸建 | D174: 不明 | E174: 8 | K174: 2778〜4167 kWh/年未満 | L174: 2778〜4167 kWh/年未満 | M174: 非公表・推定不可 | N174: Q | O174: R05/R06/R07 | P174: 230
A175: S0232 | B175: 建て方別・世帯類型別（8区分） | C175: 集合 | D175: 単身・高齢 | E175: 306 | F175: 8.1 | G175: 2,258.3 | H175: 188.2 | I175: 65,700 | J175: 5,475 | K175: 1389〜2778 kWh/年未満 | L175: 1389〜2778 kWh/年未満 | M175: 公的統計・既存住宅混在 | O175: R05/R06/R07 | P175: 232 | Q175: 230.6 | R175: 233.3 | S175: 213.9 | T175: 169.4 | U175: 152.8 | V175: 138.9 | W175: 169.4 | X175: 216.7 | Y175: 225.0 | Z175: 180.6 | AA175: 152.8 | AB175: 175.0
A176: S0233 | B176: 建て方別・世帯類型別（8区分） | C176: 集合 | D176: 単身・若中年 | E176: 668 | F176: 7.1 | G176: 1,983.3 | H176: 165.3 | I176: 57,100 | J176: 4,758 | K176: 1389〜2778 kWh/年未満 | L176: 1389〜2778 kWh/年未満 | M176: 公的統計・既存住宅混在 | O176: R05/R06/R07 | P176: 233 | Q176: 194.4 | R176: 191.7 | S176: 180.6 | T176: 144.4 | U176: 130.6 | V176: 130.6 | W176: 158.3 | X176: 202.8 | Y176: 202.8 | Z176: 161.1 | AA176: 136.1 | AB176: 152.8
A177: S0234 | B177: 建て方別・世帯類型別（8区分） | C177: 集合 | D177: 夫婦・高齢 | E177: 446 | F177: 11.6 | G177: 3,216.7 | H177: 268.1 | I177: 91,100 | J177: 7,592 | K177: 2778〜4167 kWh/年未満 | L177: 2778〜4167 kWh/年未満 | M177: 公的統計・既存住宅混在 | O177: R05/R06/R07 | P177: 234 | Q177: 319.4 | R177: 319.4 | S177: 311.1 | T177: 247.2 | U177: 222.2 | V177: 205.6 | W177: 236.1 | X177: 305.6 | Y177: 319.4 | Z177: 261.1 | AA177: 225.0 | AB177: 244.4
A178: S0235 | B178: 建て方別・世帯類型別（8区分） | C178: 集合 | D178: 夫婦・若中年 | E178: 596 | F178: 11.5 | G178: 3,186.1 | H178: 265.5 | I178: 91,400 | J178: 7,617 | K178: 2778〜4167 kWh/年未満 | L178: 1389〜2778 kWh/年未満 | M178: 公的統計・既存住宅混在 | O178: R05/R06/R07 | P178: 235 | Q178: 313.9 | R178: 311.1 | S178: 302.8 | T178: 238.9 | U178: 211.1 | V178: 197.2 | W178: 244.4 | X178: 319.4 | Y178: 325.0 | Z178: 258.3 | AA178: 219.4 | AB178: 241.7
A179: S0236 | B179: 建て方別・世帯類型別（8区分） | C179: 集合 | D179: 夫婦と子・高齢 | E179: 128 | F179: 15.5 | G179: 4,311.1 | H179: 359.3 | I179: 124,700 | J179: 10,392 | K179: 2778〜4167 kWh/年未満 | L179: 2778〜4167 kWh/年未満 | M179: 公的統計・既存住宅混在 | O179: R05/R06/R07 | P179: 236 | Q179: 397.2 | R179: 419.4 | S179: 416.7 | T179: 330.6 | U179: 288.9 | V179: 277.8 | W179: 327.8 | X179: 419.4 | Y179: 447.2 | Z179: 377.8 | AA179: 297.2 | AB179: 308.3
A180: S0237 | B180: 建て方別・世帯類型別（8区分） | C180: 集合 | D180: 夫婦と子・若中年 | E180: 754 | F180: 15.0 | G180: 4,166.7 | H180: 347.2 | I180: 120,500 | J180: 10,042 | K180: 2778〜4167 kWh/年未満 | L180: 2778〜4167 kWh/年未満 | M180: 公的統計・既存住宅混在 | O180: R05/R06/R07 | P180: 237 | Q180: 405.6 | R180: 402.8 | S180: 388.9 | T180: 308.3 | U180: 275.0 | V180: 266.7 | W180: 336.1 | X180: 425.0 | Y180: 427.8 | Z180: 330.6 | AA180: 283.3 | AB180: 319.4
A181: S0238 | B181: 建て方別・世帯類型別（8区分） | C181: 集合 | D181: 三世代 | E181: 38 | F181: 15.5 | G181: 4,297.2 | H181: 358.1 | I181: 129,300 | J181: 10,775 | K181: 2778〜4167 kWh/年未満 | L181: 2778〜4167 kWh/年未満 | M181: 公的統計・既存住宅混在 | O181: R05/R06/R07 | P181: 238 | Q181: 402.8 | R181: 408.3 | S181: 391.7 | T181: 338.9 | U181: 300.0 | V181: 277.8 | W181: 344.4 | X181: 450.0 | Y181: 438.9 | Z181: 361.1 | AA181: 286.1 | AB181: 294.4
A182: S0239 | B182: 建て方別・世帯類型別（8区分） | C182: 集合 | D182: その他 | E182: 433 | F182: 11.4 | G182: 3,152.8 | H182: 262.7 | I182: 88,900 | J182: 7,408 | K182: 2778〜4167 kWh/年未満 | L182: 1389〜2778 kWh/年未満 | M182: 公的統計・既存住宅混在 | O182: R05/R06/R07 | P182: 239 | Q182: 305.6 | R182: 308.3 | S182: 291.7 | T182: 233.3 | U182: 205.6 | V182: 194.4 | W182: 244.4 | X182: 322.2 | Y182: 327.8 | Z182: 261.1 | AA182: 213.9 | AB182: 241.7
A183: S0240 | B183: 建て方別・世帯類型別（8区分） | C183: 集合 | D183: 不明 | E183: 3 | K183: 非公表 | L183: 非公表 | M183: 非公表・推定不可 | N183: x | O183: R05/R06/R07 | P183: 240
A184: S0243 | B184: 建て方別・世帯類型別（2区分） | C184: 戸建 | D184: 単身 | E184: 862 | F184: 11.4 | G184: 3,177.8 | H184: 264.8 | I184: 90,600 | J184: 7,550 | K184: 1389〜2778 kWh/年未満 | L184: 1389〜2778 kWh/年未満 | M184: 公的統計・既存住宅混在 | O184: R05/R06/R07 | P184: 243 | Q184: 352.8 | R184: 333.3 | S184: 313.9 | T184: 255.6 | U184: 222.2 | V184: 197.2 | W184: 225.0 | X184: 280.6 | Y184: 277.8 | Z184: 230.6 | AA184: 222.2 | AB184: 263.9
A185: S0244 | B185: 建て方別・世帯類型別（2区分） | C185: 戸建 | D185: 2人以上 | E185: 5057 | F185: 19.4 | G185: 5,386.1 | H185: 448.8 | I185: 150,400 | J185: 12,533 | K185: 4167〜5556 kWh/年未満 | L185: 2778〜4167 kWh/年未満 | M185: 公的統計・既存住宅混在 | O185: R05/R06/R07 | P185: 244 | Q185: 625.0 | R185: 594.4 | S185: 558.3 | T185: 430.6 | U185: 361.1 | V185: 316.7 | W185: 369.4 | X185: 472.2 | Y185: 461.1 | Z185: 372.2 | AA185: 363.9 | AB185: 461.1
A186: S0246 | B186: 建て方別・世帯類型別（2区分） | C186: 集合 | D186: 単身 | E186: 974 | F186: 7.5 | G186: 2,077.8 | H186: 173.1 | I186: 60,000 | J186: 5,000 | K186: 1389〜2778 kWh/年未満 | L186: 1389〜2778 kWh/年未満 | M186: 公的統計・既存住宅混在 | O186: R05/R06/R07 | P186: 246 | Q186: 205.6 | R186: 205.6 | S186: 191.7 | T186: 152.8 | U186: 138.9 | V186: 133.3 | W186: 161.1 | X186: 208.3 | Y186: 211.1 | Z186: 166.7 | AA186: 141.7 | AB186: 158.3
A187: S0247 | B187: 建て方別・世帯類型別（2区分） | C187: 集合 | D187: 2人以上 | E187: 2398 | F187: 12.9 | G187: 3,575.0 | H187: 297.9 | I187: 102,500 | J187: 8,542 | K187: 2778〜4167 kWh/年未満 | L187: 2778〜4167 kWh/年未満 | M187: 公的統計・既存住宅混在 | O187: R05/R06/R07 | P187: 247 | Q187: 350.0 | R187: 350.0 | S187: 338.9 | T187: 269.4 | U187: 238.9 | V187: 225.0 | W187: 277.8 | X187: 358.3 | Y187: 366.7 | Z187: 288.9 | AA187: 244.4 | AB187: 272.2
A188: S0249 | B188: 世帯人数別（6区分） | C188: 1人 | E188: 1836 | F188: 8.7 | G188: 2,405.6 | H188: 200.5 | I188: 69,200 | J188: 5,767 | K188: 1389〜2778 kWh/年未満 | L188: 1389〜2778 kWh/年未満 | M188: 公的統計・既存住宅混在 | O188: R05/R06/R07 | P188: 249 | Q188: 250.0 | R188: 244.4 | S188: 227.8 | T188: 183.3 | U188: 163.9 | V188: 152.8 | W188: 180.6 | X188: 227.8 | Y188: 230.6 | Z188: 186.1 | AA188: 166.7 | AB188: 191.7
A189: S0250 | B189: 世帯人数別（6区分） | C189: 2人 | E189: 3743 | F189: 14.3 | G189: 3,958.3 | H189: 329.9 | I189: 111,800 | J189: 9,317 | K189: 2778〜4167 kWh/年未満 | L189: 2778〜4167 kWh/年未満 | M189: 公的統計・既存住宅混在 | O189: R05/R06/R07 | P189: 250 | Q189: 438.9 | R189: 422.2 | S189: 400.0 | T189: 313.9 | U189: 269.4 | V189: 238.9 | W189: 277.8 | X189: 355.6 | Y189: 358.3 | Z189: 288.9 | AA189: 269.4 | AB189: 325.0
A190: S0251 | B190: 世帯人数別（6区分） | C190: 3人 | E190: 1939 | F190: 18.5 | G190: 5,130.6 | H190: 427.5 | I190: 144,200 | J190: 12,017 | K190: 4167〜5556 kWh/年未満 | L190: 2778〜4167 kWh/年未満 | M190: 公的統計・既存住宅混在 | O190: R05/R06/R07 | P190: 251 | Q190: 575.0 | R190: 552.8 | S190: 519.4 | T190: 400.0 | U190: 338.9 | V190: 305.6 | W190: 366.7 | X190: 469.4 | Y190: 461.1 | Z190: 366.7 | AA190: 344.4 | AB190: 427.8
A191: S0252 | B191: 世帯人数別（6区分） | C191: 4人 | E191: 1152 | F191: 20.6 | G191: 5,716.7 | H191: 476.4 | I191: 159,800 | J191: 13,317 | K191: 4167〜5556 kWh/年未満 | L191: 2778〜4167 kWh/年未満 | M191: 公的統計・既存住宅混在 | O191: R05/R06/R07 | P191: 252 | Q191: 638.9 | R191: 616.7 | S191: 580.6 | T191: 447.2 | U191: 377.8 | V191: 338.9 | W191: 408.3 | X191: 516.7 | Y191: 511.1 | Z191: 405.6 | AA191: 394.4 | AB191: 483.3
A192: S0253 | B192: 世帯人数別（6区分） | C192: 5人 | E192: 448 | F192: 23.2 | G192: 6,452.8 | H192: 537.7 | I192: 181,800 | J192: 15,150 | K192: 5556〜6944 kWh/年未満 | L192: 4167〜5556 kWh/年未満 | M192: 公的統計・既存住宅混在 | O192: R05/R06/R07 | P192: 253 | Q192: 716.7 | R192: 702.8 | S192: 655.6 | T192: 505.6 | U192: 425.0 | V192: 388.9 | W192: 461.1 | X192: 580.6 | Y192: 575.0 | Z192: 458.3 | AA192: 441.7 | AB192: 541.7
A193: S0254 | B193: 世帯人数別（6区分） | C193: 6人以上 | E193: 173 | F193: 32.3 | G193: 8,966.7 | H193: 747.2 | I193: 246,800 | J193: 20,567 | K193: 6944〜8333 kWh/年未満 | L193: 5556〜6944 kWh/年未満 | M193: 公的統計・既存住宅混在 | O193: R05/R06/R07 | P193: 254 | Q193: 1,047.2 | R193: 983.3 | S193: 908.3 | T193: 719.4 | U193: 597.2 | V193: 525.0 | W193: 619.4 | X193: 791.7 | Y193: 766.7 | Z193: 619.4 | AA193: 605.6 | AB193: 783.3
A194: S0257 | B194: 建て方別・世帯人数別（6区分） | C194: 戸建 | D194: 1人 | E194: 862 | F194: 11.4 | G194: 3,177.8 | H194: 264.8 | I194: 90,600 | J194: 7,550 | K194: 1389〜2778 kWh/年未満 | L194: 1389〜2778 kWh/年未満 | M194: 公的統計・既存住宅混在 | O194: R05/R06/R07 | P194: 257 | Q194: 352.8 | R194: 333.3 | S194: 313.9 | T194: 255.6 | U194: 222.2 | V194: 197.2 | W194: 225.0 | X194: 280.6 | Y194: 277.8 | Z194: 230.6 | AA194: 222.2 | AB194: 263.9
A195: S0258 | B195: 建て方別・世帯人数別（6区分） | C195: 戸建 | D195: 2人 | E195: 2391 | F195: 16.0 | G195: 4,433.3 | H195: 369.4 | I195: 124,700 | J195: 10,392 | K195: 2778〜4167 kWh/年未満 | L195: 2778〜4167 kWh/年未満 | M195: 公的統計・既存住宅混在 | O195: R05/R06/R07 | P195: 258 | Q195: 511.1 | R195: 486.1 | S195: 458.3 | T195: 358.3 | U195: 305.6 | V195: 263.9 | W195: 300.0 | X195: 383.3 | Y195: 380.6 | Z195: 311.1 | AA195: 300.0 | AB195: 375.0
A196: S0259 | B196: 建て方別・世帯人数別（6区分） | C196: 戸建 | D196: 3人 | E196: 1335 | F196: 20.3 | G196: 5,644.4 | H196: 470.4 | I196: 157,400 | J196: 13,117 | K196: 4167〜5556 kWh/年未満 | L196: 4167〜5556 kWh/年未満 | M196: 公的統計・既存住宅混在 | O196: R05/R06/R07 | P196: 259 | Q196: 661.1 | R196: 622.2 | S196: 583.3 | T196: 447.2 | U196: 375.0 | V196: 330.6 | W196: 391.7 | X196: 500.0 | Y196: 483.3 | Z196: 386.1 | AA196: 377.8 | AB196: 483.3
A197: S0260 | B197: 建て方別・世帯人数別（6区分） | C197: 戸建 | D197: 4人 | E197: 833 | F197: 22.5 | G197: 6,241.7 | H197: 520.1 | I197: 173,300 | J197: 14,442 | K197: 5556〜6944 kWh/年未満 | L197: 4167〜5556 kWh/年未満 | M197: 公的統計・既存住宅混在 | O197: R05/R06/R07 | P197: 260 | Q197: 722.2 | R197: 694.4 | S197: 647.2 | T197: 491.7 | U197: 411.1 | V197: 361.1 | W197: 436.1 | X197: 547.2 | Y197: 536.1 | Z197: 427.8 | AA197: 427.8 | AB197: 538.9
A198: S0261 | B198: 建て方別・世帯人数別（6区分） | C198: 戸建 | D198: 5人 | E198: 341 | F198: 24.8 | G198: 6,886.1 | H198: 573.8 | I198: 192,000 | J198: 16,000 | K198: 5556〜6944 kWh/年未満 | L198: 4167〜5556 kWh/年未満 | M198: 公的統計・既存住宅混在 | O198: R05/R06/R07 | P198: 261 | Q198: 786.1 | R198: 766.7 | S198: 711.1 | T198: 541.7 | U198: 455.6 | V198: 411.1 | W198: 480.6 | X198: 602.8 | Y198: 597.2 | Z198: 475.0 | AA198: 472.2 | AB198: 591.7
A199: S0262 | B199: 建て方別・世帯人数別（6区分） | C199: 戸建 | D199: 6人以上 | E199: 157 | F199: 33.2 | G199: 9,230.6 | H199: 769.2 | I199: 254,100 | J199: 21,175 | K199: 6944〜8333 kWh/年未満 | L199: 5556〜6944 kWh/年未満 | M199: 公的統計・既存住宅混在 | O199: R05/R06/R07 | P199: 262 | Q199: 1,086.1 | R199: 1,019.4 | S199: 941.7 | T199: 744.4 | U199: 613.9 | V199: 538.9 | W199: 627.8 | X199: 802.8 | Y199: 783.3 | Z199: 636.1 | AA199: 625.0 | AB199: 811.1
A200: S0264 | B200: 建て方別・世帯人数別（6区分） | C200: 集合 | D200: 1人 | E200: 974 | F200: 7.5 | G200: 2,077.8 | H200: 173.1 | I200: 60,000 | J200: 5,000 | K200: 1389〜2778 kWh/年未満 | L200: 1389〜2778 kWh/年未満 | M200: 公的統計・既存住宅混在 | O200: R05/R06/R07 | P200: 264 | Q200: 205.6 | R200: 205.6 | S200: 191.7 | T200: 152.8 | U200: 138.9 | V200: 133.3 | W200: 161.1 | X200: 208.3 | Y200: 211.1 | Z200: 166.7 | AA200: 141.7 | AB200: 158.3
A201: S0265 | B201: 建て方別・世帯人数別（6区分） | C201: 集合 | D201: 2人 | E201: 1352 | F201: 11.3 | G201: 3,136.1 | H201: 261.3 | I201: 89,300 | J201: 7,442 | K201: 2778〜4167 kWh/年未満 | L201: 1389〜2778 kWh/年未満 | M201: 公的統計・既存住宅混在 | O201: R05/R06/R07 | P201: 265 | Q201: 311.1 | R201: 311.1 | S201: 300.0 | T201: 236.1 | U201: 211.1 | V201: 197.2 | W201: 236.1 | X201: 308.3 | Y201: 316.7 | Z201: 252.8 | AA201: 216.7 | AB201: 238.9
A202: S0266 | B202: 建て方別・世帯人数別（6区分） | C202: 集合 | D202: 3人 | E202: 604 | F202: 14.4 | G202: 3,988.9 | H202: 332.4 | I202: 114,900 | J202: 9,575 | K202: 2778〜4167 kWh/年未満 | L202: 2778〜4167 kWh/年未満 | M202: 公的統計・既存住宅混在 | O202: R05/R06/R07 | P202: 266 | Q202: 386.1 | R202: 391.7 | S202: 377.8 | T202: 294.4 | U202: 261.1 | V202: 252.8 | W202: 313.9 | X202: 408.3 | Y202: 411.1 | Z202: 325.0 | AA202: 266.7 | AB202: 302.8
... 768 more rows

Sheet 地域
A2: 47都道府県｜代表地点と気候の根拠
A3: 同一気候区分は同じモデル値。気象庁の1991〜2020年平年値は参考情報として掲載し、県独自の計算に利用したとは扱いません。
A5: 都道府県 | B5: 初期代表地点 | C5: 環境省地方 | D5: 初期気候区分 | E5: 年平均気温参考 | F5: 1月 ℃ | G5: 2月 ℃ | H5: 3月 ℃ | I5: 4月 ℃ | J5: 5月 ℃ | K5: 6月 ℃ | L5: 7月 ℃ | M5: 8月 ℃ | N5: 9月 ℃ | O5: 10月 ℃ | P5: 11月 ℃ | Q5: 12月 ℃ | R5: 気象庁URL | S5: 地域区分根拠 | T5: 適用範囲
A6: 北海道 | B6: 札幌市 | C6: 北海道 | D6: 2 | E6: 9.3 | F6: -3.2 | G6: -2.7 | H6: 1.1 | I6: 7.3 | J6: 13.0 | K6: 17.0 | L6: 21.1 | M6: 22.3 | N6: 18.6 | O6: 12.1 | P6: 5.2 | Q6: -0.9 | R6: https://www.data.jma.go.jp/stats/etrn/view/nml_sfc_ym.php?prec_no=14&block_no=47412&year=&month=&day=&view= | S6: R09・改正後 | T6: 代表地点中心部。県全域ではない。山地・離島・旧市町村は上書き。
A7: 青森県 | B7: 青森市 | C7: 東北 | D7: 3 | E7: 10.8 | F7: -0.9 | G7: -0.4 | H7: 2.8 | I7: 8.5 | J7: 13.7 | K7: 17.6 | L7: 21.8 | M7: 23.5 | N7: 19.9 | O7: 13.5 | P7: 7.2 | Q7: 1.4 | R7: https://www.data.jma.go.jp/stats/etrn/view/nml_sfc_ym.php?prec_no=31&block_no=47575&year=&month=&day=&view= | S7: R09・改正後 | T7: 代表地点中心部。県全域ではない。山地・離島・旧市町村は上書き。
A8: 岩手県 | B8: 盛岡市 | C8: 東北 | D8: 3 | E8: 10.6 | F8: -1.6 | G8: -0.9 | H8: 2.6 | I8: 8.7 | J8: 14.5 | K8: 18.8 | L8: 22.4 | M8: 23.5 | N8: 19.3 | O8: 12.6 | P8: 6.2 | Q8: 0.8 | R8: https://www.data.jma.go.jp/stats/etrn/view/nml_sfc_ym.php?prec_no=33&block_no=47584&year=&month=&day=&view= | S8: R09・改正後 | T8: 代表地点中心部。県全域ではない。山地・離島・旧市町村は上書き。
A9: 宮城県 | B9: 仙台市 | C9: 東北 | D9: 5 | E9: 12.9 | F9: 2.0 | G9: 2.4 | H9: 5.5 | I9: 10.7 | J9: 15.6 | K9: 19.2 | L9: 22.9 | M9: 24.4 | N9: 21.2 | O9: 15.7 | P9: 9.8 | Q9: 4.5 | R9: https://www.data.jma.go.jp/stats/etrn/view/nml_sfc_ym.php?prec_no=34&block_no=47590&year=&month=&day=&view= | S9: R09・改正後 | T9: 代表地点中心部。県全域ではない。山地・離島・旧市町村は上書き。
A10: 秋田県 | B10: 秋田市 | C10: 東北 | D10: 4 | E10: 12.1 | F10: 0.4 | G10: 0.8 | H10: 4.0 | I10: 9.6 | J10: 15.2 | K10: 19.6 | L10: 23.4 | M10: 25.0 | N10: 21.0 | O10: 14.5 | P10: 8.3 | Q10: 2.8 | R10: https://www.data.jma.go.jp/stats/etrn/view/nml_sfc_ym.php?prec_no=32&block_no=47582&year=&month=&day=&view= | S10: R09・改正後 | T10: 代表地点中心部。県全域ではない。山地・離島・旧市町村は上書き。
A11: 山形県 | B11: 山形市 | C11: 東北 | D11: 4 | E11: 12.1 | F11: -0.1 | G11: 0.4 | H11: 4.0 | I11: 10.2 | J11: 16.2 | K11: 20.3 | L11: 23.9 | M11: 25.0 | N11: 20.6 | O11: 14.1 | P11: 7.7 | Q11: 2.4 | R11: https://www.data.jma.go.jp/stats/etrn/view/nml_sfc_ym.php?prec_no=35&block_no=47588&year=&month=&day=&view= | S11: R09・改正後 | T11: 代表地点中心部。県全域ではない。山地・離島・旧市町村は上書き。
A12: 福島県 | B12: 福島市 | C12: 東北 | D12: 5 | E12: 13.5 | F12: 1.9 | G12: 2.5 | H12: 5.9 | I12: 11.7 | J12: 17.2 | K12: 20.7 | L12: 24.3 | M12: 25.5 | N12: 21.6 | O12: 15.6 | P12: 9.5 | Q12: 4.3 | R12: https://www.data.jma.go.jp/stats/etrn/view/nml_sfc_ym.php?prec_no=36&block_no=47595&year=&month=&day=&view= | S12: R09・改正後 | T12: 代表地点中心部。県全域ではない。山地・離島・旧市町村は上書き。
A13: 茨城県 | B13: 水戸市 | C13: 関東甲信 | D13: 5 | E13: 14.2 | F13: 3.3 | G13: 4.1 | H13: 7.4 | I13: 12.3 | J13: 17.0 | K13: 20.3 | L13: 24.2 | M13: 25.6 | N13: 22.1 | O13: 16.6 | P13: 10.8 | Q13: 5.6 | R13: https://www.data.jma.go.jp/stats/etrn/view/nml_sfc_ym.php?prec_no=40&block_no=47629&year=&month=&day=&view= | S13: R09・改正後 | T13: 代表地点中心部。県全域ではない。山地・離島・旧市町村は上書き。
A14: 栃木県 | B14: 宇都宮市 | C14: 関東甲信 | D14: 5 | E14: 14.3 | F14: 2.8 | G14: 3.8 | H14: 7.4 | I14: 12.8 | J14: 17.8 | K14: 21.2 | L14: 24.8 | M14: 26.0 | N14: 22.4 | O14: 16.7 | P14: 10.6 | Q14: 5.1 | R14: https://www.data.jma.go.jp/stats/etrn/view/nml_sfc_ym.php?prec_no=41&block_no=47615&year=&month=&day=&view= | S14: R09・改正後 | T14: 代表地点中心部。県全域ではない。山地・離島・旧市町村は上書き。
A15: 群馬県 | B15: 前橋市 | C15: 関東甲信 | D15: 6 | E15: 15.1 | F15: 3.7 | G15: 4.5 | H15: 7.9 | I15: 13.4 | J15: 18.6 | K15: 22.1 | L15: 25.8 | M15: 26.8 | N15: 22.9 | O15: 17.1 | P15: 11.2 | Q15: 6.1 | R15: https://www.data.jma.go.jp/stats/etrn/view/nml_sfc_ym.php?prec_no=42&block_no=47624&year=&month=&day=&view= | S15: R09・改正後 | T15: 代表地点中心部。県全域ではない。山地・離島・旧市町村は上書き。
A16: 埼玉県 | B16: 熊谷市 | C16: 関東甲信 | D16: 6 | E16: 15.5 | F16: 4.3 | G16: 5.1 | H16: 8.6 | I16: 13.9 | J16: 18.8 | K16: 22.3 | L16: 26.0 | M16: 27.1 | N16: 23.3 | O16: 17.6 | P16: 11.7 | Q16: 6.5 | R16: https://www.data.jma.go.jp/stats/etrn/view/nml_sfc_ym.php?prec_no=43&block_no=47626&year=&month=&day=&view= | S16: R09・改正後 | T16: 代表地点中心部。県全域ではない。山地・離島・旧市町村は上書き。
A17: 千葉県 | B17: 千葉市 | C17: 関東甲信 | D17: 6 | E17: 16.3 | F17: 6.1 | G17: 6.6 | H17: 9.6 | I17: 14.5 | J17: 18.9 | K17: 21.9 | L17: 25.7 | M17: 27.1 | N17: 23.8 | O17: 18.6 | P17: 13.4 | Q17: 8.6 | R17: https://www.data.jma.go.jp/stats/etrn/view/nml_sfc_ym.php?prec_no=45&block_no=47682&year=&month=&day=&view= | S17: R09・改正後 | T17: 代表地点中心部。県全域ではない。山地・離島・旧市町村は上書き。
A18: 東京都 | B18: 東京23区 | C18: 関東甲信 | D18: 6 | E18: 15.9 | F18: 5.4 | G18: 6.1 | H18: 9.4 | I18: 14.3 | J18: 18.8 | K18: 21.9 | L18: 25.7 | M18: 26.9 | N18: 23.3 | O18: 18.0 | P18: 12.5 | Q18: 7.7 | R18: https://www.data.jma.go.jp/stats/etrn/view/nml_sfc_ym.php?prec_no=44&block_no=47662&year=&month=&day=&view= | S18: R09・改正後 | T18: 代表地点中心部。県全域ではない。山地・離島・旧市町村は上書き。
A19: 神奈川県 | B19: 横浜市 | C19: 関東甲信 | D19: 6 | E19: 16.3 | F19: 6.1 | G19: 6.7 | H19: 9.7 | I19: 14.5 | J19: 18.8 | K19: 21.8 | L19: 25.6 | M19: 27.0 | N19: 23.7 | O19: 18.5 | P19: 13.4 | Q19: 8.7 | R19: https://www.data.jma.go.jp/stats/etrn/view/nml_sfc_ym.php?prec_no=46&block_no=47670&year=&month=&day=&view= | S19: R09・改正後 | T19: 代表地点中心部。県全域ではない。山地・離島・旧市町村は上書き。
A20: 新潟県 | B20: 新潟市 | C20: 北陸 | D20: 5 | E20: 14.0 | F20: 2.5 | G20: 3.1 | H20: 6.2 | I20: 11.3 | J20: 16.7 | K20: 20.9 | L20: 24.9 | M20: 26.5 | N20: 22.5 | O20: 16.7 | P20: 10.5 | Q20: 5.3 | R20: https://www.data.jma.go.jp/stats/etrn/view/nml_sfc_ym.php?prec_no=54&block_no=47604&year=&month=&day=&view= | S20: R09・改正後 | T20: 代表地点中心部。県全域ではない。山地・離島・旧市町村は上書き。
A21: 富山県 | B21: 富山市 | C21: 北陸 | D21: 5 | E21: 14.5 | F21: 3.0 | G21: 3.4 | H21: 6.9 | I21: 12.3 | J21: 17.5 | K21: 21.4 | L21: 25.5 | M21: 26.9 | N21: 22.8 | O21: 17.0 | P21: 11.2 | Q21: 5.7 | R21: https://www.data.jma.go.jp/stats/etrn/view/nml_sfc_ym.php?prec_no=55&block_no=47607&year=&month=&day=&view= | S21: R09・改正後 | T21: 代表地点中心部。県全域ではない。山地・離島・旧市町村は上書き。
A22: 石川県 | B22: 金沢市 | C22: 北陸 | D22: 6 | E22: 15.1 | F22: 4.0 | G22: 4.2 | H22: 7.3 | I22: 12.6 | J22: 17.7 | K22: 21.6 | L22: 25.8 | M22: 27.3 | N22: 23.2 | O22: 17.6 | P22: 11.9 | Q22: 6.8 | R22: https://www.data.jma.go.jp/stats/etrn/view/nml_sfc_ym.php?prec_no=56&block_no=47605&year=&month=&day=&view= | S22: R09・改正後 | T22: 代表地点中心部。県全域ではない。山地・離島・旧市町村は上書き。
A23: 福井県 | B23: 福井市 | C23: 北陸 | D23: 6 | E23: 14.9 | F23: 3.2 | G23: 3.7 | H23: 7.2 | I23: 12.8 | J23: 18.1 | K23: 22.0 | L23: 26.1 | M23: 27.4 | N23: 23.1 | O23: 17.1 | P23: 11.3 | Q23: 5.9 | R23: https://www.data.jma.go.jp/stats/etrn/view/nml_sfc_ym.php?prec_no=57&block_no=47616&year=&month=&day=&view= | S23: R09・改正後 | T23: 代表地点中心部。県全域ではない。山地・離島・旧市町村は上書き。
A24: 山梨県 | B24: 甲府市 | C24: 関東甲信 | D24: 6 | E24: 15.1 | F24: 3.1 | G24: 4.7 | H24: 8.6 | I24: 14.0 | J24: 18.8 | K24: 22.3 | L24: 26.0 | M24: 27.1 | N24: 23.2 | O24: 17.1 | P24: 10.8 | Q24: 5.4 | R24: https://www.data.jma.go.jp/stats/etrn/view/nml_sfc_ym.php?prec_no=49&block_no=47638&year=&month=&day=&view= | S24: R09・改正後 | T24: 代表地点中心部。県全域ではない。山地・離島・旧市町村は上書き。
A25: 長野県 | B25: 長野市 | C25: 関東甲信 | D25: 4 | E25: 12.3 | F25: -0.4 | G25: 0.4 | H25: 4.3 | I25: 10.6 | J25: 16.4 | K25: 20.4 | L25: 24.3 | M25: 25.4 | N25: 21.0 | O25: 14.4 | P25: 7.9 | Q25: 2.3 | R25: https://www.data.jma.go.jp/stats/etrn/view/nml_sfc_ym.php?prec_no=48&block_no=47610&year=&month=&day=&view= | S25: R09・改正後 | T25: 代表地点中心部。県全域ではない。山地・離島・旧市町村は上書き。
A26: 岐阜県 | B26: 岐阜市 | C26: 東海 | D26: 6 | E26: 16.2 | F26: 4.6 | G26: 5.4 | H26: 9.0 | I26: 14.5 | J26: 19.4 | K26: 23.2 | L26: 27.0 | M26: 28.3 | N26: 24.5 | O26: 18.7 | P26: 12.5 | Q26: 7.0 | R26: https://www.data.jma.go.jp/stats/etrn/view/nml_sfc_ym.php?prec_no=52&block_no=47632&year=&month=&day=&view= | S26: R09・改正後 | T26: 代表地点中心部。県全域ではない。山地・離島・旧市町村は上書き。
A27: 静岡県 | B27: 静岡市 | C27: 東海 | D27: 7 | E27: 17.0 | F27: 6.9 | G27: 7.7 | H27: 10.7 | I27: 15.2 | J27: 19.2 | K27: 22.4 | L27: 26.1 | M27: 27.4 | N27: 24.5 | O27: 19.4 | P27: 14.3 | Q27: 9.3 | R27: https://www.data.jma.go.jp/stats/etrn/view/nml_sfc_ym.php?prec_no=50&block_no=47656&year=&month=&day=&view= | S27: R09・改正後 | T27: 代表地点中心部。県全域ではない。山地・離島・旧市町村は上書き。
A28: 愛知県 | B28: 名古屋市 | C28: 東海 | D28: 6 | E28: 16.3 | F28: 4.8 | G28: 5.5 | H28: 9.2 | I28: 14.6 | J28: 19.4 | K28: 23.0 | L28: 26.9 | M28: 28.2 | N28: 24.5 | O28: 18.6 | P28: 12.6 | Q28: 7.2 | R28: https://www.data.jma.go.jp/stats/etrn/view/nml_sfc_ym.php?prec_no=51&block_no=47636&year=&month=&day=&view= | S28: R09・改正後 | T28: 代表地点中心部。県全域ではない。山地・離島・旧市町村は上書き。
A29: 三重県 | B29: 津市 | C29: 東海 | D29: 6 | E29: 16.4 | F29: 5.7 | G29: 5.9 | H29: 9.0 | I29: 14.2 | J29: 19.0 | K29: 22.7 | L29: 26.8 | M29: 27.9 | N29: 24.4 | O29: 18.8 | P29: 13.2 | Q29: 8.1 | R29: https://www.data.jma.go.jp/stats/etrn/view/nml_sfc_ym.php?prec_no=53&block_no=47651&year=&month=&day=&view= | S29: R09・改正後 | T29: 代表地点中心部。県全域ではない。山地・離島・旧市町村は上書き。
A30: 滋賀県 | B30: 彦根市 | C30: 近畿 | D30: 5 | E30: 15.1 | F30: 3.9 | G30: 4.2 | H30: 7.3 | I30: 12.4 | J30: 17.6 | K30: 21.8 | L30: 26.1 | M30: 27.5 | N30: 23.6 | O30: 17.7 | P30: 11.7 | Q30: 6.5 | R30: https://www.data.jma.go.jp/stats/etrn/view/nml_sfc_ym.php?prec_no=60&block_no=47761&year=&month=&day=&view= | S30: R09・改正後 | T30: 代表地点中心部。県全域ではない。山地・離島・旧市町村は上書き。
A31: 京都府 | B31: 京都市 | C31: 近畿 | D31: 6 | E31: 16.3 | F31: 4.8 | G31: 5.4 | H31: 8.8 | I31: 14.4 | J31: 19.5 | K31: 23.3 | L31: 27.3 | M31: 28.5 | N31: 24.4 | O31: 18.4 | P31: 12.5 | Q31: 7.2 | R31: https://www.data.jma.go.jp/stats/etrn/view/nml_sfc_ym.php?prec_no=61&block_no=47759&year=&month=&day=&view= | S31: R09・改正後 | T31: 代表地点中心部。県全域ではない。山地・離島・旧市町村は上書き。
A32: 大阪府 | B32: 大阪市 | C32: 近畿 | D32: 6 | E32: 17.2 | F32: 6.2 | G32: 6.6 | H32: 9.9 | I32: 15.2 | J32: 20.1 | K32: 23.6 | L32: 27.7 | M32: 29.0 | N32: 25.2 | O32: 19.5 | P32: 13.8 | Q32: 8.7 | R32: https://www.data.jma.go.jp/stats/etrn/view/nml_sfc_ym.php?prec_no=62&block_no=47772&year=&month=&day=&view= | S32: R09・改正後 | T32: 代表地点中心部。県全域ではない。山地・離島・旧市町村は上書き。
A33: 兵庫県 | B33: 神戸市 | C33: 近畿 | D33: 6 | E33: 17.1 | F33: 6.2 | G33: 6.5 | H33: 9.8 | I33: 15.0 | J33: 19.8 | K33: 23.4 | L33: 27.1 | M33: 28.6 | N33: 25.4 | O33: 19.8 | P33: 14.2 | Q33: 8.8 | R33: https://www.data.jma.go.jp/stats/etrn/view/nml_sfc_ym.php?prec_no=63&block_no=47770&year=&month=&day=&view= | S33: R09・改正後 | T33: 代表地点中心部。県全域ではない。山地・離島・旧市町村は上書き。
A34: 奈良県 | B34: 奈良市 | C34: 近畿 | D34: 6 | E34: 15.8 | F34: 4.5 | G34: 5.1 | H34: 8.5 | I34: 14.0 | J34: 19.0 | K34: 22.9 | L34: 26.8 | M34: 27.8 | N34: 23.8 | O34: 17.7 | P34: 11.8 | Q34: 6.8 | R34: https://www.data.jma.go.jp/stats/etrn/view/nml_sfc_ym.php?prec_no=64&block_no=47780&year=&month=&day=&view= | S34: R09・改正後 | T34: 代表地点中心部。県全域ではない。山地・離島・旧市町村は上書き。
A35: 和歌山県 | B35: 和歌山市 | C35: 近畿 | D35: 7 | E35: 17.0 | F35: 6.2 | G35: 6.7 | H35: 9.9 | I35: 15.1 | J35: 19.7 | K35: 23.2 | L35: 27.2 | M35: 28.4 | N35: 24.9 | O35: 19.3 | P35: 13.8 | Q35: 8.6 | R35: https://www.data.jma.go.jp/stats/etrn/view/nml_sfc_ym.php?prec_no=65&block_no=47777&year=&month=&day=&view= | S35: R09・改正後 | T35: 代表地点中心部。県全域ではない。山地・離島・旧市町村は上書き。
A36: 鳥取県 | B36: 鳥取市 | C36: 中国 | D36: 6 | E36: 15.3 | F36: 4.2 | G36: 4.7 | H36: 7.9 | I36: 13.2 | J36: 18.1 | K36: 22.0 | L36: 26.2 | M36: 27.3 | N36: 22.9 | O36: 17.2 | P36: 11.9 | Q36: 6.8 | R36: https://www.data.jma.go.jp/stats/etrn/view/nml_sfc_ym.php?prec_no=69&block_no=47746&year=&month=&day=&view= | S36: R09・改正後 | T36: 代表地点中心部。県全域ではない。山地・離島・旧市町村は上書き。
A37: 島根県 | B37: 松江市 | C37: 中国 | D37: 6 | E37: 15.3 | F37: 4.6 | G37: 5.0 | H37: 8.0 | I37: 13.1 | J37: 18.0 | K37: 21.7 | L37: 25.8 | M37: 27.1 | N37: 22.9 | O37: 17.4 | P37: 12.0 | Q37: 7.0 | R37: https://www.data.jma.go.jp/stats/etrn/view/nml_sfc_ym.php?prec_no=68&block_no=47741&year=&month=&day=&view= | S37: R09・改正後 | T37: 代表地点中心部。県全域ではない。山地・離島・旧市町村は上書き。
A38: 岡山県 | B38: 岡山市 | C38: 中国 | D38: 6 | E38: 15.9 | F38: 4.6 | G38: 5.2 | H38: 8.7 | I38: 14.1 | J38: 19.1 | K38: 22.7 | L38: 27.0 | M38: 28.1 | N38: 23.9 | O38: 18.0 | P38: 11.6 | Q38: 6.6 | R38: https://www.data.jma.go.jp/stats/etrn/view/nml_sfc_ym.php?prec_no=66&block_no=47768&year=&month=&day=&view= | S38: R09・改正後 | T38: 代表地点中心部。県全域ではない。山地・離島・旧市町村は上書き。
A39: 広島県 | B39: 広島市 | C39: 中国 | D39: 6 | E39: 16.6 | F39: 5.4 | G39: 6.2 | H39: 9.5 | I39: 14.8 | J39: 19.6 | K39: 23.2 | L39: 27.2 | M39: 28.5 | N39: 24.7 | O39: 18.8 | P39: 12.9 | Q39: 7.5 | R39: https://www.data.jma.go.jp/stats/etrn/view/nml_sfc_ym.php?prec_no=67&block_no=47765&year=&month=&day=&view= | S39: R09・改正後 | T39: 代表地点中心部。県全域ではない。山地・離島・旧市町村は上書き。
A40: 山口県 | B40: 山口市 | C40: 中国 | D40: 6 | E40: 15.7 | F40: 4.4 | G40: 5.5 | H40: 9.0 | I40: 13.9 | J40: 19.0 | K40: 22.6 | L40: 26.4 | M40: 27.4 | N40: 23.5 | O40: 17.7 | P40: 11.9 | Q40: 6.4 | R40: https://www.data.jma.go.jp/stats/etrn/view/nml_sfc_ym.php?prec_no=81&block_no=47784&year=&month=&day=&view= | S40: R09・改正後 | T40: 代表地点中心部。県全域ではない。山地・離島・旧市町村は上書き。
A41: 徳島県 | B41: 徳島市 | C41: 四国 | D41: 6 | E41: 16.9 | F41: 6.3 | G41: 6.8 | H41: 9.9 | I41: 15.0 | J41: 19.6 | K41: 23.0 | L41: 26.8 | M41: 28.1 | N41: 24.8 | O41: 19.3 | P41: 13.8 | Q41: 8.7 | R41: https://www.data.jma.go.jp/stats/etrn/view/nml_sfc_ym.php?prec_no=71&block_no=47895&year=&month=&day=&view= | S41: R09・改正後 | T41: 代表地点中心部。県全域ではない。山地・離島・旧市町村は上書き。
A42: 香川県 | B42: 高松市 | C42: 四国 | D42: 6 | E42: 16.8 | F42: 5.9 | G42: 6.3 | H42: 9.4 | I42: 14.7 | J42: 19.8 | K42: 23.3 | L42: 27.5 | M42: 28.6 | N42: 24.7 | O42: 19.0 | P42: 13.2 | Q42: 8.1 | R42: https://www.data.jma.go.jp/stats/etrn/view/nml_sfc_ym.php?prec_no=72&block_no=47891&year=&month=&day=&view= | S42: R09・改正後 | T42: 代表地点中心部。県全域ではない。山地・離島・旧市町村は上書き。
A43: 愛媛県 | B43: 松山市 | C43: 四国 | D43: 7 | E43: 16.8 | F43: 6.2 | G43: 6.8 | H43: 9.9 | I43: 14.8 | J43: 19.4 | K43: 22.9 | L43: 27.1 | M43: 28.1 | N43: 24.6 | O43: 19.1 | P43: 13.6 | Q43: 8.5 | R43: https://www.data.jma.go.jp/stats/etrn/view/nml_sfc_ym.php?prec_no=73&block_no=47887&year=&month=&day=&view= | S43: R09・改正後 | T43: 代表地点中心部。県全域ではない。山地・離島・旧市町村は上書き。
A44: 高知県 | B44: 高知市 | C44: 四国 | D44: 7 | E44: 17.3 | F44: 6.7 | G44: 7.8 | H44: 11.2 | I44: 15.8 | J44: 20.0 | K44: 23.1 | L44: 27.0 | M44: 27.9 | N44: 25.0 | O44: 19.9 | P44: 14.2 | Q44: 8.8 | R44: https://www.data.jma.go.jp/stats/etrn/view/nml_sfc_ym.php?prec_no=74&block_no=47893&year=&month=&day=&view= | S44: R09・改正後 | T44: 代表地点中心部。県全域ではない。山地・離島・旧市町村は上書き。
A45: 福岡県 | B45: 福岡市 | C45: 九州 | D45: 7 | E45: 17.3 | F45: 6.9 | G45: 7.8 | H45: 10.8 | I45: 15.4 | J45: 19.9 | K45: 23.3 | L45: 27.4 | M45: 28.4 | N45: 24.7 | O45: 19.6 | P45: 14.2 | Q45: 9.1 | R45: https://www.data.jma.go.jp/stats/etrn/view/nml_sfc_ym.php?prec_no=82&block_no=47807&year=&month=&day=&view= | S45: R09・改正後 | T45: 代表地点中心部。県全域ではない。山地・離島・旧市町村は上書き。
A46: 佐賀県 | B46: 佐賀市 | C46: 九州 | D46: 6 | E46: 16.9 | F46: 5.8 | G46: 7.0 | H46: 10.4 | I46: 15.3 | J46: 20.0 | K46: 23.5 | L46: 27.2 | M46: 28.2 | N46: 24.5 | O46: 19.1 | P46: 13.3 | Q46: 7.8 | R46: https://www.data.jma.go.jp/stats/etrn/view/nml_sfc_ym.php?prec_no=85&block_no=47813&year=&month=&day=&view= | S46: R09・改正後 | T46: 代表地点中心部。県全域ではない。山地・離島・旧市町村は上書き。
A47: 長崎県 | B47: 長崎市 | C47: 九州 | D47: 7 | E47: 17.4 | F47: 7.2 | G47: 8.1 | H47: 11.2 | I47: 15.6 | J47: 19.7 | K47: 23.0 | L47: 26.9 | M47: 28.1 | N47: 24.9 | O47: 20.0 | P47: 14.5 | Q47: 9.4 | R47: https://www.data.jma.go.jp/stats/etrn/view/nml_sfc_ym.php?prec_no=84&block_no=47817&year=&month=&day=&view= | S47: R09・改正後 | T47: 代表地点中心部。県全域ではない。山地・離島・旧市町村は上書き。
A48: 熊本県 | B48: 熊本市 | C48: 九州 | D48: 7 | E48: 17.3 | F48: 6.0 | G48: 7.4 | H48: 10.9 | I48: 15.8 | J48: 20.5 | K48: 23.7 | L48: 27.5 | M48: 28.4 | N48: 25.2 | O48: 19.6 | P48: 13.5 | Q48: 8.0 | R48: https://www.data.jma.go.jp/stats/etrn/view/nml_sfc_ym.php?prec_no=86&block_no=47819&year=&month=&day=&view= | S48: R09・改正後 | T48: 代表地点中心部。県全域ではない。山地・離島・旧市町村は上書き。
A49: 大分県 | B49: 大分市 | C49: 九州 | D49: 7 | E49: 16.8 | F49: 6.5 | G49: 7.2 | H49: 10.2 | I49: 14.8 | J49: 19.3 | K49: 22.6 | L49: 26.8 | M49: 27.7 | N49: 24.2 | O49: 19.1 | P49: 13.8 | Q49: 8.7 | R49: https://www.data.jma.go.jp/stats/etrn/view/nml_sfc_ym.php?prec_no=83&block_no=47815&year=&month=&day=&view= | S49: R09・改正後 | T49: 代表地点中心部。県全域ではない。山地・離島・旧市町村は上書き。
A50: 宮崎県 | B50: 宮崎市 | C50: 九州 | D50: 7 | E50: 17.8 | F50: 7.8 | G50: 8.9 | H50: 12.1 | I50: 16.4 | J50: 20.3 | K50: 23.2 | L50: 27.3 | M50: 27.6 | N50: 24.7 | O50: 20.0 | P50: 14.7 | Q50: 9.7 | R50: https://www.data.jma.go.jp/stats/etrn/view/nml_sfc_ym.php?prec_no=87&block_no=47830&year=&month=&day=&view= | S50: R09・改正後 | T50: 代表地点中心部。県全域ではない。山地・離島・旧市町村は上書き。
A51: 鹿児島県 | B51: 鹿児島市 | C51: 九州 | D51: 7 | E51: 18.8 | F51: 8.7 | G51: 9.9 | H51: 12.8 | I51: 17.1 | J51: 21.0 | K51: 24.0 | L51: 28.1 | M51: 28.8 | N51: 26.3 | O51: 21.6 | P51: 16.2 | Q51: 10.9 | R51: https://www.data.jma.go.jp/stats/etrn/view/nml_sfc_ym.php?prec_no=88&block_no=47827&year=&month=&day=&view= | S51: R09・改正後 | T51: 代表地点中心部。県全域ではない。山地・離島・旧市町村は上書き。
A52: 沖縄県 | B52: 那覇市 | C52: 沖縄 | D52: 8 | E52: 23.3 | F52: 17.3 | G52: 17.5 | H52: 19.1 | I52: 21.5 | J52: 24.2 | K52: 27.2 | L52: 29.1 | M52: 29.0 | N52: 27.9 | O52: 25.5 | P52: 22.5 | Q52: 19.0 | R52: https://www.data.jma.go.jp/stats/etrn/view/nml_sfc_ym.php?prec_no=91&block_no=47936&year=&month=&day=&view= | S52: R09・改正後 | T52: 代表地点中心部。県全域ではない。山地・離島・旧市町村は上書き。

Sheet 計算と係数
A2: 計算用辞書｜用途別の月間二次電力
A3: 用途別kWhの固定計算値。更新は付属再現コードで実行。家電・照明・換気・暖冷房・給湯・IHを別々に保持。
A5: 検索キー | B5: 用途・単位 | C5: 根拠ID | D5: 計算条件 | E5: 1月 kWh | F5: 2月 kWh | G5: 3月 kWh | H5: 4月 kWh | I5: 5月 kWh | J5: 6月 kWh | K5: 7月 kWh | L5: 8月 kWh | M5: 9月 kWh | N5: 10月 kWh | O5: 11月 kWh | P5: 12月 kWh
A6: H|1|戸建住宅|4 | B6: 暖房kWh | C6: R01/R02 | D6: UA=0.46; etaH=2.5; etaC=1.9; 標準面積120.08m2; 未処理暖房一次エネ相当3159.3MJ（電力量に加算しない） | E6: 981.098 | F6: 729.386 | G6: 539.050 | H6: 276.869 | I6: 163.529 | J6: 20.799 | K6: 0.000 | L6: 0.000 | M6: 18.341 | N6: 178.770 | O6: 394.285 | P6: 704.709
A7: C|1|戸建住宅|4 | B7: 冷房kWh | C7: R01/R02 | D7: 気候8区分。都道府県の実測値ではない。8地域の等級7は利用停止。 | E7: 0.000 | F7: 0.000 | G7: 0.000 | H7: 0.000 | I7: 0.000 | J7: 0.000 | K7: 28.446 | L7: 50.798 | M7: 0.000 | N7: 0.000 | O7: 0.000 | P7: 0.000
A8: H|1|戸建住宅|5 | B8: 暖房kWh | C8: R01/R02 | D8: UA=0.4; etaH=2.5; etaC=1.9; 標準面積120.08m2; 未処理暖房一次エネ相当2405.1MJ（電力量に加算しない） | E8: 891.438 | F8: 658.023 | G8: 487.074 | H8: 248.945 | I8: 147.020 | J8: 19.357 | K8: 0.000 | L8: 0.000 | M8: 17.282 | N8: 160.792 | O8: 358.472 | P8: 642.951
A9: C|1|戸建住宅|5 | B9: 冷房kWh | C9: R01/R02 | D9: 気候8区分。都道府県の実測値ではない。8地域の等級7は利用停止。 | E9: 0.000 | F9: 0.000 | G9: 0.000 | H9: 0.000 | I9: 0.000 | J9: 0.000 | K9: 29.717 | L9: 53.360 | M9: 0.000 | N9: 0.000 | O9: 0.000 | P9: 0.000
A10: H|1|戸建住宅|6 | B10: 暖房kWh | C10: R01/R02 | D10: UA=0.28; etaH=2.5; etaC=1.9; 標準面積120.08m2; 未処理暖房一次エネ相当1272.0MJ（電力量に加算しない） | E10: 731.251 | F10: 532.081 | G10: 388.646 | H10: 185.392 | I10: 107.857 | J10: 9.060 | K10: 0.000 | L10: 0.000 | M10: 6.961 | N10: 113.496 | O10: 285.119 | P10: 531.289
A11: C|1|戸建住宅|6 | B11: 冷房kWh | C11: R01/R02 | D11: 気候8区分。都道府県の実測値ではない。8地域の等級7は利用停止。 | E11: 0.000 | F11: 0.000 | G11: 0.000 | H11: 0.000 | I11: 0.000 | J11: 0.000 | K11: 32.289 | L11: 58.472 | M11: 0.000 | N11: 0.000 | O11: 0.000 | P11: 0.000
A12: H|1|戸建住宅|7 | B12: 暖房kWh | C12: R01/R02 | D12: UA=0.2; etaH=2.5; etaC=1.9; 標準面積120.08m2; 未処理暖房一次エネ相当734.5MJ（電力量に加算しない） | E12: 637.700 | F12: 456.758 | G12: 325.140 | H12: 145.071 | I12: 81.855 | J12: 5.162 | K12: 0.000 | L12: 0.000 | M12: 2.377 | N12: 79.050 | O12: 234.891 | P12: 460.126
A13: C|1|戸建住宅|7 | B13: 冷房kWh | C13: R01/R02 | D13: 気候8区分。都道府県の実測値ではない。8地域の等級7は利用停止。 | E13: 0.000 | F13: 0.000 | G13: 0.000 | H13: 0.000 | I13: 0.000 | J13: 0.000 | K13: 34.079 | L13: 62.007 | M13: 0.000 | N13: 0.000 | O13: 0.000 | P13: 0.000
A14: H|2|戸建住宅|4 | B14: 暖房kWh | C14: R01/R02 | D14: UA=0.46; etaH=2.3; etaC=1.9; 標準面積120.08m2; 未処理暖房一次エネ相当1856.1MJ（電力量に加算しない） | E14: 746.859 | F14: 623.133 | G14: 480.847 | H14: 233.995 | I14: 114.882 | J14: 7.464 | K14: 0.000 | L14: 0.000 | M14: 13.942 | N14: 122.812 | O14: 354.511 | P14: 646.490
A15: C|2|戸建住宅|4 | B15: 冷房kWh | C15: R01/R02 | D15: 気候8区分。都道府県の実測値ではない。8地域の等級7は利用停止。 | E15: 0.000 | F15: 0.000 | G15: 0.000 | H15: 0.000 | I15: 0.000 | J15: 0.000 | K15: 22.519 | L15: 56.475 | M15: 0.000 | N15: 0.000 | O15: 0.000 | P15: 0.000
A16: H|2|戸建住宅|5 | B16: 暖房kWh | C16: R01/R02 | D16: UA=0.4; etaH=2.3; etaC=1.9; 標準面積120.08m2; 未処理暖房一次エネ相当1310.8MJ（電力量に加算しない） | E16: 679.354 | F16: 568.685 | G16: 437.469 | H16: 208.263 | I16: 105.940 | J16: 6.945 | K16: 0.000 | L16: 0.000 | M16: 12.750 | N16: 112.314 | O16: 320.998 | P16: 591.715
A17: C|2|戸建住宅|5 | B17: 冷房kWh | C17: R01/R02 | D17: 気候8区分。都道府県の実測値ではない。8地域の等級7は利用停止。 | E17: 0.000 | F17: 0.000 | G17: 0.000 | H17: 0.000 | I17: 0.000 | J17: 0.000 | K17: 23.817 | L17: 59.580 | M17: 0.000 | N17: 0.000 | O17: 0.000 | P17: 0.000
A18: H|2|戸建住宅|6 | B18: 暖房kWh | C18: R01/R02 | D18: UA=0.28; etaH=2.3; etaC=1.9; 標準面積120.08m2; 未処理暖房一次エネ相当545.6MJ（電力量に加算しない） | E18: 554.970 | F18: 464.873 | G18: 348.321 | H18: 150.519 | I18: 65.777 | J18: 2.600 | K18: 0.000 | L18: 0.000 | M18: 6.677 | N18: 69.401 | O18: 252.068 | P18: 483.482
A19: C|2|戸建住宅|6 | B19: 冷房kWh | C19: R01/R02 | D19: 気候8区分。都道府県の実測値ではない。8地域の等級7は利用停止。 | E19: 0.000 | F19: 0.000 | G19: 0.000 | H19: 0.000 | I19: 0.000 | J19: 0.000 | K19: 26.346 | L19: 65.630 | M19: 0.000 | N19: 0.000 | O19: 0.000 | P19: 0.000
A20: H|2|戸建住宅|7 | B20: 暖房kWh | C20: R01/R02 | D20: UA=0.2; etaH=2.3; etaC=1.9; 標準面積120.08m2; 未処理暖房一次エネ相当225.6MJ（電力量に加算しない） | E20: 477.363 | F20: 399.306 | G20: 286.916 | H20: 111.909 | I20: 36.057 | J20: 0.334 | K20: 0.000 | L20: 0.000 | M20: 2.534 | N20: 42.206 | O20: 207.856 | P20: 413.491
A21: C|2|戸建住宅|7 | B21: 冷房kWh | C21: R01/R02 | D21: 気候8区分。都道府県の実測値ではない。8地域の等級7は利用停止。 | E21: 0.000 | F21: 0.000 | G21: 0.000 | H21: 0.000 | I21: 0.000 | J21: 0.000 | K21: 28.058 | L21: 69.921 | M21: 0.000 | N21: 0.000 | O21: 0.000 | P21: 0.000
A22: H|3|戸建住宅|4 | B22: 暖房kWh | C22: R01/R02 | D22: UA=0.56; etaH=2.7; etaC=2.0; 標準面積120.08m2; 未処理暖房一次エネ相当958.3MJ（電力量に加算しない） | E22: 581.415 | F22: 490.539 | G22: 370.616 | H22: 185.013 | I22: 80.575 | J22: 0.000 | K22: 0.000 | L22: 0.000 | M22: 0.935 | N22: 101.664 | O22: 281.542 | P22: 482.152
A23: C|3|戸建住宅|4 | B23: 冷房kWh | C23: R01/R02 | D23: 気候8区分。都道府県の実測値ではない。8地域の等級7は利用停止。 | E23: 0.000 | F23: 0.000 | G23: 0.000 | H23: 0.000 | I23: 0.000 | J23: 0.000 | K23: 39.327 | L23: 91.068 | M23: 0.000 | N23: 0.000 | O23: 0.000 | P23: 0.000
A24: H|3|戸建住宅|5 | B24: 暖房kWh | C24: R01/R02 | D24: UA=0.5; etaH=2.7; etaC=2.0; 標準面積120.08m2; 未処理暖房一次エネ相当675.8MJ（電力量に加算しない） | E24: 538.228 | F24: 453.052 | G24: 341.296 | H24: 169.483 | I24: 75.824 | J24: 0.000 | K24: 0.000 | L24: 0.000 | M24: 0.901 | N24: 94.981 | O24: 257.106 | P24: 443.962
A25: C|3|戸建住宅|5 | B25: 冷房kWh | C25: R01/R02 | D25: 気候8区分。都道府県の実測値ではない。8地域の等級7は利用停止。 | E25: 0.000 | F25: 0.000 | G25: 0.000 | H25: 0.000 | I25: 0.000 | J25: 0.000 | K25: 41.398 | L25: 94.994 | M25: 0.000 | N25: 0.000 | O25: 0.000 | P25: 0.000
A26: H|3|戸建住宅|6 | B26: 暖房kWh | C26: R01/R02 | D26: UA=0.28; etaH=2.7; etaC=2.0; 標準面積120.08m2; 未処理暖房一次エネ相当106.4MJ（電力量に加算しない） | E26: 383.673 | F26: 314.525 | G26: 224.421 | H26: 84.824 | I26: 17.528 | J26: 0.000 | K26: 0.000 | L26: 0.000 | M26: 0.000 | N26: 22.160 | O26: 151.505 | P26: 297.424
A27: C|3|戸建住宅|6 | B27: 冷房kWh | C27: R01/R02 | D27: 気候8区分。都道府県の実測値ではない。8地域の等級7は利用停止。 | E27: 0.000 | F27: 0.000 | G27: 0.000 | H27: 0.000 | I27: 0.000 | J27: 0.000 | K27: 48.076 | L27: 109.134 | M27: 0.000 | N27: 0.000 | O27: 0.000 | P27: 0.000
A28: H|3|戸建住宅|7 | B28: 暖房kWh | C28: R01/R02 | D28: UA=0.2; etaH=2.7; etaC=2.0; 標準面積120.08m2; 未処理暖房一次エネ相当30.1MJ（電力量に加算しない） | E28: 327.386 | F28: 265.990 | G28: 185.624 | H28: 63.235 | I28: 11.234 | J28: 0.000 | K28: 0.000 | L28: 0.000 | M28: 0.000 | N28: 13.217 | O28: 122.082 | P28: 251.740
A29: C|3|戸建住宅|7 | B29: 冷房kWh | C29: R01/R02 | D29: 気候8区分。都道府県の実測値ではない。8地域の等級7は利用停止。 | E29: 0.000 | F29: 0.000 | G29: 0.000 | H29: 0.000 | I29: 0.000 | J29: 0.000 | K29: 50.777 | L29: 114.732 | M29: 0.000 | N29: 0.000 | O29: 0.000 | P29: 0.000
A30: H|4|戸建住宅|4 | B30: 暖房kWh | C30: R01/R02 | D30: UA=0.75; etaH=3.7; etaC=2.7; 標準面積120.08m2; 未処理暖房一次エネ相当1769.5MJ（電力量に加算しない） | E30: 589.433 | F30: 549.303 | G30: 415.259 | H30: 142.659 | I30: 35.340 | J30: 0.000 | K30: 0.000 | L30: 0.000 | M30: 0.000 | N30: 52.707 | O30: 251.518 | P30: 472.382
A31: C|4|戸建住宅|4 | B31: 冷房kWh | C31: R01/R02 | D31: 気候8区分。都道府県の実測値ではない。8地域の等級7は利用停止。 | E31: 0.000 | F31: 0.000 | G31: 0.000 | H31: 0.000 | I31: 0.000 | J31: 0.000 | K31: 85.766 | L31: 139.811 | M31: 0.000 | N31: 0.000 | O31: 0.000 | P31: 0.000
A32: H|4|戸建住宅|5 | B32: 暖房kWh | C32: R01/R02 | D32: UA=0.6; etaH=3.7; etaC=2.7; 標準面積120.08m2; 未処理暖房一次エネ相当1069.5MJ（電力量に加算しない） | E32: 495.085 | F32: 460.188 | G32: 347.919 | H32: 117.747 | I32: 28.781 | J32: 0.000 | K32: 0.000 | L32: 0.000 | M32: 0.000 | N32: 43.220 | O32: 211.283 | P32: 396.522
A33: C|4|戸建住宅|5 | B33: 冷房kWh | C33: R01/R02 | D33: 気候8区分。都道府県の実測値ではない。8地域の等級7は利用停止。 | E33: 0.000 | F33: 0.000 | G33: 0.000 | H33: 0.000 | I33: 0.000 | J33: 0.000 | K33: 94.777 | L33: 153.969 | M33: 0.000 | N33: 0.000 | O33: 0.000 | P33: 0.000
A34: H|4|戸建住宅|6 | B34: 暖房kWh | C34: R01/R02 | D34: UA=0.34; etaH=3.7; etaC=2.7; 標準面積120.08m2; 未処理暖房一次エネ相当312.3MJ（電力量に加算しない） | E34: 342.175 | F34: 318.023 | G34: 221.182 | H34: 55.310 | I34: 6.795 | J34: 0.000 | K34: 0.000 | L34: 0.000 | M34: 0.000 | N34: 12.603 | O34: 121.797 | P34: 260.598
A35: C|4|戸建住宅|6 | B35: 冷房kWh | C35: R01/R02 | D35: 気候8区分。都道府県の実測値ではない。8地域の等級7は利用停止。 | E35: 0.000 | F35: 0.000 | G35: 0.000 | H35: 0.000 | I35: 0.000 | J35: 0.000 | K35: 112.432 | L35: 181.252 | M35: 0.000 | N35: 0.000 | O35: 0.000 | P35: 0.000
A36: H|4|戸建住宅|7 | B36: 暖房kWh | C36: R01/R02 | D36: UA=0.23; etaH=3.7; etaC=2.7; 標準面積120.08m2; 未処理暖房一次エネ相当132.5MJ（電力量に加算しない） | E36: 291.876 | F36: 273.018 | G36: 181.391 | H36: 41.126 | I36: 3.888 | J36: 0.000 | K36: 0.000 | L36: 0.000 | M36: 0.000 | N36: 8.640 | O36: 97.312 | P36: 216.490
A37: C|4|戸建住宅|7 | B37: 冷房kWh | C37: R01/R02 | D37: 気候8区分。都道府県の実測値ではない。8地域の等級7は利用停止。 | E37: 0.000 | F37: 0.000 | G37: 0.000 | H37: 0.000 | I37: 0.000 | J37: 0.000 | K37: 121.053 | L37: 194.147 | M37: 0.000 | N37: 0.000 | O37: 0.000 | P37: 0.000
A38: H|5|戸建住宅|4 | B38: 暖房kWh | C38: R01/R02 | D38: UA=0.87; etaH=4.5; etaC=3.0; 標準面積120.08m2; 未処理暖房一次エネ相当1235.7MJ（電力量に加算しない） | E38: 429.637 | F38: 411.980 | G38: 315.536 | H38: 112.125 | I38: 17.588 | J38: 0.000 | K38: 0.000 | L38: 0.000 | M38: 0.000 | N38: 32.788 | O38: 176.023 | P38: 390.636
A39: C|5|戸建住宅|4 | B39: 冷房kWh | C39: R01/R02 | D39: 気候8区分。都道府県の実測値ではない。8地域の等級7は利用停止。 | E39: 0.000 | F39: 0.000 | G39: 0.000 | H39: 0.000 | I39: 0.000 | J39: 0.000 | K39: 103.777 | L39: 126.068 | M39: 0.000 | N39: 0.000 | O39: 0.000 | P39: 0.000
A40: H|5|戸建住宅|5 | B40: 暖房kWh | C40: R01/R02 | D40: UA=0.6; etaH=4.5; etaC=3.0; 標準面積120.08m2; 未処理暖房一次エネ相当444.6MJ（電力量に加算しない） | E40: 306.795 | F40: 301.508 | G40: 227.862 | H40: 80.026 | I40: 13.016 | J40: 0.000 | K40: 0.000 | L40: 0.000 | M40: 0.000 | N40: 21.472 | O40: 122.920 | P40: 277.654
A41: C|5|戸建住宅|5 | B41: 冷房kWh | C41: R01/R02 | D41: 気候8区分。都道府県の実測値ではない。8地域の等級7は利用停止。 | E41: 0.000 | F41: 0.000 | G41: 0.000 | H41: 0.000 | I41: 0.000 | J41: 0.000 | K41: 116.588 | L41: 146.301 | M41: 0.000 | N41: 0.000 | O41: 0.000 | P41: 0.000
A42: H|5|戸建住宅|6 | B42: 暖房kWh | C42: R01/R02 | D42: UA=0.46; etaH=4.5; etaC=3.0; 標準面積120.08m2; 未処理暖房一次エネ相当201.7MJ（電力量に加算しない） | E42: 233.247 | F42: 234.737 | G42: 164.456 | H42: 41.661 | I42: 2.635 | J42: 0.000 | K42: 0.000 | L42: 0.000 | M42: 0.000 | N42: 6.535 | O42: 64.367 | P42: 199.795
A43: C|5|戸建住宅|6 | B43: 冷房kWh | C43: R01/R02 | D43: 気候8区分。都道府県の実測値ではない。8地域の等級7は利用停止。 | E43: 0.000 | F43: 0.000 | G43: 0.000 | H43: 0.000 | I43: 0.000 | J43: 0.000 | K43: 123.360 | L43: 157.284 | M43: 0.000 | N43: 0.000 | O43: 0.000 | P43: 0.000
A44: H|5|戸建住宅|7 | B44: 暖房kWh | C44: R01/R02 | D44: UA=0.26; etaH=4.5; etaC=3.0; 標準面積120.08m2; 未処理暖房一次エネ相当23.7MJ（電力量に加算しない） | E44: 154.314 | F44: 152.427 | G44: 106.384 | H44: 23.198 | I44: 1.012 | J44: 0.000 | K44: 0.000 | L44: 0.000 | M44: 0.000 | N44: 2.213 | O44: 35.691 | P44: 130.269
A45: C|5|戸建住宅|7 | B45: 冷房kWh | C45: R01/R02 | D45: 気候8区分。都道府県の実測値ではない。8地域の等級7は利用停止。 | E45: 0.000 | F45: 0.000 | G45: 0.000 | H45: 0.000 | I45: 0.000 | J45: 0.000 | K45: 133.936 | L45: 175.054 | M45: 0.000 | N45: 0.000 | O45: 0.000 | P45: 0.000
A46: H|6|戸建住宅|4 | B46: 暖房kWh | C46: R01/R02 | D46: UA=0.87; etaH=4.3; etaC=2.8; 標準面積120.08m2; 未処理暖房一次エネ相当427.1MJ（電力量に加算しない） | E46: 360.244 | F46: 327.641 | G46: 267.442 | H46: 50.902 | I46: 0.000 | J46: 0.000 | K46: 0.000 | L46: 0.000 | M46: 0.000 | N46: 0.000 | O46: 88.588 | P46: 289.193
A47: C|6|戸建住宅|4 | B47: 冷房kWh | C47: R01/R02 | D47: 気候8区分。都道府県の実測値ではない。8地域の等級7は利用停止。 | E47: 0.000 | F47: 0.000 | G47: 0.000 | H47: 0.000 | I47: 1.759 | J47: 66.295 | K47: 218.894 | L47: 240.887 | M47: 90.606 | N47: 0.000 | O47: 0.000 | P47: 0.000
A48: H|6|戸建住宅|5 | B48: 暖房kWh | C48: R01/R02 | D48: UA=0.6; etaH=4.3; etaC=2.8; 標準面積120.08m2; 未処理暖房一次エネ相当75.3MJ（電力量に加算しない） | E48: 255.788 | F48: 236.897 | G48: 195.449 | H48: 35.722 | I48: 0.000 | J48: 0.000 | K48: 0.000 | L48: 0.000 | M48: 0.000 | N48: 0.000 | O48: 62.225 | P48: 199.797
A49: C|6|戸建住宅|5 | B49: 冷房kWh | C49: R01/R02 | D49: 気候8区分。都道府県の実測値ではない。8地域の等級7は利用停止。 | E49: 0.000 | F49: 0.000 | G49: 0.000 | H49: 0.000 | I49: 2.305 | J49: 79.408 | K49: 236.787 | L49: 264.833 | M49: 105.327 | N49: 0.000 | O49: 0.000 | P49: 0.000
A50: H|6|戸建住宅|6 | B50: 暖房kWh | C50: R01/R02 | D50: UA=0.46; etaH=4.3; etaC=2.8; 標準面積120.08m2; 未処理暖房一次エネ相当21.8MJ（電力量に加算しない） | E50: 187.405 | F50: 176.802 | G50: 134.922 | H50: 14.520 | I50: 0.000 | J50: 0.000 | K50: 0.000 | L50: 0.000 | M50: 0.000 | N50: 0.000 | O50: 30.040 | P50: 135.467
A51: C|6|戸建住宅|6 | B51: 冷房kWh | C51: R01/R02 | D51: 気候8区分。都道府県の実測値ではない。8地域の等級7は利用停止。 | E51: 0.000 | F51: 0.000 | G51: 0.000 | H51: 0.000 | I51: 2.612 | J51: 86.360 | K51: 245.884 | L51: 277.683 | M51: 113.355 | N51: 0.000 | O51: 0.000 | P51: 0.000
A52: H|6|戸建住宅|7 | B52: 暖房kWh | C52: R01/R02 | D52: UA=0.26; etaH=4.3; etaC=2.8; 標準面積120.08m2; 未処理暖房一次エネ相当0.5MJ（電力量に加算しない） | E52: 119.418 | F52: 114.473 | G52: 85.707 | H52: 6.454 | I52: 0.000 | J52: 0.000 | K52: 0.000 | L52: 0.000 | M52: 0.000 | N52: 0.000 | O52: 15.751 | P52: 83.946
A53: C|6|戸建住宅|7 | B53: 冷房kWh | C53: R01/R02 | D53: 気候8区分。都道府県の実測値ではない。8地域の等級7は利用停止。 | E53: 0.000 | F53: 0.000 | G53: 0.000 | H53: 0.000 | I53: 3.104 | J53: 97.446 | K53: 259.765 | L53: 297.276 | M53: 126.334 | N53: 0.000 | O53: 0.000 | P53: 0.000
A54: H|7|戸建住宅|4 | B54: 暖房kWh | C54: R01/R02 | D54: UA=0.87; etaH=4.6; etaC=2.7; 標準面積120.08m2; 未処理暖房一次エネ相当132.2MJ（電力量に加算しない） | E54: 233.501 | F54: 199.201 | G54: 104.159 | H54: 0.000 | I54: 0.000 | J54: 0.000 | K54: 0.000 | L54: 0.000 | M54: 0.000 | N54: 0.000 | O54: 9.378 | P54: 171.797
A55: C|7|戸建住宅|4 | B55: 冷房kWh | C55: R01/R02 | D55: 気候8区分。都道府県の実測値ではない。8地域の等級7は利用停止。 | E55: 0.000 | F55: 0.000 | G55: 0.000 | H55: 0.000 | I55: 17.816 | J55: 68.306 | K55: 241.748 | L55: 245.003 | M55: 136.293 | N55: 23.392 | O55: 0.000 | P55: 0.000
A56: H|7|戸建住宅|5 | B56: 暖房kWh | C56: R01/R02 | D56: UA=0.6; etaH=4.6; etaC=2.7; 標準面積120.08m2; 未処理暖房一次エネ相当14.5MJ（電力量に加算しない） | E56: 163.530 | F56: 144.099 | G56: 73.126 | H56: 0.000 | I56: 0.000 | J56: 0.000 | K56: 0.000 | L56: 0.000 | M56: 0.000 | N56: 0.000 | O56: 7.104 | P56: 114.542
A57: C|7|戸建住宅|5 | B57: 冷房kWh | C57: R01/R02 | D57: 気候8区分。都道府県の実測値ではない。8地域の等級7は利用停止。 | E57: 0.000 | F57: 0.000 | G57: 0.000 | H57: 0.000 | I57: 22.791 | J57: 80.662 | K57: 265.666 | L57: 270.729 | M57: 158.599 | N57: 31.357 | O57: 0.000 | P57: 0.000
A58: H|7|戸建住宅|6 | B58: 暖房kWh | C58: R01/R02 | D58: UA=0.46; etaH=4.6; etaC=2.7; 標準面積120.08m2; 未処理暖房一次エネ相当2.9MJ（電力量に加算しない） | E58: 97.588 | F58: 90.631 | G58: 34.249 | H58: 0.000 | I58: 0.000 | J58: 0.000 | K58: 0.000 | L58: 0.000 | M58: 0.000 | N58: 0.000 | O58: 2.076 | P58: 58.497
A59: C|7|戸建住宅|6 | B59: 冷房kWh | C59: R01/R02 | D59: 気候8区分。都道府県の実測値ではない。8地域の等級7は利用停止。 | E59: 0.000 | F59: 0.000 | G59: 0.000 | H59: 0.000 | I59: 25.555 | J59: 87.269 | K59: 277.901 | L59: 283.637 | M59: 171.140 | N59: 36.409 | O59: 0.000 | P59: 0.000
A60: H|7|戸建住宅|7 | B60: 暖房kWh | C60: R01/R02 | D60: UA=0.26; etaH=4.6; etaC=2.7; 標準面積120.08m2; 未処理暖房一次エネ相当0.0MJ（電力量に加算しない） | E60: 56.965 | F60: 54.269 | G60: 19.834 | H60: 0.000 | I60: 0.000 | J60: 0.000 | K60: 0.000 | L60: 0.000 | M60: 0.000 | N60: 0.000 | O60: 0.540 | P60: 32.465
A61: C|7|戸建住宅|7 | B61: 冷房kWh | C61: R01/R02 | D61: 気候8区分。都道府県の実測値ではない。8地域の等級7は利用停止。 | E61: 0.000 | F61: 0.000 | G61: 0.000 | H61: 0.000 | I61: 30.001 | J61: 97.653 | K61: 296.483 | L61: 302.302 | M61: 191.223 | N61: 45.117 | O61: 0.000 | P61: 0.000
A62: H|8|戸建住宅|4 | B62: 暖房kWh | C62: R01/R02 | D62: UA=3.32; etaH=None; etaC=6.7; 標準面積120.08m2; 未処理暖房一次エネ相当0.0MJ（電力量に加算しない） | E62: 0.000 | F62: 0.000 | G62: 0.000 | H62: 0.000 | I62: 0.000 | J62: 0.000 | K62: 0.000 | L62: 0.000 | M62: 0.000 | N62: 0.000 | O62: 0.000 | P62: 0.000
A63: C|8|戸建住宅|4 | B63: 冷房kWh | C63: R01/R02 | D63: 気候8区分。都道府県の実測値ではない。8地域の等級7は利用停止。 | E63: 0.000 | F63: 0.000 | G63: 12.513 | H63: 29.690 | I63: 91.581 | J63: 210.452 | K63: 401.380 | L63: 339.547 | M63: 275.158 | N63: 173.774 | O63: 41.484 | P63: 8.312
A64: H|8|戸建住宅|5 | B64: 暖房kWh | C64: R01/R02 | D64: UA=3.32; etaH=None; etaC=6.7; 標準面積120.08m2; 未処理暖房一次エネ相当0.0MJ（電力量に加算しない） | E64: 0.000 | F64: 0.000 | G64: 0.000 | H64: 0.000 | I64: 0.000 | J64: 0.000 | K64: 0.000 | L64: 0.000 | M64: 0.000 | N64: 0.000 | O64: 0.000 | P64: 0.000
A65: C|8|戸建住宅|5 | B65: 冷房kWh | C65: R01/R02 | D65: 気候8区分。都道府県の実測値ではない。8地域の等級7は利用停止。 | E65: 0.000 | F65: 0.000 | G65: 12.513 | H65: 29.690 | I65: 91.581 | J65: 210.452 | K65: 401.380 | L65: 339.547 | M65: 275.158 | N65: 173.774 | O65: 41.484 | P65: 8.312
A66: H|8|戸建住宅|6 | B66: 暖房kWh | C66: R01/R02 | D66: UA=3.32; etaH=None; etaC=5.1; 標準面積120.08m2; 未処理暖房一次エネ相当0.0MJ（電力量に加算しない） | E66: 0.000 | F66: 0.000 | G66: 0.000 | H66: 0.000 | I66: 0.000 | J66: 0.000 | K66: 0.000 | L66: 0.000 | M66: 0.000 | N66: 0.000 | O66: 0.000 | P66: 0.000
A67: C|8|戸建住宅|6 | B67: 冷房kWh | C67: R01/R02 | D67: 気候8区分。都道府県の実測値ではない。8地域の等級7は利用停止。 | E67: 0.000 | F67: 0.000 | G67: 9.370 | H67: 18.807 | I67: 69.889 | J67: 175.245 | K67: 360.066 | L67: 302.333 | M67: 227.029 | N67: 124.258 | O67: 23.685 | P67: 3.166
A68: H|8|戸建住宅|7 | B68: 暖房kWh | C68: R01/R02 | D68: UA=3.32; etaH=None; etaC=5.1; 標準面積120.08m2; 未処理暖房一次エネ相当0.0MJ（電力量に加算しない） | E68: 0.000 | F68: 0.000 | G68: 0.000 | H68: 0.000 | I68: 0.000 | J68: 0.000 | K68: 0.000 | L68: 0.000 | M68: 0.000 | N68: 0.000 | O68: 0.000 | P68: 0.000
A69: C|8|戸建住宅|7 | B69: 冷房kWh | C69: R01/R02 | D69: 気候8区分。都道府県の実測値ではない。8地域の等級7は利用停止。 | E69: 0.000 | F69: 0.000 | G69: 9.370 | H69: 18.807 | I69: 69.889 | J69: 175.245 | K69: 360.066 | L69: 302.333 | M69: 227.029 | N69: 124.258 | O69: 23.685 | P69: 3.166
A70: H|1|共同住宅|4 | B70: 暖房kWh | C70: R01/R02 | D70: UA=0.46; etaH=1.4; etaC=0.9; 標準面積70.0m2; 未処理暖房一次エネ相当3805.1MJ（電力量に加算しない） | E70: 959.200 | F70: 756.676 | G70: 558.943 | H70: 289.182 | I70: 185.260 | J70: 29.012 | K70: 0.000 | L70: 0.000 | M70: 27.283 | N70: 208.868 | O70: 391.657 | P70: 691.480
A71: C|1|共同住宅|4 | B71: 冷房kWh | C71: R01/R02 | D71: 気候8区分。都道府県の実測値ではない。8地域の等級7は利用停止。 | E71: 0.000 | F71: 0.000 | G71: 0.000 | H71: 0.000 | I71: 0.000 | J71: 0.000 | K71: 17.812 | L71: 33.563 | M71: 0.000 | N71: 0.000 | O71: 0.000 | P71: 0.000
A72: H|1|共同住宅|5 | B72: 暖房kWh | C72: R01/R02 | D72: UA=0.4; etaH=1.4; etaC=0.9; 標準面積70.0m2; 未処理暖房一次エネ相当2895.4MJ（電力量に加算しない） | E72: 853.038 | F72: 668.119 | G72: 498.214 | H72: 264.192 | I72: 162.868 | J72: 25.077 | K72: 0.000 | L72: 0.000 | M72: 23.169 | N72: 185.219 | O72: 355.338 | P72: 614.178
A73: C|1|共同住宅|5 | B73: 冷房kWh | C73: R01/R02 | D73: 気候8区分。都道府県の実測値ではない。8地域の等級7は利用停止。 | E73: 0.000 | F73: 0.000 | G73: 0.000 | H73: 0.000 | I73: 0.000 | J73: 0.000 | K73: 18.437 | L73: 35.382 | M73: 0.000 | N73: 0.000 | O73: 0.000 | P73: 0.000
A74: H|1|共同住宅|6 | B74: 暖房kWh | C74: R01/R02 | D74: UA=0.28; etaH=1.4; etaC=0.9; 標準面積70.0m2; 未処理暖房一次エネ相当1541.6MJ（電力量に加算しない） | E74: 685.804 | F74: 524.861 | G74: 397.328 | H74: 214.240 | I74: 130.953 | J74: 20.799 | K74: 0.000 | L74: 0.000 | M74: 18.020 | N74: 151.330 | O74: 291.819 | P74: 495.643
A75: C|1|共同住宅|6 | B75: 冷房kWh | C75: R01/R02 | D75: 気候8区分。都道府県の実測値ではない。8地域の等級7は利用停止。 | E75: 0.000 | F75: 0.000 | G75: 0.000 | H75: 0.000 | I75: 0.000 | J75: 0.000 | K75: 21.830 | L75: 41.878 | M75: 0.000 | N75: 0.000 | O75: 0.000 | P75: 0.000
A76: H|1|共同住宅|7 | B76: 暖房kWh | C76: R01/R02 | D76: UA=0.2; etaH=1.4; etaC=0.9; 標準面積70.0m2; 未処理暖房一次エネ相当874.0MJ（電力量に加算しない） | E76: 579.722 | F76: 442.515 | G76: 337.315 | H76: 179.000 | I76: 109.175 | J76: 14.419 | K76: 0.000 | L76: 0.000 | M76: 12.064 | N76: 125.025 | O76: 249.725 | P76: 423.904
A77: C|1|共同住宅|7 | B77: 冷房kWh | C77: R01/R02 | D77: 気候8区分。都道府県の実測値ではない。8地域の等級7は利用停止。 | E77: 0.000 | F77: 0.000 | G77: 0.000 | H77: 0.000 | I77: 0.000 | J77: 0.000 | K77: 22.797 | L77: 43.890 | M77: 0.000 | N77: 0.000 | O77: 0.000 | P77: 0.000
A78: H|2|共同住宅|4 | B78: 暖房kWh | C78: R01/R02 | D78: UA=0.46; etaH=1.3; etaC=1.0; 標準面積70.0m2; 未処理暖房一次エネ相当2332.7MJ（電力量に加算しない） | E78: 732.377 | F78: 613.334 | G78: 495.250 | H78: 259.951 | I78: 149.941 | J78: 12.661 | K78: 0.000 | L78: 0.000 | M78: 21.982 | N78: 160.143 | O78: 353.427 | P78: 612.081
A79: C|2|共同住宅|4 | B79: 冷房kWh | C79: R01/R02 | D79: 気候8区分。都道府県の実測値ではない。8地域の等級7は利用停止。 | E79: 0.000 | F79: 0.000 | G79: 0.000 | H79: 0.000 | I79: 0.000 | J79: 0.000 | K79: 14.678 | L79: 42.285 | M79: 0.000 | N79: 0.000 | O79: 0.000 | P79: 0.000
A80: H|2|共同住宅|5 | B80: 暖房kWh | C80: R01/R02 | D80: UA=0.4; etaH=1.3; etaC=1.0; 標準面積70.0m2; 未処理暖房一次エネ相当1718.7MJ（電力量に加算しない） | E80: 650.912 | F80: 549.080 | G80: 445.153 | H80: 234.611 | I80: 131.450 | J80: 10.313 | K80: 0.000 | L80: 0.000 | M80: 17.964 | N80: 136.839 | O80: 318.676 | P80: 550.679
A81: C|2|共同住宅|5 | B81: 冷房kWh | C81: R01/R02 | D81: 気候8区分。都道府県の実測値ではない。8地域の等級7は利用停止。 | E81: 0.000 | F81: 0.000 | G81: 0.000 | H81: 0.000 | I81: 0.000 | J81: 0.000 | K81: 16.229 | L81: 45.916 | M81: 0.000 | N81: 0.000 | O81: 0.000 | P81: 0.000
A82: H|2|共同住宅|6 | B82: 暖房kWh | C82: R01/R02 | D82: UA=0.28; etaH=1.3; etaC=1.0; 標準面積70.0m2; 未処理暖房一次エネ相当777.5MJ（電力量に加算しない） | E82: 523.348 | F82: 442.233 | G82: 360.772 | H82: 189.813 | I82: 107.868 | J82: 6.808 | K82: 0.000 | L82: 0.000 | M82: 14.262 | N82: 108.423 | O82: 260.031 | P82: 448.801
A83: C|2|共同住宅|6 | B83: 冷房kWh | C83: R01/R02 | D83: 気候8区分。都道府県の実測値ではない。8地域の等級7は利用停止。 | E83: 0.000 | F83: 0.000 | G83: 0.000 | H83: 0.000 | I83: 0.000 | J83: 0.000 | K83: 20.633 | L83: 53.154 | M83: 0.000 | N83: 0.000 | O83: 0.000 | P83: 0.000
A84: H|2|共同住宅|7 | B84: 暖房kWh | C84: R01/R02 | D84: UA=0.2; etaH=1.3; etaC=1.0; 標準面積70.0m2; 未処理暖房一次エネ相当352.0MJ（電力量に加算しない） | E84: 441.430 | F84: 374.855 | G84: 306.277 | H84: 161.178 | I84: 85.409 | J84: 4.409 | K84: 0.000 | L84: 0.000 | M84: 9.822 | N84: 84.423 | O84: 220.782 | P84: 381.866
A85: C|2|共同住宅|7 | B85: 冷房kWh | C85: R01/R02 | D85: 気候8区分。都道府県の実測値ではない。8地域の等級7は利用停止。 | E85: 0.000 | F85: 0.000 | G85: 0.000 | H85: 0.000 | I85: 0.000 | J85: 0.000 | K85: 21.616 | L85: 55.942 | M85: 0.000 | N85: 0.000 | O85: 0.000 | P85: 0.000
A86: H|3|共同住宅|4 | B86: 暖房kWh | C86: R01/R02 | D86: UA=0.56; etaH=1.5; etaC=1.1; 標準面積70.0m2; 未処理暖房一次エネ相当1319.8MJ（電力量に加算しない） | E86: 565.602 | F86: 491.206 | G86: 375.016 | H86: 212.026 | I86: 106.346 | J86: 0.000 | K86: 0.000 | L86: 0.000 | M86: 2.585 | N86: 132.247 | O86: 293.003 | P86: 471.987
A87: C|3|共同住宅|4 | B87: 冷房kWh | C87: R01/R02 | D87: 気候8区分。都道府県の実測値ではない。8地域の等級7は利用停止。 | E87: 0.000 | F87: 0.000 | G87: 0.000 | H87: 0.000 | I87: 0.000 | J87: 0.000 | K87: 29.771 | L87: 65.351 | M87: 0.000 | N87: 0.000 | O87: 0.000 | P87: 0.000
A88: H|3|共同住宅|5 | B88: 暖房kWh | C88: R01/R02 | D88: UA=0.5; etaH=1.5; etaC=1.1; 標準面積70.0m2; 未処理暖房一次エネ相当1031.7MJ（電力量に加算しない） | E88: 523.216 | F88: 452.143 | G88: 349.668 | H88: 197.679 | I88: 101.691 | J88: 0.000 | K88: 0.000 | L88: 0.000 | M88: 2.484 | N88: 126.237 | O88: 273.679 | P88: 438.245
A89: C|3|共同住宅|5 | B89: 冷房kWh | C89: R01/R02 | D89: 気候8区分。都道府県の実測値ではない。8地域の等級7は利用停止。 | E89: 0.000 | F89: 0.000 | G89: 0.000 | H89: 0.000 | I89: 0.000 | J89: 0.000 | K89: 30.699 | L89: 67.230 | M89: 0.000 | N89: 0.000 | O89: 0.000 | P89: 0.000
A90: H|3|共同住宅|6 | B90: 暖房kWh | C90: R01/R02 | D90: UA=0.28; etaH=1.5; etaC=1.1; 標準面積70.0m2; 未処理暖房一次エネ相当202.9MJ（電力量に加算しない） | E90: 375.648 | F90: 322.403 | G90: 254.184 | H90: 142.097 | I90: 66.451 | J90: 0.000 | K90: 0.000 | L90: 0.000 | M90: 0.449 | N90: 86.263 | O90: 197.390 | P90: 311.094
A91: C|3|共同住宅|6 | B91: 冷房kWh | C91: R01/R02 | D91: 気候8区分。都道府県の実測値ではない。8地域の等級7は利用停止。 | E91: 0.000 | F91: 0.000 | G91: 0.000 | H91: 0.000 | I91: 0.000 | J91: 0.000 | K91: 40.625 | L91: 81.310 | M91: 0.000 | N91: 0.000 | O91: 0.000 | P91: 0.000
A92: H|3|共同住宅|7 | B92: 暖房kWh | C92: R01/R02 | D92: UA=0.2; etaH=1.5; etaC=1.1; 標準面積70.0m2; 未処理暖房一次エネ相当69.8MJ（電力量に加算しない） | E92: 325.831 | F92: 279.994 | G92: 220.496 | H92: 118.868 | I92: 36.691 | J92: 0.000 | K92: 0.000 | L92: 0.000 | M92: 0.000 | N92: 48.502 | O92: 167.131 | P92: 266.713
A93: C|3|共同住宅|7 | B93: 冷房kWh | C93: R01/R02 | D93: 気候8区分。都道府県の実測値ではない。8地域の等級7は利用停止。 | E93: 0.000 | F93: 0.000 | G93: 0.000 | H93: 0.000 | I93: 0.000 | J93: 0.000 | K93: 42.175 | L93: 84.543 | M93: 0.000 | N93: 0.000 | O93: 0.000 | P93: 0.000
A94: H|4|共同住宅|4 | B94: 暖房kWh | C94: R01/R02 | D94: UA=0.75; etaH=1.6; etaC=1.2; 標準面積70.0m2; 未処理暖房一次エネ相当2284.8MJ（電力量に加算しない） | E94: 650.046 | F94: 597.829 | G94: 467.682 | H94: 205.254 | I94: 82.435 | J94: 0.000 | K94: 0.000 | L94: 0.000 | M94: 0.000 | N94: 123.297 | O94: 305.151 | P94: 520.285
A95: C|4|共同住宅|4 | B95: 冷房kWh | C95: R01/R02 | D95: 気候8区分。都道府県の実測値ではない。8地域の等級7は利用停止。 | E95: 0.000 | F95: 0.000 | G95: 0.000 | H95: 0.000 | I95: 0.000 | J95: 0.000 | K95: 50.642 | L95: 84.621 | M95: 0.000 | N95: 0.000 | O95: 0.000 | P95: 0.000
A96: H|4|共同住宅|5 | B96: 暖房kWh | C96: R01/R02 | D96: UA=0.6; etaH=1.6; etaC=1.2; 標準面積70.0m2; 未処理暖房一次エネ相当1541.2MJ（電力量に加算しない） | E96: 545.822 | F96: 505.560 | G96: 402.561 | H96: 180.112 | I96: 74.261 | J96: 0.000 | K96: 0.000 | L96: 0.000 | M96: 0.000 | N96: 112.723 | O96: 265.531 | P96: 442.865
A97: C|4|共同住宅|5 | B97: 冷房kWh | C97: R01/R02 | D97: 気候8区分。都道府県の実測値ではない。8地域の等級7は利用停止。 | E97: 0.000 | F97: 0.000 | G97: 0.000 | H97: 0.000 | I97: 0.000 | J97: 0.000 | K97: 53.838 | L97: 89.776 | M97: 0.000 | N97: 0.000 | O97: 0.000 | P97: 0.000
A98: H|4|共同住宅|6 | B98: 暖房kWh | C98: R01/R02 | D98: UA=0.34; etaH=1.6; etaC=1.2; 標準面積70.0m2; 未処理暖房一次エネ相当476.6MJ（電力量に加算しない） | E98: 389.833 | F98: 358.099 | G98: 291.359 | H98: 130.003 | I98: 41.861 | J98: 0.000 | K98: 0.000 | L98: 0.000 | M98: 0.000 | N98: 68.853 | O98: 197.797 | P98: 322.240
A99: C|4|共同住宅|6 | B99: 冷房kWh | C99: R01/R02 | D99: 気候8区分。都道府県の実測値ではない。8地域の等級7は利用停止。 | E99: 0.000 | F99: 0.000 | G99: 0.000 | H99: 0.000 | I99: 0.000 | J99: 0.000 | K99: 64.907 | L99: 104.430 | M99: 0.000 | N99: 0.000 | O99: 0.000 | P99: 0.000
A100: H|4|共同住宅|7 | B100: 暖房kWh | C100: R01/R02 | D100: UA=0.23; etaH=1.6; etaC=1.2; 標準面積70.0m2; 未処理暖房一次エネ相当214.3MJ（電力量に加算しない） | E100: 334.880 | F100: 308.051 | G100: 244.795 | H100: 90.555 | I100: 22.438 | J100: 0.000 | K100: 0.000 | L100: 0.000 | M100: 0.000 | N100: 30.862 | O100: 157.170 | P100: 271.669
A101: C|4|共同住宅|7 | B101: 冷房kWh | C101: R01/R02 | D101: 気候8区分。都道府県の実測値ではない。8地域の等級7は利用停止。 | E101: 0.000 | F101: 0.000 | G101: 0.000 | H101: 0.000 | I101: 0.000 | J101: 0.000 | K101: 68.502 | L101: 109.792 | M101: 0.000 | N101: 0.000 | O101: 0.000 | P101: 0.000
A102: H|5|共同住宅|4 | B102: 暖房kWh | C102: R01/R02 | D102: UA=0.87; etaH=2.2; etaC=1.5; 標準面積70.0m2; 未処理暖房一次エネ相当1551.6MJ（電力量に加算しない） | E102: 485.123 | F102: 450.792 | G102: 354.028 | H102: 167.052 | I102: 38.819 | J102: 0.000 | K102: 0.000 | L102: 0.000 | M102: 0.000 | N102: 70.398 | O102: 240.269 | P102: 443.549
A103: C|5|共同住宅|4 | B103: 冷房kWh | C103: R01/R02 | D103: 気候8区分。都道府県の実測値ではない。8地域の等級7は利用停止。 | E103: 0.000 | F103: 0.000 | G103: 0.000 | H103: 0.000 | I103: 0.000 | J103: 0.000 | K103: 63.865 | L103: 81.522 | M103: 0.000 | N103: 0.000 | O103: 0.000 | P103: 0.000
A104: H|5|共同住宅|5 | B104: 暖房kWh | C104: R01/R02 | D104: UA=0.6; etaH=2.2; etaC=1.5; 標準面積70.0m2; 未処理暖房一次エネ相当801.3MJ（電力量に加算しない） | E104: 370.041 | F104: 345.717 | G104: 277.528 | H104: 132.976 | I104: 30.712 | J104: 0.000 | K104: 0.000 | L104: 0.000 | M104: 0.000 | N104: 54.036 | O104: 191.974 | P104: 342.213
A105: C|5|共同住宅|5 | B105: 冷房kWh | C105: R01/R02 | D105: 気候8区分。都道府県の実測値ではない。8地域の等級7は利用停止。 | E105: 0.000 | F105: 0.000 | G105: 0.000 | H105: 0.000 | I105: 0.000 | J105: 0.000 | K105: 74.799 | L105: 93.903 | M105: 0.000 | N105: 0.000 | O105: 0.000 | P105: 0.000
A106: H|5|共同住宅|6 | B106: 暖房kWh | C106: R01/R02 | D106: UA=0.46; etaH=2.2; etaC=1.5; 標準面積70.0m2; 未処理暖房一次エネ相当399.3MJ（電力量に加算しない） | E106: 309.744 | F106: 292.362 | G106: 234.926 | H106: 118.264 | I106: 28.340 | J106: 0.000 | K106: 0.000 | L106: 0.000 | M106: 0.000 | N106: 48.215 | O106: 166.656 | P106: 287.471
A107: C|5|共同住宅|6 | B107: 冷房kWh | C107: R01/R02 | D107: 気候8区分。都道府県の実測値ではない。8地域の等級7は利用停止。 | E107: 0.000 | F107: 0.000 | G107: 0.000 | H107: 0.000 | I107: 0.000 | J107: 0.000 | K107: 77.944 | L107: 98.711 | M107: 0.000 | N107: 0.000 | O107: 0.000 | P107: 0.000
A108: H|5|共同住宅|7 | B108: 暖房kWh | C108: R01/R02 | D108: UA=0.26; etaH=2.2; etaC=1.5; 標準面積70.0m2; 未処理暖房一次エネ相当83.2MJ（電力量に加算しない） | E108: 213.808 | F108: 201.582 | G108: 153.659 | H108: 46.767 | I108: 3.513 | J108: 0.000 | K108: 0.000 | L108: 0.000 | M108: 0.000 | N108: 8.205 | O108: 69.967 | P108: 179.220
A109: C|5|共同住宅|7 | B109: 冷房kWh | C109: R01/R02 | D109: 気候8区分。都道府県の実測値ではない。8地域の等級7は利用停止。 | E109: 0.000 | F109: 0.000 | G109: 0.000 | H109: 0.000 | I109: 0.000 | J109: 0.000 | K109: 82.444 | L109: 105.673 | M109: 0.000 | N109: 0.000 | O109: 0.000 | P109: 0.000
A110: H|6|共同住宅|4 | B110: 暖房kWh | C110: R01/R02 | D110: UA=0.87; etaH=2.1; etaC=1.4; 標準面積70.0m2; 未処理暖房一次エネ相当638.8MJ（電力量に加算しない） | E110: 395.795 | F110: 358.948 | G110: 312.666 | H110: 91.288 | I110: 0.000 | J110: 0.000 | K110: 0.000 | L110: 0.000 | M110: 0.000 | N110: 0.000 | O110: 150.860 | P110: 335.769
A111: C|6|共同住宅|4 | B111: 冷房kWh | C111: R01/R02 | D111: 気候8区分。都道府県の実測値ではない。8地域の等級7は利用停止。 | E111: 0.000 | F111: 0.000 | G111: 0.000 | H111: 0.000 | I111: 0.765 | J111: 45.231 | K111: 136.599 | L111: 144.479 | M111: 56.026 | N111: 0.000 | O111: 0.000 | P111: 0.000
A112: H|6|共同住宅|5 | B112: 暖房kWh | C112: R01/R02 | D112: UA=0.6; etaH=2.1; etaC=1.4; 標準面積70.0m2; 未処理暖房一次エネ相当220.8MJ（電力量に加算しない） | E112: 309.306 | F112: 280.509 | G112: 251.333 | H112: 71.531 | I112: 0.000 | J112: 0.000 | K112: 0.000 | L112: 0.000 | M112: 0.000 | N112: 0.000 | O112: 120.627 | P112: 264.338
A113: C|6|共同住宅|5 | B113: 冷房kWh | C113: R01/R02 | D113: 気候8区分。都道府県の実測値ではない。8地域の等級7は利用停止。 | E113: 0.000 | F113: 0.000 | G113: 0.000 | H113: 0.000 | I113: 1.447 | J113: 57.246 | K113: 150.974 | L113: 163.963 | M113: 65.946 | N113: 0.000 | O113: 0.000 | P113: 0.000
A114: H|6|共同住宅|6 | B114: 暖房kWh | C114: R01/R02 | D114: UA=0.46; etaH=2.1; etaC=1.4; 標準面積70.0m2; 未処理暖房一次エネ相当64.9MJ（電力量に加算しない） | E114: 257.079 | F114: 235.402 | G114: 216.324 | H114: 64.370 | I114: 0.000 | J114: 0.000 | K114: 0.000 | L114: 0.000 | M114: 0.000 | N114: 0.000 | O114: 107.415 | P114: 221.639
A115: C|6|共同住宅|6 | B115: 冷房kWh | C115: R01/R02 | D115: 気候8区分。都道府県の実測値ではない。8地域の等級7は利用停止。 | E115: 0.000 | F115: 0.000 | G115: 0.000 | H115: 0.000 | I115: 1.539 | J115: 61.043 | K115: 155.162 | L115: 169.131 | M115: 69.456 | N115: 0.000 | O115: 0.000 | P115: 0.000
A116: H|6|共同住宅|7 | B116: 暖房kWh | C116: R01/R02 | D116: UA=0.26; etaH=2.1; etaC=1.4; 標準面積70.0m2; 未処理暖房一次エネ相当3.2MJ（電力量に加算しない） | E116: 167.825 | F116: 160.449 | G116: 127.678 | H116: 17.858 | I116: 0.000 | J116: 0.000 | K116: 0.000 | L116: 0.000 | M116: 0.000 | N116: 0.000 | O116: 32.028 | P116: 126.619
A117: C|6|共同住宅|7 | B117: 冷房kWh | C117: R01/R02 | D117: 気候8区分。都道府県の実測値ではない。8地域の等級7は利用停止。 | E117: 0.000 | F117: 0.000 | G117: 0.000 | H117: 0.000 | I117: 1.670 | J117: 66.376 | K117: 160.857 | L117: 176.570 | M117: 74.548 | N117: 0.000 | O117: 0.000 | P117: 0.000
A118: H|7|共同住宅|4 | B118: 暖房kWh | C118: R01/R02 | D118: UA=0.87; etaH=2.2; etaC=1.4; 標準面積70.0m2; 未処理暖房一次エネ相当207.7MJ（電力量に加算しない） | E118: 280.351 | F118: 240.300 | G118: 158.276 | H118: 0.000 | I118: 0.000 | J118: 0.000 | K118: 0.000 | L118: 0.000 | M118: 0.000 | N118: 0.000 | O118: 19.519 | P118: 228.775
A119: C|7|共同住宅|4 | B119: 冷房kWh | C119: R01/R02 | D119: 気候8区分。都道府県の実測値ではない。8地域の等級7は利用停止。 | E119: 0.000 | F119: 0.000 | G119: 0.000 | H119: 0.000 | I119: 9.122 | J119: 46.125 | K119: 143.159 | L119: 141.264 | M119: 79.260 | N119: 12.401 | O119: 0.000 | P119: 0.000
A120: H|7|共同住宅|5 | B120: 暖房kWh | C120: R01/R02 | D120: UA=0.6; etaH=2.2; etaC=1.4; 標準面積70.0m2; 未処理暖房一次エネ相当66.3MJ（電力量に加算しない） | E120: 232.457 | F120: 196.413 | G120: 129.131 | H120: 0.000 | I120: 0.000 | J120: 0.000 | K120: 0.000 | L120: 0.000 | M120: 0.000 | N120: 0.000 | O120: 15.429 | P120: 188.864
A121: C|7|共同住宅|5 | B121: 冷房kWh | C121: R01/R02 | D121: 気候8区分。都道府県の実測値ではない。8地域の等級7は利用停止。 | E121: 0.000 | F121: 0.000 | G121: 0.000 | H121: 0.000 | I121: 15.762 | J121: 58.388 | K121: 162.086 | L121: 161.743 | M121: 94.962 | N121: 17.295 | O121: 0.000 | P121: 0.000
A122: H|7|共同住宅|6 | B122: 暖房kWh | C122: R01/R02 | D122: UA=0.46; etaH=2.2; etaC=1.4; 標準面積70.0m2; 未処理暖房一次エネ相当15.7MJ（電力量に加算しない） | E122: 199.733 | F122: 170.032 | G122: 114.832 | H122: 0.000 | I122: 0.000 | J122: 0.000 | K122: 0.000 | L122: 0.000 | M122: 0.000 | N122: 0.000 | O122: 14.475 | P122: 161.655
A123: C|7|共同住宅|6 | B123: 冷房kWh | C123: R01/R02 | D123: 気候8区分。都道府県の実測値ではない。8地域の等級7は利用停止。 | E123: 0.000 | F123: 0.000 | G123: 0.000 | H123: 0.000 | I123: 16.927 | J123: 62.352 | K123: 168.443 | L123: 168.263 | M123: 100.496 | N123: 18.912 | O123: 0.000 | P123: 0.000
A124: H|7|共同住宅|7 | B124: 暖房kWh | C124: R01/R02 | D124: UA=0.26; etaH=2.2; etaC=1.4; 標準面積70.0m2; 未処理暖房一次エネ相当0.0MJ（電力量に加算しない） | E124: 108.824 | F124: 100.456 | G124: 40.530 | H124: 0.000 | I124: 0.000 | J124: 0.000 | K124: 0.000 | L124: 0.000 | M124: 0.000 | N124: 0.000 | O124: 3.748 | P124: 69.897
A125: C|7|共同住宅|7 | B125: 冷房kWh | C125: R01/R02 | D125: 気候8区分。都道府県の実測値ではない。8地域の等級7は利用停止。 | E125: 0.000 | F125: 0.000 | G125: 0.000 | H125: 0.000 | I125: 18.574 | J125: 68.105 | K125: 177.507 | L125: 177.592 | M125: 108.896 | N125: 21.453 | O125: 0.000 | P125: 0.000
A126: H|8|共同住宅|4 | B126: 暖房kWh | C126: R01/R02 | D126: UA=1.6; etaH=None; etaC=2.5; 標準面積70.0m2; 未処理暖房一次エネ相当0.0MJ（電力量に加算しない） | E126: 0.000 | F126: 0.000 | G126: 0.000 | H126: 0.000 | I126: 0.000 | J126: 0.000 | K126: 0.000 | L126: 0.000 | M126: 0.000 | N126: 0.000 | O126: 0.000 | P126: 0.000
A127: C|8|共同住宅|4 | B127: 冷房kWh | C127: R01/R02 | D127: 気候8区分。都道府県の実測値ではない。8地域の等級7は利用停止。 | E127: 0.000 | F127: 0.000 | G127: 6.033 | H127: 22.655 | I127: 59.013 | J127: 119.508 | K127: 215.693 | L127: 192.566 | M127: 148.620 | N127: 84.792 | O127: 26.243 | P127: 5.287
A128: H|8|共同住宅|5 | B128: 暖房kWh | C128: R01/R02 | D128: UA=1.6; etaH=None; etaC=2.5; 標準面積70.0m2; 未処理暖房一次エネ相当0.0MJ（電力量に加算しない） | E128: 0.000 | F128: 0.000 | G128: 0.000 | H128: 0.000 | I128: 0.000 | J128: 0.000 | K128: 0.000 | L128: 0.000 | M128: 0.000 | N128: 0.000 | O128: 0.000 | P128: 0.000
A129: C|8|共同住宅|5 | B129: 冷房kWh | C129: R01/R02 | D129: 気候8区分。都道府県の実測値ではない。8地域の等級7は利用停止。 | E129: 0.000 | F129: 0.000 | G129: 6.033 | H129: 22.655 | I129: 59.013 | J129: 119.508 | K129: 215.693 | L129: 192.566 | M129: 148.620 | N129: 84.792 | O129: 26.243 | P129: 5.287
A130: H|8|共同住宅|6 | B130: 暖房kWh | C130: R01/R02 | D130: UA=1.6; etaH=None; etaC=2.5; 標準面積70.0m2; 未処理暖房一次エネ相当0.0MJ（電力量に加算しない） | E130: 0.000 | F130: 0.000 | G130: 0.000 | H130: 0.000 | I130: 0.000 | J130: 0.000 | K130: 0.000 | L130: 0.000 | M130: 0.000 | N130: 0.000 | O130: 0.000 | P130: 0.000
A131: C|8|共同住宅|6 | B131: 冷房kWh | C131: R01/R02 | D131: 気候8区分。都道府県の実測値ではない。8地域の等級7は利用停止。 | E131: 0.000 | F131: 0.000 | G131: 6.033 | H131: 22.655 | I131: 59.013 | J131: 119.508 | K131: 215.693 | L131: 192.566 | M131: 148.620 | N131: 84.792 | O131: 26.243 | P131: 5.287
A132: H|8|共同住宅|7 | B132: 暖房kWh | C132: R01/R02 | D132: UA=1.6; etaH=None; etaC=2.5; 標準面積70.0m2; 未処理暖房一次エネ相当0.0MJ（電力量に加算しない） | E132: 0.000 | F132: 0.000 | G132: 0.000 | H132: 0.000 | I132: 0.000 | J132: 0.000 | K132: 0.000 | L132: 0.000 | M132: 0.000 | N132: 0.000 | O132: 0.000 | P132: 0.000
A133: C|8|共同住宅|7 | B133: 冷房kWh | C133: R01/R02 | D133: 気候8区分。都道府県の実測値ではない。8地域の等級7は利用停止。 | E133: 0.000 | F133: 0.000 | G133: 6.033 | H133: 22.655 | I133: 59.013 | J133: 119.508 | K133: 215.693 | L133: 192.566 | M133: 148.620 | N133: 84.792 | O133: 26.243 | P133: 5.287
A134: A|戸建住宅|1 | B134: 家電kWh | C134: R01/R03 | D134: 1〜4人は人数別公開計算。5・6人の家電・照明は環境省の人数別比率による拡張。換気は4人を維持。 | E134: 87.058 | F134: 78.417 | G134: 87.058 | H134: 83.567 | I134: 85.668 | J134: 84.009 | K134: 87.565 | L134: 86.805 | M134: 83.567 | N134: 86.363 | O134: 84.515 | P134: 86.363
A135: L|戸建住宅|1 | B135: 照明kWh | C135: R01/R03 | D135: 1〜4人は人数別公開計算。5・6人の家電・照明は環境省の人数別比率による拡張。換気は4人を維持。 | E135: 11.448 | F135: 10.199 | G135: 11.448 | H135: 11.282 | I135: 11.622 | J135: 10.704 | K135: 12.429 | L135: 10.957 | M135: 11.282 | N135: 11.535 | O135: 11.686 | P135: 11.535
A136: V|戸建住宅|1 | B136: 換気kWh | C136: R01/R03 | D136: 1〜4人は人数別公開計算。5・6人の家電・照明は環境省の人数別比率による拡張。換気は4人を維持。 | E136: 36.515 | F136: 32.977 | G136: 36.515 | H136: 35.320 | I136: 36.482 | J136: 35.333 | K136: 36.521 | L136: 36.511 | M136: 35.320 | N136: 36.498 | O136: 35.340 | P136: 36.498
A137: A|戸建住宅|2 | B137: 家電kWh | C137: R01/R03 | D137: 1〜4人は人数別公開計算。5・6人の家電・照明は環境省の人数別比率による拡張。換気は4人を維持。 | E137: 105.659 | F137: 95.150 | G137: 105.659 | H137: 101.298 | I137: 103.739 | J137: 101.954 | K137: 106.266 | L137: 105.355 | M137: 101.298 | N137: 104.699 | O137: 102.561 | P137: 104.699
A138: L|戸建住宅|2 | B138: 照明kWh | C138: R01/R03 | D138: 1〜4人は人数別公開計算。5・6人の家電・照明は環境省の人数別比率による拡張。換気は4人を維持。 | E138: 24.703 | F138: 22.224 | G138: 24.703 | H138: 23.583 | I138: 24.060 | J138: 23.822 | K138: 24.868 | L138: 24.621 | M138: 23.583 | N138: 24.382 | O138: 23.987 | P138: 24.382
A139: V|戸建住宅|2 | B139: 換気kWh | C139: R01/R03 | D139: 1〜4人は人数別公開計算。5・6人の家電・照明は環境省の人数別比率による拡張。換気は4人を維持。 | E139: 37.648 | F139: 33.997 | G139: 37.648 | H139: 36.401 | I139: 37.583 | J139: 36.427 | K139: 37.662 | L139: 37.642 | M139: 36.401 | N139: 37.616 | O139: 36.440 | P139: 37.616
A140: A|戸建住宅|3 | B140: 家電kWh | C140: R01/R03 | D140: 1〜4人は人数別公開計算。5・6人の家電・照明は環境省の人数別比率による拡張。換気は4人を維持。 | E140: 144.403 | F140: 130.014 | G140: 144.403 | H140: 138.526 | I140: 141.888 | J140: 139.254 | K140: 145.462 | L140: 143.873 | M140: 138.526 | N140: 143.146 | O140: 140.313 | P140: 143.146
A141: L|戸建住宅|3 | B141: 照明kWh | C141: R01/R03 | D141: 1〜4人は人数別公開計算。5・6人の家電・照明は環境省の人数別比率による拡張。換気は4人を維持。 | E141: 35.180 | F141: 31.584 | G141: 35.180 | H141: 33.580 | I141: 34.181 | J141: 33.784 | K141: 35.770 | L141: 34.885 | M141: 33.580 | N141: 34.681 | O141: 34.375 | P141: 34.681
A142: V|戸建住宅|3 | B142: 換気kWh | C142: R01/R03 | D142: 1〜4人は人数別公開計算。5・6人の家電・照明は環境省の人数別比率による拡張。換気は4人を維持。 | E142: 38.785 | F142: 35.019 | G142: 38.785 | H142: 37.484 | I142: 38.687 | J142: 37.523 | K142: 38.806 | L142: 38.775 | M142: 37.484 | N142: 38.736 | O142: 37.543 | P142: 38.736
A143: A|戸建住宅|4 | B143: 家電kWh | C143: R01/R03 | D143: 1〜4人は人数別公開計算。5・6人の家電・照明は環境省の人数別比率による拡張。換気は4人を維持。 | E143: 151.830 | F143: 136.648 | G143: 151.830 | H143: 145.899 | I143: 149.539 | J143: 146.217 | K143: 153.485 | L143: 151.002 | M143: 145.899 | N143: 150.684 | O143: 147.873 | P143: 150.684
A144: L|戸建住宅|4 | B144: 照明kWh | C144: R01/R03 | D144: 1〜4人は人数別公開計算。5・6人の家電・照明は環境省の人数別比率による拡張。換気は4人を維持。 | E144: 45.656 | F144: 40.943 | G144: 45.656 | H144: 43.578 | I144: 44.303 | J144: 43.747 | K144: 46.673 | L144: 45.148 | M144: 43.578 | N144: 44.980 | O144: 44.763 | P144: 44.980
A145: V|戸建住宅|4 | B145: 換気kWh | C145: R01/R03 | D145: 1〜4人は人数別公開計算。5・6人の家電・照明は環境省の人数別比率による拡張。換気は4人を維持。 | E145: 39.918 | F145: 36.038 | G145: 39.918 | H145: 38.564 | I145: 39.787 | J145: 38.616 | K145: 39.945 | L145: 39.905 | M145: 38.564 | N145: 39.853 | O145: 38.643 | P145: 39.853
A146: A|戸建住宅|5 | B146: 家電kWh | C146: R01/R03 | D146: 1〜4人は人数別公開計算。5・6人の家電・照明は環境省の人数別比率による拡張。換気は4人を維持。 | E146: 167.989 | F146: 151.191 | G146: 167.989 | H146: 161.427 | I146: 165.454 | J146: 161.779 | K146: 169.821 | L146: 167.073 | M146: 161.427 | N146: 166.721 | O146: 163.611 | P146: 166.721
A147: L|戸建住宅|5 | B147: 照明kWh | C147: R01/R03 | D147: 1〜4人は人数別公開計算。5・6人の家電・照明は環境省の人数別比率による拡張。換気は4人を維持。 | E147: 50.516 | F147: 45.301 | G147: 50.516 | H147: 48.216 | I147: 49.018 | J147: 48.403 | K147: 51.640 | L147: 49.954 | M147: 48.216 | N147: 49.767 | O147: 49.527 | P147: 49.767
A148: V|戸建住宅|5 | B148: 換気kWh | C148: R01/R03 | D148: 1〜4人は人数別公開計算。5・6人の家電・照明は環境省の人数別比率による拡張。換気は4人を維持。 | E148: 39.918 | F148: 36.038 | G148: 39.918 | H148: 38.564 | I148: 39.787 | J148: 38.616 | K148: 39.945 | L148: 39.905 | M148: 38.564 | N148: 39.853 | O148: 38.643 | P148: 39.853
A149: A|戸建住宅|6 | B149: 家電kWh | C149: R01/R03 | D149: 1〜4人は人数別公開計算。5・6人の家電・照明は環境省の人数別比率による拡張。換気は4人を維持。 | E149: 212.876 | F149: 191.589 | G149: 212.876 | H149: 204.561 | I149: 209.664 | J149: 205.006 | K149: 215.197 | L149: 211.715 | M149: 204.561 | N149: 211.270 | O149: 207.328 | P149: 211.270
A150: L|戸建住宅|6 | B150: 照明kWh | C150: R01/R03 | D150: 1〜4人は人数別公開計算。5・6人の家電・照明は環境省の人数別比率による拡張。換気は4人を維持。 | E150: 64.014 | F150: 57.405 | G150: 64.014 | H150: 61.099 | I150: 62.116 | J150: 61.336 | K150: 65.438 | L150: 63.301 | M150: 61.099 | N150: 63.065 | O150: 62.761 | P150: 63.065
A151: V|戸建住宅|6 | B151: 換気kWh | C151: R01/R03 | D151: 1〜4人は人数別公開計算。5・6人の家電・照明は環境省の人数別比率による拡張。換気は4人を維持。 | E151: 39.918 | F151: 36.038 | G151: 39.918 | H151: 38.564 | I151: 39.787 | J151: 38.616 | K151: 39.945 | L151: 39.905 | M151: 38.564 | N151: 39.853 | O151: 38.643 | P151: 39.853
A152: A|共同住宅|1 | B152: 家電kWh | C152: R01/R03 | D152: 1〜4人は人数別公開計算。5・6人の家電・照明は環境省の人数別比率による拡張。換気は4人を維持。 | E152: 87.058 | F152: 78.417 | G152: 87.058 | H152: 83.567 | I152: 85.668 | J152: 84.009 | K152: 87.565 | L152: 86.805 | M152: 83.567 | N152: 86.363 | O152: 84.515 | P152: 86.363
A153: L|共同住宅|1 | B153: 照明kWh | C153: R01/R03 | D153: 1〜4人は人数別公開計算。5・6人の家電・照明は環境省の人数別比率による拡張。換気は4人を維持。 | E153: 9.646 | F153: 8.590 | G153: 9.646 | H153: 9.504 | I153: 9.785 | J153: 9.013 | K153: 10.490 | L153: 9.225 | M153: 9.504 | N153: 9.716 | O153: 9.857 | P153: 9.716
A154: V|共同住宅|1 | B154: 換気kWh | C154: R01/R03 | D154: 1〜4人は人数別公開計算。5・6人の家電・照明は環境省の人数別比率による拡張。換気は4人を維持。 | E154: 21.760 | F154: 19.650 | G154: 21.760 | H154: 21.041 | I154: 21.727 | J154: 21.054 | K154: 21.767 | L154: 21.756 | M154: 21.041 | N154: 21.744 | O154: 21.061 | P154: 21.744
A155: A|共同住宅|2 | B155: 家電kWh | C155: R01/R03 | D155: 1〜4人は人数別公開計算。5・6人の家電・照明は環境省の人数別比率による拡張。換気は4人を維持。 | E155: 105.659 | F155: 95.150 | G155: 105.659 | H155: 101.298 | I155: 103.739 | J155: 101.954 | K155: 106.266 | L155: 105.355 | M155: 101.298 | N155: 104.699 | O155: 102.561 | P155: 104.699
A156: L|共同住宅|2 | B156: 照明kWh | C156: R01/R03 | D156: 1〜4人は人数別公開計算。5・6人の家電・照明は環境省の人数別比率による拡張。換気は4人を維持。 | E156: 20.794 | F156: 18.703 | G156: 20.794 | H156: 19.845 | I156: 20.238 | J156: 20.045 | K156: 20.948 | L156: 20.717 | M156: 19.845 | N156: 20.516 | O156: 20.200 | P156: 20.516
A157: V|共同住宅|2 | B157: 換気kWh | C157: R01/R03 | D157: 1〜4人は人数別公開計算。5・6人の家電・照明は環境省の人数別比率による拡張。換気は4人を維持。 | E157: 22.894 | F157: 20.670 | G157: 22.894 | H157: 22.122 | I157: 22.828 | J157: 22.148 | K157: 22.907 | L157: 22.887 | M157: 22.122 | N157: 22.861 | O157: 22.161 | P157: 22.861
A158: A|共同住宅|3 | B158: 家電kWh | C158: R01/R03 | D158: 1〜4人は人数別公開計算。5・6人の家電・照明は環境省の人数別比率による拡張。換気は4人を維持。 | E158: 144.403 | F158: 130.014 | G158: 144.403 | H158: 138.526 | I158: 141.888 | J158: 139.254 | K158: 145.462 | L158: 143.873 | M158: 138.526 | N158: 143.146 | O158: 140.313 | P158: 143.146
A159: L|共同住宅|3 | B159: 照明kWh | C159: R01/R03 | D159: 1〜4人は人数別公開計算。5・6人の家電・照明は環境省の人数別比率による拡張。換気は4人を維持。 | E159: 28.849 | F159: 25.903 | G159: 28.849 | H159: 27.522 | I159: 28.008 | J159: 27.716 | K159: 29.300 | L159: 28.623 | M159: 27.522 | N159: 28.428 | O159: 28.168 | P159: 28.428
A160: V|共同住宅|3 | B160: 換気kWh | C160: R01/R03 | D160: 1〜4人は人数別公開計算。5・6人の家電・照明は環境省の人数別比率による拡張。換気は4人を維持。 | E160: 24.031 | F160: 21.692 | G160: 24.031 | H160: 23.205 | I160: 23.932 | J160: 23.244 | K160: 24.051 | L160: 24.020 | M160: 23.205 | N160: 23.981 | O160: 23.265 | P160: 23.981
A161: A|共同住宅|4 | B161: 家電kWh | C161: R01/R03 | D161: 1〜4人は人数別公開計算。5・6人の家電・照明は環境省の人数別比率による拡張。換気は4人を維持。 | E161: 151.830 | F161: 136.648 | G161: 151.830 | H161: 145.899 | I161: 149.539 | J161: 146.217 | K161: 153.485 | L161: 151.002 | M161: 145.899 | N161: 150.684 | O161: 147.873 | P161: 150.684
A162: L|共同住宅|4 | B162: 照明kWh | C162: R01/R03 | D162: 1〜4人は人数別公開計算。5・6人の家電・照明は環境省の人数別比率による拡張。換気は4人を維持。 | E162: 36.903 | F162: 33.102 | G162: 36.903 | H162: 35.199 | I162: 35.778 | J162: 35.386 | K162: 37.653 | L162: 36.529 | M162: 35.199 | N162: 36.341 | O162: 36.136 | P162: 36.341
A163: V|共同住宅|4 | B163: 換気kWh | C163: R01/R03 | D163: 1〜4人は人数別公開計算。5・6人の家電・照明は環境省の人数別比率による拡張。換気は4人を維持。 | E163: 25.163 | F163: 22.711 | G163: 25.163 | H163: 24.285 | I163: 25.032 | J163: 24.337 | K163: 25.191 | L163: 25.150 | M163: 24.285 | N163: 25.098 | O163: 24.364 | P163: 25.098
A164: A|共同住宅|5 | B164: 家電kWh | C164: R01/R03 | D164: 1〜4人は人数別公開計算。5・6人の家電・照明は環境省の人数別比率による拡張。換気は4人を維持。 | E164: 167.989 | F164: 151.191 | G164: 167.989 | H164: 161.427 | I164: 165.454 | J164: 161.779 | K164: 169.821 | L164: 167.073 | M164: 161.427 | N164: 166.721 | O164: 163.611 | P164: 166.721
A165: L|共同住宅|5 | B165: 照明kWh | C165: R01/R03 | D165: 1〜4人は人数別公開計算。5・6人の家電・照明は環境省の人数別比率による拡張。換気は4人を維持。 | E165: 40.831 | F165: 36.625 | G165: 40.831 | H165: 38.945 | I165: 39.586 | J165: 39.153 | K165: 41.660 | L165: 40.416 | M165: 38.945 | N165: 40.208 | O165: 39.982 | P165: 40.208
A166: V|共同住宅|5 | B166: 換気kWh | C166: R01/R03 | D166: 1〜4人は人数別公開計算。5・6人の家電・照明は環境省の人数別比率による拡張。換気は4人を維持。 | E166: 25.163 | F166: 22.711 | G166: 25.163 | H166: 24.285 | I166: 25.032 | J166: 24.337 | K166: 25.191 | L166: 25.150 | M166: 24.285 | N166: 25.098 | O166: 24.364 | P166: 25.098
A167: A|共同住宅|6 | B167: 家電kWh | C167: R01/R03 | D167: 1〜4人は人数別公開計算。5・6人の家電・照明は環境省の人数別比率による拡張。換気は4人を維持。 | E167: 212.876 | F167: 191.589 | G167: 212.876 | H167: 204.561 | I167: 209.664 | J167: 205.006 | K167: 215.197 | L167: 211.715 | M167: 204.561 | N167: 211.270 | O167: 207.328 | P167: 211.270
A168: L|共同住宅|6 | B168: 照明kWh | C168: R01/R03 | D168: 1〜4人は人数別公開計算。5・6人の家電・照明は環境省の人数別比率による拡張。換気は4人を維持。 | E168: 51.741 | F168: 46.412 | G168: 51.741 | H168: 49.351 | I168: 50.163 | J168: 49.614 | K168: 52.792 | L168: 51.216 | M168: 49.351 | N168: 50.952 | O168: 50.665 | P168: 50.952
A169: V|共同住宅|6 | B169: 換気kWh | C169: R01/R03 | D169: 1〜4人は人数別公開計算。5・6人の家電・照明は環境省の人数別比率による拡張。換気は4人を維持。 | E169: 25.163 | F169: 22.711 | G169: 25.163 | H169: 24.285 | I169: 25.032 | J169: 24.337 | K169: 25.191 | L169: 25.150 | M169: 24.285 | N169: 25.098 | O169: 24.364 | P169: 25.098
A170: W|1|1|ガス | B170: 給湯関連電力kWh | C170: R01/R03 | D170: 給湯1〜4人は公開計算。5・6人は4人に環境省の給湯エネルギー比率を適用した参考拡張。 | E170: 3.149 | F170: 2.831 | G170: 3.067 | H170: 2.822 | I170: 2.832 | J170: 2.697 | K170: 2.759 | L170: 2.689 | M170: 2.688 | N170: 2.870 | O170: 2.897 | P170: 3.062
A171: W|1|1|HP | B171: 給湯関連電力kWh | C171: R01/R03 | D171: 給湯1〜4人は公開計算。5・6人は4人に環境省の給湯エネルギー比率を適用した参考拡張。 | E171: 224.755 | F171: 200.184 | G171: 185.581 | H171: 123.791 | I171: 91.181 | J171: 69.190 | K171: 63.118 | L171: 54.100 | M171: 66.030 | N171: 95.505 | O171: 141.039 | P171: 181.751
A172: W|1|1|電気温水器 | B172: 給湯関連電力kWh | C172: R01/R03 | D172: 給湯1〜4人は公開計算。5・6人は4人に環境省の給湯エネルギー比率を適用した参考拡張。 | E172: 368.419 | F172: 329.697 | G172: 358.647 | H172: 303.585 | I172: 281.851 | J172: 253.287 | K172: 252.799 | L172: 227.024 | M172: 245.414 | N172: 287.050 | O172: 315.667 | P172: 349.627
A173: W|1|1|ハイブリッド | B173: 給湯関連電力kWh | C173: R01/R03 | D173: 給湯1〜4人は公開計算。5・6人は4人に環境省の給湯エネルギー比率を適用した参考拡張。 | E173: 105.046 | F173: 93.166 | G173: 88.964 | H173: 63.817 | I173: 54.388 | J173: 44.660 | K173: 38.720 | L173: 32.990 | M173: 42.799 | N173: 57.050 | O173: 71.633 | P173: 90.679
A174: W|1|2|ガス | B174: 給湯関連電力kWh | C174: R01/R03 | D174: 給湯1〜4人は公開計算。5・6人は4人に環境省の給湯エネルギー比率を適用した参考拡張。 | E174: 4.134 | F174: 3.717 | G174: 4.081 | H174: 3.684 | I174: 3.676 | J174: 3.520 | K174: 3.638 | L174: 3.524 | M174: 3.509 | N174: 3.754 | O174: 3.781 | P174: 4.011
A175: W|1|2|HP | B175: 給湯関連電力kWh | C175: R01/R03 | D175: 給湯1〜4人は公開計算。5・6人は4人に環境省の給湯エネルギー比率を適用した参考拡張。 | E175: 290.739 | F175: 261.752 | G175: 245.135 | H175: 165.194 | I175: 122.654 | J175: 93.500 | K175: 85.907 | L175: 73.610 | M175: 89.022 | N175: 128.458 | O175: 185.518 | P175: 242.072
A176: W|1|2|電気温水器 | B176: 給湯関連電力kWh | C176: R01/R03 | D176: 給湯1〜4人は公開計算。5・6人は4人に環境省の給湯エネルギー比率を適用した参考拡張。 | E176: 508.989 | F176: 455.544 | G176: 498.372 | H176: 416.832 | I176: 384.071 | J176: 343.990 | K176: 342.590 | L176: 305.788 | M176: 331.932 | N176: 391.904 | O176: 431.548 | P176: 482.453
A177: W|1|2|ハイブリッド | B177: 給湯関連電力kWh | C177: R01/R03 | D177: 給湯1〜4人は公開計算。5・6人は4人に環境省の給湯エネルギー比率を適用した参考拡張。 | E177: 120.544 | F177: 106.913 | G177: 103.621 | H177: 75.132 | I177: 64.400 | J177: 53.457 | K177: 47.424 | L177: 40.581 | M177: 51.151 | N177: 67.239 | O177: 83.372 | P177: 104.779
A178: W|1|3|ガス | B178: 給湯関連電力kWh | C178: R01/R03 | D178: 給湯1〜4人は公開計算。5・6人は4人に環境省の給湯エネルギー比率を適用した参考拡張。 | E178: 4.999 | F178: 4.480 | G178: 4.848 | H178: 4.415 | I178: 4.395 | J178: 4.241 | K178: 4.314 | L178: 4.212 | M178: 4.191 | N178: 4.492 | O178: 4.567 | P178: 4.809
A179: W|1|3|HP | B179: 給湯関連電力kWh | C179: R01/R03 | D179: 給湯1〜4人は公開計算。5・6人は4人に環境省の給湯エネルギー比率を適用した参考拡張。 | E179: 381.837 | F179: 342.514 | G179: 320.312 | H179: 219.714 | I179: 164.778 | J179: 126.464 | K179: 114.670 | L179: 99.310 | M179: 119.540 | N179: 172.172 | O179: 244.649 | P179: 320.434
A180: W|1|3|電気温水器 | B180: 給湯関連電力kWh | C180: R01/R03 | D180: 給湯1〜4人は公開計算。5・6人は4人に環境省の給湯エネルギー比率を適用した参考拡張。 | E180: 694.302 | F180: 621.821 | G180: 674.055 | H180: 568.381 | I180: 523.254 | J180: 466.776 | K180: 456.239 | L180: 410.153 | M180: 447.020 | N180: 531.167 | O180: 586.289 | P180: 658.881
A181: W|1|3|ハイブリッド | B181: 給湯関連電力kWh | C181: R01/R03 | D181: 給湯1〜4人は公開計算。5・6人は4人に環境省の給湯エネルギー比率を適用した参考拡張。 | E181: 141.366 | F181: 125.564 | G181: 122.646 | H181: 90.572 | I181: 78.329 | J181: 65.563 | K181: 58.742 | L181: 50.945 | M181: 62.531 | N181: 81.068 | O181: 99.299 | P181: 124.012
A182: W|1|4|ガス | B182: 給湯関連電力kWh | C182: R01/R03 | D182: 給湯1〜4人は公開計算。5・6人は4人に環境省の給湯エネルギー比率を適用した参考拡張。 | E182: 5.288 | F182: 4.738 | G182: 5.126 | H182: 4.658 | I182: 4.628 | J182: 4.461 | K182: 4.532 | L182: 4.422 | M182: 4.405 | N182: 4.734 | O182: 4.826 | P182: 5.084
A183: W|1|4|HP | B183: 給湯関連電力kWh | C183: R01/R03 | D183: 給湯1〜4人は公開計算。5・6人は4人に環境省の給湯エネルギー比率を適用した参考拡張。 | E183: 414.458 | F183: 371.860 | G183: 347.780 | H183: 238.586 | I183: 179.803 | J183: 138.063 | K183: 125.008 | L183: 108.441 | M183: 130.355 | N183: 187.854 | O183: 265.814 | P183: 348.652
A184: W|1|4|電気温水器 | B184: 給湯関連電力kWh | C184: R01/R03 | D184: 給湯1〜4人は公開計算。5・6人は4人に環境省の給湯エネルギー比率を適用した参考拡張。 | E184: 760.626 | F184: 681.440 | G184: 738.261 | H184: 622.574 | I184: 572.606 | J184: 509.996 | K184: 497.066 | L184: 447.165 | M184: 487.771 | N184: 580.957 | O184: 641.668 | P184: 722.227
A185: W|1|4|ハイブリッド | B185: 給湯関連電力kWh | C185: R01/R03 | D185: 給湯1〜4人は公開計算。5・6人は4人に環境省の給湯エネルギー比率を適用した参考拡張。 | E185: 148.667 | F185: 132.104 | G185: 129.410 | H185: 95.981 | I185: 83.186 | J185: 69.784 | K185: 62.739 | L185: 54.570 | M185: 66.511 | N185: 85.920 | O185: 104.873 | P185: 130.756
A186: W|1|5|ガス | B186: 給湯関連電力kWh | C186: R01/R03 | D186: 給湯1〜4人は公開計算。5・6人は4人に環境省の給湯エネルギー比率を適用した参考拡張。 | E186: 6.414 | F186: 5.747 | G186: 6.218 | H186: 5.649 | I186: 5.613 | J186: 5.410 | K186: 5.496 | L186: 5.363 | M186: 5.342 | N186: 5.742 | O186: 5.853 | P186: 6.166
A187: W|1|5|HP | B187: 給湯関連電力kWh | C187: R01/R03 | D187: 給湯1〜4人は公開計算。5・6人は4人に環境省の給湯エネルギー比率を適用した参考拡張。 | E187: 502.669 | F187: 451.005 | G187: 421.800 | H187: 289.365 | I187: 218.071 | J187: 167.447 | K187: 151.614 | L187: 131.522 | M187: 158.099 | N187: 227.836 | O187: 322.389 | P187: 422.858
A188: W|1|5|電気温水器 | B188: 給湯関連電力kWh | C188: R01/R03 | D188: 給湯1〜4人は公開計算。5・6人は4人に環境省の給湯エネルギー比率を適用した参考拡張。 | E188: 922.514 | F188: 826.475 | G188: 895.389 | H188: 755.080 | I188: 694.477 | J188: 618.541 | K188: 602.859 | L188: 542.338 | M188: 591.586 | N188: 704.605 | O188: 778.238 | P188: 875.942
A189: W|1|5|ハイブリッド | B189: 給湯関連電力kWh | C189: R01/R03 | D189: 給湯1〜4人は公開計算。5・6人は4人に環境省の給湯エネルギー比率を適用した参考拡張。 | E189: 180.309 | F189: 160.221 | G189: 156.953 | H189: 116.409 | I189: 100.891 | J189: 84.637 | K189: 76.092 | L189: 66.184 | M189: 80.667 | N189: 104.207 | O189: 127.194 | P189: 158.585
A190: W|1|6|ガス | B190: 給湯関連電力kWh | C190: R01/R03 | D190: 給湯1〜4人は公開計算。5・6人は4人に環境省の給湯エネルギー比率を適用した参考拡張。 | E190: 6.542 | F190: 5.862 | G190: 6.342 | H190: 5.762 | I190: 5.725 | J190: 5.518 | K190: 5.606 | L190: 5.470 | M190: 5.449 | N190: 5.857 | O190: 5.970 | P190: 6.289
A191: W|1|6|HP | B191: 給湯関連電力kWh | C191: R01/R03 | D191: 給湯1〜4人は公開計算。5・6人は4人に環境省の給湯エネルギー比率を適用した参考拡張。 | E191: 512.712 | F191: 460.015 | G191: 430.227 | H191: 295.146 | I191: 222.428 | J191: 170.793 | K191: 154.643 | L191: 134.149 | M191: 161.257 | N191: 232.388 | O191: 328.830 | P191: 431.306
A192: W|1|6|電気温水器 | B192: 給湯関連電力kWh | C192: R01/R03 | D192: 給湯1〜4人は公開計算。5・6人は4人に環境省の給湯エネルギー比率を適用した参考拡張。 | E192: 940.945 | F192: 842.987 | G192: 913.277 | H192: 770.166 | I192: 708.352 | J192: 630.899 | K192: 614.903 | L192: 553.173 | M192: 603.405 | N192: 718.682 | O192: 793.786 | P192: 893.442
A193: W|1|6|ハイブリッド | B193: 給湯関連電力kWh | C193: R01/R03 | D193: 給湯1〜4人は公開計算。5・6人は4人に環境省の給湯エネルギー比率を適用した参考拡張。 | E193: 183.911 | F193: 163.422 | G193: 160.089 | H193: 118.735 | I193: 102.907 | J193: 86.328 | K193: 77.612 | L193: 67.506 | M193: 82.279 | N193: 106.289 | O193: 129.735 | P193: 161.753
A194: W|2|1|ガス | B194: 給湯関連電力kWh | C194: R01/R03 | D194: 給湯1〜4人は公開計算。5・6人は4人に環境省の給湯エネルギー比率を適用した参考拡張。 | E194: 3.091 | F194: 2.780 | G194: 3.051 | H194: 2.817 | I194: 2.823 | J194: 2.690 | K194: 2.740 | L194: 2.672 | M194: 2.665 | N194: 2.839 | O194: 2.872 | P194: 3.030
A195: W|2|1|HP | B195: 給湯関連電力kWh | C195: R01/R03 | D195: 給湯1〜4人は公開計算。5・6人は4人に環境省の給湯エネルギー比率を適用した参考拡張。 | E195: 190.938 | F195: 170.961 | G195: 176.259 | H195: 109.880 | I195: 82.477 | J195: 69.098 | K195: 58.983 | L195: 50.945 | M195: 61.772 | N195: 82.357 | O195: 122.979 | P195: 163.077
A196: W|2|1|電気温水器 | B196: 給湯関連電力kWh | C196: R01/R03 | D196: 給湯1〜4人は公開計算。5・6人は4人に環境省の給湯エネルギー比率を適用した参考拡張。 | E196: 362.009 | F196: 325.146 | G196: 356.824 | H196: 298.562 | I196: 278.070 | J196: 254.044 | K196: 245.896 | L196: 222.073 | M196: 236.003 | N196: 277.683 | O196: 309.355 | P196: 340.378
A197: W|2|1|ハイブリッド | B197: 給湯関連電力kWh | C197: R01/R03 | D197: 給湯1〜4人は公開計算。5・6人は4人に環境省の給湯エネルギー比率を適用した参考拡張。 | E197: 94.872 | F197: 84.285 | G197: 86.437 | H197: 62.081 | I197: 52.661 | J197: 44.085 | K197: 36.157 | L197: 30.814 | M197: 39.601 | N197: 52.768 | O197: 67.559 | P197: 84.581
A198: W|2|2|ガス | B198: 給湯関連電力kWh | C198: R01/R03 | D198: 給湯1〜4人は公開計算。5・6人は4人に環境省の給湯エネルギー比率を適用した参考拡張。 | E198: 4.057 | F198: 3.647 | G198: 4.059 | H198: 3.678 | I198: 3.662 | J198: 3.513 | K198: 3.615 | L198: 3.501 | M198: 3.482 | N198: 3.713 | O198: 3.749 | P198: 3.966
A199: W|2|2|HP | B199: 給湯関連電力kWh | C199: R01/R03 | D199: 給湯1〜4人は公開計算。5・6人は4人に環境省の給湯エネルギー比率を適用した参考拡張。 | E199: 250.274 | F199: 224.679 | G199: 233.311 | H199: 147.116 | I199: 111.099 | J199: 93.571 | K199: 80.340 | L199: 69.379 | M199: 83.324 | N199: 111.014 | O199: 162.467 | P199: 214.861
A200: W|2|2|電気温水器 | B200: 給湯関連電力kWh | C200: R01/R03 | D200: 給湯1〜4人は公開計算。5・6人は4人に環境省の給湯エネルギー比率を適用した参考拡張。 | E200: 500.662 | F200: 449.689 | G200: 495.777 | H200: 409.371 | I200: 378.512 | J200: 345.364 | K200: 332.651 | L200: 298.701 | M200: 318.354 | N200: 378.365 | O200: 422.666 | P200: 468.983
A201: W|2|2|ハイブリッド | B201: 給湯関連電力kWh | C201: R01/R03 | D201: 給湯1〜4人は公開計算。5・6人は4人に環境省の給湯エネルギー比率を適用した参考拡張。 | E201: 109.801 | F201: 97.594 | G201: 100.919 | H201: 73.027 | I201: 62.443 | J201: 52.946 | K201: 44.557 | L201: 38.208 | M201: 47.531 | N201: 62.513 | O201: 78.915 | P201: 97.998
A202: W|2|3|ガス | B202: 給湯関連電力kWh | C202: R01/R03 | D202: 給湯1〜4人は公開計算。5・6人は4人に環境省の給湯エネルギー比率を適用した参考拡張。 | E202: 4.899 | F202: 4.393 | G202: 4.821 | H202: 4.409 | I202: 4.381 | J202: 4.230 | K202: 4.281 | L202: 4.182 | M202: 4.153 | N202: 4.441 | O202: 4.525 | P202: 4.755
... 175 more rows
